Workbook

Sheet Notes
A1: WhichTrendIndicator.xlsm; Traders Tip spreadsheet created for the October 2016 Issue
A2: Coded beginning 2016-August-06 by Ronald McAllister (rpmac_xltt@sprynet.com)
A4: This Workbook demonstrates an EXCEL version of the ideas presented
A5: by Markos Katsanos in an article titled "Which Trend Indicator Wins?"
A6: which originally appeared in the October 2016 issue of
A7: "Technical Analysis of Stocks and Commodities" magazine.
A9: CalculationsAndCharts construction Notes:
A11: The calculations necessary to obtain the basic values of the four indicators are relatively straight forward
A12: and require only 4 or 5 columns of formulas (except ADX; here I used 12).
A14: Replicating the simulated trading logic provided in the side bar takes quite few additional columns of formulas for each indicator.
A15: With this in mind, I chose to devote a separate tab to each of the indicators rather than trying to cram it all into the CalculationsAndCharts tab
A17: On each of the indicator tabs I am calculating the basic indicator and simulating trades using the trading rules provided in the side bar code.
A18: The values for each indicator are plotted as separate sub charts on the CalculationsAndCharts tab below the Price bar chart.
A20: Each indicator tab includes:
A21: User adjustable controls for the trading simulation.
A22: Computation of the indicator.
A23: A Summary of the trading simulation results.
A24: A running log of the trades as they happened
A25: Note: In the trading simulation logic used here I allow a maximum of one Long position and one Short position to be active at the same time.
A26: The provided trading logic can, and with some frequency does, generate more than one entry signal before closing a position.
A27: As the number of shares calculation commits all of the money on any given trade, there would be nothing left to commit to a secondary entry.
A29: Also on each indicator tab is a block used to calculate the Y-axis limits for the sub chart displaying this indicator.
A30: !!Do Not Move This Y-Axis Calculations Block !! Or the charting logic will fail in dramatic fashion.
A31: For those who would like to see how to use VBA code to control a vertcal axis range : open the VBA editor,
A32: navigate to the ChartSizer module and take a look in the SetValueScalesOfChart subroutine.
A34: To replicate the chart in figure 3 of the article, use symbol USO and plot dates from 08/12/2015 to 03/11/2016
A35: To replicate figure 4 from the article, use symbol USO and plot dates from 03/14/2012 to 09/12/2012
A37: Development Notes:
C38: This workbook contains and uses VBA macros and may use VBA Class structures.
C39: Input Data
C40: The data in this workbook is sorted date descending (most recent date at the top). All formulas and
C41: VBA routines are built accordingly.
A43: Calculation and Chart Worksheet Usage Comments:
C44: In General, Items in Bolded BLUE are items you may freely change to play what-if games.
C45: Be sure to have a backup copy of the spreadsheet before you alter anything else.
A47: Features carried forward from the June 2016 version of my T-Tips Template
A48: Added a pair of buttons near cell F12 that will allow the user to step the charting window forward or backward one bar for each click.
A49: I find this to be a good way to test my understanding of the author's ideas as I step through the evolution of the price behavior and the indicators.
B51: First: In the "Help! I would like to plot data" area.
B52: Added button to resolve #NA problems by locating the bar in the input data with a slightly more recent date than what the user actually requested.
B53: I find this particularly useful when I have a general idea of where I want to be date wise. Now I can pick a set of dates "out of the air".
B54: If either (or both) of my date specifications fall between dates that are available in the price history,
B55: this button will resolve them to the dates of the nearest, slightly more recent input bars.
B56: I can then refine my data interval search as necessary from there.
B57: Really great when working with Weekly or Monthly studies!
C58: 2016Jun11 - added logic to the "I would like to chart.." button to detect #N/A values and terminate
C59: gracefully with a message instead of blowing up in the charting logic.
B61: Second: In the "Price Chart Windowing Controls" area. (A11 and A12)
B62: When retrieving data for a new symbol or when changing from daily to weekly or monthly data, there was the possibility that the
B63: residual settings in A11 and A12 would fall outside of the number bars available on the input data tab after the new data retrieval.
B64: In certain combinations, this could create a serious error in the chart sizing logic and crash the spreadsheet.
B65: I have taken this opportunity to update the validity checking logic used in the chart sizing macros
B66: to adjust these values as necessary so that they fall within the boundaries of the newly retrieved input data.
A67: Features carried forward from the October 2015 Traders Tips Template
B68: Improved automation: changes to any of the following will automatically initiate calculations appropriate to reflect a change.
C69: Changing either of cells A11 (pan) or A12 (zoom) will automatically initiate the same chart sizing macros that the manual
C70: "Set Chart" button uses.
B72: Added fail-over capability to attempt to retrieve company name and basic last trade info via screen scraper logic
C73: using the Yahoo stock Summary page. Until now, the way I have been doing this reports that ^DJI is Not Found!
C74: when there is history available. Will still report correctly for a truly Not Found Symbol
C75: Minor drawbacks to the screen scrape of the stock summary page include:
C76: Only date on the page is the date we request the page. I will use this date for now as the last trade date…
C77: But the user should be aware that this is not necessarily the correct date if you are making the inquiry on
C78: a weekend or market holiday.
C79: This is not a big issue as the last real trade will already be accounted for in the history download by about 6 pm on the real date of the trade.
C80: Note: This failover mechanism is only used if what I have been doing all along reports a "not found" for the requested symbol.

Sheet InputPriceData
A1: United States Oil Fund (USO) -PCX (Daily)
A2: Last Trade: | B2: 2016-08-09 | C2: 10.19 | D2: 10.24 | E2: 10.01 | F2: 10.07 | G2: 25742421 | H2: 4:00pm | I2: -0.03 | J2: =IFERROR(OFFSET(J2,0,-1,1,1)/(OFFSET(J2,0,-4,1,1)-OFFSET(J2,0,-1,1,1)),"") -> -0.00297029703 | L2: Notes: | M2: Online Yahoo Finance Query Interfaces used in the VBA code to obtain this data: | IJ2: 241.79
A3: Request Online Yahoo History for: | M3: A.) Price History Only: "http://ichart.finance.yahoo.com/table.csv"
A4: Symbol | B4: USO | D4: Valid | I4: =OFFSET(I4,-2,0,1,1) -> -0.03 | M4: B.) Price History w/ imbedded divs n splits: "http://ichart.finance.yahoo.com/x"
A5: From | B5: 1977-01-07 | D5: Data | AF5: Trailing 12 Div return (Cur Close)
A6: To | B6: =TODAY() -> 2016-08-09 | D6: Types | E6: =VLOOKUP(B7,D7:E10,2,FALSE) -> d | M6: C.) Fundamentals (in this case name and exchange):
A7: Data Type | B7: Daily | D7: Daily | E7: d | M7: "http://download.finance.yahoo.com/d/quotes.csv?"
D8: Weekly | E8: w | M8: For some how-to doc regarding this particular interface, including a list of the
A9: Available Data | D9: Monthly | E9: m | M9: specific fields you can include in a request to this interface see:
A10: Bar Count: | B10: =COUNTA(B15:B70000)-1 -> 2602 | M10: http://www.gummy-stuff.org/Yahoo-data.htm | AF10: =OFFSET(AC15,1,0,1,1)/OFFSET(N15,1,0,1,1) -> 0
A11: From: | B11: =IF(B10<=0,"",OFFSET(B15,B10,IF(HistReqDataType="v",1,0),1,1)) -> 2006-04-10 | M11: This web site includes a downloadable working EXCEL/VBA example | W11: Trailing 12 Month Dividend Returns
A12: To: | B12: =IF(B10<=0,"",IF(HistReqDataType="v",OFFSET(B15,2,1,1,1),OFFSET(B15,1,0,1,1))) -> 2016-08-09 | M12: of the capabilities of this interface. | W12: Raw Close price on Dividend date | X12: Div Year and Month | Y12: Looking for year ago Div Year and Month | Z12: Year ago Div Date we found | AA12: row offset to year ago div Date | AB12: Same month flag | AC12: Trailing 12 Div Total | AD12: Trailing 12 Div return
Q13: Split History | S13: =COUNT(Q16:Q3919) -> 0 | T13: Running | U13: Dividend History
B14: Raw Data Values | H14: Adjusted | I14: Price Adjust | J14: Vol Adjust | K14: Adjusted Values | P14: Last | Q14: Effective | R14: Shares | T14: Vol Adjust | V14: =COUNT(U16:U3919) -> 0
A15: RelRow | B15: Date | C15: Open | D15: High | E15: Low | F15: Close | G15: Volume | H15: Close | I15: Factor | J15: Factor | K15: Open | L15: High | M15: Low | N15: Close | O15: Volume | P15: Trade | Q15: 42592 | R15: New | S15: Old | T15: 1 | U15: Date | V15: $ / Share
A16: 1 | B16: 2016-08-09 | C16: 10.19 | D16: 10.24 | E16: 10.01 | F16: 10.07 | G16: 25557700 | H16: 10.07 | I16: =H16/F16 -> 1 | J16: =INDEX(OFFSET($T$15,0,0,$S$13+1,1),MATCH(B16,OFFSET($Q$15,0,0,$S$13+1,1),-1)) -> 1 | K16: =ROUND($I16*C16,2) -> 10.19 | L16: =ROUND($I16*D16,2) -> 10.24 | M16: 10.01 | N16: 10.07 | O16: =G16*J16 -> 25557700
A17: 2 | B17: 2016-08-08 | C17: 10.03 | D17: 10.21 | E17: 10.02 | F17: 10.1 | G17: 28632700 | H17: 10.1 | I17: =H17/F17 -> 1 | J17: =INDEX(OFFSET($T$15,0,0,$S$13+1,1),MATCH(B17,OFFSET($Q$15,0,0,$S$13+1,1),-1)) -> 1 | K17: =ROUND($I17*C17,2) -> 10.03 | L17: =ROUND($I17*D17,2) -> 10.21 | M17: =ROUND($I17*E17,2) -> 10.02 | N17: =ROUND($I17*F17,2) -> 10.1 | O17: =G17*J17 -> 28632700
A18: 3 | B18: 2016-08-05 | C18: 9.83 | D18: 9.87 | E18: 9.66 | F18: 9.86 | G18: 30849000 | H18: 9.86 | I18: 1 | J18: 1 | K18: 9.83 | L18: 9.87 | M18: 9.66 | N18: 9.86 | O18: 30849000
A19: 4 | B19: 2016-08-04 | C19: 9.57 | D19: 9.91 | E19: 9.54 | F19: 9.84 | G19: 30240600 | H19: 9.84 | I19: 1 | J19: 1 | K19: 9.57 | L19: 9.91 | M19: 9.54 | N19: 9.84 | O19: 30240600
A20: 5 | B20: 2016-08-03 | C20: 9.35 | D20: 9.69 | E20: 9.23 | F20: 9.69 | G20: 36429700 | H20: 9.69 | I20: 1 | J20: 1 | K20: 9.35 | L20: 9.69 | M20: 9.23 | N20: 9.69 | O20: 36429700
A21: 6 | B21: 2016-08-02 | C21: 9.59 | D21: 9.63 | E21: 9.24 | F21: 9.33 | G21: 30293900 | H21: 9.33 | I21: 1 | J21: 1 | K21: 9.59 | L21: 9.63 | M21: 9.24 | N21: 9.33 | O21: 30293900
A22: 7 | B22: 2016-08-01 | C22: 9.62 | D22: 9.65 | E22: 9.38 | F22: 9.41 | G22: 37967800 | H22: 9.41 | I22: 1 | J22: 1 | K22: 9.62 | L22: 9.65 | M22: 9.38 | N22: 9.41 | O22: 37967800
A23: 8 | B23: 2016-07-29 | C23: 9.63 | D23: 9.81 | E23: 9.55 | F23: 9.76 | G23: 25507500 | H23: 9.76 | I23: 1 | J23: 1 | K23: 9.63 | L23: 9.81 | M23: 9.55 | N23: 9.76 | O23: 25507500
A24: 9 | B24: 2016-07-28 | C24: 9.85 | D24: 9.89 | E24: 9.66 | F24: 9.67 | G24: 28370400 | H24: 9.67 | I24: 1 | J24: 1 | K24: 9.85 | L24: 9.89 | M24: 9.66 | N24: 9.67 | O24: 28370400
A25: 10 | B25: 2016-07-27 | C25: 10.1 | D25: 10.17 | E25: 9.81 | F25: 9.9 | G25: 28954700 | H25: 9.9 | I25: 1 | J25: 1 | K25: 10.1 | L25: 10.17 | M25: 9.81 | N25: 9.9 | O25: 28954700
A26: 11 | B26: 2016-07-26 | C26: 10.1 | D26: 10.17 | E26: 10.02 | F26: 10.08 | G26: 23818200 | H26: 10.08 | I26: 1 | J26: 1 | K26: 10.1 | L26: 10.17 | M26: 10.02 | N26: 10.08 | O26: 23818200
A27: 12 | B27: 2016-07-25 | C27: 10.2 | D27: 10.23 | E27: 10.11 | F27: 10.13 | G27: 24337300 | H27: 10.13 | I27: 1 | J27: 1 | K27: 10.2 | L27: 10.23 | M27: 10.11 | N27: 10.13 | O27: 24337300
A28: 13 | B28: 2016-07-22 | C28: 10.49 | D28: 10.5 | E28: 10.3 | F28: 10.42 | G28: 22494200 | H28: 10.42 | I28: 1 | J28: 1 | K28: 10.49 | L28: 10.5 | M28: 10.3 | N28: 10.42 | O28: 22494200
A29: 14 | B29: 2016-07-21 | C29: 10.68 | D29: 10.75 | E29: 10.49 | F29: 10.49 | G29: 20343800 | H29: 10.49 | I29: 1 | J29: 1 | K29: 10.68 | L29: 10.75 | M29: 10.49 | N29: 10.49 | O29: 20343800
A30: 15 | B30: 2016-07-20 | C30: 10.55 | D30: 10.85 | E30: 10.51 | F30: 10.73 | G30: 26551900 | H30: 10.73 | I30: 1 | J30: 1 | K30: 10.55 | L30: 10.85 | M30: 10.51 | N30: 10.73 | O30: 26551900
A31: 16 | B31: 2016-07-19 | C31: 10.79 | D31: 10.82 | E31: 10.68 | F31: 10.7 | G31: 17785400 | H31: 10.7 | I31: 1 | J31: 1 | K31: 10.79 | L31: 10.82 | M31: 10.68 | N31: 10.7 | O31: 17785400
A32: 17 | B32: 2016-07-18 | C32: 10.79 | D32: 10.88 | E32: 10.72 | F32: 10.82 | G32: 19842200 | H32: 10.82 | I32: 1 | J32: 1 | K32: 10.79 | L32: 10.88 | M32: 10.72 | N32: 10.82 | O32: 19842200
A33: 18 | B33: 2016-07-15 | C33: 10.99 | D33: 11.08 | E33: 10.89 | F33: 10.99 | G33: 23656100 | H33: 10.99 | I33: 1 | J33: 1 | K33: 10.99 | L33: 11.08 | M33: 10.89 | N33: 10.99 | O33: 23656100
A34: 19 | B34: 2016-07-14 | C34: 10.86 | D34: 10.95 | E34: 10.76 | F34: 10.87 | G34: 21465900 | H34: 10.87 | I34: 1 | J34: 1 | K34: 10.86 | L34: 10.95 | M34: 10.76 | N34: 10.87 | O34: 21465900
A35: 20 | B35: 2016-07-13 | C35: 11.07 | D35: 11.15 | E35: 10.65 | F35: 10.75 | G35: 34345300 | H35: 10.75 | I35: 1 | J35: 1 | K35: 11.07 | L35: 11.15 | M35: 10.65 | N35: 10.75 | O35: 34345300
A36: 21 | B36: 2016-07-12 | C36: 11.04 | D36: 11.23 | E36: 10.89 | F36: 11.19 | G36: 30624700 | H36: 11.19 | I36: 1 | J36: 1 | K36: 11.04 | L36: 11.23 | M36: 10.89 | N36: 11.19 | O36: 30624700
A37: 22 | B37: 2016-07-11 | C37: 10.91 | D37: 10.95 | E37: 10.64 | F37: 10.65 | G37: 16805900 | H37: 10.65 | I37: 1 | J37: 1 | K37: 10.91 | L37: 10.95 | M37: 10.64 | N37: 10.65 | O37: 16805900
A38: 23 | B38: 2016-07-08 | C38: 10.91 | D38: 10.95 | E38: 10.71 | F38: 10.83 | G38: 21540700 | H38: 10.83 | I38: 1 | J38: 1 | K38: 10.91 | L38: 10.95 | M38: 10.71 | N38: 10.83 | O38: 21540700
A39: 24 | B39: 2016-07-07 | C39: 11.5 | D39: 11.54 | E39: 10.74 | F39: 10.82 | G39: 36315500 | H39: 10.82 | I39: 1 | J39: 1 | K39: 11.5 | L39: 11.54 | M39: 10.74 | N39: 10.82 | O39: 36315500
A40: 25 | B40: 2016-07-06 | C40: 11.09 | D40: 11.41 | E40: 11.01 | F40: 11.33 | G40: 17436200 | H40: 11.33 | I40: 1 | J40: 1 | K40: 11.09 | L40: 11.41 | M40: 11.01 | N40: 11.33 | O40: 17436200
A41: 26 | B41: 2016-07-05 | C41: 11.35 | D41: 11.37 | E41: 11.09 | F41: 11.18 | G41: 30162300 | H41: 11.18 | I41: 1 | J41: 1 | K41: 11.35 | L41: 11.37 | M41: 11.09 | N41: 11.18 | O41: 30162300
A42: 27 | B42: 2016-07-01 | C42: 11.52 | D42: 11.78 | E42: 11.5 | F42: 11.78 | G42: 20567100 | H42: 11.78 | I42: 1 | J42: 1 | K42: 11.52 | L42: 11.78 | M42: 11.5 | N42: 11.78 | O42: 20567100
A43: 28 | B43: 2016-06-30 | C43: 11.66 | D43: 11.79 | E43: 11.52 | F43: 11.57 | G43: 22048700 | H43: 11.57 | I43: 1 | J43: 1 | K43: 11.66 | L43: 11.79 | M43: 11.52 | N43: 11.57 | O43: 22048700
A44: 29 | B44: 2016-06-29 | C44: 11.55 | D44: 11.96 | E44: 11.5 | F44: 11.79 | G44: 24821700 | H44: 11.79 | I44: 1 | J44: 1 | K44: 11.55 | L44: 11.96 | M44: 11.5 | N44: 11.79 | O44: 24821700
A45: 30 | B45: 2016-06-28 | C45: 11.4 | D45: 11.47 | E45: 11.2 | F45: 11.47 | G45: 23383000 | H45: 11.47 | I45: 1 | J45: 1 | K45: 11.4 | L45: 11.47 | M45: 11.2 | N45: 11.47 | O45: 23383000
A46: 31 | B46: 2016-06-27 | C46: 11.22 | D46: 11.22 | E46: 10.96 | F46: 11.19 | G46: 24678900 | H46: 11.19 | I46: 1 | J46: 1 | K46: 11.22 | L46: 11.22 | M46: 10.96 | N46: 11.19 | O46: 24678900
A47: 32 | B47: 2016-06-24 | C47: 11.38 | D47: 11.58 | E47: 11.36 | F47: 11.4 | G47: 32784500 | H47: 11.4 | I47: 1 | J47: 1 | K47: 11.38 | L47: 11.58 | M47: 11.36 | N47: 11.4 | O47: 32784500
A48: 33 | B48: 2016-06-23 | C48: 11.92 | D48: 12 | E48: 11.78 | F48: 11.98 | G48: 18947500 | H48: 11.98 | I48: 1 | J48: 1 | K48: 11.92 | L48: 12 | M48: 11.78 | N48: 11.98 | O48: 18947500
A49: 34 | B49: 2016-06-22 | C49: 11.99 | D49: 12.04 | E49: 11.58 | F49: 11.74 | G49: 26056700 | H49: 11.74 | I49: 1 | J49: 1 | K49: 11.99 | L49: 12.04 | M49: 11.58 | N49: 11.74 | O49: 26056700
A50: 35 | B50: 2016-06-21 | C50: 11.76 | D50: 11.94 | E50: 11.69 | F50: 11.89 | G50: 21823000 | H50: 11.89 | I50: 1 | J50: 1 | K50: 11.76 | L50: 11.94 | M50: 11.69 | N50: 11.89 | O50: 21823000
A51: 36 | B51: 2016-06-20 | C51: 11.82 | D51: 11.96 | E51: 11.76 | F51: 11.91 | G51: 26077300 | H51: 11.91 | I51: 1 | J51: 1 | K51: 11.82 | L51: 11.96 | M51: 11.76 | N51: 11.91 | O51: 26077300
A52: 37 | B52: 2016-06-17 | C52: 11.45 | D52: 11.67 | E52: 11.39 | F52: 11.66 | G52: 34921800 | H52: 11.66 | I52: 1 | J52: 1 | K52: 11.45 | L52: 11.67 | M52: 11.39 | N52: 11.66 | O52: 34921800
A53: 38 | B53: 2016-06-16 | C53: 11.4 | D53: 11.42 | E53: 11.11 | F53: 11.14 | G53: 31068700 | H53: 11.14 | I53: 1 | J53: 1 | K53: 11.4 | L53: 11.42 | M53: 11.11 | N53: 11.14 | O53: 31068700
A54: 39 | B54: 2016-06-15 | C54: 11.57 | D54: 11.78 | E54: 11.43 | F54: 11.47 | G54: 23350400 | H54: 11.47 | I54: 1 | J54: 1 | K54: 11.57 | L54: 11.78 | M54: 11.43 | N54: 11.47 | O54: 23350400
A55: 40 | B55: 2016-06-14 | C55: 11.73 | D55: 11.79 | E55: 11.66 | F55: 11.73 | G55: 15842400 | H55: 11.73 | I55: 1 | J55: 1 | K55: 11.73 | L55: 11.79 | M55: 11.66 | N55: 11.73 | O55: 15842400
A56: 41 | B56: 2016-06-13 | C56: 11.71 | D56: 11.94 | E56: 11.7 | F56: 11.76 | G56: 18163900 | H56: 11.76 | I56: 1 | J56: 1 | K56: 11.71 | L56: 11.94 | M56: 11.7 | N56: 11.76 | O56: 18163900
A57: 42 | B57: 2016-06-10 | C57: 12.02 | D57: 12.1 | E57: 11.83 | F57: 11.87 | G57: 21021400 | H57: 11.87 | I57: 1 | J57: 1 | K57: 12.02 | L57: 12.1 | M57: 11.83 | N57: 11.87 | O57: 21021400
A58: 43 | B58: 2016-06-09 | C58: 12.19 | D58: 12.32 | E58: 12.19 | F58: 12.25 | G58: 18027700 | H58: 12.25 | I58: 1 | J58: 1 | K58: 12.19 | L58: 12.32 | M58: 12.19 | N58: 12.25 | O58: 18027700
A59: 44 | B59: 2016-06-08 | C59: 12.34 | D59: 12.45 | E59: 12.28 | F59: 12.43 | G59: 26500300 | H59: 12.43 | I59: 1 | J59: 1 | K59: 12.34 | L59: 12.45 | M59: 12.28 | N59: 12.43 | O59: 26500300
A60: 45 | B60: 2016-06-07 | C60: 12.1 | D60: 12.24 | E60: 12.07 | F60: 12.22 | G60: 18247700 | H60: 12.22 | I60: 1 | J60: 1 | K60: 12.1 | L60: 12.24 | M60: 12.07 | N60: 12.22 | O60: 18247700
A61: 46 | B61: 2016-06-06 | C61: 12.01 | D61: 12.08 | E61: 11.9 | F61: 12.04 | G61: 23410200 | H61: 12.04 | I61: 1 | J61: 1 | K61: 12.01 | L61: 12.08 | M61: 11.9 | N61: 12.04 | O61: 23410200
A62: 47 | B62: 2016-06-03 | C62: 11.89 | D62: 11.89 | E62: 11.7 | F62: 11.82 | G62: 19169900 | H62: 11.82 | I62: 1 | J62: 1 | K62: 11.89 | L62: 11.89 | M62: 11.7 | N62: 11.82 | O62: 19169900
A63: 48 | B63: 2016-06-02 | C63: 11.67 | D63: 11.96 | E63: 11.65 | F63: 11.86 | G63: 22402100 | H63: 11.86 | I63: 1 | J63: 1 | K63: 11.67 | L63: 11.96 | M63: 11.65 | N63: 11.86 | O63: 22402100
A64: 49 | B64: 2016-06-01 | C64: 11.62 | D64: 11.93 | E64: 11.56 | F64: 11.93 | G64: 25553100 | H64: 11.93 | I64: 1 | J64: 1 | K64: 11.62 | L64: 11.93 | M64: 11.56 | N64: 11.93 | O64: 25553100
A65: 50 | B65: 2016-05-31 | C65: 11.98 | D65: 12.13 | E65: 11.82 | F65: 11.87 | G65: 16850700 | H65: 11.87 | I65: 1 | J65: 1 | K65: 11.98 | L65: 12.13 | M65: 11.82 | N65: 11.87 | O65: 16850700
A66: 51 | B66: 2016-05-27 | C66: 11.84 | D66: 11.99 | E66: 11.8 | F66: 11.98 | G66: 14089100 | H66: 11.98 | I66: 1 | J66: 1 | K66: 11.84 | L66: 11.99 | M66: 11.8 | N66: 11.98 | O66: 14089100
A67: 52 | B67: 2016-05-26 | C67: 12.11 | D67: 12.12 | E67: 11.92 | F67: 11.95 | G67: 21657700 | H67: 11.95 | I67: 1 | J67: 1 | K67: 12.11 | L67: 12.12 | M67: 11.92 | N67: 11.95 | O67: 21657700
A68: 53 | B68: 2016-05-25 | C68: 11.92 | D68: 12.05 | E68: 11.79 | F68: 12.03 | G68: 24984100 | H68: 12.03 | I68: 1 | J68: 1 | K68: 11.92 | L68: 12.05 | M68: 11.79 | N68: 12.03 | O68: 24984100
A69: 54 | B69: 2016-05-24 | C69: 11.67 | D69: 11.85 | E69: 11.66 | F69: 11.82 | G69: 17092900 | H69: 11.82 | I69: 1 | J69: 1 | K69: 11.67 | L69: 11.85 | M69: 11.66 | N69: 11.82 | O69: 17092900
A70: 55 | B70: 2016-05-23 | C70: 11.51 | D70: 11.69 | E70: 11.49 | F70: 11.66 | G70: 16281100 | H70: 11.66 | I70: 1 | J70: 1 | K70: 11.51 | L70: 11.69 | M70: 11.49 | N70: 11.66 | O70: 16281100
A71: 56 | B71: 2016-05-20 | C71: 11.79 | D71: 11.86 | E71: 11.61 | F71: 11.75 | G71: 19220000 | H71: 11.75 | I71: 1 | J71: 1 | K71: 11.79 | L71: 11.86 | M71: 11.61 | N71: 11.75 | O71: 19220000
A72: 57 | B72: 2016-05-19 | C72: 11.58 | D72: 11.8 | E72: 11.44 | F72: 11.79 | G72: 21902500 | H72: 11.79 | I72: 1 | J72: 1 | K72: 11.58 | L72: 11.8 | M72: 11.44 | N72: 11.79 | O72: 21902500
A73: 58 | B73: 2016-05-18 | C73: 11.85 | D73: 12 | E73: 11.7 | F73: 11.7 | G73: 29425500 | H73: 11.7 | I73: 1 | J73: 1 | K73: 11.85 | L73: 12 | M73: 11.7 | N73: 11.7 | O73: 29425500
A74: 59 | B74: 2016-05-17 | C74: 11.75 | D74: 11.93 | E74: 11.71 | F74: 11.92 | G74: 22310900 | H74: 11.92 | I74: 1 | J74: 1 | K74: 11.75 | L74: 11.93 | M74: 11.71 | N74: 11.92 | O74: 22310900
A75: 60 | B75: 2016-05-16 | C75: 11.68 | D75: 11.79 | E75: 11.63 | F75: 11.76 | G75: 26713400 | H75: 11.76 | I75: 1 | J75: 1 | K75: 11.68 | L75: 11.79 | M75: 11.63 | N75: 11.76 | O75: 26713400
A76: 61 | B76: 2016-05-13 | C76: 11.35 | D76: 11.43 | E76: 11.27 | F76: 11.37 | G76: 15230000 | H76: 11.37 | I76: 1 | J76: 1 | K76: 11.35 | L76: 11.43 | M76: 11.27 | N76: 11.37 | O76: 15230000
A77: 62 | B77: 2016-05-12 | C77: 11.53 | D77: 11.53 | E77: 11.22 | F77: 11.45 | G77: 23946400 | H77: 11.45 | I77: 1 | J77: 1 | K77: 11.53 | L77: 11.53 | M77: 11.22 | N77: 11.45 | O77: 23946400
A78: 63 | B78: 2016-05-11 | C78: 10.91 | D78: 11.42 | E78: 10.85 | F78: 11.34 | G78: 29338200 | H78: 11.34 | I78: 1 | J78: 1 | K78: 10.91 | L78: 11.42 | M78: 10.85 | N78: 11.34 | O78: 29338200
A79: 64 | B79: 2016-05-10 | C79: 10.75 | D79: 11.02 | E79: 10.72 | F79: 10.99 | G79: 21055100 | H79: 10.99 | I79: 1 | J79: 1 | K79: 10.75 | L79: 11.02 | M79: 10.72 | N79: 10.99 | O79: 21055100
A80: 65 | B80: 2016-05-09 | C80: 10.86 | D80: 10.91 | E80: 10.64 | F80: 10.68 | G80: 22143100 | H80: 10.68 | I80: 1 | J80: 1 | K80: 10.86 | L80: 10.91 | M80: 10.64 | N80: 10.68 | O80: 22143100
A81: 66 | B81: 2016-05-06 | C81: 10.81 | D81: 11.15 | E81: 10.78 | F81: 10.96 | G81: 26396700 | H81: 10.96 | I81: =H81/F81 -> 1 | J81: =INDEX(OFFSET($T$15,0,0,$S$13+1,1),MATCH(B81,OFFSET($Q$15,0,0,$S$13+1,1),-1)) -> 1 | K81: =ROUND($I81*C81,2) -> 10.81 | L81: =ROUND($I81*D81,2) -> 11.15 | M81: =ROUND($I81*E81,2) -> 10.78 | N81: =ROUND($I81*F81,2) -> 10.96 | O81: =G81*J81 -> 26396700
A82: 67 | B82: 2016-05-05 | C82: 11.23 | D82: 11.24 | E82: 10.81 | F82: 10.9 | G82: 34159000 | H82: 10.9 | I82: 1 | J82: 1 | K82: 11.23 | L82: 11.24 | M82: 10.81 | N82: 10.9 | O82: 34159000
A83: 68 | B83: 2016-05-04 | C83: 10.93 | D83: 11.04 | E83: 10.63 | F83: 10.79 | G83: 24287300 | H83: 10.79 | I83: 1 | J83: 1 | K83: 10.93 | L83: 11.04 | M83: 10.63 | N83: 10.79 | O83: 24287300
A84: 69 | B84: 2016-05-03 | C84: 10.86 | D84: 10.88 | E84: 10.66 | F84: 10.74 | G84: 28412200 | H84: 10.74 | I84: 1 | J84: 1 | K84: 10.86 | L84: 10.88 | M84: 10.66 | N84: 10.74 | O84: 28412200
A85: 70 | B85: 2016-05-02 | C85: 11.24 | D85: 11.25 | E85: 10.95 | F85: 11.05 | G85: 21614400 | H85: 11.05 | I85: 1 | J85: 1 | K85: 11.24 | L85: 11.25 | M85: 10.95 | N85: 11.05 | O85: 21614400
A86: 71 | B86: 2016-04-29 | C86: 11.42 | D86: 11.5 | E86: 11.12 | F86: 11.3 | G86: 34802100 | H86: 11.3 | I86: 1 | J86: 1 | K86: 11.42 | L86: 11.5 | M86: 11.12 | N86: 11.3 | O86: 34802100
A87: 72 | B87: 2016-04-28 | C87: 11.16 | D87: 11.34 | E87: 11.1 | F87: 11.22 | G87: 24935900 | H87: 11.22 | I87: 1 | J87: 1 | K87: 11.16 | L87: 11.34 | M87: 11.1 | N87: 11.22 | O87: 24935900
A88: 73 | B88: 2016-04-27 | C88: 11.03 | D88: 11.22 | E88: 10.76 | F88: 11.14 | G88: 37920900 | H88: 11.14 | I88: 1 | J88: 1 | K88: 11.03 | L88: 11.22 | M88: 10.76 | N88: 11.14 | O88: 37920900
A89: 74 | B89: 2016-04-26 | C89: 10.66 | D89: 10.87 | E89: 10.62 | F89: 10.81 | G89: 19190200 | H89: 10.81 | I89: 1 | J89: 1 | K89: 10.66 | L89: 10.87 | M89: 10.62 | N89: 10.81 | O89: 19190200
A90: 75 | B90: 2016-04-25 | C90: 10.78 | D90: 10.81 | E90: 10.47 | F90: 10.55 | G90: 21975800 | H90: 10.55 | I90: 1 | J90: 1 | K90: 10.78 | L90: 10.81 | M90: 10.47 | N90: 10.55 | O90: 21975800
A91: 76 | B91: 2016-04-22 | C91: 10.75 | D91: 10.93 | E91: 10.69 | F91: 10.76 | G91: 29964200 | H91: 10.76 | I91: 1 | J91: 1 | K91: 10.75 | L91: 10.93 | M91: 10.69 | N91: 10.76 | O91: 29964200
A92: 77 | B92: 2016-04-21 | C92: 10.71 | D92: 10.82 | E92: 10.58 | F92: 10.72 | G92: 27139900 | H92: 10.72 | I92: 1 | J92: 1 | K92: 10.71 | L92: 10.82 | M92: 10.58 | N92: 10.72 | O92: 27139900
A93: 78 | B93: 2016-04-20 | C93: 10.24 | D93: 10.88 | E93: 10.2 | F93: 10.76 | G93: 42501200 | H93: 10.76 | I93: 1 | J93: 1 | K93: 10.24 | L93: 10.88 | M93: 10.2 | N93: 10.76 | O93: 42501200
A94: 79 | B94: 2016-04-19 | C94: 10.25 | D94: 10.54 | E94: 10.22 | F94: 10.44 | G94: 37479900 | H94: 10.44 | I94: 1 | J94: 1 | K94: 10.25 | L94: 10.54 | M94: 10.22 | N94: 10.44 | O94: 37479900
A95: 80 | B95: 2016-04-18 | C95: 9.84 | D95: 10.24 | E95: 9.79 | F95: 10.17 | G95: 38997500 | H95: 10.17 | I95: 1 | J95: 1 | K95: 9.84 | L95: 10.24 | M95: 9.79 | N95: 10.17 | O95: 38997500
A96: 81 | B96: 2016-04-15 | C96: 10.28 | D96: 10.33 | E96: 10.13 | F96: 10.25 | G96: 34981000 | H96: 10.25 | I96: 1 | J96: 1 | K96: 10.28 | L96: 10.33 | M96: 10.13 | N96: 10.25 | O96: 34981000
A97: 82 | B97: 2016-04-14 | C97: 10.58 | D97: 10.65 | E97: 10.42 | F97: 10.48 | G97: 31757500 | H97: 10.48 | I97: 1 | J97: 1 | K97: 10.58 | L97: 10.65 | M97: 10.42 | N97: 10.48 | O97: 31757500
A98: 83 | B98: 2016-04-13 | C98: 10.59 | D98: 10.74 | E98: 10.48 | F98: 10.51 | G98: 42934000 | H98: 10.51 | I98: 1 | J98: 1 | K98: 10.59 | L98: 10.74 | M98: 10.48 | N98: 10.51 | O98: 42934000
A99: 84 | B99: 2016-04-12 | C99: 10.37 | D99: 10.72 | E99: 10.31 | F99: 10.64 | G99: 56664700 | H99: 10.64 | I99: 1 | J99: 1 | K99: 10.37 | L99: 10.72 | M99: 10.31 | N99: 10.64 | O99: 56664700
A100: 85 | B100: 2016-04-11 | C100: 10.19 | D100: 10.34 | E100: 10.15 | F100: 10.28 | G100: 29067700 | H100: 10.28 | I100: 1 | J100: 1 | K100: 10.19 | L100: 10.34 | M100: 10.15 | N100: 10.28 | O100: 29067700
A101: 86 | B101: 2016-04-08 | C101: 9.98 | D101: 10.11 | E101: 9.93 | F101: 10.03 | G101: 47156500 | H101: 10.03 | I101: 1 | J101: 1 | K101: 9.98 | L101: 10.11 | M101: 9.93 | N101: 10.03 | O101: 47156500
A102: 87 | B102: 2016-04-07 | C102: 9.49 | D102: 9.55 | E102: 9.33 | F102: 9.51 | G102: 28205000 | H102: 9.51 | I102: 1 | J102: 1 | K102: 9.49 | L102: 9.55 | M102: 9.33 | N102: 9.51 | O102: 28205000
A103: 88 | B103: 2016-04-06 | C103: 9.38 | D103: 9.63 | E103: 9.32 | F103: 9.6 | G103: 45696600 | H103: 9.6 | I103: 1 | J103: 1 | K103: 9.38 | L103: 9.63 | M103: 9.32 | N103: 9.6 | O103: 45696600
A104: 89 | B104: 2016-04-05 | C104: 9.07 | D104: 9.19 | E104: 8.99 | F104: 9.13 | G104: 42668400 | H104: 9.13 | I104: 1 | J104: 1 | K104: 9.07 | L104: 9.19 | M104: 8.99 | N104: 9.13 | O104: 42668400
A105: 90 | B105: 2016-04-04 | C105: 9.32 | D105: 9.46 | E105: 9.05 | F105: 9.08 | G105: 38727100 | H105: 9.08 | I105: 1 | J105: 1 | K105: 9.32 | L105: 9.46 | M105: 9.05 | N105: 9.08 | O105: 38727100
A106: 91 | B106: 2016-04-01 | C106: 9.41 | D106: 9.46 | E106: 9.32 | F106: 9.33 | G106: 40266100 | H106: 9.33 | I106: 1 | J106: 1 | K106: 9.41 | L106: 9.46 | M106: 9.32 | N106: 9.33 | O106: 40266100
A107: 92 | B107: 2016-03-31 | C107: 9.68 | D107: 9.92 | E107: 9.67 | F107: 9.7 | G107: 32692400 | H107: 9.7 | I107: 1 | J107: 1 | K107: 9.68 | L107: 9.92 | M107: 9.67 | N107: 9.7 | O107: 32692400
A108: 93 | B108: 2016-03-30 | C108: 9.99 | D108: 10.13 | E108: 9.7 | F108: 9.73 | G108: 36954600 | H108: 9.73 | I108: 1 | J108: 1 | K108: 9.99 | L108: 10.13 | M108: 9.7 | N108: 9.73 | O108: 36954600
A109: 94 | B109: 2016-03-29 | C109: 9.71 | D109: 9.82 | E109: 9.63 | F109: 9.8 | G109: 34974600 | H109: 9.8 | I109: 1 | J109: 1 | K109: 9.71 | L109: 9.82 | M109: 9.63 | N109: 9.8 | O109: 34974600
A110: 95 | B110: 2016-03-28 | C110: 10.01 | D110: 10.06 | E110: 9.87 | F110: 10.01 | G110: 27248100 | H110: 10.01 | I110: 1 | J110: 1 | K110: 10.01 | L110: 10.06 | M110: 9.87 | N110: 10.01 | O110: 27248100
A111: 96 | B111: 2016-03-24 | C111: 9.78 | D111: 10.1 | E111: 9.74 | F111: 10.06 | G111: 50576300 | H111: 10.06 | I111: 1 | J111: 1 | K111: 9.78 | L111: 10.1 | M111: 9.74 | N111: 10.06 | O111: 50576300
A112: 97 | B112: 2016-03-23 | C112: 10.33 | D112: 10.37 | E112: 10.08 | F112: 10.11 | G112: 40194200 | H112: 10.11 | I112: 1 | J112: 1 | K112: 10.33 | L112: 10.37 | M112: 10.08 | N112: 10.11 | O112: 40194200
A113: 98 | B113: 2016-03-22 | C113: 10.41 | D113: 10.64 | E113: 10.38 | F113: 10.54 | G113: 28287400 | H113: 10.54 | I113: 1 | J113: 1 | K113: 10.41 | L113: 10.64 | M113: 10.38 | N113: 10.54 | O113: 28287400
A114: 99 | B114: 2016-03-21 | C114: 10.5 | D114: 10.62 | E114: 10.36 | F114: 10.59 | G114: 34995300 | H114: 10.59 | I114: 1 | J114: 1 | K114: 10.5 | L114: 10.62 | M114: 10.36 | N114: 10.59 | O114: 34995300
A115: 100 | B115: 2016-03-18 | C115: 10.71 | D115: 10.8 | E115: 10.43 | F115: 10.48 | G115: 38919600 | H115: 10.48 | I115: 1 | J115: 1 | K115: 10.71 | L115: 10.8 | M115: 10.43 | N115: 10.48 | O115: 38919600
A116: 101 | B116: 2016-03-17 | C116: 10.37 | D116: 10.6 | E116: 10.29 | F116: 10.55 | G116: 41070700 | H116: 10.55 | I116: 1 | J116: 1 | K116: 10.37 | L116: 10.6 | M116: 10.29 | N116: 10.55 | O116: 41070700
A117: 102 | B117: 2016-03-16 | C117: 9.91 | D117: 10.2 | E117: 9.91 | F117: 10.18 | G117: 38311700 | H117: 10.18 | I117: 1 | J117: 1 | K117: 9.91 | L117: 10.2 | M117: 9.91 | N117: 10.18 | O117: 38311700
A118: 103 | B118: 2016-03-15 | C118: 9.73 | D118: 9.74 | E118: 9.59 | F118: 9.7 | G118: 35471100 | H118: 9.7 | I118: 1 | J118: 1 | K118: 9.73 | L118: 9.74 | M118: 9.59 | N118: 9.7 | O118: 35471100
A119: 104 | B119: 2016-03-14 | C119: 9.92 | D119: 9.93 | E119: 9.76 | F119: 9.88 | G119: 37316700 | H119: 9.88 | I119: 1 | J119: 1 | K119: 9.92 | L119: 9.93 | M119: 9.76 | N119: 9.88 | O119: 37316700
A120: 105 | B120: 2016-03-11 | C120: 10.21 | D120: 10.29 | E120: 10.06 | F120: 10.19 | G120: 28144000 | H120: 10.19 | I120: 1 | J120: 1 | K120: 10.21 | L120: 10.29 | M120: 10.06 | N120: 10.19 | O120: 28144000
A121: 106 | B121: 2016-03-10 | C121: 9.96 | D121: 10.12 | E121: 9.88 | F121: 10.04 | G121: 33089600 | H121: 10.04 | I121: 1 | J121: 1 | K121: 9.96 | L121: 10.12 | M121: 9.88 | N121: 10.04 | O121: 33089600
A122: 107 | B122: 2016-03-09 | C122: 9.87 | D122: 10.21 | E122: 9.85 | F122: 10.15 | G122: 43985300 | H122: 10.15 | I122: 1 | J122: 1 | K122: 9.87 | L122: 10.21 | M122: 9.85 | N122: 10.15 | O122: 43985300
A123: 108 | B123: 2016-03-08 | C123: 10.04 | D123: 10.04 | E123: 9.65 | F123: 9.65 | G123: 45700500 | H123: 9.65 | I123: 1 | J123: 1 | K123: 10.04 | L123: 10.04 | M123: 9.65 | N123: 9.65 | O123: 45700500
A124: 109 | B124: 2016-03-07 | C124: 9.68 | D124: 10.15 | E124: 9.67 | F124: 10.11 | G124: 67097200 | H124: 10.11 | I124: 1 | J124: 1 | K124: 9.68 | L124: 10.15 | M124: 9.67 | N124: 10.11 | O124: 67097200
A125: 110 | B125: 2016-03-04 | C125: 9.29 | D125: 9.65 | E125: 9.18 | F125: 9.65 | G125: 48973800 | H125: 9.65 | I125: 1 | J125: 1 | K125: 9.29 | L125: 9.65 | M125: 9.18 | N125: 9.65 | O125: 48973800
A126: 111 | B126: 2016-03-03 | C126: 9.13 | D126: 9.41 | E126: 9.11 | F126: 9.25 | G126: 34373900 | H126: 9.25 | I126: 1 | J126: 1 | K126: 9.13 | L126: 9.41 | M126: 9.11 | N126: 9.25 | O126: 34373900
A127: 112 | B127: 2016-03-02 | C127: 9.01 | D127: 9.36 | E127: 8.94 | F127: 9.3 | G127: 49507900 | H127: 9.3 | I127: 1 | J127: 1 | K127: 9.01 | L127: 9.36 | M127: 8.94 | N127: 9.3 | O127: 49507900
A128: 113 | B128: 2016-03-01 | C128: 8.98 | D128: 9.26 | E128: 8.89 | F128: 9.15 | G128: 47605400 | H128: 9.15 | I128: 1 | J128: 1 | K128: 8.98 | L128: 9.26 | M128: 8.89 | N128: 9.15 | O128: 47605400
A129: 114 | B129: 2016-02-29 | C129: 8.86 | D129: 9.04 | E129: 8.78 | F129: 9 | G129: 50604400 | H129: 9 | I129: 1 | J129: 1 | K129: 8.86 | L129: 9.04 | M129: 8.78 | N129: 9 | O129: 50604400
A130: 115 | B130: 2016-02-26 | C130: 9.14 | D130: 9.16 | E130: 8.7 | F130: 8.78 | G130: 58799400 | H130: 8.78 | I130: 1 | J130: 1 | K130: 9.14 | L130: 9.16 | M130: 8.7 | N130: 8.78 | O130: 58799400
A131: 116 | B131: 2016-02-25 | C131: 8.48 | D131: 8.92 | E131: 8.28 | F131: 8.8 | G131: 39506700 | H131: 8.8 | I131: 1 | J131: 1 | K131: 8.48 | L131: 8.92 | M131: 8.28 | N131: 8.8 | O131: 39506700
A132: 117 | B132: 2016-02-24 | C132: 8.19 | D132: 8.63 | E132: 8.14 | F132: 8.59 | G132: 48189900 | H132: 8.59 | I132: 1 | J132: 1 | K132: 8.19 | L132: 8.63 | M132: 8.14 | N132: 8.59 | O132: 48189900
A133: 118 | B133: 2016-02-23 | C133: 8.76 | D133: 8.76 | E133: 8.43 | F133: 8.48 | G133: 62427200 | H133: 8.48 | I133: 1 | J133: 1 | K133: 8.76 | L133: 8.76 | M133: 8.43 | N133: 8.48 | O133: 62427200
A134: 119 | B134: 2016-02-22 | C134: 8.9 | D134: 9.01 | E134: 8.84 | F134: 8.91 | G134: 53972100 | H134: 8.91 | I134: 1 | J134: 1 | K134: 8.9 | L134: 9.01 | M134: 8.84 | N134: 8.91 | O134: 53972100
A135: 120 | B135: 2016-02-19 | C135: 8.55 | D135: 8.6 | E135: 8.35 | F135: 8.55 | G135: 47562600 | H135: 8.55 | I135: 1 | J135: 1 | K135: 8.55 | L135: 8.6 | M135: 8.35 | N135: 8.55 | O135: 47562600
A136: 121 | B136: 2016-02-18 | C136: 9.03 | D136: 9.07 | E136: 8.65 | F136: 8.66 | G136: 55390100 | H136: 8.66 | I136: 1 | J136: 1 | K136: 9.03 | L136: 9.07 | M136: 8.65 | N136: 8.66 | O136: 55390100
A137: 122 | B137: 2016-02-17 | C137: 8.43 | D137: 8.9 | E137: 8.39 | F137: 8.78 | G137: 60273400 | H137: 8.78 | I137: 1 | J137: 1 | K137: 8.43 | L137: 8.9 | M137: 8.39 | N137: 8.78 | O137: 60273400
A138: 123 | B138: 2016-02-16 | C138: 8.49 | D138: 8.52 | E138: 8.18 | F138: 8.31 | G138: 48950000 | H138: 8.31 | I138: 1 | J138: 1 | K138: 8.49 | L138: 8.52 | M138: 8.18 | N138: 8.31 | O138: 48950000
A139: 124 | B139: 2016-02-12 | C139: 8.16 | D139: 8.52 | E139: 8.01 | F139: 8.33 | G139: 67907200 | H139: 8.33 | I139: 1 | J139: 1 | K139: 8.16 | L139: 8.52 | M139: 8.01 | N139: 8.33 | O139: 67907200
A140: 125 | B140: 2016-02-11 | C140: 7.82 | D140: 8.03 | E140: 7.67 | F140: 7.99 | G140: 95990700 | H140: 7.99 | I140: 1 | J140: 1 | K140: 7.82 | L140: 8.03 | M140: 7.67 | N140: 7.99 | O140: 95990700
A141: 126 | B141: 2016-02-10 | C141: 7.97 | D141: 8.4 | E141: 7.89 | F141: 7.96 | G141: 64182800 | H141: 7.96 | I141: 1 | J141: 1 | K141: 7.97 | L141: 8.4 | M141: 7.89 | N141: 7.96 | O141: 64182800
A142: 127 | B142: 2016-02-09 | C142: 8.51 | D142: 8.67 | E142: 7.97 | F142: 8.18 | G142: 57812400 | H142: 8.18 | I142: 1 | J142: 1 | K142: 8.51 | L142: 8.67 | M142: 7.97 | N142: 8.18 | O142: 57812400
A143: 128 | B143: 2016-02-08 | C143: 8.77 | D143: 8.82 | E143: 8.52 | F143: 8.64 | G143: 38298300 | H143: 8.64 | I143: 1 | J143: 1 | K143: 8.77 | L143: 8.82 | M143: 8.52 | N143: 8.64 | O143: 38298300
A144: 129 | B144: 2016-02-05 | C144: 9.04 | D144: 9.23 | E144: 8.8 | F144: 8.91 | G144: 34847600 | H144: 8.91 | I144: 1 | J144: 1 | K144: 9.04 | L144: 9.23 | M144: 8.8 | N144: 8.91 | O144: 34847600
A145: 130 | B145: 2016-02-04 | C145: 9.55 | D145: 9.65 | E145: 9.06 | F145: 9.12 | G145: 44985200 | H145: 9.12 | I145: =H145/F145 -> 1 | J145: =INDEX(OFFSET($T$15,0,0,$S$13+1,1),MATCH(B145,OFFSET($Q$15,0,0,$S$13+1,1),-1)) -> 1 | K145: =ROUND($I145*C145,2) -> 9.55 | L145: =ROUND($I145*D145,2) -> 9.65 | M145: =ROUND($I145*E145,2) -> 9.06 | N145: =ROUND($I145*F145,2) -> 9.12 | O145: =G145*J145 -> 44985200
A146: 131 | B146: 2016-02-03 | C146: 8.84 | D146: 9.35 | E146: 8.54 | F146: 9.34 | G146: 72246300 | H146: 9.34 | I146: 1 | J146: 1 | K146: 8.84 | L146: 9.35 | M146: 8.54 | N146: 9.34 | O146: 72246300
A147: 132 | B147: 2016-02-02 | C147: 8.72 | D147: 8.81 | E147: 8.56 | F147: 8.57 | G147: 44437500 | H147: 8.57 | I147: 1 | J147: 1 | K147: 8.72 | L147: 8.81 | M147: 8.56 | N147: 8.57 | O147: 44437500
A148: 133 | B148: 2016-02-01 | C148: 9.35 | D148: 9.36 | E148: 8.99 | F148: 9.02 | G148: 48889800 | H148: 9.02 | I148: 1 | J148: 1 | K148: 9.35 | L148: 9.36 | M148: 8.99 | N148: 9.02 | O148: 48889800
A149: 134 | B149: 2016-01-29 | C149: 9.77 | D149: 9.88 | E149: 9.38 | F149: 9.65 | G149: 47209700 | H149: 9.65 | I149: 1 | J149: 1 | K149: 9.77 | L149: 9.88 | M149: 9.38 | N149: 9.65 | O149: 47209700
A150: 135 | B150: 2016-01-28 | C150: 9.8 | D150: 9.86 | E150: 9.41 | F150: 9.7 | G150: 66151100 | H150: 9.7 | I150: 1 | J150: 1 | K150: 9.8 | L150: 9.86 | M150: 9.41 | N150: 9.7 | O150: 66151100
A151: 136 | B151: 2016-01-27 | C151: 8.92 | D151: 9.43 | E151: 8.79 | F151: 9.18 | G151: 71429700 | H151: 9.18 | I151: 1 | J151: 1 | K151: 8.92 | L151: 9.43 | M151: 8.79 | N151: 9.18 | O151: 71429700
A152: 137 | B152: 2016-01-26 | C152: 8.81 | D152: 9.31 | E152: 8.74 | F152: 8.97 | G152: 51444800 | H152: 8.97 | I152: 1 | J152: 1 | K152: 8.81 | L152: 9.31 | M152: 8.74 | N152: 8.97 | O152: 51444800
A153: 138 | B153: 2016-01-25 | C153: 8.94 | D153: 9.12 | E153: 8.54 | F153: 8.54 | G153: 55479000 | H153: 8.54 | I153: 1 | J153: 1 | K153: 8.94 | L153: 9.12 | M153: 8.54 | N153: 8.54 | O153: 55479000
A154: 139 | B154: 2016-01-22 | C154: 9.09 | D154: 9.29 | E154: 8.97 | F154: 9.27 | G154: 62556200 | H154: 9.27 | I154: 1 | J154: 1 | K154: 9.09 | L154: 9.29 | M154: 8.97 | N154: 9.27 | O154: 62556200
A155: 140 | B155: 2016-01-21 | C155: 8.1 | D155: 8.69 | E155: 8.06 | F155: 8.56 | G155: 87217400 | H155: 8.56 | I155: 1 | J155: 1 | K155: 8.1 | L155: 8.69 | M155: 8.06 | N155: 8.56 | O155: 87217400
A156: 141 | B156: 2016-01-20 | C156: 8.34 | D156: 8.37 | E156: 7.92 | F156: 8.24 | G156: 83215600 | H156: 8.24 | I156: 1 | J156: 1 | K156: 8.34 | L156: 8.37 | M156: 7.92 | N156: 8.24 | O156: 83215600
A157: 142 | B157: 2016-01-19 | C157: 8.75 | D157: 8.77 | E157: 8.45 | F157: 8.49 | G157: 60322600 | H157: 8.49 | I157: 1 | J157: 1 | K157: 8.75 | L157: 8.77 | M157: 8.45 | N157: 8.49 | O157: 60322600
A158: 143 | B158: 2016-01-15 | C158: 8.79 | D158: 8.9 | E158: 8.64 | F158: 8.79 | G158: 92820900 | H158: 8.79 | I158: 1 | J158: 1 | K158: 8.79 | L158: 8.9 | M158: 8.64 | N158: 8.79 | O158: 92820900
A159: 144 | B159: 2016-01-14 | C159: 9.14 | D159: 9.34 | E159: 9.04 | F159: 9.23 | G159: 47627300 | H159: 9.23 | I159: 1 | J159: 1 | K159: 9.14 | L159: 9.34 | M159: 9.04 | N159: 9.23 | O159: 47627300
A160: 145 | B160: 2016-01-13 | C160: 9.3 | D160: 9.39 | E160: 8.93 | F160: 9.09 | G160: 100555700 | H160: 9.09 | I160: 1 | J160: 1 | K160: 9.3 | L160: 9.39 | M160: 8.93 | N160: 9.09 | O160: 100555700
A161: 146 | B161: 2016-01-12 | C161: 9.43 | D161: 9.48 | E161: 8.9 | F161: 9.17 | G161: 102085300 | H161: 9.17 | I161: 1 | J161: 1 | K161: 9.43 | L161: 9.48 | M161: 8.9 | N161: 9.17 | O161: 102085300
A162: 147 | B162: 2016-01-11 | C162: 9.72 | D162: 9.76 | E162: 9.2 | F162: 9.25 | G162: 82280400 | H162: 9.25 | I162: 1 | J162: 1 | K162: 9.72 | L162: 9.76 | M162: 9.2 | N162: 9.25 | O162: 82280400
A163: 148 | B163: 2016-01-08 | C163: 9.95 | D163: 10.02 | E163: 9.71 | F163: 9.8 | G163: 44688400 | H163: 9.8 | I163: 1 | J163: 1 | K163: 9.95 | L163: 10.02 | M163: 9.71 | N163: 9.8 | O163: 44688400
A164: 149 | B164: 2016-01-07 | C164: 9.89 | D164: 10.2 | E164: 9.85 | F164: 9.9 | G164: 51997700 | H164: 9.9 | I164: 1 | J164: 1 | K164: 9.89 | L164: 10.2 | M164: 9.85 | N164: 9.9 | O164: 51997700
A165: 150 | B165: 2016-01-06 | C165: 10.3 | D165: 10.47 | E165: 10.06 | F165: 10.11 | G165: 73087100 | H165: 10.11 | I165: 1 | J165: 1 | K165: 10.3 | L165: 10.47 | M165: 10.06 | N165: 10.11 | O165: 73087100
A166: 151 | B166: 2016-01-05 | C166: 10.8 | D166: 10.87 | E166: 10.64 | F166: 10.66 | G166: 32173600 | H166: 10.66 | I166: 1 | J166: 1 | K166: 10.8 | L166: 10.87 | M166: 10.64 | N166: 10.66 | O166: 32173600
A167: 152 | B167: 2016-01-04 | C167: 11.26 | D167: 11.42 | E167: 10.82 | F167: 10.98 | G167: 36236700 | H167: 10.98 | I167: 1 | J167: 1 | K167: 11.26 | L167: 11.42 | M167: 10.82 | N167: 10.98 | O167: 36236700
A168: 153 | B168: 2015-12-31 | C168: 10.84 | D168: 11.24 | E168: 10.82 | F168: 11 | G168: 30362300 | H168: 11 | I168: 1 | J168: 1 | K168: 10.84 | L168: 11.24 | M168: 10.82 | N168: 11 | O168: 30362300
A169: 154 | B169: 2015-12-30 | C169: 10.96 | D169: 11 | E169: 10.84 | F169: 10.93 | G169: 24796400 | H169: 10.93 | I169: 1 | J169: 1 | K169: 10.96 | L169: 11 | M169: 10.84 | N169: 10.93 | O169: 24796400
A170: 155 | B170: 2015-12-29 | C170: 11.16 | D170: 11.29 | E170: 11.15 | F170: 11.26 | G170: 23585200 | H170: 11.26 | I170: 1 | J170: 1 | K170: 11.16 | L170: 11.29 | M170: 11.15 | N170: 11.26 | O170: 23585200
A171: 156 | B171: 2015-12-28 | C171: 11.06 | D171: 11.07 | E171: 10.91 | F171: 10.93 | G171: 20495900 | H171: 10.93 | I171: 1 | J171: 1 | K171: 11.06 | L171: 11.07 | M171: 10.91 | N171: 10.93 | O171: 20495900
A172: 157 | B172: 2015-12-24 | C172: 11.34 | D172: 11.35 | E172: 11.23 | F172: 11.3 | G172: 19038100 | H172: 11.3 | I172: 1 | J172: 1 | K172: 11.34 | L172: 11.35 | M172: 11.23 | N172: 11.3 | O172: 19038100
A173: 158 | B173: 2015-12-23 | C173: 11.06 | D173: 11.29 | E173: 11 | F173: 11.26 | G173: 39354100 | H173: 11.26 | I173: 1 | J173: 1 | K173: 11.06 | L173: 11.29 | M173: 11 | N173: 11.26 | O173: 39354100
A174: 159 | B174: 2015-12-22 | C174: 10.68 | D174: 10.88 | E174: 10.66 | F174: 10.77 | G174: 21942200 | H174: 10.77 | I174: 1 | J174: 1 | K174: 10.68 | L174: 10.88 | M174: 10.66 | N174: 10.77 | O174: 21942200
A175: 160 | B175: 2015-12-21 | C175: 10.6 | D175: 10.75 | E175: 10.52 | F175: 10.66 | G175: 26532400 | H175: 10.66 | I175: 1 | J175: 1 | K175: 10.6 | L175: 10.75 | M175: 10.52 | N175: 10.66 | O175: 26532400
A176: 161 | B176: 2015-12-18 | C176: 10.81 | D176: 10.99 | E176: 10.62 | F176: 10.66 | G176: 37112500 | H176: 10.66 | I176: 1 | J176: 1 | K176: 10.81 | L176: 10.99 | M176: 10.62 | N176: 10.66 | O176: 37112500
A177: 162 | B177: 2015-12-17 | C177: 10.95 | D177: 10.95 | E177: 10.71 | F177: 10.74 | G177: 30064600 | H177: 10.74 | I177: 1 | J177: 1 | K177: 10.95 | L177: 10.95 | M177: 10.71 | N177: 10.74 | O177: 30064600
A178: 163 | B178: 2015-12-16 | C178: 11.23 | D178: 11.34 | E178: 10.88 | F178: 10.99 | G178: 36387300 | H178: 10.99 | I178: 1 | J178: 1 | K178: 11.23 | L178: 11.34 | M178: 10.88 | N178: 10.99 | O178: 36387300
A179: 164 | B179: 2015-12-15 | C179: 11.33 | D179: 11.65 | E179: 11.25 | F179: 11.4 | G179: 35892100 | H179: 11.4 | I179: 1 | J179: 1 | K179: 11.33 | L179: 11.65 | M179: 11.25 | N179: 11.4 | O179: 35892100
A180: 165 | B180: 2015-12-14 | C180: 10.97 | D180: 11.3 | E180: 10.79 | F180: 11.16 | G180: 39148200 | H180: 11.16 | I180: 1 | J180: 1 | K180: 10.97 | L180: 11.3 | M180: 10.79 | N180: 11.16 | O180: 39148200
A181: 166 | B181: 2015-12-11 | C181: 11.3 | D181: 11.33 | E181: 11 | F181: 11.07 | G181: 44460900 | H181: 11.07 | I181: 1 | J181: 1 | K181: 11.3 | L181: 11.33 | M181: 11 | N181: 11.07 | O181: 44460900
A182: 167 | B182: 2015-12-10 | C182: 11.44 | D182: 11.57 | E182: 11.33 | F182: 11.37 | G182: 33745900 | H182: 11.37 | I182: 1 | J182: 1 | K182: 11.44 | L182: 11.57 | M182: 11.33 | N182: 11.37 | O182: 33745900
A183: 168 | B183: 2015-12-09 | C183: 11.77 | D183: 12.06 | E183: 11.43 | F183: 11.56 | G183: 38871100 | H183: 11.56 | I183: 1 | J183: 1 | K183: 11.77 | L183: 12.06 | M183: 11.43 | N183: 11.56 | O183: 38871100
A184: 169 | B184: 2015-12-08 | C184: 11.52 | D184: 11.97 | E184: 11.45 | F184: 11.68 | G184: 39573700 | H184: 11.68 | I184: 1 | J184: 1 | K184: 11.52 | L184: 11.97 | M184: 11.45 | N184: 11.68 | O184: 39573700
A185: 170 | B185: 2015-12-07 | C185: 12.02 | D185: 12.08 | E185: 11.65 | F185: 11.72 | G185: 53326400 | H185: 11.72 | I185: 1 | J185: 1 | K185: 12.02 | L185: 12.08 | M185: 11.65 | N185: 11.72 | O185: 53326400
A186: 171 | B186: 2015-12-04 | C186: 12.45 | D186: 12.63 | E186: 12.33 | F186: 12.46 | G186: 41884500 | H186: 12.46 | I186: 1 | J186: 1 | K186: 12.45 | L186: 12.63 | M186: 12.33 | N186: 12.46 | O186: 41884500
A187: 172 | B187: 2015-12-03 | C187: 12.59 | D187: 12.97 | E187: 12.45 | F187: 12.77 | G187: 35997400 | H187: 12.77 | I187: 1 | J187: 1 | K187: 12.59 | L187: 12.97 | M187: 12.45 | N187: 12.77 | O187: 35997400
A188: 173 | B188: 2015-12-02 | C188: 12.77 | D188: 13.03 | E188: 12.38 | F188: 12.48 | G188: 52543800 | H188: 12.48 | I188: 1 | J188: 1 | K188: 12.77 | L188: 13.03 | M188: 12.38 | N188: 12.48 | O188: 52543800
A189: 174 | B189: 2015-12-01 | C189: 12.92 | D189: 13.11 | E189: 12.83 | F189: 12.95 | G189: 19658700 | H189: 12.95 | I189: 1 | J189: 1 | K189: 12.92 | L189: 13.11 | M189: 12.83 | N189: 12.95 | O189: 19658700
A190: 175 | B190: 2015-11-30 | C190: 13.18 | D190: 13.23 | E190: 12.9 | F190: 12.93 | G190: 22160200 | H190: 12.93 | I190: 1 | J190: 1 | K190: 13.18 | L190: 13.23 | M190: 12.9 | N190: 12.93 | O190: 22160200
A191: 176 | B191: 2015-11-27 | C191: 13.09 | D191: 13.11 | E191: 13 | F191: 13.03 | G191: 10619600 | H191: 13.03 | I191: 1 | J191: 1 | K191: 13.09 | L191: 13.11 | M191: 13 | N191: 13.03 | O191: 10619600
A192: 177 | B192: 2015-11-25 | C192: 13.11 | D192: 13.42 | E192: 12.96 | F192: 13.39 | G192: 27117000 | H192: 13.39 | I192: 1 | J192: 1 | K192: 13.11 | L192: 13.42 | M192: 12.96 | N192: 13.39 | O192: 27117000
A193: 178 | B193: 2015-11-24 | C193: 13.35 | D193: 13.5 | E193: 13.2 | F193: 13.32 | G193: 25560200 | H193: 13.32 | I193: 1 | J193: 1 | K193: 13.35 | L193: 13.5 | M193: 13.2 | N193: 13.32 | O193: 25560200
A194: 179 | B194: 2015-11-23 | C194: 12.84 | D194: 13.24 | E194: 12.82 | F194: 13.02 | G194: 29045200 | H194: 13.02 | I194: 1 | J194: 1 | K194: 12.84 | L194: 13.24 | M194: 12.82 | N194: 13.02 | O194: 29045200
A195: 180 | B195: 2015-11-20 | C195: 12.94 | D195: 13.28 | E195: 12.86 | F195: 12.93 | G195: 37776200 | H195: 12.93 | I195: 1 | J195: 1 | K195: 12.94 | L195: 13.28 | M195: 12.86 | N195: 12.93 | O195: 37776200
A196: 181 | B196: 2015-11-19 | C196: 12.92 | D196: 13.03 | E196: 12.86 | F196: 12.96 | G196: 22457200 | H196: 12.96 | I196: 1 | J196: 1 | K196: 12.92 | L196: 13.03 | M196: 12.86 | N196: 12.96 | O196: 22457200
A197: 182 | B197: 2015-11-18 | C197: 13.14 | D197: 13.2 | E197: 12.83 | F197: 13.05 | G197: 24754800 | H197: 13.05 | I197: 1 | J197: 1 | K197: 13.14 | L197: 13.2 | M197: 12.83 | N197: 13.05 | O197: 24754800
A198: 183 | B198: 2015-11-17 | C198: 13.17 | D198: 13.22 | E198: 12.94 | F198: 13.01 | G198: 22978800 | H198: 13.01 | I198: 1 | J198: 1 | K198: 13.17 | L198: 13.22 | M198: 12.94 | N198: 13.01 | O198: 22978800
A199: 184 | B199: 2015-11-16 | C199: 13 | D199: 13.43 | E199: 12.81 | F199: 13.39 | G199: 37787400 | H199: 13.39 | I199: 1 | J199: 1 | K199: 13 | L199: 13.43 | M199: 12.81 | N199: 13.39 | O199: 37787400
A200: 185 | B200: 2015-11-13 | C200: 13.2 | D200: 13.23 | E200: 12.91 | F200: 13.06 | G200: 34583500 | H200: 13.06 | I200: 1 | J200: 1 | K200: 13.2 | L200: 13.23 | M200: 12.91 | N200: 13.06 | O200: 34583500
... 2417 more rows

Sheet CalculationsAndCharts
A1: WhichTrendIndicator
A2: =InputPriceData!A1 -> United States Oil Fund (USO) -PCX (Daily) | R2: Chart Clutter Controls
A4: User Charting Controls | E4: Click to Shift Chart One Bar: | R4: TRUE
A5: Data Control
A6: =InputPriceData!$B$10 -> 2602 | B6: Available Input Data Rows | E6: Earliest: | F6: =OFFSET(InputPriceData!B15,CalculationsAndCharts!A6,0,1,1) -> 2006-04-10
B7: Use Close Adjusted: | C7: TRUE | E7: Latest: | F7: =OFFSET(InputPriceData!B15,1,0,1,1) -> 2016-08-09
A8: =MIN(A6-A11,LastUsedRowInColumn(A:A)-32) -> 1620 | B8: Logically Available for Calc / Plot | E8: $ Change: | F8: =InputPriceData!I4 -> -0.03
A10: Price Chart Windowing Controls | F10: Y-axis Range
A11: 104 | B11: Input Data Offset (Pan) | E11: Max High+ | F11: =CEILING(MAX(MAX(OFFSET($E$33,0,0,$A$12,1)))+2*F14,0.1) -> 17.2
A12: 147 | B12: Data Points to Plot (Zoom) | E12: Min Low- | F12: =FLOOR(MIN(MIN(OFFSET($F$33,0,0,$A$12,1)))-2*F14,0.1) -> 6.6
B13: First: | C13: =OFFSET(B32,A12,0,1,1) -> 2015-08-12 | E13: White space %: | F13: 0.05
B14: ="Last: " & OFFSET(InputPriceData!P15,1+A11,0,1,1) -> Last: | C14: =B33 -> 2016-03-11 | E14: Allowance: | F14: =FLOOR((CEILING(MAX(MAX(OFFSET($E$33,0,0,$A$12,1))),1)-FLOOR(MIN(MIN(OFFSET($F$33,0,0,$A$12,1))),1))*F13,0.01) -> 0.5
A15: User Controls | C15: Alpha | D15: 1-Alpha
A16: 50 | B16: SMA of Close (MovingAverageBars: MAB)
A17: Indicator Period Controls:
A18: 18 | B18: R-Squared (R2 Length)
A19: 24 | B19: Efficiency Ratio (Period)
A20: 36 | B20: Vertical Horizontal Filter (Period)
A21: 14 | B21: Advance Decline Index (Period)
A23: Help! I would like to plot data
A24: From | B24: 2015-08-12 | C24: =OFFSET(InputPriceData!$A$15,MATCH(B24,OFFSET(InputPriceData!B15,1,0,InputPriceData!$B$10,1),0),0,1,1)-C25 -> 147 | E24: 41
A25: To | B25: 2016-03-11 | C25: =OFFSET(InputPriceData!$A$15,MATCH(B25,OFFSET(InputPriceData!$B$15,1,0,InputPriceData!$B$10,1),0),0,1,1)-1 -> 104 | E25: =$A$12-$E$24+1 -> 107
H28: @ Cursor => | I28: =OFFSET(A32,$E$25,0,1,1)&"(RR)" -> 107(RR) | J28: =OFFSET($B$32,E25,0,1,1) -> 2015-10-08 | K28: =TEXT(OFFSET(D32,$E$25,0,1,1),"#,##0.00")&"(o)" -> 15.66(o) | L28: =TEXT(OFFSET(E32,$E$25,0,1,1),"#,##0.00")&"(h)" -> 16.17(h) | M28: =TEXT(OFFSET(F32,$E$25,0,1,1),"#,##0.00")&"(l)" -> 15.57(l) | N28: =TEXT(OFFSET(G32,$E$25,0,1,1),"#,##0.00")&"(c)" -> 16.04(c)
E29: Cursor ==> | AY29: Chart cursor
U30: Work Area for: Show / No Show On Chart | AY30: Work area
A31: Rel Row | H31: ="SMA("&A16&") " -> SMA(50) | U31: =H31 -> SMA(50)
B32: Date | C32: Volume | D32: Open | E32: High | F32: Low | G32: Close | AY32: Price Chart Cursor
A33: 1 | B33: =OFFSET(InputPriceData!B$15,CalculationsAndCharts!$A33+$A$11,0,1,1) -> 2016-03-11 | C33: =OFFSET(InputPriceData!G$15,CalculationsAndCharts!$A33+$A$11,IF($C$7,8,0),1,1) -> 28144000 | D33: =OFFSET(InputPriceData!C$15,CalculationsAndCharts!$A33+$A$11,IF($C$7,8,0),1,1) -> 10.21 | E33: =OFFSET(InputPriceData!D$15,CalculationsAndCharts!$A33+$A$11,IF($C$7,8,0),1,1) -> 10.29 | F33: =OFFSET(InputPriceData!E$15,CalculationsAndCharts!$A33+$A$11,IF($C$7,8,0),1,1) -> 10.06 | G33: =OFFSET(InputPriceData!F$15,CalculationsAndCharts!$A33+$A$11,IF($C$7,8,0),1,1) -> 10.19 | H33: =IF($A33>$A$8,0,IF($A33=$A$8,$G33,AVERAGE(OFFSET($G33,0,0,$A$16,1)))) -> 9.1984 | U33: =IF($R$4,H33,NA()) -> 9.1984 | AY33: =$E$25 -> 107 | AZ33: =$F$11 -> 17.2
A34: 2 | B34: =OFFSET(InputPriceData!B$15,CalculationsAndCharts!$A34+$A$11,0,1,1) -> 2016-03-10 | C34: =OFFSET(InputPriceData!G$15,CalculationsAndCharts!$A34+$A$11,IF($C$7,8,0),1,1) -> 33089600 | D34: =OFFSET(InputPriceData!C$15,CalculationsAndCharts!$A34+$A$11,IF($C$7,8,0),1,1) -> 9.96 | E34: =OFFSET(InputPriceData!D$15,CalculationsAndCharts!$A34+$A$11,IF($C$7,8,0),1,1) -> 10.12 | F34: =OFFSET(InputPriceData!E$15,CalculationsAndCharts!$A34+$A$11,IF($C$7,8,0),1,1) -> 9.88 | G34: =OFFSET(InputPriceData!F$15,CalculationsAndCharts!$A34+$A$11,IF($C$7,8,0),1,1) -> 10.04 | H34: 9.2198 | U34: 9.2198 | AY34: =$E$25 -> 107 | AZ34: =$F$12 -> 6.6
A35: 3 | B35: =OFFSET(InputPriceData!B$15,CalculationsAndCharts!$A35+$A$11,0,1,1) -> 2016-03-09 | C35: =OFFSET(InputPriceData!G$15,CalculationsAndCharts!$A35+$A$11,IF($C$7,8,0),1,1) -> 43985300 | D35: =OFFSET(InputPriceData!C$15,CalculationsAndCharts!$A35+$A$11,IF($C$7,8,0),1,1) -> 9.87 | E35: =OFFSET(InputPriceData!D$15,CalculationsAndCharts!$A35+$A$11,IF($C$7,8,0),1,1) -> 10.21 | F35: =OFFSET(InputPriceData!E$15,CalculationsAndCharts!$A35+$A$11,IF($C$7,8,0),1,1) -> 9.85 | G35: =OFFSET(InputPriceData!F$15,CalculationsAndCharts!$A35+$A$11,IF($C$7,8,0),1,1) -> 10.15 | H35: 9.2376 | U35: 9.2376
A36: 4 | B36: =OFFSET(InputPriceData!B$15,CalculationsAndCharts!$A36+$A$11,0,1,1) -> 2016-03-08 | C36: =OFFSET(InputPriceData!G$15,CalculationsAndCharts!$A36+$A$11,IF($C$7,8,0),1,1) -> 45700500 | D36: =OFFSET(InputPriceData!C$15,CalculationsAndCharts!$A36+$A$11,IF($C$7,8,0),1,1) -> 10.04 | E36: =OFFSET(InputPriceData!D$15,CalculationsAndCharts!$A36+$A$11,IF($C$7,8,0),1,1) -> 10.04 | F36: =OFFSET(InputPriceData!E$15,CalculationsAndCharts!$A36+$A$11,IF($C$7,8,0),1,1) -> 9.65 | G36: =OFFSET(InputPriceData!F$15,CalculationsAndCharts!$A36+$A$11,IF($C$7,8,0),1,1) -> 9.65 | H36: 9.2606 | U36: 9.2606
A37: 5 | B37: =OFFSET(InputPriceData!B$15,CalculationsAndCharts!$A37+$A$11,0,1,1) -> 2016-03-07 | C37: =OFFSET(InputPriceData!G$15,CalculationsAndCharts!$A37+$A$11,IF($C$7,8,0),1,1) -> 67097200 | D37: =OFFSET(InputPriceData!C$15,CalculationsAndCharts!$A37+$A$11,IF($C$7,8,0),1,1) -> 9.68 | E37: =OFFSET(InputPriceData!D$15,CalculationsAndCharts!$A37+$A$11,IF($C$7,8,0),1,1) -> 10.15 | F37: =OFFSET(InputPriceData!E$15,CalculationsAndCharts!$A37+$A$11,IF($C$7,8,0),1,1) -> 9.67 | G37: =OFFSET(InputPriceData!F$15,CalculationsAndCharts!$A37+$A$11,IF($C$7,8,0),1,1) -> 10.11 | H37: 9.2928 | U37: 9.2928
A38: 6 | B38: =OFFSET(InputPriceData!B$15,CalculationsAndCharts!$A38+$A$11,0,1,1) -> 2016-03-04 | C38: =OFFSET(InputPriceData!G$15,CalculationsAndCharts!$A38+$A$11,IF($C$7,8,0),1,1) -> 48973800 | D38: =OFFSET(InputPriceData!C$15,CalculationsAndCharts!$A38+$A$11,IF($C$7,8,0),1,1) -> 9.29 | E38: =OFFSET(InputPriceData!D$15,CalculationsAndCharts!$A38+$A$11,IF($C$7,8,0),1,1) -> 9.65 | F38: =OFFSET(InputPriceData!E$15,CalculationsAndCharts!$A38+$A$11,IF($C$7,8,0),1,1) -> 9.18 | G38: =OFFSET(InputPriceData!F$15,CalculationsAndCharts!$A38+$A$11,IF($C$7,8,0),1,1) -> 9.65 | H38: 9.306 | U38: 9.306
A39: 7 | B39: =OFFSET(InputPriceData!B$15,CalculationsAndCharts!$A39+$A$11,0,1,1) -> 2016-03-03 | C39: =OFFSET(InputPriceData!G$15,CalculationsAndCharts!$A39+$A$11,IF($C$7,8,0),1,1) -> 34373900 | D39: =OFFSET(InputPriceData!C$15,CalculationsAndCharts!$A39+$A$11,IF($C$7,8,0),1,1) -> 9.13 | E39: =OFFSET(InputPriceData!D$15,CalculationsAndCharts!$A39+$A$11,IF($C$7,8,0),1,1) -> 9.41 | F39: =OFFSET(InputPriceData!E$15,CalculationsAndCharts!$A39+$A$11,IF($C$7,8,0),1,1) -> 9.11 | G39: =OFFSET(InputPriceData!F$15,CalculationsAndCharts!$A39+$A$11,IF($C$7,8,0),1,1) -> 9.25 | H39: 9.3262 | U39: 9.3262
A40: 8 | B40: =OFFSET(InputPriceData!B$15,CalculationsAndCharts!$A40+$A$11,0,1,1) -> 2016-03-02 | C40: =OFFSET(InputPriceData!G$15,CalculationsAndCharts!$A40+$A$11,IF($C$7,8,0),1,1) -> 49507900 | D40: =OFFSET(InputPriceData!C$15,CalculationsAndCharts!$A40+$A$11,IF($C$7,8,0),1,1) -> 9.01 | E40: =OFFSET(InputPriceData!D$15,CalculationsAndCharts!$A40+$A$11,IF($C$7,8,0),1,1) -> 9.36 | F40: =OFFSET(InputPriceData!E$15,CalculationsAndCharts!$A40+$A$11,IF($C$7,8,0),1,1) -> 8.94 | G40: =OFFSET(InputPriceData!F$15,CalculationsAndCharts!$A40+$A$11,IF($C$7,8,0),1,1) -> 9.3 | H40: 9.3544 | U40: 9.3544
A41: 9 | B41: =OFFSET(InputPriceData!B$15,CalculationsAndCharts!$A41+$A$11,0,1,1) -> 2016-03-01 | C41: =OFFSET(InputPriceData!G$15,CalculationsAndCharts!$A41+$A$11,IF($C$7,8,0),1,1) -> 47605400 | D41: =OFFSET(InputPriceData!C$15,CalculationsAndCharts!$A41+$A$11,IF($C$7,8,0),1,1) -> 8.98 | E41: =OFFSET(InputPriceData!D$15,CalculationsAndCharts!$A41+$A$11,IF($C$7,8,0),1,1) -> 9.26 | F41: =OFFSET(InputPriceData!E$15,CalculationsAndCharts!$A41+$A$11,IF($C$7,8,0),1,1) -> 8.89 | G41: =OFFSET(InputPriceData!F$15,CalculationsAndCharts!$A41+$A$11,IF($C$7,8,0),1,1) -> 9.15 | H41: 9.3832 | U41: 9.3832
A42: 10 | B42: =OFFSET(InputPriceData!B$15,CalculationsAndCharts!$A42+$A$11,0,1,1) -> 2016-02-29 | C42: =OFFSET(InputPriceData!G$15,CalculationsAndCharts!$A42+$A$11,IF($C$7,8,0),1,1) -> 50604400 | D42: =OFFSET(InputPriceData!C$15,CalculationsAndCharts!$A42+$A$11,IF($C$7,8,0),1,1) -> 8.86 | E42: =OFFSET(InputPriceData!D$15,CalculationsAndCharts!$A42+$A$11,IF($C$7,8,0),1,1) -> 9.04 | F42: =OFFSET(InputPriceData!E$15,CalculationsAndCharts!$A42+$A$11,IF($C$7,8,0),1,1) -> 8.78 | G42: =OFFSET(InputPriceData!F$15,CalculationsAndCharts!$A42+$A$11,IF($C$7,8,0),1,1) -> 9 | H42: 9.42 | U42: 9.42
A43: 11 | B43: =OFFSET(InputPriceData!B$15,CalculationsAndCharts!$A43+$A$11,0,1,1) -> 2016-02-26 | C43: =OFFSET(InputPriceData!G$15,CalculationsAndCharts!$A43+$A$11,IF($C$7,8,0),1,1) -> 58799400 | D43: =OFFSET(InputPriceData!C$15,CalculationsAndCharts!$A43+$A$11,IF($C$7,8,0),1,1) -> 9.14 | E43: =OFFSET(InputPriceData!D$15,CalculationsAndCharts!$A43+$A$11,IF($C$7,8,0),1,1) -> 9.16 | F43: =OFFSET(InputPriceData!E$15,CalculationsAndCharts!$A43+$A$11,IF($C$7,8,0),1,1) -> 8.7 | G43: =OFFSET(InputPriceData!F$15,CalculationsAndCharts!$A43+$A$11,IF($C$7,8,0),1,1) -> 8.78 | H43: 9.468 | U43: 9.468
A44: 12 | B44: =OFFSET(InputPriceData!B$15,CalculationsAndCharts!$A44+$A$11,0,1,1) -> 2016-02-25 | C44: =OFFSET(InputPriceData!G$15,CalculationsAndCharts!$A44+$A$11,IF($C$7,8,0),1,1) -> 39506700 | D44: =OFFSET(InputPriceData!C$15,CalculationsAndCharts!$A44+$A$11,IF($C$7,8,0),1,1) -> 8.48 | E44: =OFFSET(InputPriceData!D$15,CalculationsAndCharts!$A44+$A$11,IF($C$7,8,0),1,1) -> 8.92 | F44: =OFFSET(InputPriceData!E$15,CalculationsAndCharts!$A44+$A$11,IF($C$7,8,0),1,1) -> 8.28 | G44: =OFFSET(InputPriceData!F$15,CalculationsAndCharts!$A44+$A$11,IF($C$7,8,0),1,1) -> 8.8 | H44: 9.5156 | U44: 9.5156
A45: 13 | B45: =OFFSET(InputPriceData!B$15,CalculationsAndCharts!$A45+$A$11,0,1,1) -> 2016-02-24 | C45: =OFFSET(InputPriceData!G$15,CalculationsAndCharts!$A45+$A$11,IF($C$7,8,0),1,1) -> 48189900 | D45: =OFFSET(InputPriceData!C$15,CalculationsAndCharts!$A45+$A$11,IF($C$7,8,0),1,1) -> 8.19 | E45: =OFFSET(InputPriceData!D$15,CalculationsAndCharts!$A45+$A$11,IF($C$7,8,0),1,1) -> 8.63 | F45: =OFFSET(InputPriceData!E$15,CalculationsAndCharts!$A45+$A$11,IF($C$7,8,0),1,1) -> 8.14 | G45: =OFFSET(InputPriceData!F$15,CalculationsAndCharts!$A45+$A$11,IF($C$7,8,0),1,1) -> 8.59 | H45: 9.561 | U45: 9.561
A46: 14 | B46: =OFFSET(InputPriceData!B$15,CalculationsAndCharts!$A46+$A$11,0,1,1) -> 2016-02-23 | C46: =OFFSET(InputPriceData!G$15,CalculationsAndCharts!$A46+$A$11,IF($C$7,8,0),1,1) -> 62427200 | D46: =OFFSET(InputPriceData!C$15,CalculationsAndCharts!$A46+$A$11,IF($C$7,8,0),1,1) -> 8.76 | E46: =OFFSET(InputPriceData!D$15,CalculationsAndCharts!$A46+$A$11,IF($C$7,8,0),1,1) -> 8.76 | F46: =OFFSET(InputPriceData!E$15,CalculationsAndCharts!$A46+$A$11,IF($C$7,8,0),1,1) -> 8.43 | G46: =OFFSET(InputPriceData!F$15,CalculationsAndCharts!$A46+$A$11,IF($C$7,8,0),1,1) -> 8.48 | H46: 9.6166 | U46: 9.6166
A47: 15 | B47: =OFFSET(InputPriceData!B$15,CalculationsAndCharts!$A47+$A$11,0,1,1) -> 2016-02-22 | C47: =OFFSET(InputPriceData!G$15,CalculationsAndCharts!$A47+$A$11,IF($C$7,8,0),1,1) -> 53972100 | D47: =OFFSET(InputPriceData!C$15,CalculationsAndCharts!$A47+$A$11,IF($C$7,8,0),1,1) -> 8.9 | E47: =OFFSET(InputPriceData!D$15,CalculationsAndCharts!$A47+$A$11,IF($C$7,8,0),1,1) -> 9.01 | F47: =OFFSET(InputPriceData!E$15,CalculationsAndCharts!$A47+$A$11,IF($C$7,8,0),1,1) -> 8.84 | G47: =OFFSET(InputPriceData!F$15,CalculationsAndCharts!$A47+$A$11,IF($C$7,8,0),1,1) -> 8.91 | H47: 9.6782 | U47: 9.6782
A48: 16 | B48: =OFFSET(InputPriceData!B$15,CalculationsAndCharts!$A48+$A$11,0,1,1) -> 2016-02-19 | C48: =OFFSET(InputPriceData!G$15,CalculationsAndCharts!$A48+$A$11,IF($C$7,8,0),1,1) -> 47562600 | D48: =OFFSET(InputPriceData!C$15,CalculationsAndCharts!$A48+$A$11,IF($C$7,8,0),1,1) -> 8.55 | E48: =OFFSET(InputPriceData!D$15,CalculationsAndCharts!$A48+$A$11,IF($C$7,8,0),1,1) -> 8.6 | F48: =OFFSET(InputPriceData!E$15,CalculationsAndCharts!$A48+$A$11,IF($C$7,8,0),1,1) -> 8.35 | G48: =OFFSET(InputPriceData!F$15,CalculationsAndCharts!$A48+$A$11,IF($C$7,8,0),1,1) -> 8.55 | H48: 9.7336 | U48: 9.7336
A49: 17 | B49: =OFFSET(InputPriceData!B$15,CalculationsAndCharts!$A49+$A$11,0,1,1) -> 2016-02-18 | C49: =OFFSET(InputPriceData!G$15,CalculationsAndCharts!$A49+$A$11,IF($C$7,8,0),1,1) -> 55390100 | D49: =OFFSET(InputPriceData!C$15,CalculationsAndCharts!$A49+$A$11,IF($C$7,8,0),1,1) -> 9.03 | E49: =OFFSET(InputPriceData!D$15,CalculationsAndCharts!$A49+$A$11,IF($C$7,8,0),1,1) -> 9.07 | F49: =OFFSET(InputPriceData!E$15,CalculationsAndCharts!$A49+$A$11,IF($C$7,8,0),1,1) -> 8.65 | G49: =OFFSET(InputPriceData!F$15,CalculationsAndCharts!$A49+$A$11,IF($C$7,8,0),1,1) -> 8.66 | H49: 9.797 | U49: 9.797
A50: 18 | B50: =OFFSET(InputPriceData!B$15,CalculationsAndCharts!$A50+$A$11,0,1,1) -> 2016-02-17 | C50: =OFFSET(InputPriceData!G$15,CalculationsAndCharts!$A50+$A$11,IF($C$7,8,0),1,1) -> 60273400 | D50: =OFFSET(InputPriceData!C$15,CalculationsAndCharts!$A50+$A$11,IF($C$7,8,0),1,1) -> 8.43 | E50: =OFFSET(InputPriceData!D$15,CalculationsAndCharts!$A50+$A$11,IF($C$7,8,0),1,1) -> 8.9 | F50: =OFFSET(InputPriceData!E$15,CalculationsAndCharts!$A50+$A$11,IF($C$7,8,0),1,1) -> 8.39 | G50: =OFFSET(InputPriceData!F$15,CalculationsAndCharts!$A50+$A$11,IF($C$7,8,0),1,1) -> 8.78 | H50: 9.873 | U50: 9.873
A51: 19 | B51: =OFFSET(InputPriceData!B$15,CalculationsAndCharts!$A51+$A$11,0,1,1) -> 2016-02-16 | C51: =OFFSET(InputPriceData!G$15,CalculationsAndCharts!$A51+$A$11,IF($C$7,8,0),1,1) -> 48950000 | D51: =OFFSET(InputPriceData!C$15,CalculationsAndCharts!$A51+$A$11,IF($C$7,8,0),1,1) -> 8.49 | E51: =OFFSET(InputPriceData!D$15,CalculationsAndCharts!$A51+$A$11,IF($C$7,8,0),1,1) -> 8.52 | F51: =OFFSET(InputPriceData!E$15,CalculationsAndCharts!$A51+$A$11,IF($C$7,8,0),1,1) -> 8.18 | G51: =OFFSET(InputPriceData!F$15,CalculationsAndCharts!$A51+$A$11,IF($C$7,8,0),1,1) -> 8.31 | H51: 9.9528 | U51: 9.9528
A52: 20 | B52: =OFFSET(InputPriceData!B$15,CalculationsAndCharts!$A52+$A$11,0,1,1) -> 2016-02-12 | C52: =OFFSET(InputPriceData!G$15,CalculationsAndCharts!$A52+$A$11,IF($C$7,8,0),1,1) -> 67907200 | D52: =OFFSET(InputPriceData!C$15,CalculationsAndCharts!$A52+$A$11,IF($C$7,8,0),1,1) -> 8.16 | E52: =OFFSET(InputPriceData!D$15,CalculationsAndCharts!$A52+$A$11,IF($C$7,8,0),1,1) -> 8.52 | F52: =OFFSET(InputPriceData!E$15,CalculationsAndCharts!$A52+$A$11,IF($C$7,8,0),1,1) -> 8.01 | G52: =OFFSET(InputPriceData!F$15,CalculationsAndCharts!$A52+$A$11,IF($C$7,8,0),1,1) -> 8.33 | H52: 10.0362 | U52: 10.0362
A53: 21 | B53: =OFFSET(InputPriceData!B$15,CalculationsAndCharts!$A53+$A$11,0,1,1) -> 2016-02-11 | C53: =OFFSET(InputPriceData!G$15,CalculationsAndCharts!$A53+$A$11,IF($C$7,8,0),1,1) -> 95990700 | D53: =OFFSET(InputPriceData!C$15,CalculationsAndCharts!$A53+$A$11,IF($C$7,8,0),1,1) -> 7.82 | E53: =OFFSET(InputPriceData!D$15,CalculationsAndCharts!$A53+$A$11,IF($C$7,8,0),1,1) -> 8.03 | F53: =OFFSET(InputPriceData!E$15,CalculationsAndCharts!$A53+$A$11,IF($C$7,8,0),1,1) -> 7.67 | G53: =OFFSET(InputPriceData!F$15,CalculationsAndCharts!$A53+$A$11,IF($C$7,8,0),1,1) -> 7.99 | H53: 10.1286 | U53: 10.1286
A54: 22 | B54: =OFFSET(InputPriceData!B$15,CalculationsAndCharts!$A54+$A$11,0,1,1) -> 2016-02-10 | C54: =OFFSET(InputPriceData!G$15,CalculationsAndCharts!$A54+$A$11,IF($C$7,8,0),1,1) -> 64182800 | D54: =OFFSET(InputPriceData!C$15,CalculationsAndCharts!$A54+$A$11,IF($C$7,8,0),1,1) -> 7.97 | E54: =OFFSET(InputPriceData!D$15,CalculationsAndCharts!$A54+$A$11,IF($C$7,8,0),1,1) -> 8.4 | F54: =OFFSET(InputPriceData!E$15,CalculationsAndCharts!$A54+$A$11,IF($C$7,8,0),1,1) -> 7.89 | G54: =OFFSET(InputPriceData!F$15,CalculationsAndCharts!$A54+$A$11,IF($C$7,8,0),1,1) -> 7.96 | H54: 10.2274 | U54: 10.2274
A55: 23 | B55: =OFFSET(InputPriceData!B$15,CalculationsAndCharts!$A55+$A$11,0,1,1) -> 2016-02-09 | C55: =OFFSET(InputPriceData!G$15,CalculationsAndCharts!$A55+$A$11,IF($C$7,8,0),1,1) -> 57812400 | D55: =OFFSET(InputPriceData!C$15,CalculationsAndCharts!$A55+$A$11,IF($C$7,8,0),1,1) -> 8.51 | E55: =OFFSET(InputPriceData!D$15,CalculationsAndCharts!$A55+$A$11,IF($C$7,8,0),1,1) -> 8.67 | F55: =OFFSET(InputPriceData!E$15,CalculationsAndCharts!$A55+$A$11,IF($C$7,8,0),1,1) -> 7.97 | G55: =OFFSET(InputPriceData!F$15,CalculationsAndCharts!$A55+$A$11,IF($C$7,8,0),1,1) -> 8.18 | H55: 10.3288 | U55: 10.3288
A56: 24 | B56: =OFFSET(InputPriceData!B$15,CalculationsAndCharts!$A56+$A$11,0,1,1) -> 2016-02-08 | C56: =OFFSET(InputPriceData!G$15,CalculationsAndCharts!$A56+$A$11,IF($C$7,8,0),1,1) -> 38298300 | D56: =OFFSET(InputPriceData!C$15,CalculationsAndCharts!$A56+$A$11,IF($C$7,8,0),1,1) -> 8.77 | E56: =OFFSET(InputPriceData!D$15,CalculationsAndCharts!$A56+$A$11,IF($C$7,8,0),1,1) -> 8.82 | F56: =OFFSET(InputPriceData!E$15,CalculationsAndCharts!$A56+$A$11,IF($C$7,8,0),1,1) -> 8.52 | G56: =OFFSET(InputPriceData!F$15,CalculationsAndCharts!$A56+$A$11,IF($C$7,8,0),1,1) -> 8.64 | H56: 10.433 | U56: 10.433
A57: 25 | B57: =OFFSET(InputPriceData!B$15,CalculationsAndCharts!$A57+$A$11,0,1,1) -> 2016-02-05 | C57: =OFFSET(InputPriceData!G$15,CalculationsAndCharts!$A57+$A$11,IF($C$7,8,0),1,1) -> 34847600 | D57: =OFFSET(InputPriceData!C$15,CalculationsAndCharts!$A57+$A$11,IF($C$7,8,0),1,1) -> 9.04 | E57: =OFFSET(InputPriceData!D$15,CalculationsAndCharts!$A57+$A$11,IF($C$7,8,0),1,1) -> 9.23 | F57: =OFFSET(InputPriceData!E$15,CalculationsAndCharts!$A57+$A$11,IF($C$7,8,0),1,1) -> 8.8 | G57: =OFFSET(InputPriceData!F$15,CalculationsAndCharts!$A57+$A$11,IF($C$7,8,0),1,1) -> 8.91 | H57: 10.5266 | U57: 10.5266
A58: 26 | B58: =OFFSET(InputPriceData!B$15,CalculationsAndCharts!$A58+$A$11,0,1,1) -> 2016-02-04 | C58: =OFFSET(InputPriceData!G$15,CalculationsAndCharts!$A58+$A$11,IF($C$7,8,0),1,1) -> 44985200 | D58: =OFFSET(InputPriceData!C$15,CalculationsAndCharts!$A58+$A$11,IF($C$7,8,0),1,1) -> 9.55 | E58: =OFFSET(InputPriceData!D$15,CalculationsAndCharts!$A58+$A$11,IF($C$7,8,0),1,1) -> 9.65 | F58: =OFFSET(InputPriceData!E$15,CalculationsAndCharts!$A58+$A$11,IF($C$7,8,0),1,1) -> 9.06 | G58: =OFFSET(InputPriceData!F$15,CalculationsAndCharts!$A58+$A$11,IF($C$7,8,0),1,1) -> 9.12 | H58: 10.6088 | U58: 10.6088
A59: 27 | B59: =OFFSET(InputPriceData!B$15,CalculationsAndCharts!$A59+$A$11,0,1,1) -> 2016-02-03 | C59: =OFFSET(InputPriceData!G$15,CalculationsAndCharts!$A59+$A$11,IF($C$7,8,0),1,1) -> 72246300 | D59: =OFFSET(InputPriceData!C$15,CalculationsAndCharts!$A59+$A$11,IF($C$7,8,0),1,1) -> 8.84 | E59: =OFFSET(InputPriceData!D$15,CalculationsAndCharts!$A59+$A$11,IF($C$7,8,0),1,1) -> 9.35 | F59: =OFFSET(InputPriceData!E$15,CalculationsAndCharts!$A59+$A$11,IF($C$7,8,0),1,1) -> 8.54 | G59: =OFFSET(InputPriceData!F$15,CalculationsAndCharts!$A59+$A$11,IF($C$7,8,0),1,1) -> 9.34 | H59: 10.685 | U59: 10.685
A60: 28 | B60: =OFFSET(InputPriceData!B$15,CalculationsAndCharts!$A60+$A$11,0,1,1) -> 2016-02-02 | C60: =OFFSET(InputPriceData!G$15,CalculationsAndCharts!$A60+$A$11,IF($C$7,8,0),1,1) -> 44437500 | D60: =OFFSET(InputPriceData!C$15,CalculationsAndCharts!$A60+$A$11,IF($C$7,8,0),1,1) -> 8.72 | E60: =OFFSET(InputPriceData!D$15,CalculationsAndCharts!$A60+$A$11,IF($C$7,8,0),1,1) -> 8.81 | F60: =OFFSET(InputPriceData!E$15,CalculationsAndCharts!$A60+$A$11,IF($C$7,8,0),1,1) -> 8.56 | G60: =OFFSET(InputPriceData!F$15,CalculationsAndCharts!$A60+$A$11,IF($C$7,8,0),1,1) -> 8.57 | H60: 10.7574 | U60: 10.7574
A61: 29 | B61: =OFFSET(InputPriceData!B$15,CalculationsAndCharts!$A61+$A$11,0,1,1) -> 2016-02-01 | C61: =OFFSET(InputPriceData!G$15,CalculationsAndCharts!$A61+$A$11,IF($C$7,8,0),1,1) -> 48889800 | D61: =OFFSET(InputPriceData!C$15,CalculationsAndCharts!$A61+$A$11,IF($C$7,8,0),1,1) -> 9.35 | E61: =OFFSET(InputPriceData!D$15,CalculationsAndCharts!$A61+$A$11,IF($C$7,8,0),1,1) -> 9.36 | F61: =OFFSET(InputPriceData!E$15,CalculationsAndCharts!$A61+$A$11,IF($C$7,8,0),1,1) -> 8.99 | G61: =OFFSET(InputPriceData!F$15,CalculationsAndCharts!$A61+$A$11,IF($C$7,8,0),1,1) -> 9.02 | H61: 10.847 | U61: 10.847
A62: 30 | B62: =OFFSET(InputPriceData!B$15,CalculationsAndCharts!$A62+$A$11,0,1,1) -> 2016-01-29 | C62: =OFFSET(InputPriceData!G$15,CalculationsAndCharts!$A62+$A$11,IF($C$7,8,0),1,1) -> 47209700 | D62: =OFFSET(InputPriceData!C$15,CalculationsAndCharts!$A62+$A$11,IF($C$7,8,0),1,1) -> 9.77 | E62: =OFFSET(InputPriceData!D$15,CalculationsAndCharts!$A62+$A$11,IF($C$7,8,0),1,1) -> 9.88 | F62: =OFFSET(InputPriceData!E$15,CalculationsAndCharts!$A62+$A$11,IF($C$7,8,0),1,1) -> 9.38 | G62: =OFFSET(InputPriceData!F$15,CalculationsAndCharts!$A62+$A$11,IF($C$7,8,0),1,1) -> 9.65 | H62: 10.9268 | U62: 10.9268
A63: 31 | B63: =OFFSET(InputPriceData!B$15,CalculationsAndCharts!$A63+$A$11,0,1,1) -> 2016-01-28 | C63: =OFFSET(InputPriceData!G$15,CalculationsAndCharts!$A63+$A$11,IF($C$7,8,0),1,1) -> 66151100 | D63: =OFFSET(InputPriceData!C$15,CalculationsAndCharts!$A63+$A$11,IF($C$7,8,0),1,1) -> 9.8 | E63: =OFFSET(InputPriceData!D$15,CalculationsAndCharts!$A63+$A$11,IF($C$7,8,0),1,1) -> 9.86 | F63: =OFFSET(InputPriceData!E$15,CalculationsAndCharts!$A63+$A$11,IF($C$7,8,0),1,1) -> 9.41 | G63: =OFFSET(InputPriceData!F$15,CalculationsAndCharts!$A63+$A$11,IF($C$7,8,0),1,1) -> 9.7 | H63: 11.0016 | U63: 11.0016
A64: 32 | B64: =OFFSET(InputPriceData!B$15,CalculationsAndCharts!$A64+$A$11,0,1,1) -> 2016-01-27 | C64: =OFFSET(InputPriceData!G$15,CalculationsAndCharts!$A64+$A$11,IF($C$7,8,0),1,1) -> 71429700 | D64: =OFFSET(InputPriceData!C$15,CalculationsAndCharts!$A64+$A$11,IF($C$7,8,0),1,1) -> 8.92 | E64: =OFFSET(InputPriceData!D$15,CalculationsAndCharts!$A64+$A$11,IF($C$7,8,0),1,1) -> 9.43 | F64: =OFFSET(InputPriceData!E$15,CalculationsAndCharts!$A64+$A$11,IF($C$7,8,0),1,1) -> 8.79 | G64: =OFFSET(InputPriceData!F$15,CalculationsAndCharts!$A64+$A$11,IF($C$7,8,0),1,1) -> 9.18 | H64: 11.0688 | U64: 11.0688
A65: 33 | B65: =OFFSET(InputPriceData!B$15,CalculationsAndCharts!$A65+$A$11,0,1,1) -> 2016-01-26 | C65: =OFFSET(InputPriceData!G$15,CalculationsAndCharts!$A65+$A$11,IF($C$7,8,0),1,1) -> 51444800 | D65: =OFFSET(InputPriceData!C$15,CalculationsAndCharts!$A65+$A$11,IF($C$7,8,0),1,1) -> 8.81 | E65: =OFFSET(InputPriceData!D$15,CalculationsAndCharts!$A65+$A$11,IF($C$7,8,0),1,1) -> 9.31 | F65: =OFFSET(InputPriceData!E$15,CalculationsAndCharts!$A65+$A$11,IF($C$7,8,0),1,1) -> 8.74 | G65: =OFFSET(InputPriceData!F$15,CalculationsAndCharts!$A65+$A$11,IF($C$7,8,0),1,1) -> 8.97 | H65: 11.1522 | U65: 11.1522
A66: 34 | B66: =OFFSET(InputPriceData!B$15,CalculationsAndCharts!$A66+$A$11,0,1,1) -> 2016-01-25 | C66: =OFFSET(InputPriceData!G$15,CalculationsAndCharts!$A66+$A$11,IF($C$7,8,0),1,1) -> 55479000 | D66: =OFFSET(InputPriceData!C$15,CalculationsAndCharts!$A66+$A$11,IF($C$7,8,0),1,1) -> 8.94 | E66: =OFFSET(InputPriceData!D$15,CalculationsAndCharts!$A66+$A$11,IF($C$7,8,0),1,1) -> 9.12 | F66: =OFFSET(InputPriceData!E$15,CalculationsAndCharts!$A66+$A$11,IF($C$7,8,0),1,1) -> 8.54 | G66: =OFFSET(InputPriceData!F$15,CalculationsAndCharts!$A66+$A$11,IF($C$7,8,0),1,1) -> 8.54 | H66: 11.248 | U66: 11.248
A67: 35 | B67: =OFFSET(InputPriceData!B$15,CalculationsAndCharts!$A67+$A$11,0,1,1) -> 2016-01-22 | C67: =OFFSET(InputPriceData!G$15,CalculationsAndCharts!$A67+$A$11,IF($C$7,8,0),1,1) -> 62556200 | D67: =OFFSET(InputPriceData!C$15,CalculationsAndCharts!$A67+$A$11,IF($C$7,8,0),1,1) -> 9.09 | E67: =OFFSET(InputPriceData!D$15,CalculationsAndCharts!$A67+$A$11,IF($C$7,8,0),1,1) -> 9.29 | F67: =OFFSET(InputPriceData!E$15,CalculationsAndCharts!$A67+$A$11,IF($C$7,8,0),1,1) -> 8.97 | G67: =OFFSET(InputPriceData!F$15,CalculationsAndCharts!$A67+$A$11,IF($C$7,8,0),1,1) -> 9.27 | H67: 11.359 | U67: 11.359
A68: 36 | B68: =OFFSET(InputPriceData!B$15,CalculationsAndCharts!$A68+$A$11,0,1,1) -> 2016-01-21 | C68: =OFFSET(InputPriceData!G$15,CalculationsAndCharts!$A68+$A$11,IF($C$7,8,0),1,1) -> 87217400 | D68: =OFFSET(InputPriceData!C$15,CalculationsAndCharts!$A68+$A$11,IF($C$7,8,0),1,1) -> 8.1 | E68: =OFFSET(InputPriceData!D$15,CalculationsAndCharts!$A68+$A$11,IF($C$7,8,0),1,1) -> 8.69 | F68: =OFFSET(InputPriceData!E$15,CalculationsAndCharts!$A68+$A$11,IF($C$7,8,0),1,1) -> 8.06 | G68: =OFFSET(InputPriceData!F$15,CalculationsAndCharts!$A68+$A$11,IF($C$7,8,0),1,1) -> 8.56 | H68: 11.4552 | U68: 11.4552
A69: 37 | B69: =OFFSET(InputPriceData!B$15,CalculationsAndCharts!$A69+$A$11,0,1,1) -> 2016-01-20 | C69: =OFFSET(InputPriceData!G$15,CalculationsAndCharts!$A69+$A$11,IF($C$7,8,0),1,1) -> 83215600 | D69: =OFFSET(InputPriceData!C$15,CalculationsAndCharts!$A69+$A$11,IF($C$7,8,0),1,1) -> 8.34 | E69: =OFFSET(InputPriceData!D$15,CalculationsAndCharts!$A69+$A$11,IF($C$7,8,0),1,1) -> 8.37 | F69: =OFFSET(InputPriceData!E$15,CalculationsAndCharts!$A69+$A$11,IF($C$7,8,0),1,1) -> 7.92 | G69: =OFFSET(InputPriceData!F$15,CalculationsAndCharts!$A69+$A$11,IF($C$7,8,0),1,1) -> 8.24 | H69: 11.5686 | U69: 11.5686
A70: 38 | B70: =OFFSET(InputPriceData!B$15,CalculationsAndCharts!$A70+$A$11,0,1,1) -> 2016-01-19 | C70: =OFFSET(InputPriceData!G$15,CalculationsAndCharts!$A70+$A$11,IF($C$7,8,0),1,1) -> 60322600 | D70: =OFFSET(InputPriceData!C$15,CalculationsAndCharts!$A70+$A$11,IF($C$7,8,0),1,1) -> 8.75 | E70: =OFFSET(InputPriceData!D$15,CalculationsAndCharts!$A70+$A$11,IF($C$7,8,0),1,1) -> 8.77 | F70: =OFFSET(InputPriceData!E$15,CalculationsAndCharts!$A70+$A$11,IF($C$7,8,0),1,1) -> 8.45 | G70: =OFFSET(InputPriceData!F$15,CalculationsAndCharts!$A70+$A$11,IF($C$7,8,0),1,1) -> 8.49 | H70: 11.6934 | U70: 11.6934
A71: 39 | B71: =OFFSET(InputPriceData!B$15,CalculationsAndCharts!$A71+$A$11,0,1,1) -> 2016-01-15 | C71: =OFFSET(InputPriceData!G$15,CalculationsAndCharts!$A71+$A$11,IF($C$7,8,0),1,1) -> 92820900 | D71: =OFFSET(InputPriceData!C$15,CalculationsAndCharts!$A71+$A$11,IF($C$7,8,0),1,1) -> 8.79 | E71: =OFFSET(InputPriceData!D$15,CalculationsAndCharts!$A71+$A$11,IF($C$7,8,0),1,1) -> 8.9 | F71: =OFFSET(InputPriceData!E$15,CalculationsAndCharts!$A71+$A$11,IF($C$7,8,0),1,1) -> 8.64 | G71: =OFFSET(InputPriceData!F$15,CalculationsAndCharts!$A71+$A$11,IF($C$7,8,0),1,1) -> 8.79 | H71: 11.8206 | U71: 11.8206
A72: 40 | B72: =OFFSET(InputPriceData!B$15,CalculationsAndCharts!$A72+$A$11,0,1,1) -> 2016-01-14 | C72: =OFFSET(InputPriceData!G$15,CalculationsAndCharts!$A72+$A$11,IF($C$7,8,0),1,1) -> 47627300 | D72: =OFFSET(InputPriceData!C$15,CalculationsAndCharts!$A72+$A$11,IF($C$7,8,0),1,1) -> 9.14 | E72: =OFFSET(InputPriceData!D$15,CalculationsAndCharts!$A72+$A$11,IF($C$7,8,0),1,1) -> 9.34 | F72: =OFFSET(InputPriceData!E$15,CalculationsAndCharts!$A72+$A$11,IF($C$7,8,0),1,1) -> 9.04 | G72: =OFFSET(InputPriceData!F$15,CalculationsAndCharts!$A72+$A$11,IF($C$7,8,0),1,1) -> 9.23 | H72: 11.9504 | U72: 11.9504
A73: 41 | B73: =OFFSET(InputPriceData!B$15,CalculationsAndCharts!$A73+$A$11,0,1,1) -> 2016-01-13 | C73: =OFFSET(InputPriceData!G$15,CalculationsAndCharts!$A73+$A$11,IF($C$7,8,0),1,1) -> 100555700 | D73: =OFFSET(InputPriceData!C$15,CalculationsAndCharts!$A73+$A$11,IF($C$7,8,0),1,1) -> 9.3 | E73: =OFFSET(InputPriceData!D$15,CalculationsAndCharts!$A73+$A$11,IF($C$7,8,0),1,1) -> 9.39 | F73: =OFFSET(InputPriceData!E$15,CalculationsAndCharts!$A73+$A$11,IF($C$7,8,0),1,1) -> 8.93 | G73: =OFFSET(InputPriceData!F$15,CalculationsAndCharts!$A73+$A$11,IF($C$7,8,0),1,1) -> 9.09 | H73: 12.0608 | U73: 12.0608
A74: 42 | B74: =OFFSET(InputPriceData!B$15,CalculationsAndCharts!$A74+$A$11,0,1,1) -> 2016-01-12 | C74: =OFFSET(InputPriceData!G$15,CalculationsAndCharts!$A74+$A$11,IF($C$7,8,0),1,1) -> 102085300 | D74: =OFFSET(InputPriceData!C$15,CalculationsAndCharts!$A74+$A$11,IF($C$7,8,0),1,1) -> 9.43 | E74: =OFFSET(InputPriceData!D$15,CalculationsAndCharts!$A74+$A$11,IF($C$7,8,0),1,1) -> 9.48 | F74: =OFFSET(InputPriceData!E$15,CalculationsAndCharts!$A74+$A$11,IF($C$7,8,0),1,1) -> 8.9 | G74: =OFFSET(InputPriceData!F$15,CalculationsAndCharts!$A74+$A$11,IF($C$7,8,0),1,1) -> 9.17 | H74: 12.1752 | U74: 12.1752
A75: 43 | B75: =OFFSET(InputPriceData!B$15,CalculationsAndCharts!$A75+$A$11,0,1,1) -> 2016-01-11 | C75: =OFFSET(InputPriceData!G$15,CalculationsAndCharts!$A75+$A$11,IF($C$7,8,0),1,1) -> 82280400 | D75: =OFFSET(InputPriceData!C$15,CalculationsAndCharts!$A75+$A$11,IF($C$7,8,0),1,1) -> 9.72 | E75: =OFFSET(InputPriceData!D$15,CalculationsAndCharts!$A75+$A$11,IF($C$7,8,0),1,1) -> 9.76 | F75: =OFFSET(InputPriceData!E$15,CalculationsAndCharts!$A75+$A$11,IF($C$7,8,0),1,1) -> 9.2 | G75: =OFFSET(InputPriceData!F$15,CalculationsAndCharts!$A75+$A$11,IF($C$7,8,0),1,1) -> 9.25 | H75: 12.2844 | U75: 12.2844
A76: 44 | B76: =OFFSET(InputPriceData!B$15,CalculationsAndCharts!$A76+$A$11,0,1,1) -> 2016-01-08 | C76: =OFFSET(InputPriceData!G$15,CalculationsAndCharts!$A76+$A$11,IF($C$7,8,0),1,1) -> 44688400 | D76: =OFFSET(InputPriceData!C$15,CalculationsAndCharts!$A76+$A$11,IF($C$7,8,0),1,1) -> 9.95 | E76: =OFFSET(InputPriceData!D$15,CalculationsAndCharts!$A76+$A$11,IF($C$7,8,0),1,1) -> 10.02 | F76: =OFFSET(InputPriceData!E$15,CalculationsAndCharts!$A76+$A$11,IF($C$7,8,0),1,1) -> 9.71 | G76: =OFFSET(InputPriceData!F$15,CalculationsAndCharts!$A76+$A$11,IF($C$7,8,0),1,1) -> 9.8 | H76: 12.3932 | U76: 12.3932
A77: 45 | B77: =OFFSET(InputPriceData!B$15,CalculationsAndCharts!$A77+$A$11,0,1,1) -> 2016-01-07 | C77: =OFFSET(InputPriceData!G$15,CalculationsAndCharts!$A77+$A$11,IF($C$7,8,0),1,1) -> 51997700 | D77: =OFFSET(InputPriceData!C$15,CalculationsAndCharts!$A77+$A$11,IF($C$7,8,0),1,1) -> 9.89 | E77: =OFFSET(InputPriceData!D$15,CalculationsAndCharts!$A77+$A$11,IF($C$7,8,0),1,1) -> 10.2 | F77: =OFFSET(InputPriceData!E$15,CalculationsAndCharts!$A77+$A$11,IF($C$7,8,0),1,1) -> 9.85 | G77: =OFFSET(InputPriceData!F$15,CalculationsAndCharts!$A77+$A$11,IF($C$7,8,0),1,1) -> 9.9 | H77: 12.4736 | U77: 12.4736
A78: 46 | B78: =OFFSET(InputPriceData!B$15,CalculationsAndCharts!$A78+$A$11,0,1,1) -> 2016-01-06 | C78: =OFFSET(InputPriceData!G$15,CalculationsAndCharts!$A78+$A$11,IF($C$7,8,0),1,1) -> 73087100 | D78: =OFFSET(InputPriceData!C$15,CalculationsAndCharts!$A78+$A$11,IF($C$7,8,0),1,1) -> 10.3 | E78: =OFFSET(InputPriceData!D$15,CalculationsAndCharts!$A78+$A$11,IF($C$7,8,0),1,1) -> 10.47 | F78: =OFFSET(InputPriceData!E$15,CalculationsAndCharts!$A78+$A$11,IF($C$7,8,0),1,1) -> 10.06 | G78: =OFFSET(InputPriceData!F$15,CalculationsAndCharts!$A78+$A$11,IF($C$7,8,0),1,1) -> 10.11 | H78: 12.5558 | U78: 12.5558
A79: 47 | B79: =OFFSET(InputPriceData!B$15,CalculationsAndCharts!$A79+$A$11,0,1,1) -> 2016-01-05 | C79: =OFFSET(InputPriceData!G$15,CalculationsAndCharts!$A79+$A$11,IF($C$7,8,0),1,1) -> 32173600 | D79: =OFFSET(InputPriceData!C$15,CalculationsAndCharts!$A79+$A$11,IF($C$7,8,0),1,1) -> 10.8 | E79: =OFFSET(InputPriceData!D$15,CalculationsAndCharts!$A79+$A$11,IF($C$7,8,0),1,1) -> 10.87 | F79: =OFFSET(InputPriceData!E$15,CalculationsAndCharts!$A79+$A$11,IF($C$7,8,0),1,1) -> 10.64 | G79: =OFFSET(InputPriceData!F$15,CalculationsAndCharts!$A79+$A$11,IF($C$7,8,0),1,1) -> 10.66 | H79: 12.639 | U79: 12.639
A80: 48 | B80: =OFFSET(InputPriceData!B$15,CalculationsAndCharts!$A80+$A$11,0,1,1) -> 2016-01-04 | C80: =OFFSET(InputPriceData!G$15,CalculationsAndCharts!$A80+$A$11,IF($C$7,8,0),1,1) -> 36236700 | D80: =OFFSET(InputPriceData!C$15,CalculationsAndCharts!$A80+$A$11,IF($C$7,8,0),1,1) -> 11.26 | E80: =OFFSET(InputPriceData!D$15,CalculationsAndCharts!$A80+$A$11,IF($C$7,8,0),1,1) -> 11.42 | F80: =OFFSET(InputPriceData!E$15,CalculationsAndCharts!$A80+$A$11,IF($C$7,8,0),1,1) -> 10.82 | G80: =OFFSET(InputPriceData!F$15,CalculationsAndCharts!$A80+$A$11,IF($C$7,8,0),1,1) -> 10.98 | H80: 12.716 | U80: 12.716
A81: 49 | B81: =OFFSET(InputPriceData!B$15,CalculationsAndCharts!$A81+$A$11,0,1,1) -> 2015-12-31 | C81: =OFFSET(InputPriceData!G$15,CalculationsAndCharts!$A81+$A$11,IF($C$7,8,0),1,1) -> 30362300 | D81: =OFFSET(InputPriceData!C$15,CalculationsAndCharts!$A81+$A$11,IF($C$7,8,0),1,1) -> 10.84 | E81: =OFFSET(InputPriceData!D$15,CalculationsAndCharts!$A81+$A$11,IF($C$7,8,0),1,1) -> 11.24 | F81: =OFFSET(InputPriceData!E$15,CalculationsAndCharts!$A81+$A$11,IF($C$7,8,0),1,1) -> 10.82 | G81: =OFFSET(InputPriceData!F$15,CalculationsAndCharts!$A81+$A$11,IF($C$7,8,0),1,1) -> 11 | H81: 12.785 | U81: 12.785
A82: 50 | B82: =OFFSET(InputPriceData!B$15,CalculationsAndCharts!$A82+$A$11,0,1,1) -> 2015-12-30 | C82: =OFFSET(InputPriceData!G$15,CalculationsAndCharts!$A82+$A$11,IF($C$7,8,0),1,1) -> 24796400 | D82: =OFFSET(InputPriceData!C$15,CalculationsAndCharts!$A82+$A$11,IF($C$7,8,0),1,1) -> 10.96 | E82: =OFFSET(InputPriceData!D$15,CalculationsAndCharts!$A82+$A$11,IF($C$7,8,0),1,1) -> 11 | F82: =OFFSET(InputPriceData!E$15,CalculationsAndCharts!$A82+$A$11,IF($C$7,8,0),1,1) -> 10.84 | G82: =OFFSET(InputPriceData!F$15,CalculationsAndCharts!$A82+$A$11,IF($C$7,8,0),1,1) -> 10.93 | H82: 12.8596 | U82: 12.8596
A83: 51 | B83: =OFFSET(InputPriceData!B$15,CalculationsAndCharts!$A83+$A$11,0,1,1) -> 2015-12-29 | C83: =OFFSET(InputPriceData!G$15,CalculationsAndCharts!$A83+$A$11,IF($C$7,8,0),1,1) -> 23585200 | D83: =OFFSET(InputPriceData!C$15,CalculationsAndCharts!$A83+$A$11,IF($C$7,8,0),1,1) -> 11.16 | E83: =OFFSET(InputPriceData!D$15,CalculationsAndCharts!$A83+$A$11,IF($C$7,8,0),1,1) -> 11.29 | F83: =OFFSET(InputPriceData!E$15,CalculationsAndCharts!$A83+$A$11,IF($C$7,8,0),1,1) -> 11.15 | G83: =OFFSET(InputPriceData!F$15,CalculationsAndCharts!$A83+$A$11,IF($C$7,8,0),1,1) -> 11.26 | H83: 12.9376 | U83: 12.9376
A84: 52 | B84: =OFFSET(InputPriceData!B$15,CalculationsAndCharts!$A84+$A$11,0,1,1) -> 2015-12-28 | C84: =OFFSET(InputPriceData!G$15,CalculationsAndCharts!$A84+$A$11,IF($C$7,8,0),1,1) -> 20495900 | D84: =OFFSET(InputPriceData!C$15,CalculationsAndCharts!$A84+$A$11,IF($C$7,8,0),1,1) -> 11.06 | E84: =OFFSET(InputPriceData!D$15,CalculationsAndCharts!$A84+$A$11,IF($C$7,8,0),1,1) -> 11.07 | F84: =OFFSET(InputPriceData!E$15,CalculationsAndCharts!$A84+$A$11,IF($C$7,8,0),1,1) -> 10.91 | G84: =OFFSET(InputPriceData!F$15,CalculationsAndCharts!$A84+$A$11,IF($C$7,8,0),1,1) -> 10.93 | H84: 13.0168 | U84: 13.0168
A85: 53 | B85: =OFFSET(InputPriceData!B$15,CalculationsAndCharts!$A85+$A$11,0,1,1) -> 2015-12-24 | C85: =OFFSET(InputPriceData!G$15,CalculationsAndCharts!$A85+$A$11,IF($C$7,8,0),1,1) -> 19038100 | D85: =OFFSET(InputPriceData!C$15,CalculationsAndCharts!$A85+$A$11,IF($C$7,8,0),1,1) -> 11.34 | E85: =OFFSET(InputPriceData!D$15,CalculationsAndCharts!$A85+$A$11,IF($C$7,8,0),1,1) -> 11.35 | F85: =OFFSET(InputPriceData!E$15,CalculationsAndCharts!$A85+$A$11,IF($C$7,8,0),1,1) -> 11.23 | G85: =OFFSET(InputPriceData!F$15,CalculationsAndCharts!$A85+$A$11,IF($C$7,8,0),1,1) -> 11.3 | H85: 13.1008 | U85: 13.1008
A86: 54 | B86: =OFFSET(InputPriceData!B$15,CalculationsAndCharts!$A86+$A$11,0,1,1) -> 2015-12-23 | C86: =OFFSET(InputPriceData!G$15,CalculationsAndCharts!$A86+$A$11,IF($C$7,8,0),1,1) -> 39354100 | D86: =OFFSET(InputPriceData!C$15,CalculationsAndCharts!$A86+$A$11,IF($C$7,8,0),1,1) -> 11.06 | E86: =OFFSET(InputPriceData!D$15,CalculationsAndCharts!$A86+$A$11,IF($C$7,8,0),1,1) -> 11.29 | F86: =OFFSET(InputPriceData!E$15,CalculationsAndCharts!$A86+$A$11,IF($C$7,8,0),1,1) -> 11 | G86: =OFFSET(InputPriceData!F$15,CalculationsAndCharts!$A86+$A$11,IF($C$7,8,0),1,1) -> 11.26 | H86: 13.1758 | U86: 13.1758
A87: 55 | B87: =OFFSET(InputPriceData!B$15,CalculationsAndCharts!$A87+$A$11,0,1,1) -> 2015-12-22 | C87: =OFFSET(InputPriceData!G$15,CalculationsAndCharts!$A87+$A$11,IF($C$7,8,0),1,1) -> 21942200 | D87: =OFFSET(InputPriceData!C$15,CalculationsAndCharts!$A87+$A$11,IF($C$7,8,0),1,1) -> 10.68 | E87: =OFFSET(InputPriceData!D$15,CalculationsAndCharts!$A87+$A$11,IF($C$7,8,0),1,1) -> 10.88 | F87: =OFFSET(InputPriceData!E$15,CalculationsAndCharts!$A87+$A$11,IF($C$7,8,0),1,1) -> 10.66 | G87: =OFFSET(InputPriceData!F$15,CalculationsAndCharts!$A87+$A$11,IF($C$7,8,0),1,1) -> 10.77 | H87: 13.2518 | U87: 13.2518
A88: 56 | B88: =OFFSET(InputPriceData!B$15,CalculationsAndCharts!$A88+$A$11,0,1,1) -> 2015-12-21 | C88: =OFFSET(InputPriceData!G$15,CalculationsAndCharts!$A88+$A$11,IF($C$7,8,0),1,1) -> 26532400 | D88: =OFFSET(InputPriceData!C$15,CalculationsAndCharts!$A88+$A$11,IF($C$7,8,0),1,1) -> 10.6 | E88: =OFFSET(InputPriceData!D$15,CalculationsAndCharts!$A88+$A$11,IF($C$7,8,0),1,1) -> 10.75 | F88: =OFFSET(InputPriceData!E$15,CalculationsAndCharts!$A88+$A$11,IF($C$7,8,0),1,1) -> 10.52 | G88: =OFFSET(InputPriceData!F$15,CalculationsAndCharts!$A88+$A$11,IF($C$7,8,0),1,1) -> 10.66 | H88: 13.3426 | U88: 13.3426
A89: 57 | B89: =OFFSET(InputPriceData!B$15,CalculationsAndCharts!$A89+$A$11,0,1,1) -> 2015-12-18 | C89: =OFFSET(InputPriceData!G$15,CalculationsAndCharts!$A89+$A$11,IF($C$7,8,0),1,1) -> 37112500 | D89: =OFFSET(InputPriceData!C$15,CalculationsAndCharts!$A89+$A$11,IF($C$7,8,0),1,1) -> 10.81 | E89: =OFFSET(InputPriceData!D$15,CalculationsAndCharts!$A89+$A$11,IF($C$7,8,0),1,1) -> 10.99 | F89: =OFFSET(InputPriceData!E$15,CalculationsAndCharts!$A89+$A$11,IF($C$7,8,0),1,1) -> 10.62 | G89: =OFFSET(InputPriceData!F$15,CalculationsAndCharts!$A89+$A$11,IF($C$7,8,0),1,1) -> 10.66 | H89: 13.4492 | U89: 13.4492
A90: 58 | B90: =OFFSET(InputPriceData!B$15,CalculationsAndCharts!$A90+$A$11,0,1,1) -> 2015-12-17 | C90: =OFFSET(InputPriceData!G$15,CalculationsAndCharts!$A90+$A$11,IF($C$7,8,0),1,1) -> 30064600 | D90: =OFFSET(InputPriceData!C$15,CalculationsAndCharts!$A90+$A$11,IF($C$7,8,0),1,1) -> 10.95 | E90: =OFFSET(InputPriceData!D$15,CalculationsAndCharts!$A90+$A$11,IF($C$7,8,0),1,1) -> 10.95 | F90: =OFFSET(InputPriceData!E$15,CalculationsAndCharts!$A90+$A$11,IF($C$7,8,0),1,1) -> 10.71 | G90: =OFFSET(InputPriceData!F$15,CalculationsAndCharts!$A90+$A$11,IF($C$7,8,0),1,1) -> 10.74 | H90: 13.5568 | U90: 13.5568
A91: 59 | B91: =OFFSET(InputPriceData!B$15,CalculationsAndCharts!$A91+$A$11,0,1,1) -> 2015-12-16 | C91: =OFFSET(InputPriceData!G$15,CalculationsAndCharts!$A91+$A$11,IF($C$7,8,0),1,1) -> 36387300 | D91: =OFFSET(InputPriceData!C$15,CalculationsAndCharts!$A91+$A$11,IF($C$7,8,0),1,1) -> 11.23 | E91: =OFFSET(InputPriceData!D$15,CalculationsAndCharts!$A91+$A$11,IF($C$7,8,0),1,1) -> 11.34 | F91: =OFFSET(InputPriceData!E$15,CalculationsAndCharts!$A91+$A$11,IF($C$7,8,0),1,1) -> 10.88 | G91: =OFFSET(InputPriceData!F$15,CalculationsAndCharts!$A91+$A$11,IF($C$7,8,0),1,1) -> 10.99 | H91: 13.6534 | U91: 13.6534
A92: 60 | B92: =OFFSET(InputPriceData!B$15,CalculationsAndCharts!$A92+$A$11,0,1,1) -> 2015-12-15 | C92: =OFFSET(InputPriceData!G$15,CalculationsAndCharts!$A92+$A$11,IF($C$7,8,0),1,1) -> 35892100 | D92: =OFFSET(InputPriceData!C$15,CalculationsAndCharts!$A92+$A$11,IF($C$7,8,0),1,1) -> 11.33 | E92: =OFFSET(InputPriceData!D$15,CalculationsAndCharts!$A92+$A$11,IF($C$7,8,0),1,1) -> 11.65 | F92: =OFFSET(InputPriceData!E$15,CalculationsAndCharts!$A92+$A$11,IF($C$7,8,0),1,1) -> 11.25 | G92: =OFFSET(InputPriceData!F$15,CalculationsAndCharts!$A92+$A$11,IF($C$7,8,0),1,1) -> 11.4 | H92: 13.7484 | U92: 13.7484
A93: 61 | B93: =OFFSET(InputPriceData!B$15,CalculationsAndCharts!$A93+$A$11,0,1,1) -> 2015-12-14 | C93: =OFFSET(InputPriceData!G$15,CalculationsAndCharts!$A93+$A$11,IF($C$7,8,0),1,1) -> 39148200 | D93: =OFFSET(InputPriceData!C$15,CalculationsAndCharts!$A93+$A$11,IF($C$7,8,0),1,1) -> 10.97 | E93: =OFFSET(InputPriceData!D$15,CalculationsAndCharts!$A93+$A$11,IF($C$7,8,0),1,1) -> 11.3 | F93: =OFFSET(InputPriceData!E$15,CalculationsAndCharts!$A93+$A$11,IF($C$7,8,0),1,1) -> 10.79 | G93: =OFFSET(InputPriceData!F$15,CalculationsAndCharts!$A93+$A$11,IF($C$7,8,0),1,1) -> 11.16 | H93: 13.8204 | U93: 13.8204
A94: 62 | B94: =OFFSET(InputPriceData!B$15,CalculationsAndCharts!$A94+$A$11,0,1,1) -> 2015-12-11 | C94: =OFFSET(InputPriceData!G$15,CalculationsAndCharts!$A94+$A$11,IF($C$7,8,0),1,1) -> 44460900 | D94: =OFFSET(InputPriceData!C$15,CalculationsAndCharts!$A94+$A$11,IF($C$7,8,0),1,1) -> 11.3 | E94: =OFFSET(InputPriceData!D$15,CalculationsAndCharts!$A94+$A$11,IF($C$7,8,0),1,1) -> 11.33 | F94: =OFFSET(InputPriceData!E$15,CalculationsAndCharts!$A94+$A$11,IF($C$7,8,0),1,1) -> 11 | G94: =OFFSET(InputPriceData!F$15,CalculationsAndCharts!$A94+$A$11,IF($C$7,8,0),1,1) -> 11.07 | H94: 13.8926 | U94: 13.8926
A95: 63 | B95: =OFFSET(InputPriceData!B$15,CalculationsAndCharts!$A95+$A$11,0,1,1) -> 2015-12-10 | C95: =OFFSET(InputPriceData!G$15,CalculationsAndCharts!$A95+$A$11,IF($C$7,8,0),1,1) -> 33745900 | D95: =OFFSET(InputPriceData!C$15,CalculationsAndCharts!$A95+$A$11,IF($C$7,8,0),1,1) -> 11.44 | E95: =OFFSET(InputPriceData!D$15,CalculationsAndCharts!$A95+$A$11,IF($C$7,8,0),1,1) -> 11.57 | F95: =OFFSET(InputPriceData!E$15,CalculationsAndCharts!$A95+$A$11,IF($C$7,8,0),1,1) -> 11.33 | G95: =OFFSET(InputPriceData!F$15,CalculationsAndCharts!$A95+$A$11,IF($C$7,8,0),1,1) -> 11.37 | H95: 13.9628 | U95: 13.9628
A96: 64 | B96: =OFFSET(InputPriceData!B$15,CalculationsAndCharts!$A96+$A$11,0,1,1) -> 2015-12-09 | C96: =OFFSET(InputPriceData!G$15,CalculationsAndCharts!$A96+$A$11,IF($C$7,8,0),1,1) -> 38871100 | D96: =OFFSET(InputPriceData!C$15,CalculationsAndCharts!$A96+$A$11,IF($C$7,8,0),1,1) -> 11.77 | E96: =OFFSET(InputPriceData!D$15,CalculationsAndCharts!$A96+$A$11,IF($C$7,8,0),1,1) -> 12.06 | F96: =OFFSET(InputPriceData!E$15,CalculationsAndCharts!$A96+$A$11,IF($C$7,8,0),1,1) -> 11.43 | G96: =OFFSET(InputPriceData!F$15,CalculationsAndCharts!$A96+$A$11,IF($C$7,8,0),1,1) -> 11.56 | H96: 14.029 | U96: 14.029
A97: 65 | B97: =OFFSET(InputPriceData!B$15,CalculationsAndCharts!$A97+$A$11,0,1,1) -> 2015-12-08 | C97: =OFFSET(InputPriceData!G$15,CalculationsAndCharts!$A97+$A$11,IF($C$7,8,0),1,1) -> 39573700 | D97: =OFFSET(InputPriceData!C$15,CalculationsAndCharts!$A97+$A$11,IF($C$7,8,0),1,1) -> 11.52 | E97: =OFFSET(InputPriceData!D$15,CalculationsAndCharts!$A97+$A$11,IF($C$7,8,0),1,1) -> 11.97 | F97: =OFFSET(InputPriceData!E$15,CalculationsAndCharts!$A97+$A$11,IF($C$7,8,0),1,1) -> 11.45 | G97: =OFFSET(InputPriceData!F$15,CalculationsAndCharts!$A97+$A$11,IF($C$7,8,0),1,1) -> 11.68 | H97: =IF($A97>$A$8,0,IF($A97=$A$8,$G97,AVERAGE(OFFSET($G97,0,0,$A$16,1)))) -> 14.09 | U97: =IF($R$4,H97,NA()) -> 14.09
A98: 66 | B98: =OFFSET(InputPriceData!B$15,CalculationsAndCharts!$A98+$A$11,0,1,1) -> 2015-12-07 | C98: =OFFSET(InputPriceData!G$15,CalculationsAndCharts!$A98+$A$11,IF($C$7,8,0),1,1) -> 53326400 | D98: =OFFSET(InputPriceData!C$15,CalculationsAndCharts!$A98+$A$11,IF($C$7,8,0),1,1) -> 12.02 | E98: =OFFSET(InputPriceData!D$15,CalculationsAndCharts!$A98+$A$11,IF($C$7,8,0),1,1) -> 12.08 | F98: =OFFSET(InputPriceData!E$15,CalculationsAndCharts!$A98+$A$11,IF($C$7,8,0),1,1) -> 11.65 | G98: =OFFSET(InputPriceData!F$15,CalculationsAndCharts!$A98+$A$11,IF($C$7,8,0),1,1) -> 11.72 | H98: 14.144 | U98: 14.144
A99: 67 | B99: =OFFSET(InputPriceData!B$15,CalculationsAndCharts!$A99+$A$11,0,1,1) -> 2015-12-04 | C99: =OFFSET(InputPriceData!G$15,CalculationsAndCharts!$A99+$A$11,IF($C$7,8,0),1,1) -> 41884500 | D99: =OFFSET(InputPriceData!C$15,CalculationsAndCharts!$A99+$A$11,IF($C$7,8,0),1,1) -> 12.45 | E99: =OFFSET(InputPriceData!D$15,CalculationsAndCharts!$A99+$A$11,IF($C$7,8,0),1,1) -> 12.63 | F99: =OFFSET(InputPriceData!E$15,CalculationsAndCharts!$A99+$A$11,IF($C$7,8,0),1,1) -> 12.33 | G99: =OFFSET(InputPriceData!F$15,CalculationsAndCharts!$A99+$A$11,IF($C$7,8,0),1,1) -> 12.46 | H99: 14.2038 | U99: 14.2038
A100: 68 | B100: =OFFSET(InputPriceData!B$15,CalculationsAndCharts!$A100+$A$11,0,1,1) -> 2015-12-03 | C100: =OFFSET(InputPriceData!G$15,CalculationsAndCharts!$A100+$A$11,IF($C$7,8,0),1,1) -> 35997400 | D100: =OFFSET(InputPriceData!C$15,CalculationsAndCharts!$A100+$A$11,IF($C$7,8,0),1,1) -> 12.59 | E100: =OFFSET(InputPriceData!D$15,CalculationsAndCharts!$A100+$A$11,IF($C$7,8,0),1,1) -> 12.97 | F100: =OFFSET(InputPriceData!E$15,CalculationsAndCharts!$A100+$A$11,IF($C$7,8,0),1,1) -> 12.45 | G100: =OFFSET(InputPriceData!F$15,CalculationsAndCharts!$A100+$A$11,IF($C$7,8,0),1,1) -> 12.77 | H100: 14.2464 | U100: 14.2464
A101: 69 | B101: =OFFSET(InputPriceData!B$15,CalculationsAndCharts!$A101+$A$11,0,1,1) -> 2015-12-02 | C101: =OFFSET(InputPriceData!G$15,CalculationsAndCharts!$A101+$A$11,IF($C$7,8,0),1,1) -> 52543800 | D101: =OFFSET(InputPriceData!C$15,CalculationsAndCharts!$A101+$A$11,IF($C$7,8,0),1,1) -> 12.77 | E101: =OFFSET(InputPriceData!D$15,CalculationsAndCharts!$A101+$A$11,IF($C$7,8,0),1,1) -> 13.03 | F101: =OFFSET(InputPriceData!E$15,CalculationsAndCharts!$A101+$A$11,IF($C$7,8,0),1,1) -> 12.38 | G101: =OFFSET(InputPriceData!F$15,CalculationsAndCharts!$A101+$A$11,IF($C$7,8,0),1,1) -> 12.48 | H101: 14.2798 | U101: 14.2798
A102: 70 | B102: =OFFSET(InputPriceData!B$15,CalculationsAndCharts!$A102+$A$11,0,1,1) -> 2015-12-01 | C102: =OFFSET(InputPriceData!G$15,CalculationsAndCharts!$A102+$A$11,IF($C$7,8,0),1,1) -> 19658700 | D102: =OFFSET(InputPriceData!C$15,CalculationsAndCharts!$A102+$A$11,IF($C$7,8,0),1,1) -> 12.92 | E102: =OFFSET(InputPriceData!D$15,CalculationsAndCharts!$A102+$A$11,IF($C$7,8,0),1,1) -> 13.11 | F102: =OFFSET(InputPriceData!E$15,CalculationsAndCharts!$A102+$A$11,IF($C$7,8,0),1,1) -> 12.83 | G102: =OFFSET(InputPriceData!F$15,CalculationsAndCharts!$A102+$A$11,IF($C$7,8,0),1,1) -> 12.95 | H102: 14.3286 | U102: 14.3286
A103: 71 | B103: =OFFSET(InputPriceData!B$15,CalculationsAndCharts!$A103+$A$11,0,1,1) -> 2015-11-30 | C103: =OFFSET(InputPriceData!G$15,CalculationsAndCharts!$A103+$A$11,IF($C$7,8,0),1,1) -> 22160200 | D103: =OFFSET(InputPriceData!C$15,CalculationsAndCharts!$A103+$A$11,IF($C$7,8,0),1,1) -> 13.18 | E103: =OFFSET(InputPriceData!D$15,CalculationsAndCharts!$A103+$A$11,IF($C$7,8,0),1,1) -> 13.23 | F103: =OFFSET(InputPriceData!E$15,CalculationsAndCharts!$A103+$A$11,IF($C$7,8,0),1,1) -> 12.9 | G103: =OFFSET(InputPriceData!F$15,CalculationsAndCharts!$A103+$A$11,IF($C$7,8,0),1,1) -> 12.93 | H103: 14.3706 | U103: 14.3706
A104: 72 | B104: =OFFSET(InputPriceData!B$15,CalculationsAndCharts!$A104+$A$11,0,1,1) -> 2015-11-27 | C104: =OFFSET(InputPriceData!G$15,CalculationsAndCharts!$A104+$A$11,IF($C$7,8,0),1,1) -> 10619600 | D104: =OFFSET(InputPriceData!C$15,CalculationsAndCharts!$A104+$A$11,IF($C$7,8,0),1,1) -> 13.09 | E104: =OFFSET(InputPriceData!D$15,CalculationsAndCharts!$A104+$A$11,IF($C$7,8,0),1,1) -> 13.11 | F104: =OFFSET(InputPriceData!E$15,CalculationsAndCharts!$A104+$A$11,IF($C$7,8,0),1,1) -> 13 | G104: =OFFSET(InputPriceData!F$15,CalculationsAndCharts!$A104+$A$11,IF($C$7,8,0),1,1) -> 13.03 | H104: 14.4044 | U104: 14.4044
A105: 73 | B105: =OFFSET(InputPriceData!B$15,CalculationsAndCharts!$A105+$A$11,0,1,1) -> 2015-11-25 | C105: =OFFSET(InputPriceData!G$15,CalculationsAndCharts!$A105+$A$11,IF($C$7,8,0),1,1) -> 27117000 | D105: =OFFSET(InputPriceData!C$15,CalculationsAndCharts!$A105+$A$11,IF($C$7,8,0),1,1) -> 13.11 | E105: =OFFSET(InputPriceData!D$15,CalculationsAndCharts!$A105+$A$11,IF($C$7,8,0),1,1) -> 13.42 | F105: =OFFSET(InputPriceData!E$15,CalculationsAndCharts!$A105+$A$11,IF($C$7,8,0),1,1) -> 12.96 | G105: =OFFSET(InputPriceData!F$15,CalculationsAndCharts!$A105+$A$11,IF($C$7,8,0),1,1) -> 13.39 | H105: 14.4484 | U105: 14.4484
A106: 74 | B106: =OFFSET(InputPriceData!B$15,CalculationsAndCharts!$A106+$A$11,0,1,1) -> 2015-11-24 | C106: =OFFSET(InputPriceData!G$15,CalculationsAndCharts!$A106+$A$11,IF($C$7,8,0),1,1) -> 25560200 | D106: =OFFSET(InputPriceData!C$15,CalculationsAndCharts!$A106+$A$11,IF($C$7,8,0),1,1) -> 13.35 | E106: =OFFSET(InputPriceData!D$15,CalculationsAndCharts!$A106+$A$11,IF($C$7,8,0),1,1) -> 13.5 | F106: =OFFSET(InputPriceData!E$15,CalculationsAndCharts!$A106+$A$11,IF($C$7,8,0),1,1) -> 13.2 | G106: =OFFSET(InputPriceData!F$15,CalculationsAndCharts!$A106+$A$11,IF($C$7,8,0),1,1) -> 13.32 | H106: 14.4878 | U106: 14.4878
A107: 75 | B107: =OFFSET(InputPriceData!B$15,CalculationsAndCharts!$A107+$A$11,0,1,1) -> 2015-11-23 | C107: =OFFSET(InputPriceData!G$15,CalculationsAndCharts!$A107+$A$11,IF($C$7,8,0),1,1) -> 29045200 | D107: =OFFSET(InputPriceData!C$15,CalculationsAndCharts!$A107+$A$11,IF($C$7,8,0),1,1) -> 12.84 | E107: =OFFSET(InputPriceData!D$15,CalculationsAndCharts!$A107+$A$11,IF($C$7,8,0),1,1) -> 13.24 | F107: =OFFSET(InputPriceData!E$15,CalculationsAndCharts!$A107+$A$11,IF($C$7,8,0),1,1) -> 12.82 | G107: =OFFSET(InputPriceData!F$15,CalculationsAndCharts!$A107+$A$11,IF($C$7,8,0),1,1) -> 13.02 | H107: 14.5128 | U107: 14.5128
A108: 76 | B108: =OFFSET(InputPriceData!B$15,CalculationsAndCharts!$A108+$A$11,0,1,1) -> 2015-11-20 | C108: =OFFSET(InputPriceData!G$15,CalculationsAndCharts!$A108+$A$11,IF($C$7,8,0),1,1) -> 37776200 | D108: =OFFSET(InputPriceData!C$15,CalculationsAndCharts!$A108+$A$11,IF($C$7,8,0),1,1) -> 12.94 | E108: =OFFSET(InputPriceData!D$15,CalculationsAndCharts!$A108+$A$11,IF($C$7,8,0),1,1) -> 13.28 | F108: =OFFSET(InputPriceData!E$15,CalculationsAndCharts!$A108+$A$11,IF($C$7,8,0),1,1) -> 12.86 | G108: =OFFSET(InputPriceData!F$15,CalculationsAndCharts!$A108+$A$11,IF($C$7,8,0),1,1) -> 12.93 | H108: 14.5402 | U108: 14.5402
A109: 77 | B109: =OFFSET(InputPriceData!B$15,CalculationsAndCharts!$A109+$A$11,0,1,1) -> 2015-11-19 | C109: =OFFSET(InputPriceData!G$15,CalculationsAndCharts!$A109+$A$11,IF($C$7,8,0),1,1) -> 22457200 | D109: =OFFSET(InputPriceData!C$15,CalculationsAndCharts!$A109+$A$11,IF($C$7,8,0),1,1) -> 12.92 | E109: =OFFSET(InputPriceData!D$15,CalculationsAndCharts!$A109+$A$11,IF($C$7,8,0),1,1) -> 13.03 | F109: =OFFSET(InputPriceData!E$15,CalculationsAndCharts!$A109+$A$11,IF($C$7,8,0),1,1) -> 12.86 | G109: =OFFSET(InputPriceData!F$15,CalculationsAndCharts!$A109+$A$11,IF($C$7,8,0),1,1) -> 12.96 | H109: 14.5746 | U109: 14.5746
A110: 78 | B110: =OFFSET(InputPriceData!B$15,CalculationsAndCharts!$A110+$A$11,0,1,1) -> 2015-11-18 | C110: =OFFSET(InputPriceData!G$15,CalculationsAndCharts!$A110+$A$11,IF($C$7,8,0),1,1) -> 24754800 | D110: =OFFSET(InputPriceData!C$15,CalculationsAndCharts!$A110+$A$11,IF($C$7,8,0),1,1) -> 13.14 | E110: =OFFSET(InputPriceData!D$15,CalculationsAndCharts!$A110+$A$11,IF($C$7,8,0),1,1) -> 13.2 | F110: =OFFSET(InputPriceData!E$15,CalculationsAndCharts!$A110+$A$11,IF($C$7,8,0),1,1) -> 12.83 | G110: =OFFSET(InputPriceData!F$15,CalculationsAndCharts!$A110+$A$11,IF($C$7,8,0),1,1) -> 13.05 | H110: 14.614 | U110: 14.614
A111: 79 | B111: =OFFSET(InputPriceData!B$15,CalculationsAndCharts!$A111+$A$11,0,1,1) -> 2015-11-17 | C111: =OFFSET(InputPriceData!G$15,CalculationsAndCharts!$A111+$A$11,IF($C$7,8,0),1,1) -> 22978800 | D111: =OFFSET(InputPriceData!C$15,CalculationsAndCharts!$A111+$A$11,IF($C$7,8,0),1,1) -> 13.17 | E111: =OFFSET(InputPriceData!D$15,CalculationsAndCharts!$A111+$A$11,IF($C$7,8,0),1,1) -> 13.22 | F111: =OFFSET(InputPriceData!E$15,CalculationsAndCharts!$A111+$A$11,IF($C$7,8,0),1,1) -> 12.94 | G111: =OFFSET(InputPriceData!F$15,CalculationsAndCharts!$A111+$A$11,IF($C$7,8,0),1,1) -> 13.01 | H111: 14.6434 | U111: 14.6434
A112: 80 | B112: =OFFSET(InputPriceData!B$15,CalculationsAndCharts!$A112+$A$11,0,1,1) -> 2015-11-16 | C112: =OFFSET(InputPriceData!G$15,CalculationsAndCharts!$A112+$A$11,IF($C$7,8,0),1,1) -> 37787400 | D112: =OFFSET(InputPriceData!C$15,CalculationsAndCharts!$A112+$A$11,IF($C$7,8,0),1,1) -> 13 | E112: =OFFSET(InputPriceData!D$15,CalculationsAndCharts!$A112+$A$11,IF($C$7,8,0),1,1) -> 13.43 | F112: =OFFSET(InputPriceData!E$15,CalculationsAndCharts!$A112+$A$11,IF($C$7,8,0),1,1) -> 12.81 | G112: =OFFSET(InputPriceData!F$15,CalculationsAndCharts!$A112+$A$11,IF($C$7,8,0),1,1) -> 13.39 | H112: 14.6836 | U112: 14.6836
A113: 81 | B113: =OFFSET(InputPriceData!B$15,CalculationsAndCharts!$A113+$A$11,0,1,1) -> 2015-11-13 | C113: =OFFSET(InputPriceData!G$15,CalculationsAndCharts!$A113+$A$11,IF($C$7,8,0),1,1) -> 34583500 | D113: =OFFSET(InputPriceData!C$15,CalculationsAndCharts!$A113+$A$11,IF($C$7,8,0),1,1) -> 13.2 | E113: =OFFSET(InputPriceData!D$15,CalculationsAndCharts!$A113+$A$11,IF($C$7,8,0),1,1) -> 13.23 | F113: =OFFSET(InputPriceData!E$15,CalculationsAndCharts!$A113+$A$11,IF($C$7,8,0),1,1) -> 12.91 | G113: =OFFSET(InputPriceData!F$15,CalculationsAndCharts!$A113+$A$11,IF($C$7,8,0),1,1) -> 13.06 | H113: 14.7174 | U113: 14.7174
A114: 82 | B114: =OFFSET(InputPriceData!B$15,CalculationsAndCharts!$A114+$A$11,0,1,1) -> 2015-11-12 | C114: =OFFSET(InputPriceData!G$15,CalculationsAndCharts!$A114+$A$11,IF($C$7,8,0),1,1) -> 33567000 | D114: =OFFSET(InputPriceData!C$15,CalculationsAndCharts!$A114+$A$11,IF($C$7,8,0),1,1) -> 13.45 | E114: =OFFSET(InputPriceData!D$15,CalculationsAndCharts!$A114+$A$11,IF($C$7,8,0),1,1) -> 13.7 | F114: =OFFSET(InputPriceData!E$15,CalculationsAndCharts!$A114+$A$11,IF($C$7,8,0),1,1) -> 13.32 | G114: =OFFSET(InputPriceData!F$15,CalculationsAndCharts!$A114+$A$11,IF($C$7,8,0),1,1) -> 13.35 | H114: 14.763 | U114: 14.763
A115: 83 | B115: =OFFSET(InputPriceData!B$15,CalculationsAndCharts!$A115+$A$11,0,1,1) -> 2015-11-11 | C115: =OFFSET(InputPriceData!G$15,CalculationsAndCharts!$A115+$A$11,IF($C$7,8,0),1,1) -> 24154300 | D115: =OFFSET(InputPriceData!C$15,CalculationsAndCharts!$A115+$A$11,IF($C$7,8,0),1,1) -> 14.06 | E115: =OFFSET(InputPriceData!D$15,CalculationsAndCharts!$A115+$A$11,IF($C$7,8,0),1,1) -> 14.09 | F115: =OFFSET(InputPriceData!E$15,CalculationsAndCharts!$A115+$A$11,IF($C$7,8,0),1,1) -> 13.64 | G115: =OFFSET(InputPriceData!F$15,CalculationsAndCharts!$A115+$A$11,IF($C$7,8,0),1,1) -> 13.76 | H115: 14.7978 | U115: 14.7978
A116: 84 | B116: =OFFSET(InputPriceData!B$15,CalculationsAndCharts!$A116+$A$11,0,1,1) -> 2015-11-10 | C116: =OFFSET(InputPriceData!G$15,CalculationsAndCharts!$A116+$A$11,IF($C$7,8,0),1,1) -> 15887800 | D116: =OFFSET(InputPriceData!C$15,CalculationsAndCharts!$A116+$A$11,IF($C$7,8,0),1,1) -> 14 | E116: =OFFSET(InputPriceData!D$15,CalculationsAndCharts!$A116+$A$11,IF($C$7,8,0),1,1) -> 14.29 | F116: =OFFSET(InputPriceData!E$15,CalculationsAndCharts!$A116+$A$11,IF($C$7,8,0),1,1) -> 13.99 | G116: =OFFSET(InputPriceData!F$15,CalculationsAndCharts!$A116+$A$11,IF($C$7,8,0),1,1) -> 14.09 | H116: 14.8188 | U116: 14.8188
A117: 85 | B117: =OFFSET(InputPriceData!B$15,CalculationsAndCharts!$A117+$A$11,0,1,1) -> 2015-11-09 | C117: =OFFSET(InputPriceData!G$15,CalculationsAndCharts!$A117+$A$11,IF($C$7,8,0),1,1) -> 22257700 | D117: =OFFSET(InputPriceData!C$15,CalculationsAndCharts!$A117+$A$11,IF($C$7,8,0),1,1) -> 14.1 | E117: =OFFSET(InputPriceData!D$15,CalculationsAndCharts!$A117+$A$11,IF($C$7,8,0),1,1) -> 14.23 | F117: =OFFSET(InputPriceData!E$15,CalculationsAndCharts!$A117+$A$11,IF($C$7,8,0),1,1) -> 13.95 | G117: =OFFSET(InputPriceData!F$15,CalculationsAndCharts!$A117+$A$11,IF($C$7,8,0),1,1) -> 14.08 | H117: 14.8548 | U117: 14.8548
A118: 86 | B118: =OFFSET(InputPriceData!B$15,CalculationsAndCharts!$A118+$A$11,0,1,1) -> 2015-11-06 | C118: =OFFSET(InputPriceData!G$15,CalculationsAndCharts!$A118+$A$11,IF($C$7,8,0),1,1) -> 22399700 | D118: =OFFSET(InputPriceData!C$15,CalculationsAndCharts!$A118+$A$11,IF($C$7,8,0),1,1) -> 14.29 | E118: =OFFSET(InputPriceData!D$15,CalculationsAndCharts!$A118+$A$11,IF($C$7,8,0),1,1) -> 14.37 | F118: =OFFSET(InputPriceData!E$15,CalculationsAndCharts!$A118+$A$11,IF($C$7,8,0),1,1) -> 14.1 | G118: =OFFSET(InputPriceData!F$15,CalculationsAndCharts!$A118+$A$11,IF($C$7,8,0),1,1) -> 14.23 | H118: 14.8708 | U118: 14.8708
A119: 87 | B119: =OFFSET(InputPriceData!B$15,CalculationsAndCharts!$A119+$A$11,0,1,1) -> 2015-11-05 | C119: =OFFSET(InputPriceData!G$15,CalculationsAndCharts!$A119+$A$11,IF($C$7,8,0),1,1) -> 26139000 | D119: =OFFSET(InputPriceData!C$15,CalculationsAndCharts!$A119+$A$11,IF($C$7,8,0),1,1) -> 14.67 | E119: =OFFSET(InputPriceData!D$15,CalculationsAndCharts!$A119+$A$11,IF($C$7,8,0),1,1) -> 14.84 | F119: =OFFSET(InputPriceData!E$15,CalculationsAndCharts!$A119+$A$11,IF($C$7,8,0),1,1) -> 14.42 | G119: =OFFSET(InputPriceData!F$15,CalculationsAndCharts!$A119+$A$11,IF($C$7,8,0),1,1) -> 14.48 | H119: 14.8652 | U119: 14.8652
A120: 88 | B120: =OFFSET(InputPriceData!B$15,CalculationsAndCharts!$A120+$A$11,0,1,1) -> 2015-11-04 | C120: =OFFSET(InputPriceData!G$15,CalculationsAndCharts!$A120+$A$11,IF($C$7,8,0),1,1) -> 25783000 | D120: =OFFSET(InputPriceData!C$15,CalculationsAndCharts!$A120+$A$11,IF($C$7,8,0),1,1) -> 15.2 | E120: =OFFSET(InputPriceData!D$15,CalculationsAndCharts!$A120+$A$11,IF($C$7,8,0),1,1) -> 15.28 | F120: =OFFSET(InputPriceData!E$15,CalculationsAndCharts!$A120+$A$11,IF($C$7,8,0),1,1) -> 14.75 | G120: =OFFSET(InputPriceData!F$15,CalculationsAndCharts!$A120+$A$11,IF($C$7,8,0),1,1) -> 14.85 | H120: 14.831 | U120: 14.831
A121: 89 | B121: =OFFSET(InputPriceData!B$15,CalculationsAndCharts!$A121+$A$11,0,1,1) -> 2015-11-03 | C121: =OFFSET(InputPriceData!G$15,CalculationsAndCharts!$A121+$A$11,IF($C$7,8,0),1,1) -> 36340300 | D121: =OFFSET(InputPriceData!C$15,CalculationsAndCharts!$A121+$A$11,IF($C$7,8,0),1,1) -> 15.04 | E121: =OFFSET(InputPriceData!D$15,CalculationsAndCharts!$A121+$A$11,IF($C$7,8,0),1,1) -> 15.45 | F121: =OFFSET(InputPriceData!E$15,CalculationsAndCharts!$A121+$A$11,IF($C$7,8,0),1,1) -> 14.94 | G121: =OFFSET(InputPriceData!F$15,CalculationsAndCharts!$A121+$A$11,IF($C$7,8,0),1,1) -> 15.28 | H121: 14.7886 | U121: 14.7886
A122: 90 | B122: =OFFSET(InputPriceData!B$15,CalculationsAndCharts!$A122+$A$11,0,1,1) -> 2015-11-02 | C122: =OFFSET(InputPriceData!G$15,CalculationsAndCharts!$A122+$A$11,IF($C$7,8,0),1,1) -> 16075600 | D122: =OFFSET(InputPriceData!C$15,CalculationsAndCharts!$A122+$A$11,IF($C$7,8,0),1,1) -> 14.69 | E122: =OFFSET(InputPriceData!D$15,CalculationsAndCharts!$A122+$A$11,IF($C$7,8,0),1,1) -> 14.92 | F122: =OFFSET(InputPriceData!E$15,CalculationsAndCharts!$A122+$A$11,IF($C$7,8,0),1,1) -> 14.65 | G122: =OFFSET(InputPriceData!F$15,CalculationsAndCharts!$A122+$A$11,IF($C$7,8,0),1,1) -> 14.75 | H122: 14.7328 | U122: 14.7328
A123: 91 | B123: =OFFSET(InputPriceData!B$15,CalculationsAndCharts!$A123+$A$11,0,1,1) -> 2015-10-30 | C123: =OFFSET(InputPriceData!G$15,CalculationsAndCharts!$A123+$A$11,IF($C$7,8,0),1,1) -> 19322300 | D123: =OFFSET(InputPriceData!C$15,CalculationsAndCharts!$A123+$A$11,IF($C$7,8,0),1,1) -> 14.66 | E123: =OFFSET(InputPriceData!D$15,CalculationsAndCharts!$A123+$A$11,IF($C$7,8,0),1,1) -> 15.02 | F123: =OFFSET(InputPriceData!E$15,CalculationsAndCharts!$A123+$A$11,IF($C$7,8,0),1,1) -> 14.57 | G123: =OFFSET(InputPriceData!F$15,CalculationsAndCharts!$A123+$A$11,IF($C$7,8,0),1,1) -> 14.81 | H123: 14.7024 | U123: 14.7024
A124: 92 | B124: =OFFSET(InputPriceData!B$15,CalculationsAndCharts!$A124+$A$11,0,1,1) -> 2015-10-29 | C124: =OFFSET(InputPriceData!G$15,CalculationsAndCharts!$A124+$A$11,IF($C$7,8,0),1,1) -> 21993700 | D124: =OFFSET(InputPriceData!C$15,CalculationsAndCharts!$A124+$A$11,IF($C$7,8,0),1,1) -> 14.71 | E124: =OFFSET(InputPriceData!D$15,CalculationsAndCharts!$A124+$A$11,IF($C$7,8,0),1,1) -> 14.94 | F124: =OFFSET(InputPriceData!E$15,CalculationsAndCharts!$A124+$A$11,IF($C$7,8,0),1,1) -> 14.58 | G124: =OFFSET(InputPriceData!F$15,CalculationsAndCharts!$A124+$A$11,IF($C$7,8,0),1,1) -> 14.63 | H124: 14.6736 | U124: 14.6736
A125: 93 | B125: =OFFSET(InputPriceData!B$15,CalculationsAndCharts!$A125+$A$11,0,1,1) -> 2015-10-28 | C125: =OFFSET(InputPriceData!G$15,CalculationsAndCharts!$A125+$A$11,IF($C$7,8,0),1,1) -> 48935900 | D125: =OFFSET(InputPriceData!C$15,CalculationsAndCharts!$A125+$A$11,IF($C$7,8,0),1,1) -> 13.97 | E125: =OFFSET(InputPriceData!D$15,CalculationsAndCharts!$A125+$A$11,IF($C$7,8,0),1,1) -> 14.7 | F125: =OFFSET(InputPriceData!E$15,CalculationsAndCharts!$A125+$A$11,IF($C$7,8,0),1,1) -> 13.91 | G125: =OFFSET(InputPriceData!F$15,CalculationsAndCharts!$A125+$A$11,IF($C$7,8,0),1,1) -> 14.69 | H125: 14.6496 | U125: 14.6496
A126: 94 | B126: =OFFSET(InputPriceData!B$15,CalculationsAndCharts!$A126+$A$11,0,1,1) -> 2015-10-27 | C126: =OFFSET(InputPriceData!G$15,CalculationsAndCharts!$A126+$A$11,IF($C$7,8,0),1,1) -> 26384900 | D126: =OFFSET(InputPriceData!C$15,CalculationsAndCharts!$A126+$A$11,IF($C$7,8,0),1,1) -> 13.71 | E126: =OFFSET(InputPriceData!D$15,CalculationsAndCharts!$A126+$A$11,IF($C$7,8,0),1,1) -> 13.85 | F126: =OFFSET(InputPriceData!E$15,CalculationsAndCharts!$A126+$A$11,IF($C$7,8,0),1,1) -> 13.61 | G126: =OFFSET(InputPriceData!F$15,CalculationsAndCharts!$A126+$A$11,IF($C$7,8,0),1,1) -> 13.82 | H126: 14.6368 | U126: 14.6368
A127: 95 | B127: =OFFSET(InputPriceData!B$15,CalculationsAndCharts!$A127+$A$11,0,1,1) -> 2015-10-26 | C127: =OFFSET(InputPriceData!G$15,CalculationsAndCharts!$A127+$A$11,IF($C$7,8,0),1,1) -> 21154500 | D127: =OFFSET(InputPriceData!C$15,CalculationsAndCharts!$A127+$A$11,IF($C$7,8,0),1,1) -> 14.18 | E127: =OFFSET(InputPriceData!D$15,CalculationsAndCharts!$A127+$A$11,IF($C$7,8,0),1,1) -> 14.2 | F127: =OFFSET(InputPriceData!E$15,CalculationsAndCharts!$A127+$A$11,IF($C$7,8,0),1,1) -> 14 | G127: =OFFSET(InputPriceData!F$15,CalculationsAndCharts!$A127+$A$11,IF($C$7,8,0),1,1) -> 14.01 | H127: 14.6382 | U127: 14.6382
A128: 96 | B128: =OFFSET(InputPriceData!B$15,CalculationsAndCharts!$A128+$A$11,0,1,1) -> 2015-10-23 | C128: =OFFSET(InputPriceData!G$15,CalculationsAndCharts!$A128+$A$11,IF($C$7,8,0),1,1) -> 26774800 | D128: =OFFSET(InputPriceData!C$15,CalculationsAndCharts!$A128+$A$11,IF($C$7,8,0),1,1) -> 14.23 | E128: =OFFSET(InputPriceData!D$15,CalculationsAndCharts!$A128+$A$11,IF($C$7,8,0),1,1) -> 14.39 | F128: =OFFSET(InputPriceData!E$15,CalculationsAndCharts!$A128+$A$11,IF($C$7,8,0),1,1) -> 14.13 | G128: =OFFSET(InputPriceData!F$15,CalculationsAndCharts!$A128+$A$11,IF($C$7,8,0),1,1) -> 14.27 | H128: 14.6378 | U128: 14.6378
A129: 97 | B129: =OFFSET(InputPriceData!B$15,CalculationsAndCharts!$A129+$A$11,0,1,1) -> 2015-10-22 | C129: =OFFSET(InputPriceData!G$15,CalculationsAndCharts!$A129+$A$11,IF($C$7,8,0),1,1) -> 16625200 | D129: =OFFSET(InputPriceData!C$15,CalculationsAndCharts!$A129+$A$11,IF($C$7,8,0),1,1) -> 14.62 | E129: =OFFSET(InputPriceData!D$15,CalculationsAndCharts!$A129+$A$11,IF($C$7,8,0),1,1) -> 14.73 | F129: =OFFSET(InputPriceData!E$15,CalculationsAndCharts!$A129+$A$11,IF($C$7,8,0),1,1) -> 14.35 | G129: =OFFSET(InputPriceData!F$15,CalculationsAndCharts!$A129+$A$11,IF($C$7,8,0),1,1) -> 14.51 | H129: 14.6342 | U129: 14.6342
A130: 98 | B130: =OFFSET(InputPriceData!B$15,CalculationsAndCharts!$A130+$A$11,0,1,1) -> 2015-10-21 | C130: =OFFSET(InputPriceData!G$15,CalculationsAndCharts!$A130+$A$11,IF($C$7,8,0),1,1) -> 26555000 | D130: =OFFSET(InputPriceData!C$15,CalculationsAndCharts!$A130+$A$11,IF($C$7,8,0),1,1) -> 14.5 | E130: =OFFSET(InputPriceData!D$15,CalculationsAndCharts!$A130+$A$11,IF($C$7,8,0),1,1) -> 14.67 | F130: =OFFSET(InputPriceData!E$15,CalculationsAndCharts!$A130+$A$11,IF($C$7,8,0),1,1) -> 14.34 | G130: =OFFSET(InputPriceData!F$15,CalculationsAndCharts!$A130+$A$11,IF($C$7,8,0),1,1) -> 14.43 | H130: 14.6328 | U130: 14.6328
A131: 99 | B131: =OFFSET(InputPriceData!B$15,CalculationsAndCharts!$A131+$A$11,0,1,1) -> 2015-10-20 | C131: =OFFSET(InputPriceData!G$15,CalculationsAndCharts!$A131+$A$11,IF($C$7,8,0),1,1) -> 20257700 | D131: =OFFSET(InputPriceData!C$15,CalculationsAndCharts!$A131+$A$11,IF($C$7,8,0),1,1) -> 14.8 | E131: =OFFSET(InputPriceData!D$15,CalculationsAndCharts!$A131+$A$11,IF($C$7,8,0),1,1) -> 14.99 | F131: =OFFSET(InputPriceData!E$15,CalculationsAndCharts!$A131+$A$11,IF($C$7,8,0),1,1) -> 14.61 | G131: =OFFSET(InputPriceData!F$15,CalculationsAndCharts!$A131+$A$11,IF($C$7,8,0),1,1) -> 14.73 | H131: 14.6338 | U131: 14.6338
A132: 100 | B132: =OFFSET(InputPriceData!B$15,CalculationsAndCharts!$A132+$A$11,0,1,1) -> 2015-10-19 | C132: =OFFSET(InputPriceData!G$15,CalculationsAndCharts!$A132+$A$11,IF($C$7,8,0),1,1) -> 21189800 | D132: =OFFSET(InputPriceData!C$15,CalculationsAndCharts!$A132+$A$11,IF($C$7,8,0),1,1) -> 14.91 | E132: =OFFSET(InputPriceData!D$15,CalculationsAndCharts!$A132+$A$11,IF($C$7,8,0),1,1) -> 15.02 | F132: =OFFSET(InputPriceData!E$15,CalculationsAndCharts!$A132+$A$11,IF($C$7,8,0),1,1) -> 14.77 | G132: =OFFSET(InputPriceData!F$15,CalculationsAndCharts!$A132+$A$11,IF($C$7,8,0),1,1) -> 14.83 | H132: 14.637 | U132: 14.637
A133: 101 | B133: =OFFSET(InputPriceData!B$15,CalculationsAndCharts!$A133+$A$11,0,1,1) -> 2015-10-16 | C133: =OFFSET(InputPriceData!G$15,CalculationsAndCharts!$A133+$A$11,IF($C$7,8,0),1,1) -> 22381000 | D133: =OFFSET(InputPriceData!C$15,CalculationsAndCharts!$A133+$A$11,IF($C$7,8,0),1,1) -> 15.28 | E133: =OFFSET(InputPriceData!D$15,CalculationsAndCharts!$A133+$A$11,IF($C$7,8,0),1,1) -> 15.32 | F133: =OFFSET(InputPriceData!E$15,CalculationsAndCharts!$A133+$A$11,IF($C$7,8,0),1,1) -> 14.91 | G133: =OFFSET(InputPriceData!F$15,CalculationsAndCharts!$A133+$A$11,IF($C$7,8,0),1,1) -> 15.22 | H133: 14.6316 | U133: 14.6316
A134: 102 | B134: =OFFSET(InputPriceData!B$15,CalculationsAndCharts!$A134+$A$11,0,1,1) -> 2015-10-15 | C134: =OFFSET(InputPriceData!G$15,CalculationsAndCharts!$A134+$A$11,IF($C$7,8,0),1,1) -> 36168600 | D134: =OFFSET(InputPriceData!C$15,CalculationsAndCharts!$A134+$A$11,IF($C$7,8,0),1,1) -> 14.81 | E134: =OFFSET(InputPriceData!D$15,CalculationsAndCharts!$A134+$A$11,IF($C$7,8,0),1,1) -> 15.14 | F134: =OFFSET(InputPriceData!E$15,CalculationsAndCharts!$A134+$A$11,IF($C$7,8,0),1,1) -> 14.63 | G134: =OFFSET(InputPriceData!F$15,CalculationsAndCharts!$A134+$A$11,IF($C$7,8,0),1,1) -> 15.13 | H134: 14.6246 | U134: 14.6246
A135: 103 | B135: =OFFSET(InputPriceData!B$15,CalculationsAndCharts!$A135+$A$11,0,1,1) -> 2015-10-14 | C135: =OFFSET(InputPriceData!G$15,CalculationsAndCharts!$A135+$A$11,IF($C$7,8,0),1,1) -> 18763700 | D135: =OFFSET(InputPriceData!C$15,CalculationsAndCharts!$A135+$A$11,IF($C$7,8,0),1,1) -> 14.98 | E135: =OFFSET(InputPriceData!D$15,CalculationsAndCharts!$A135+$A$11,IF($C$7,8,0),1,1) -> 15.16 | F135: =OFFSET(InputPriceData!E$15,CalculationsAndCharts!$A135+$A$11,IF($C$7,8,0),1,1) -> 14.85 | G135: =OFFSET(InputPriceData!F$15,CalculationsAndCharts!$A135+$A$11,IF($C$7,8,0),1,1) -> 15.05 | H135: 14.6226 | U135: 14.6226
A136: 104 | B136: =OFFSET(InputPriceData!B$15,CalculationsAndCharts!$A136+$A$11,0,1,1) -> 2015-10-13 | C136: =OFFSET(InputPriceData!G$15,CalculationsAndCharts!$A136+$A$11,IF($C$7,8,0),1,1) -> 29870500 | D136: =OFFSET(InputPriceData!C$15,CalculationsAndCharts!$A136+$A$11,IF($C$7,8,0),1,1) -> 15.18 | E136: =OFFSET(InputPriceData!D$15,CalculationsAndCharts!$A136+$A$11,IF($C$7,8,0),1,1) -> 15.62 | F136: =OFFSET(InputPriceData!E$15,CalculationsAndCharts!$A136+$A$11,IF($C$7,8,0),1,1) -> 14.99 | G136: =OFFSET(InputPriceData!F$15,CalculationsAndCharts!$A136+$A$11,IF($C$7,8,0),1,1) -> 15.06 | H136: 14.626 | U136: 14.626
A137: 105 | B137: =OFFSET(InputPriceData!B$15,CalculationsAndCharts!$A137+$A$11,0,1,1) -> 2015-10-12 | C137: =OFFSET(InputPriceData!G$15,CalculationsAndCharts!$A137+$A$11,IF($C$7,8,0),1,1) -> 28961100 | D137: =OFFSET(InputPriceData!C$15,CalculationsAndCharts!$A137+$A$11,IF($C$7,8,0),1,1) -> 15.99 | E137: =OFFSET(InputPriceData!D$15,CalculationsAndCharts!$A137+$A$11,IF($C$7,8,0),1,1) -> 15.99 | F137: =OFFSET(InputPriceData!E$15,CalculationsAndCharts!$A137+$A$11,IF($C$7,8,0),1,1) -> 15.2 | G137: =OFFSET(InputPriceData!F$15,CalculationsAndCharts!$A137+$A$11,IF($C$7,8,0),1,1) -> 15.31 | H137: 14.6268 | U137: 14.6268
A138: 106 | B138: =OFFSET(InputPriceData!B$15,CalculationsAndCharts!$A138+$A$11,0,1,1) -> 2015-10-09 | C138: =OFFSET(InputPriceData!G$15,CalculationsAndCharts!$A138+$A$11,IF($C$7,8,0),1,1) -> 29778600 | D138: =OFFSET(InputPriceData!C$15,CalculationsAndCharts!$A138+$A$11,IF($C$7,8,0),1,1) -> 16.04 | E138: =OFFSET(InputPriceData!D$15,CalculationsAndCharts!$A138+$A$11,IF($C$7,8,0),1,1) -> 16.2 | F138: =OFFSET(InputPriceData!E$15,CalculationsAndCharts!$A138+$A$11,IF($C$7,8,0),1,1) -> 15.88 | G138: =OFFSET(InputPriceData!F$15,CalculationsAndCharts!$A138+$A$11,IF($C$7,8,0),1,1) -> 15.99 | H138: 14.6324 | U138: 14.6324
A139: 107 | B139: =OFFSET(InputPriceData!B$15,CalculationsAndCharts!$A139+$A$11,0,1,1) -> 2015-10-08 | C139: =OFFSET(InputPriceData!G$15,CalculationsAndCharts!$A139+$A$11,IF($C$7,8,0),1,1) -> 29660500 | D139: =OFFSET(InputPriceData!C$15,CalculationsAndCharts!$A139+$A$11,IF($C$7,8,0),1,1) -> 15.66 | E139: =OFFSET(InputPriceData!D$15,CalculationsAndCharts!$A139+$A$11,IF($C$7,8,0),1,1) -> 16.17 | F139: =OFFSET(InputPriceData!E$15,CalculationsAndCharts!$A139+$A$11,IF($C$7,8,0),1,1) -> 15.57 | G139: =OFFSET(InputPriceData!F$15,CalculationsAndCharts!$A139+$A$11,IF($C$7,8,0),1,1) -> 16.04 | H139: 14.6346 | U139: 14.6346
A140: 108 | B140: =OFFSET(InputPriceData!B$15,CalculationsAndCharts!$A140+$A$11,0,1,1) -> 2015-10-07 | C140: =OFFSET(InputPriceData!G$15,CalculationsAndCharts!$A140+$A$11,IF($C$7,8,0),1,1) -> 40832800 | D140: =OFFSET(InputPriceData!C$15,CalculationsAndCharts!$A140+$A$11,IF($C$7,8,0),1,1) -> 15.93 | E140: =OFFSET(InputPriceData!D$15,CalculationsAndCharts!$A140+$A$11,IF($C$7,8,0),1,1) -> 16.05 | F140: =OFFSET(InputPriceData!E$15,CalculationsAndCharts!$A140+$A$11,IF($C$7,8,0),1,1) -> 15.42 | G140: =OFFSET(InputPriceData!F$15,CalculationsAndCharts!$A140+$A$11,IF($C$7,8,0),1,1) -> 15.57 | H140: 14.6386 | U140: 14.6386
A141: 109 | B141: =OFFSET(InputPriceData!B$15,CalculationsAndCharts!$A141+$A$11,0,1,1) -> 2015-10-06 | C141: =OFFSET(InputPriceData!G$15,CalculationsAndCharts!$A141+$A$11,IF($C$7,8,0),1,1) -> 44544600 | D141: =OFFSET(InputPriceData!C$15,CalculationsAndCharts!$A141+$A$11,IF($C$7,8,0),1,1) -> 15.11 | E141: =OFFSET(InputPriceData!D$15,CalculationsAndCharts!$A141+$A$11,IF($C$7,8,0),1,1) -> 15.75 | F141: =OFFSET(InputPriceData!E$15,CalculationsAndCharts!$A141+$A$11,IF($C$7,8,0),1,1) -> 15.08 | G141: =OFFSET(InputPriceData!F$15,CalculationsAndCharts!$A141+$A$11,IF($C$7,8,0),1,1) -> 15.74 | H141: 14.6442 | U141: 14.6442
A142: 110 | B142: =OFFSET(InputPriceData!B$15,CalculationsAndCharts!$A142+$A$11,0,1,1) -> 2015-10-05 | C142: =OFFSET(InputPriceData!G$15,CalculationsAndCharts!$A142+$A$11,IF($C$7,8,0),1,1) -> 23181800 | D142: =OFFSET(InputPriceData!C$15,CalculationsAndCharts!$A142+$A$11,IF($C$7,8,0),1,1) -> 15.03 | E142: =OFFSET(InputPriceData!D$15,CalculationsAndCharts!$A142+$A$11,IF($C$7,8,0),1,1) -> 15.16 | F142: =OFFSET(InputPriceData!E$15,CalculationsAndCharts!$A142+$A$11,IF($C$7,8,0),1,1) -> 14.88 | G142: =OFFSET(InputPriceData!F$15,CalculationsAndCharts!$A142+$A$11,IF($C$7,8,0),1,1) -> 15 | H142: 14.6424 | U142: 14.6424
A143: 111 | B143: =OFFSET(InputPriceData!B$15,CalculationsAndCharts!$A143+$A$11,0,1,1) -> 2015-10-02 | C143: =OFFSET(InputPriceData!G$15,CalculationsAndCharts!$A143+$A$11,IF($C$7,8,0),1,1) -> 27931700 | D143: =OFFSET(InputPriceData!C$15,CalculationsAndCharts!$A143+$A$11,IF($C$7,8,0),1,1) -> 14.29 | E143: =OFFSET(InputPriceData!D$15,CalculationsAndCharts!$A143+$A$11,IF($C$7,8,0),1,1) -> 14.8 | F143: =OFFSET(InputPriceData!E$15,CalculationsAndCharts!$A143+$A$11,IF($C$7,8,0),1,1) -> 14.21 | G143: =OFFSET(InputPriceData!F$15,CalculationsAndCharts!$A143+$A$11,IF($C$7,8,0),1,1) -> 14.77 | H143: 14.663 | U143: 14.663
A144: 112 | B144: =OFFSET(InputPriceData!B$15,CalculationsAndCharts!$A144+$A$11,0,1,1) -> 2015-10-01 | C144: =OFFSET(InputPriceData!G$15,CalculationsAndCharts!$A144+$A$11,IF($C$7,8,0),1,1) -> 32351700 | D144: =OFFSET(InputPriceData!C$15,CalculationsAndCharts!$A144+$A$11,IF($C$7,8,0),1,1) -> 15.15 | E144: =OFFSET(InputPriceData!D$15,CalculationsAndCharts!$A144+$A$11,IF($C$7,8,0),1,1) -> 15.2 | F144: =OFFSET(InputPriceData!E$15,CalculationsAndCharts!$A144+$A$11,IF($C$7,8,0),1,1) -> 14.43 | G144: =OFFSET(InputPriceData!F$15,CalculationsAndCharts!$A144+$A$11,IF($C$7,8,0),1,1) -> 14.58 | H144: 14.6904 | U144: 14.6904
A145: 113 | B145: =OFFSET(InputPriceData!B$15,CalculationsAndCharts!$A145+$A$11,0,1,1) -> 2015-09-30 | C145: =OFFSET(InputPriceData!G$15,CalculationsAndCharts!$A145+$A$11,IF($C$7,8,0),1,1) -> 24486700 | D145: =OFFSET(InputPriceData!C$15,CalculationsAndCharts!$A145+$A$11,IF($C$7,8,0),1,1) -> 14.55 | E145: =OFFSET(InputPriceData!D$15,CalculationsAndCharts!$A145+$A$11,IF($C$7,8,0),1,1) -> 14.82 | F145: =OFFSET(InputPriceData!E$15,CalculationsAndCharts!$A145+$A$11,IF($C$7,8,0),1,1) -> 14.46 | G145: =OFFSET(InputPriceData!F$15,CalculationsAndCharts!$A145+$A$11,IF($C$7,8,0),1,1) -> 14.68 | H145: 14.7256 | U145: 14.7256
A146: 114 | B146: =OFFSET(InputPriceData!B$15,CalculationsAndCharts!$A146+$A$11,0,1,1) -> 2015-09-29 | C146: =OFFSET(InputPriceData!G$15,CalculationsAndCharts!$A146+$A$11,IF($C$7,8,0),1,1) -> 14700400 | D146: =OFFSET(InputPriceData!C$15,CalculationsAndCharts!$A146+$A$11,IF($C$7,8,0),1,1) -> 14.51 | E146: =OFFSET(InputPriceData!D$15,CalculationsAndCharts!$A146+$A$11,IF($C$7,8,0),1,1) -> 14.76 | F146: =OFFSET(InputPriceData!E$15,CalculationsAndCharts!$A146+$A$11,IF($C$7,8,0),1,1) -> 14.45 | G146: =OFFSET(InputPriceData!F$15,CalculationsAndCharts!$A146+$A$11,IF($C$7,8,0),1,1) -> 14.61 | H146: 14.7702 | U146: 14.7702
A147: 115 | B147: =OFFSET(InputPriceData!B$15,CalculationsAndCharts!$A147+$A$11,0,1,1) -> 2015-09-28 | C147: =OFFSET(InputPriceData!G$15,CalculationsAndCharts!$A147+$A$11,IF($C$7,8,0),1,1) -> 20331400 | D147: =OFFSET(InputPriceData!C$15,CalculationsAndCharts!$A147+$A$11,IF($C$7,8,0),1,1) -> 14.45 | E147: =OFFSET(InputPriceData!D$15,CalculationsAndCharts!$A147+$A$11,IF($C$7,8,0),1,1) -> 14.65 | F147: =OFFSET(InputPriceData!E$15,CalculationsAndCharts!$A147+$A$11,IF($C$7,8,0),1,1) -> 14.32 | G147: =OFFSET(InputPriceData!F$15,CalculationsAndCharts!$A147+$A$11,IF($C$7,8,0),1,1) -> 14.38 | H147: 14.8118 | U147: 14.8118
A148: 116 | B148: =OFFSET(InputPriceData!B$15,CalculationsAndCharts!$A148+$A$11,0,1,1) -> 2015-09-25 | C148: =OFFSET(InputPriceData!G$15,CalculationsAndCharts!$A148+$A$11,IF($C$7,8,0),1,1) -> 22267500 | D148: =OFFSET(InputPriceData!C$15,CalculationsAndCharts!$A148+$A$11,IF($C$7,8,0),1,1) -> 14.81 | E148: =OFFSET(InputPriceData!D$15,CalculationsAndCharts!$A148+$A$11,IF($C$7,8,0),1,1) -> 14.98 | F148: =OFFSET(InputPriceData!E$15,CalculationsAndCharts!$A148+$A$11,IF($C$7,8,0),1,1) -> 14.6 | G148: =OFFSET(InputPriceData!F$15,CalculationsAndCharts!$A148+$A$11,IF($C$7,8,0),1,1) -> 14.71 | H148: 14.864 | U148: 14.864
A149: 117 | B149: =OFFSET(InputPriceData!B$15,CalculationsAndCharts!$A149+$A$11,0,1,1) -> 2015-09-24 | C149: =OFFSET(InputPriceData!G$15,CalculationsAndCharts!$A149+$A$11,IF($C$7,8,0),1,1) -> 26674400 | D149: =OFFSET(InputPriceData!C$15,CalculationsAndCharts!$A149+$A$11,IF($C$7,8,0),1,1) -> 14.29 | E149: =OFFSET(InputPriceData!D$15,CalculationsAndCharts!$A149+$A$11,IF($C$7,8,0),1,1) -> 14.6 | F149: =OFFSET(InputPriceData!E$15,CalculationsAndCharts!$A149+$A$11,IF($C$7,8,0),1,1) -> 14.24 | G149: =OFFSET(InputPriceData!F$15,CalculationsAndCharts!$A149+$A$11,IF($C$7,8,0),1,1) -> 14.59 | H149: 14.9108 | U149: 14.9108
A150: 118 | B150: =OFFSET(InputPriceData!B$15,CalculationsAndCharts!$A150+$A$11,0,1,1) -> 2015-09-23 | C150: =OFFSET(InputPriceData!G$15,CalculationsAndCharts!$A150+$A$11,IF($C$7,8,0),1,1) -> 36964200 | D150: =OFFSET(InputPriceData!C$15,CalculationsAndCharts!$A150+$A$11,IF($C$7,8,0),1,1) -> 15.08 | E150: =OFFSET(InputPriceData!D$15,CalculationsAndCharts!$A150+$A$11,IF($C$7,8,0),1,1) -> 15.24 | F150: =OFFSET(InputPriceData!E$15,CalculationsAndCharts!$A150+$A$11,IF($C$7,8,0),1,1) -> 14.35 | G150: =OFFSET(InputPriceData!F$15,CalculationsAndCharts!$A150+$A$11,IF($C$7,8,0),1,1) -> 14.44 | H150: 14.9636 | U150: 14.9636
A151: 119 | B151: =OFFSET(InputPriceData!B$15,CalculationsAndCharts!$A151+$A$11,0,1,1) -> 2015-09-22 | C151: =OFFSET(InputPriceData!G$15,CalculationsAndCharts!$A151+$A$11,IF($C$7,8,0),1,1) -> 28357100 | D151: =OFFSET(InputPriceData!C$15,CalculationsAndCharts!$A151+$A$11,IF($C$7,8,0),1,1) -> 14.77 | E151: =OFFSET(InputPriceData!D$15,CalculationsAndCharts!$A151+$A$11,IF($C$7,8,0),1,1) -> 15.03 | F151: =OFFSET(InputPriceData!E$15,CalculationsAndCharts!$A151+$A$11,IF($C$7,8,0),1,1) -> 14.67 | G151: =OFFSET(InputPriceData!F$15,CalculationsAndCharts!$A151+$A$11,IF($C$7,8,0),1,1) -> 14.92 | H151: 15.0292 | U151: 15.0292
A152: 120 | B152: =OFFSET(InputPriceData!B$15,CalculationsAndCharts!$A152+$A$11,0,1,1) -> 2015-09-21 | C152: =OFFSET(InputPriceData!G$15,CalculationsAndCharts!$A152+$A$11,IF($C$7,8,0),1,1) -> 23099000 | D152: =OFFSET(InputPriceData!C$15,CalculationsAndCharts!$A152+$A$11,IF($C$7,8,0),1,1) -> 14.92 | E152: =OFFSET(InputPriceData!D$15,CalculationsAndCharts!$A152+$A$11,IF($C$7,8,0),1,1) -> 15.19 | F152: =OFFSET(InputPriceData!E$15,CalculationsAndCharts!$A152+$A$11,IF($C$7,8,0),1,1) -> 14.82 | G152: =OFFSET(InputPriceData!F$15,CalculationsAndCharts!$A152+$A$11,IF($C$7,8,0),1,1) -> 15.05 | H152: 15.081 | U152: 15.081
A153: 121 | B153: =OFFSET(InputPriceData!B$15,CalculationsAndCharts!$A153+$A$11,0,1,1) -> 2015-09-18 | C153: =OFFSET(InputPriceData!G$15,CalculationsAndCharts!$A153+$A$11,IF($C$7,8,0),1,1) -> 28798000 | D153: =OFFSET(InputPriceData!C$15,CalculationsAndCharts!$A153+$A$11,IF($C$7,8,0),1,1) -> 14.87 | E153: =OFFSET(InputPriceData!D$15,CalculationsAndCharts!$A153+$A$11,IF($C$7,8,0),1,1) -> 14.98 | F153: =OFFSET(InputPriceData!E$15,CalculationsAndCharts!$A153+$A$11,IF($C$7,8,0),1,1) -> 14.42 | G153: =OFFSET(InputPriceData!F$15,CalculationsAndCharts!$A153+$A$11,IF($C$7,8,0),1,1) -> 14.62 | H153: 15.1334 | U153: 15.1334
A154: 122 | B154: =OFFSET(InputPriceData!B$15,CalculationsAndCharts!$A154+$A$11,0,1,1) -> 2015-09-17 | C154: =OFFSET(InputPriceData!G$15,CalculationsAndCharts!$A154+$A$11,IF($C$7,8,0),1,1) -> 28414100 | D154: =OFFSET(InputPriceData!C$15,CalculationsAndCharts!$A154+$A$11,IF($C$7,8,0),1,1) -> 15.38 | E154: =OFFSET(InputPriceData!D$15,CalculationsAndCharts!$A154+$A$11,IF($C$7,8,0),1,1) -> 15.54 | F154: =OFFSET(InputPriceData!E$15,CalculationsAndCharts!$A154+$A$11,IF($C$7,8,0),1,1) -> 15.13 | G154: =OFFSET(InputPriceData!F$15,CalculationsAndCharts!$A154+$A$11,IF($C$7,8,0),1,1) -> 15.23 | H154: 15.1952 | U154: 15.1952
A155: 123 | B155: =OFFSET(InputPriceData!B$15,CalculationsAndCharts!$A155+$A$11,0,1,1) -> 2015-09-16 | C155: =OFFSET(InputPriceData!G$15,CalculationsAndCharts!$A155+$A$11,IF($C$7,8,0),1,1) -> 44264700 | D155: =OFFSET(InputPriceData!C$15,CalculationsAndCharts!$A155+$A$11,IF($C$7,8,0),1,1) -> 14.91 | E155: =OFFSET(InputPriceData!D$15,CalculationsAndCharts!$A155+$A$11,IF($C$7,8,0),1,1) -> 15.43 | F155: =OFFSET(InputPriceData!E$15,CalculationsAndCharts!$A155+$A$11,IF($C$7,8,0),1,1) -> 14.81 | G155: =OFFSET(InputPriceData!F$15,CalculationsAndCharts!$A155+$A$11,IF($C$7,8,0),1,1) -> 15.36 | H155: 15.2382 | U155: 15.2382
A156: 124 | B156: =OFFSET(InputPriceData!B$15,CalculationsAndCharts!$A156+$A$11,0,1,1) -> 2015-09-15 | C156: =OFFSET(InputPriceData!G$15,CalculationsAndCharts!$A156+$A$11,IF($C$7,8,0),1,1) -> 17224300 | D156: =OFFSET(InputPriceData!C$15,CalculationsAndCharts!$A156+$A$11,IF($C$7,8,0),1,1) -> 14.48 | E156: =OFFSET(InputPriceData!D$15,CalculationsAndCharts!$A156+$A$11,IF($C$7,8,0),1,1) -> 14.68 | F156: =OFFSET(InputPriceData!E$15,CalculationsAndCharts!$A156+$A$11,IF($C$7,8,0),1,1) -> 14.35 | G156: =OFFSET(InputPriceData!F$15,CalculationsAndCharts!$A156+$A$11,IF($C$7,8,0),1,1) -> 14.57 | H156: 15.2862 | U156: 15.2862
A157: 125 | B157: =OFFSET(InputPriceData!B$15,CalculationsAndCharts!$A157+$A$11,0,1,1) -> 2015-09-14 | C157: =OFFSET(InputPriceData!G$15,CalculationsAndCharts!$A157+$A$11,IF($C$7,8,0),1,1) -> 17791100 | D157: =OFFSET(InputPriceData!C$15,CalculationsAndCharts!$A157+$A$11,IF($C$7,8,0),1,1) -> 14.42 | E157: =OFFSET(InputPriceData!D$15,CalculationsAndCharts!$A157+$A$11,IF($C$7,8,0),1,1) -> 14.52 | F157: =OFFSET(InputPriceData!E$15,CalculationsAndCharts!$A157+$A$11,IF($C$7,8,0),1,1) -> 14.25 | G157: =OFFSET(InputPriceData!F$15,CalculationsAndCharts!$A157+$A$11,IF($C$7,8,0),1,1) -> 14.39 | H157: 15.3494 | U157: 15.3494
A158: 126 | B158: =OFFSET(InputPriceData!B$15,CalculationsAndCharts!$A158+$A$11,0,1,1) -> 2015-09-11 | C158: =OFFSET(InputPriceData!G$15,CalculationsAndCharts!$A158+$A$11,IF($C$7,8,0),1,1) -> 25713900 | D158: =OFFSET(InputPriceData!C$15,CalculationsAndCharts!$A158+$A$11,IF($C$7,8,0),1,1) -> 14.62 | E158: =OFFSET(InputPriceData!D$15,CalculationsAndCharts!$A158+$A$11,IF($C$7,8,0),1,1) -> 14.86 | F158: =OFFSET(InputPriceData!E$15,CalculationsAndCharts!$A158+$A$11,IF($C$7,8,0),1,1) -> 14.44 | G158: =OFFSET(InputPriceData!F$15,CalculationsAndCharts!$A158+$A$11,IF($C$7,8,0),1,1) -> 14.65 | H158: 15.4402 | U158: 15.4402
A159: 127 | B159: =OFFSET(InputPriceData!B$15,CalculationsAndCharts!$A159+$A$11,0,1,1) -> 2015-09-10 | C159: =OFFSET(InputPriceData!G$15,CalculationsAndCharts!$A159+$A$11,IF($C$7,8,0),1,1) -> 19494300 | D159: =OFFSET(InputPriceData!C$15,CalculationsAndCharts!$A159+$A$11,IF($C$7,8,0),1,1) -> 14.61 | E159: =OFFSET(InputPriceData!D$15,CalculationsAndCharts!$A159+$A$11,IF($C$7,8,0),1,1) -> 15.05 | F159: =OFFSET(InputPriceData!E$15,CalculationsAndCharts!$A159+$A$11,IF($C$7,8,0),1,1) -> 14.47 | G159: =OFFSET(InputPriceData!F$15,CalculationsAndCharts!$A159+$A$11,IF($C$7,8,0),1,1) -> 14.93 | H159: 15.5292 | U159: 15.5292
A160: 128 | B160: =OFFSET(InputPriceData!B$15,CalculationsAndCharts!$A160+$A$11,0,1,1) -> 2015-09-09 | C160: =OFFSET(InputPriceData!G$15,CalculationsAndCharts!$A160+$A$11,IF($C$7,8,0),1,1) -> 21851300 | D160: =OFFSET(InputPriceData!C$15,CalculationsAndCharts!$A160+$A$11,IF($C$7,8,0),1,1) -> 14.99 | E160: =OFFSET(InputPriceData!D$15,CalculationsAndCharts!$A160+$A$11,IF($C$7,8,0),1,1) -> 15.06 | F160: =OFFSET(InputPriceData!E$15,CalculationsAndCharts!$A160+$A$11,IF($C$7,8,0),1,1) -> 14.45 | G160: =OFFSET(InputPriceData!F$15,CalculationsAndCharts!$A160+$A$11,IF($C$7,8,0),1,1) -> 14.52 | H160: 15.6282 | U160: 15.6282
A161: 129 | B161: =OFFSET(InputPriceData!B$15,CalculationsAndCharts!$A161+$A$11,0,1,1) -> 2015-09-08 | C161: =OFFSET(InputPriceData!G$15,CalculationsAndCharts!$A161+$A$11,IF($C$7,8,0),1,1) -> 29156700 | D161: =OFFSET(InputPriceData!C$15,CalculationsAndCharts!$A161+$A$11,IF($C$7,8,0),1,1) -> 14.91 | E161: =OFFSET(InputPriceData!D$15,CalculationsAndCharts!$A161+$A$11,IF($C$7,8,0),1,1) -> 15.2 | F161: =OFFSET(InputPriceData!E$15,CalculationsAndCharts!$A161+$A$11,IF($C$7,8,0),1,1) -> 14.58 | G161: =OFFSET(InputPriceData!F$15,CalculationsAndCharts!$A161+$A$11,IF($C$7,8,0),1,1) -> 15.02 | H161: =IF($A161>$A$8,0,IF($A161=$A$8,$G161,AVERAGE(OFFSET($G161,0,0,$A$16,1)))) -> 15.728 | U161: =IF($R$4,H161,NA()) -> 15.728
A162: 130 | B162: =OFFSET(InputPriceData!B$15,CalculationsAndCharts!$A162+$A$11,0,1,1) -> 2015-09-04 | C162: =OFFSET(InputPriceData!G$15,CalculationsAndCharts!$A162+$A$11,IF($C$7,8,0),1,1) -> 22123900 | D162: =OFFSET(InputPriceData!C$15,CalculationsAndCharts!$A162+$A$11,IF($C$7,8,0),1,1) -> 15.21 | E162: =OFFSET(InputPriceData!D$15,CalculationsAndCharts!$A162+$A$11,IF($C$7,8,0),1,1) -> 15.34 | F162: =OFFSET(InputPriceData!E$15,CalculationsAndCharts!$A162+$A$11,IF($C$7,8,0),1,1) -> 14.98 | G162: =OFFSET(InputPriceData!F$15,CalculationsAndCharts!$A162+$A$11,IF($C$7,8,0),1,1) -> 15.08 | H162: 15.8272 | U162: 15.8272
A163: 131 | B163: =OFFSET(InputPriceData!B$15,CalculationsAndCharts!$A163+$A$11,0,1,1) -> 2015-09-03 | C163: =OFFSET(InputPriceData!G$15,CalculationsAndCharts!$A163+$A$11,IF($C$7,8,0),1,1) -> 45697100 | D163: =OFFSET(InputPriceData!C$15,CalculationsAndCharts!$A163+$A$11,IF($C$7,8,0),1,1) -> 15.23 | E163: =OFFSET(InputPriceData!D$15,CalculationsAndCharts!$A163+$A$11,IF($C$7,8,0),1,1) -> 15.85 | F163: =OFFSET(InputPriceData!E$15,CalculationsAndCharts!$A163+$A$11,IF($C$7,8,0),1,1) -> 15.05 | G163: =OFFSET(InputPriceData!F$15,CalculationsAndCharts!$A163+$A$11,IF($C$7,8,0),1,1) -> 15.34 | H163: 15.9252 | U163: 15.9252
A164: 132 | B164: =OFFSET(InputPriceData!B$15,CalculationsAndCharts!$A164+$A$11,0,1,1) -> 2015-09-02 | C164: =OFFSET(InputPriceData!G$15,CalculationsAndCharts!$A164+$A$11,IF($C$7,8,0),1,1) -> 59080600 | D164: =OFFSET(InputPriceData!C$15,CalculationsAndCharts!$A164+$A$11,IF($C$7,8,0),1,1) -> 15.11 | E164: =OFFSET(InputPriceData!D$15,CalculationsAndCharts!$A164+$A$11,IF($C$7,8,0),1,1) -> 15.32 | F164: =OFFSET(InputPriceData!E$15,CalculationsAndCharts!$A164+$A$11,IF($C$7,8,0),1,1) -> 14.16 | G164: =OFFSET(InputPriceData!F$15,CalculationsAndCharts!$A164+$A$11,IF($C$7,8,0),1,1) -> 15.09 | H164: 16.0224 | U164: 16.0224
A165: 133 | B165: =OFFSET(InputPriceData!B$15,CalculationsAndCharts!$A165+$A$11,0,1,1) -> 2015-09-01 | C165: =OFFSET(InputPriceData!G$15,CalculationsAndCharts!$A165+$A$11,IF($C$7,8,0),1,1) -> 57386600 | D165: =OFFSET(InputPriceData!C$15,CalculationsAndCharts!$A165+$A$11,IF($C$7,8,0),1,1) -> 15.48 | E165: =OFFSET(InputPriceData!D$15,CalculationsAndCharts!$A165+$A$11,IF($C$7,8,0),1,1) -> 15.59 | F165: =OFFSET(InputPriceData!E$15,CalculationsAndCharts!$A165+$A$11,IF($C$7,8,0),1,1) -> 14.69 | G165: =OFFSET(InputPriceData!F$15,CalculationsAndCharts!$A165+$A$11,IF($C$7,8,0),1,1) -> 14.81 | H165: 16.13 | U165: 16.13
A166: 134 | B166: =OFFSET(InputPriceData!B$15,CalculationsAndCharts!$A166+$A$11,0,1,1) -> 2015-08-31 | C166: =OFFSET(InputPriceData!G$15,CalculationsAndCharts!$A166+$A$11,IF($C$7,8,0),1,1) -> 87885800 | D166: =OFFSET(InputPriceData!C$15,CalculationsAndCharts!$A166+$A$11,IF($C$7,8,0),1,1) -> 14.67 | E166: =OFFSET(InputPriceData!D$15,CalculationsAndCharts!$A166+$A$11,IF($C$7,8,0),1,1) -> 16.15 | F166: =OFFSET(InputPriceData!E$15,CalculationsAndCharts!$A166+$A$11,IF($C$7,8,0),1,1) -> 14.28 | G166: =OFFSET(InputPriceData!F$15,CalculationsAndCharts!$A166+$A$11,IF($C$7,8,0),1,1) -> 15.89 | H166: 16.237 | U166: 16.237
A167: 135 | B167: =OFFSET(InputPriceData!B$15,CalculationsAndCharts!$A167+$A$11,0,1,1) -> 2015-08-28 | C167: =OFFSET(InputPriceData!G$15,CalculationsAndCharts!$A167+$A$11,IF($C$7,8,0),1,1) -> 68784100 | D167: =OFFSET(InputPriceData!C$15,CalculationsAndCharts!$A167+$A$11,IF($C$7,8,0),1,1) -> 13.83 | E167: =OFFSET(InputPriceData!D$15,CalculationsAndCharts!$A167+$A$11,IF($C$7,8,0),1,1) -> 15.03 | F167: =OFFSET(InputPriceData!E$15,CalculationsAndCharts!$A167+$A$11,IF($C$7,8,0),1,1) -> 13.83 | G167: =OFFSET(InputPriceData!F$15,CalculationsAndCharts!$A167+$A$11,IF($C$7,8,0),1,1) -> 14.88 | H167: 16.3196 | U167: 16.3196
A168: 136 | B168: =OFFSET(InputPriceData!B$15,CalculationsAndCharts!$A168+$A$11,0,1,1) -> 2015-08-27 | C168: =OFFSET(InputPriceData!G$15,CalculationsAndCharts!$A168+$A$11,IF($C$7,8,0),1,1) -> 56170200 | D168: =OFFSET(InputPriceData!C$15,CalculationsAndCharts!$A168+$A$11,IF($C$7,8,0),1,1) -> 13.05 | E168: =OFFSET(InputPriceData!D$15,CalculationsAndCharts!$A168+$A$11,IF($C$7,8,0),1,1) -> 14 | F168: =OFFSET(InputPriceData!E$15,CalculationsAndCharts!$A168+$A$11,IF($C$7,8,0),1,1) -> 13.04 | G168: =OFFSET(InputPriceData!F$15,CalculationsAndCharts!$A168+$A$11,IF($C$7,8,0),1,1) -> 13.95 | H168: 16.4292 | U168: 16.4292
A169: 137 | B169: =OFFSET(InputPriceData!B$15,CalculationsAndCharts!$A169+$A$11,0,1,1) -> 2015-08-26 | C169: =OFFSET(InputPriceData!G$15,CalculationsAndCharts!$A169+$A$11,IF($C$7,8,0),1,1) -> 32439600 | D169: =OFFSET(InputPriceData!C$15,CalculationsAndCharts!$A169+$A$11,IF($C$7,8,0),1,1) -> 12.85 | E169: =OFFSET(InputPriceData!D$15,CalculationsAndCharts!$A169+$A$11,IF($C$7,8,0),1,1) -> 13 | F169: =OFFSET(InputPriceData!E$15,CalculationsAndCharts!$A169+$A$11,IF($C$7,8,0),1,1) -> 12.62 | G169: =OFFSET(InputPriceData!F$15,CalculationsAndCharts!$A169+$A$11,IF($C$7,8,0),1,1) -> 12.77 | H169: 16.5544 | U169: 16.5544
A170: 138 | B170: =OFFSET(InputPriceData!B$15,CalculationsAndCharts!$A170+$A$11,0,1,1) -> 2015-08-25 | C170: =OFFSET(InputPriceData!G$15,CalculationsAndCharts!$A170+$A$11,IF($C$7,8,0),1,1) -> 32305300 | D170: =OFFSET(InputPriceData!C$15,CalculationsAndCharts!$A170+$A$11,IF($C$7,8,0),1,1) -> 13.02 | E170: =OFFSET(InputPriceData!D$15,CalculationsAndCharts!$A170+$A$11,IF($C$7,8,0),1,1) -> 13.05 | F170: =OFFSET(InputPriceData!E$15,CalculationsAndCharts!$A170+$A$11,IF($C$7,8,0),1,1) -> 12.71 | G170: =OFFSET(InputPriceData!F$15,CalculationsAndCharts!$A170+$A$11,IF($C$7,8,0),1,1) -> 12.73 | H170: 16.7042 | U170: 16.7042
A171: 139 | B171: =OFFSET(InputPriceData!B$15,CalculationsAndCharts!$A171+$A$11,0,1,1) -> 2015-08-24 | C171: =OFFSET(InputPriceData!G$15,CalculationsAndCharts!$A171+$A$11,IF($C$7,8,0),1,1) -> 49320900 | D171: =OFFSET(InputPriceData!C$15,CalculationsAndCharts!$A171+$A$11,IF($C$7,8,0),1,1) -> 12.62 | E171: =OFFSET(InputPriceData!D$15,CalculationsAndCharts!$A171+$A$11,IF($C$7,8,0),1,1) -> 12.94 | F171: =OFFSET(InputPriceData!E$15,CalculationsAndCharts!$A171+$A$11,IF($C$7,8,0),1,1) -> 12.37 | G171: =OFFSET(InputPriceData!F$15,CalculationsAndCharts!$A171+$A$11,IF($C$7,8,0),1,1) -> 12.49 | H171: 16.8526 | U171: 16.8526
A172: 140 | B172: =OFFSET(InputPriceData!B$15,CalculationsAndCharts!$A172+$A$11,0,1,1) -> 2015-08-21 | C172: =OFFSET(InputPriceData!G$15,CalculationsAndCharts!$A172+$A$11,IF($C$7,8,0),1,1) -> 31418800 | D172: =OFFSET(InputPriceData!C$15,CalculationsAndCharts!$A172+$A$11,IF($C$7,8,0),1,1) -> 13.46 | E172: =OFFSET(InputPriceData!D$15,CalculationsAndCharts!$A172+$A$11,IF($C$7,8,0),1,1) -> 13.57 | F172: =OFFSET(InputPriceData!E$15,CalculationsAndCharts!$A172+$A$11,IF($C$7,8,0),1,1) -> 13.06 | G172: =OFFSET(InputPriceData!F$15,CalculationsAndCharts!$A172+$A$11,IF($C$7,8,0),1,1) -> 13.23 | H172: 17.0082 | U172: 17.0082
A173: 141 | B173: =OFFSET(InputPriceData!B$15,CalculationsAndCharts!$A173+$A$11,0,1,1) -> 2015-08-20 | C173: =OFFSET(InputPriceData!G$15,CalculationsAndCharts!$A173+$A$11,IF($C$7,8,0),1,1) -> 31520200 | D173: =OFFSET(InputPriceData!C$15,CalculationsAndCharts!$A173+$A$11,IF($C$7,8,0),1,1) -> 13.55 | E173: =OFFSET(InputPriceData!D$15,CalculationsAndCharts!$A173+$A$11,IF($C$7,8,0),1,1) -> 13.7 | F173: =OFFSET(InputPriceData!E$15,CalculationsAndCharts!$A173+$A$11,IF($C$7,8,0),1,1) -> 13.35 | G173: =OFFSET(InputPriceData!F$15,CalculationsAndCharts!$A173+$A$11,IF($C$7,8,0),1,1) -> 13.37 | H173: 17.1534 | U173: 17.1534
A174: 142 | B174: =OFFSET(InputPriceData!B$15,CalculationsAndCharts!$A174+$A$11,0,1,1) -> 2015-08-19 | C174: =OFFSET(InputPriceData!G$15,CalculationsAndCharts!$A174+$A$11,IF($C$7,8,0),1,1) -> 35899200 | D174: =OFFSET(InputPriceData!C$15,CalculationsAndCharts!$A174+$A$11,IF($C$7,8,0),1,1) -> 13.98 | E174: =OFFSET(InputPriceData!D$15,CalculationsAndCharts!$A174+$A$11,IF($C$7,8,0),1,1) -> 14.03 | F174: =OFFSET(InputPriceData!E$15,CalculationsAndCharts!$A174+$A$11,IF($C$7,8,0),1,1) -> 13.41 | G174: =OFFSET(InputPriceData!F$15,CalculationsAndCharts!$A174+$A$11,IF($C$7,8,0),1,1) -> 13.43 | H174: 17.2988 | U174: 17.2988
A175: 143 | B175: =OFFSET(InputPriceData!B$15,CalculationsAndCharts!$A175+$A$11,0,1,1) -> 2015-08-18 | C175: =OFFSET(InputPriceData!G$15,CalculationsAndCharts!$A175+$A$11,IF($C$7,8,0),1,1) -> 15460100 | D175: =OFFSET(InputPriceData!C$15,CalculationsAndCharts!$A175+$A$11,IF($C$7,8,0),1,1) -> 13.93 | E175: =OFFSET(InputPriceData!D$15,CalculationsAndCharts!$A175+$A$11,IF($C$7,8,0),1,1) -> 14.21 | F175: =OFFSET(InputPriceData!E$15,CalculationsAndCharts!$A175+$A$11,IF($C$7,8,0),1,1) -> 13.84 | G175: =OFFSET(InputPriceData!F$15,CalculationsAndCharts!$A175+$A$11,IF($C$7,8,0),1,1) -> 14.05 | H175: 17.4344 | U175: 17.4344
A176: 144 | B176: =OFFSET(InputPriceData!B$15,CalculationsAndCharts!$A176+$A$11,0,1,1) -> 2015-08-17 | C176: =OFFSET(InputPriceData!G$15,CalculationsAndCharts!$A176+$A$11,IF($C$7,8,0),1,1) -> 16646700 | D176: =OFFSET(InputPriceData!C$15,CalculationsAndCharts!$A176+$A$11,IF($C$7,8,0),1,1) -> 14.05 | E176: =OFFSET(InputPriceData!D$15,CalculationsAndCharts!$A176+$A$11,IF($C$7,8,0),1,1) -> 14.16 | F176: =OFFSET(InputPriceData!E$15,CalculationsAndCharts!$A176+$A$11,IF($C$7,8,0),1,1) -> 13.86 | G176: =OFFSET(InputPriceData!F$15,CalculationsAndCharts!$A176+$A$11,IF($C$7,8,0),1,1) -> 13.89 | H176: 17.5476 | U176: 17.5476
A177: 145 | B177: =OFFSET(InputPriceData!B$15,CalculationsAndCharts!$A177+$A$11,0,1,1) -> 2015-08-14 | C177: =OFFSET(InputPriceData!G$15,CalculationsAndCharts!$A177+$A$11,IF($C$7,8,0),1,1) -> 16686000 | D177: =OFFSET(InputPriceData!C$15,CalculationsAndCharts!$A177+$A$11,IF($C$7,8,0),1,1) -> 14.17 | E177: =OFFSET(InputPriceData!D$15,CalculationsAndCharts!$A177+$A$11,IF($C$7,8,0),1,1) -> 14.27 | F177: =OFFSET(InputPriceData!E$15,CalculationsAndCharts!$A177+$A$11,IF($C$7,8,0),1,1) -> 13.98 | G177: =OFFSET(InputPriceData!F$15,CalculationsAndCharts!$A177+$A$11,IF($C$7,8,0),1,1) -> 13.99 | H177: 17.6678 | U177: 17.6678
A178: 146 | B178: =OFFSET(InputPriceData!B$15,CalculationsAndCharts!$A178+$A$11,0,1,1) -> 2015-08-13 | C178: =OFFSET(InputPriceData!G$15,CalculationsAndCharts!$A178+$A$11,IF($C$7,8,0),1,1) -> 26464400 | D178: =OFFSET(InputPriceData!C$15,CalculationsAndCharts!$A178+$A$11,IF($C$7,8,0),1,1) -> 14.28 | E178: =OFFSET(InputPriceData!D$15,CalculationsAndCharts!$A178+$A$11,IF($C$7,8,0),1,1) -> 14.28 | F178: =OFFSET(InputPriceData!E$15,CalculationsAndCharts!$A178+$A$11,IF($C$7,8,0),1,1) -> 13.98 | G178: =OFFSET(InputPriceData!F$15,CalculationsAndCharts!$A178+$A$11,IF($C$7,8,0),1,1) -> 14.09 | H178: 17.7812 | U178: 17.7812
A179: 147 | B179: =OFFSET(InputPriceData!B$15,CalculationsAndCharts!$A179+$A$11,0,1,1) -> 2015-08-12 | C179: =OFFSET(InputPriceData!G$15,CalculationsAndCharts!$A179+$A$11,IF($C$7,8,0),1,1) -> 18405400 | D179: =OFFSET(InputPriceData!C$15,CalculationsAndCharts!$A179+$A$11,IF($C$7,8,0),1,1) -> 14.52 | E179: =OFFSET(InputPriceData!D$15,CalculationsAndCharts!$A179+$A$11,IF($C$7,8,0),1,1) -> 14.58 | F179: =OFFSET(InputPriceData!E$15,CalculationsAndCharts!$A179+$A$11,IF($C$7,8,0),1,1) -> 14.28 | G179: =OFFSET(InputPriceData!F$15,CalculationsAndCharts!$A179+$A$11,IF($C$7,8,0),1,1) -> 14.44 | H179: 17.9028 | U179: 17.9028
A180: 148 | B180: =OFFSET(InputPriceData!B$15,CalculationsAndCharts!$A180+$A$11,0,1,1) -> 2015-08-11 | C180: =OFFSET(InputPriceData!G$15,CalculationsAndCharts!$A180+$A$11,IF($C$7,8,0),1,1) -> 25418900 | D180: =OFFSET(InputPriceData!C$15,CalculationsAndCharts!$A180+$A$11,IF($C$7,8,0),1,1) -> 14.48 | E180: =OFFSET(InputPriceData!D$15,CalculationsAndCharts!$A180+$A$11,IF($C$7,8,0),1,1) -> 14.54 | F180: =OFFSET(InputPriceData!E$15,CalculationsAndCharts!$A180+$A$11,IF($C$7,8,0),1,1) -> 14.27 | G180: =OFFSET(InputPriceData!F$15,CalculationsAndCharts!$A180+$A$11,IF($C$7,8,0),1,1) -> 14.48 | H180: 18.0276 | U180: 18.0276
A181: 149 | B181: =OFFSET(InputPriceData!B$15,CalculationsAndCharts!$A181+$A$11,0,1,1) -> 2015-08-10 | C181: =OFFSET(InputPriceData!G$15,CalculationsAndCharts!$A181+$A$11,IF($C$7,8,0),1,1) -> 20482700 | D181: =OFFSET(InputPriceData!C$15,CalculationsAndCharts!$A181+$A$11,IF($C$7,8,0),1,1) -> 14.52 | E181: =OFFSET(InputPriceData!D$15,CalculationsAndCharts!$A181+$A$11,IF($C$7,8,0),1,1) -> 14.99 | F181: =OFFSET(InputPriceData!E$15,CalculationsAndCharts!$A181+$A$11,IF($C$7,8,0),1,1) -> 14.48 | G181: =OFFSET(InputPriceData!F$15,CalculationsAndCharts!$A181+$A$11,IF($C$7,8,0),1,1) -> 14.89 | H181: 18.1452 | U181: 18.1452
A182: 150 | B182: =OFFSET(InputPriceData!B$15,CalculationsAndCharts!$A182+$A$11,0,1,1) -> 2015-08-07 | C182: =OFFSET(InputPriceData!G$15,CalculationsAndCharts!$A182+$A$11,IF($C$7,8,0),1,1) -> 19804200 | D182: =OFFSET(InputPriceData!C$15,CalculationsAndCharts!$A182+$A$11,IF($C$7,8,0),1,1) -> 14.72 | E182: =OFFSET(InputPriceData!D$15,CalculationsAndCharts!$A182+$A$11,IF($C$7,8,0),1,1) -> 14.78 | F182: =OFFSET(InputPriceData!E$15,CalculationsAndCharts!$A182+$A$11,IF($C$7,8,0),1,1) -> 14.52 | G182: =OFFSET(InputPriceData!F$15,CalculationsAndCharts!$A182+$A$11,IF($C$7,8,0),1,1) -> 14.56 | H182: 18.2536 | U182: 18.2536
A183: 151 | B183: =OFFSET(InputPriceData!B$15,CalculationsAndCharts!$A183+$A$11,0,1,1) -> 2015-08-06 | C183: =OFFSET(InputPriceData!G$15,CalculationsAndCharts!$A183+$A$11,IF($C$7,8,0),1,1) -> 23933000 | D183: =OFFSET(InputPriceData!C$15,CalculationsAndCharts!$A183+$A$11,IF($C$7,8,0),1,1) -> 14.85 | E183: =OFFSET(InputPriceData!D$15,CalculationsAndCharts!$A183+$A$11,IF($C$7,8,0),1,1) -> 14.9 | F183: =OFFSET(InputPriceData!E$15,CalculationsAndCharts!$A183+$A$11,IF($C$7,8,0),1,1) -> 14.68 | G183: =OFFSET(InputPriceData!F$15,CalculationsAndCharts!$A183+$A$11,IF($C$7,8,0),1,1) -> 14.87 | H183: 18.3536 | U183: 18.3536
A184: 152 | B184: =OFFSET(InputPriceData!B$15,CalculationsAndCharts!$A184+$A$11,0,1,1) -> 2015-08-05 | C184: =OFFSET(InputPriceData!G$15,CalculationsAndCharts!$A184+$A$11,IF($C$7,8,0),1,1) -> 26607600 | D184: =OFFSET(InputPriceData!C$15,CalculationsAndCharts!$A184+$A$11,IF($C$7,8,0),1,1) -> 15.31 | E184: =OFFSET(InputPriceData!D$15,CalculationsAndCharts!$A184+$A$11,IF($C$7,8,0),1,1) -> 15.52 | F184: =OFFSET(InputPriceData!E$15,CalculationsAndCharts!$A184+$A$11,IF($C$7,8,0),1,1) -> 14.9 | G184: =OFFSET(InputPriceData!F$15,CalculationsAndCharts!$A184+$A$11,IF($C$7,8,0),1,1) -> 15.03 | H184: 18.4458 | U184: 18.4458
A185: 153 | B185: =OFFSET(InputPriceData!B$15,CalculationsAndCharts!$A185+$A$11,0,1,1) -> 2015-08-04 | C185: =OFFSET(InputPriceData!G$15,CalculationsAndCharts!$A185+$A$11,IF($C$7,8,0),1,1) -> 14542300 | D185: =OFFSET(InputPriceData!C$15,CalculationsAndCharts!$A185+$A$11,IF($C$7,8,0),1,1) -> 15.21 | E185: =OFFSET(InputPriceData!D$15,CalculationsAndCharts!$A185+$A$11,IF($C$7,8,0),1,1) -> 15.36 | F185: =OFFSET(InputPriceData!E$15,CalculationsAndCharts!$A185+$A$11,IF($C$7,8,0),1,1) -> 15.1 | G185: =OFFSET(InputPriceData!F$15,CalculationsAndCharts!$A185+$A$11,IF($C$7,8,0),1,1) -> 15.22 | H185: 18.539 | U185: 18.539
A186: 154 | B186: =OFFSET(InputPriceData!B$15,CalculationsAndCharts!$A186+$A$11,0,1,1) -> 2015-08-03 | C186: =OFFSET(InputPriceData!G$15,CalculationsAndCharts!$A186+$A$11,IF($C$7,8,0),1,1) -> 34792300 | D186: =OFFSET(InputPriceData!C$15,CalculationsAndCharts!$A186+$A$11,IF($C$7,8,0),1,1) -> 15.29 | E186: =OFFSET(InputPriceData!D$15,CalculationsAndCharts!$A186+$A$11,IF($C$7,8,0),1,1) -> 15.47 | F186: =OFFSET(InputPriceData!E$15,CalculationsAndCharts!$A186+$A$11,IF($C$7,8,0),1,1) -> 14.98 | G186: =OFFSET(InputPriceData!F$15,CalculationsAndCharts!$A186+$A$11,IF($C$7,8,0),1,1) -> 15.1 | H186: 18.6396 | U186: 18.6396
A187: 155 | B187: =OFFSET(InputPriceData!B$15,CalculationsAndCharts!$A187+$A$11,0,1,1) -> 2015-07-31 | C187: =OFFSET(InputPriceData!G$15,CalculationsAndCharts!$A187+$A$11,IF($C$7,8,0),1,1) -> 24602000 | D187: =OFFSET(InputPriceData!C$15,CalculationsAndCharts!$A187+$A$11,IF($C$7,8,0),1,1) -> 16.12 | E187: =OFFSET(InputPriceData!D$15,CalculationsAndCharts!$A187+$A$11,IF($C$7,8,0),1,1) -> 16.14 | F187: =OFFSET(InputPriceData!E$15,CalculationsAndCharts!$A187+$A$11,IF($C$7,8,0),1,1) -> 15.54 | G187: =OFFSET(InputPriceData!F$15,CalculationsAndCharts!$A187+$A$11,IF($C$7,8,0),1,1) -> 15.59 | H187: 18.7476 | U187: 18.7476
A188: 156 | B188: =OFFSET(InputPriceData!B$15,CalculationsAndCharts!$A188+$A$11,0,1,1) -> 2015-07-30 | C188: =OFFSET(InputPriceData!G$15,CalculationsAndCharts!$A188+$A$11,IF($C$7,8,0),1,1) -> 13871500 | D188: =OFFSET(InputPriceData!C$15,CalculationsAndCharts!$A188+$A$11,IF($C$7,8,0),1,1) -> 16.21 | E188: =OFFSET(InputPriceData!D$15,CalculationsAndCharts!$A188+$A$11,IF($C$7,8,0),1,1) -> 16.37 | F188: =OFFSET(InputPriceData!E$15,CalculationsAndCharts!$A188+$A$11,IF($C$7,8,0),1,1) -> 16.06 | G188: =OFFSET(InputPriceData!F$15,CalculationsAndCharts!$A188+$A$11,IF($C$7,8,0),1,1) -> 16.1 | H188: 18.8326 | U188: 18.8326
A189: 157 | B189: =OFFSET(InputPriceData!B$15,CalculationsAndCharts!$A189+$A$11,0,1,1) -> 2015-07-29 | C189: =OFFSET(InputPriceData!G$15,CalculationsAndCharts!$A189+$A$11,IF($C$7,8,0),1,1) -> 34719700 | D189: =OFFSET(InputPriceData!C$15,CalculationsAndCharts!$A189+$A$11,IF($C$7,8,0),1,1) -> 15.82 | E189: =OFFSET(InputPriceData!D$15,CalculationsAndCharts!$A189+$A$11,IF($C$7,8,0),1,1) -> 16.45 | F189: =OFFSET(InputPriceData!E$15,CalculationsAndCharts!$A189+$A$11,IF($C$7,8,0),1,1) -> 15.8 | G189: =OFFSET(InputPriceData!F$15,CalculationsAndCharts!$A189+$A$11,IF($C$7,8,0),1,1) -> 16.24 | H189: 18.9032 | U189: 18.9032
A190: 158 | B190: =OFFSET(InputPriceData!B$15,CalculationsAndCharts!$A190+$A$11,0,1,1) -> 2015-07-28 | C190: =OFFSET(InputPriceData!G$15,CalculationsAndCharts!$A190+$A$11,IF($C$7,8,0),1,1) -> 21996900 | D190: =OFFSET(InputPriceData!C$15,CalculationsAndCharts!$A190+$A$11,IF($C$7,8,0),1,1) -> 15.76 | E190: =OFFSET(InputPriceData!D$15,CalculationsAndCharts!$A190+$A$11,IF($C$7,8,0),1,1) -> 16.09 | F190: =OFFSET(InputPriceData!E$15,CalculationsAndCharts!$A190+$A$11,IF($C$7,8,0),1,1) -> 15.64 | G190: =OFFSET(InputPriceData!F$15,CalculationsAndCharts!$A190+$A$11,IF($C$7,8,0),1,1) -> 15.85 | H190: 18.9872 | U190: 18.9872
A191: 159 | B191: =OFFSET(InputPriceData!B$15,CalculationsAndCharts!$A191+$A$11,0,1,1) -> 2015-07-27 | C191: =OFFSET(InputPriceData!G$15,CalculationsAndCharts!$A191+$A$11,IF($C$7,8,0),1,1) -> 38041400 | D191: =OFFSET(InputPriceData!C$15,CalculationsAndCharts!$A191+$A$11,IF($C$7,8,0),1,1) -> 15.81 | E191: =OFFSET(InputPriceData!D$15,CalculationsAndCharts!$A191+$A$11,IF($C$7,8,0),1,1) -> 15.9 | F191: =OFFSET(InputPriceData!E$15,CalculationsAndCharts!$A191+$A$11,IF($C$7,8,0),1,1) -> 15.64 | G191: =OFFSET(InputPriceData!F$15,CalculationsAndCharts!$A191+$A$11,IF($C$7,8,0),1,1) -> 15.65 | H191: 19.0806 | U191: 19.0806
A192: 160 | B192: =OFFSET(InputPriceData!B$15,CalculationsAndCharts!$A192+$A$11,0,1,1) -> 2015-07-24 | C192: =OFFSET(InputPriceData!G$15,CalculationsAndCharts!$A192+$A$11,IF($C$7,8,0),1,1) -> 23246200 | D192: =OFFSET(InputPriceData!C$15,CalculationsAndCharts!$A192+$A$11,IF($C$7,8,0),1,1) -> 16.18 | E192: =OFFSET(InputPriceData!D$15,CalculationsAndCharts!$A192+$A$11,IF($C$7,8,0),1,1) -> 16.18 | F192: =OFFSET(InputPriceData!E$15,CalculationsAndCharts!$A192+$A$11,IF($C$7,8,0),1,1) -> 15.86 | G192: =OFFSET(InputPriceData!F$15,CalculationsAndCharts!$A192+$A$11,IF($C$7,8,0),1,1) -> 16.03 | H192: 19.1782 | U192: 19.1782
A193: 161 | B193: =OFFSET(InputPriceData!B$15,CalculationsAndCharts!$A193+$A$11,0,1,1) -> 2015-07-23 | C193: =OFFSET(InputPriceData!G$15,CalculationsAndCharts!$A193+$A$11,IF($C$7,8,0),1,1) -> 22692200 | D193: =OFFSET(InputPriceData!C$15,CalculationsAndCharts!$A193+$A$11,IF($C$7,8,0),1,1) -> 16.44 | E193: =OFFSET(InputPriceData!D$15,CalculationsAndCharts!$A193+$A$11,IF($C$7,8,0),1,1) -> 16.49 | F193: =OFFSET(InputPriceData!E$15,CalculationsAndCharts!$A193+$A$11,IF($C$7,8,0),1,1) -> 16.02 | G193: =OFFSET(InputPriceData!F$15,CalculationsAndCharts!$A193+$A$11,IF($C$7,8,0),1,1) -> 16.14 | H193: 19.2698 | U193: 19.2698
A194: 162 | B194: =OFFSET(InputPriceData!B$15,CalculationsAndCharts!$A194+$A$11,0,1,1) -> 2015-07-22 | C194: =OFFSET(InputPriceData!G$15,CalculationsAndCharts!$A194+$A$11,IF($C$7,8,0),1,1) -> 27095700 | D194: =OFFSET(InputPriceData!C$15,CalculationsAndCharts!$A194+$A$11,IF($C$7,8,0),1,1) -> 16.66 | E194: =OFFSET(InputPriceData!D$15,CalculationsAndCharts!$A194+$A$11,IF($C$7,8,0),1,1) -> 16.81 | F194: =OFFSET(InputPriceData!E$15,CalculationsAndCharts!$A194+$A$11,IF($C$7,8,0),1,1) -> 16.3 | G194: =OFFSET(InputPriceData!F$15,CalculationsAndCharts!$A194+$A$11,IF($C$7,8,0),1,1) -> 16.34 | H194: 19.3618 | U194: 19.3618
A195: 163 | B195: =OFFSET(InputPriceData!B$15,CalculationsAndCharts!$A195+$A$11,0,1,1) -> 2015-07-21 | C195: =OFFSET(InputPriceData!G$15,CalculationsAndCharts!$A195+$A$11,IF($C$7,8,0),1,1) -> 12817100 | D195: =OFFSET(InputPriceData!C$15,CalculationsAndCharts!$A195+$A$11,IF($C$7,8,0),1,1) -> 16.84 | E195: =OFFSET(InputPriceData!D$15,CalculationsAndCharts!$A195+$A$11,IF($C$7,8,0),1,1) -> 17.08 | F195: =OFFSET(InputPriceData!E$15,CalculationsAndCharts!$A195+$A$11,IF($C$7,8,0),1,1) -> 16.78 | G195: =OFFSET(InputPriceData!F$15,CalculationsAndCharts!$A195+$A$11,IF($C$7,8,0),1,1) -> 16.91 | H195: 19.4426 | U195: 19.4426
A196: 164 | B196: =OFFSET(InputPriceData!B$15,CalculationsAndCharts!$A196+$A$11,0,1,1) -> 2015-07-20 | C196: =OFFSET(InputPriceData!G$15,CalculationsAndCharts!$A196+$A$11,IF($C$7,8,0),1,1) -> 16445500 | D196: =OFFSET(InputPriceData!C$15,CalculationsAndCharts!$A196+$A$11,IF($C$7,8,0),1,1) -> 16.93 | E196: =OFFSET(InputPriceData!D$15,CalculationsAndCharts!$A196+$A$11,IF($C$7,8,0),1,1) -> 16.97 | F196: =OFFSET(InputPriceData!E$15,CalculationsAndCharts!$A196+$A$11,IF($C$7,8,0),1,1) -> 16.69 | G196: =OFFSET(InputPriceData!F$15,CalculationsAndCharts!$A196+$A$11,IF($C$7,8,0),1,1) -> 16.69 | H196: 19.5128 | U196: 19.5128
A197: 165 | B197: =OFFSET(InputPriceData!B$15,CalculationsAndCharts!$A197+$A$11,0,1,1) -> 2015-07-17 | C197: =OFFSET(InputPriceData!G$15,CalculationsAndCharts!$A197+$A$11,IF($C$7,8,0),1,1) -> 23811900 | D197: =OFFSET(InputPriceData!C$15,CalculationsAndCharts!$A197+$A$11,IF($C$7,8,0),1,1) -> 17.04 | E197: =OFFSET(InputPriceData!D$15,CalculationsAndCharts!$A197+$A$11,IF($C$7,8,0),1,1) -> 17.05 | F197: =OFFSET(InputPriceData!E$15,CalculationsAndCharts!$A197+$A$11,IF($C$7,8,0),1,1) -> 16.78 | G197: =OFFSET(InputPriceData!F$15,CalculationsAndCharts!$A197+$A$11,IF($C$7,8,0),1,1) -> 16.99 | H197: 19.583 | U197: 19.583
A198: 166 | B198: =OFFSET(InputPriceData!B$15,CalculationsAndCharts!$A198+$A$11,0,1,1) -> 2015-07-16 | C198: =OFFSET(InputPriceData!G$15,CalculationsAndCharts!$A198+$A$11,IF($C$7,8,0),1,1) -> 19428100 | D198: =OFFSET(InputPriceData!C$15,CalculationsAndCharts!$A198+$A$11,IF($C$7,8,0),1,1) -> 17.39 | E198: =OFFSET(InputPriceData!D$15,CalculationsAndCharts!$A198+$A$11,IF($C$7,8,0),1,1) -> 17.4 | F198: =OFFSET(InputPriceData!E$15,CalculationsAndCharts!$A198+$A$11,IF($C$7,8,0),1,1) -> 17 | G198: =OFFSET(InputPriceData!F$15,CalculationsAndCharts!$A198+$A$11,IF($C$7,8,0),1,1) -> 17.05 | H198: 19.6596 | U198: 19.6596
A199: 167 | B199: =OFFSET(InputPriceData!B$15,CalculationsAndCharts!$A199+$A$11,0,1,1) -> 2015-07-15 | C199: =OFFSET(InputPriceData!G$15,CalculationsAndCharts!$A199+$A$11,IF($C$7,8,0),1,1) -> 28590500 | D199: =OFFSET(InputPriceData!C$15,CalculationsAndCharts!$A199+$A$11,IF($C$7,8,0),1,1) -> 17.5 | E199: =OFFSET(InputPriceData!D$15,CalculationsAndCharts!$A199+$A$11,IF($C$7,8,0),1,1) -> 17.7 | F199: =OFFSET(InputPriceData!E$15,CalculationsAndCharts!$A199+$A$11,IF($C$7,8,0),1,1) -> 17.15 | G199: =OFFSET(InputPriceData!F$15,CalculationsAndCharts!$A199+$A$11,IF($C$7,8,0),1,1) -> 17.23 | H199: 19.7338 | U199: 19.7338
A200: 168 | B200: =OFFSET(InputPriceData!B$15,CalculationsAndCharts!$A200+$A$11,0,1,1) -> 2015-07-14 | C200: =OFFSET(InputPriceData!G$15,CalculationsAndCharts!$A200+$A$11,IF($C$7,8,0),1,1) -> 19802400 | D200: =OFFSET(InputPriceData!C$15,CalculationsAndCharts!$A200+$A$11,IF($C$7,8,0),1,1) -> 17.35 | E200: =OFFSET(InputPriceData!D$15,CalculationsAndCharts!$A200+$A$11,IF($C$7,8,0),1,1) -> 17.86 | F200: =OFFSET(InputPriceData!E$15,CalculationsAndCharts!$A200+$A$11,IF($C$7,8,0),1,1) -> 17.32 | G200: =OFFSET(InputPriceData!F$15,CalculationsAndCharts!$A200+$A$11,IF($C$7,8,0),1,1) -> 17.72 | H200: 19.7948 | U200: 19.7948
A201: 169 | B201: =OFFSET(InputPriceData!B$15,CalculationsAndCharts!$A201+$A$11,0,1,1) -> 2015-07-13 | C201: =OFFSET(InputPriceData!G$15,CalculationsAndCharts!$A201+$A$11,IF($C$7,8,0),1,1) -> 16825300 | D201: =OFFSET(InputPriceData!C$15,CalculationsAndCharts!$A201+$A$11,IF($C$7,8,0),1,1) -> 17.4 | E201: =OFFSET(InputPriceData!D$15,CalculationsAndCharts!$A201+$A$11,IF($C$7,8,0),1,1) -> 17.83 | F201: =OFFSET(InputPriceData!E$15,CalculationsAndCharts!$A201+$A$11,IF($C$7,8,0),1,1) -> 17.35 | G201: =OFFSET(InputPriceData!F$15,CalculationsAndCharts!$A201+$A$11,IF($C$7,8,0),1,1) -> 17.51 | H201: 19.8484 | U201: 19.8484
A202: 170 | B202: =OFFSET(InputPriceData!B$15,CalculationsAndCharts!$A202+$A$11,0,1,1) -> 2015-07-10 | C202: =OFFSET(InputPriceData!G$15,CalculationsAndCharts!$A202+$A$11,IF($C$7,8,0),1,1) -> 17063800 | D202: =OFFSET(InputPriceData!C$15,CalculationsAndCharts!$A202+$A$11,IF($C$7,8,0),1,1) -> 17.65 | E202: =OFFSET(InputPriceData!D$15,CalculationsAndCharts!$A202+$A$11,IF($C$7,8,0),1,1) -> 17.8 | F202: =OFFSET(InputPriceData!E$15,CalculationsAndCharts!$A202+$A$11,IF($C$7,8,0),1,1) -> 17.42 | G202: =OFFSET(InputPriceData!F$15,CalculationsAndCharts!$A202+$A$11,IF($C$7,8,0),1,1) -> 17.67 | H202: 19.9084 | U202: 19.9084
A203: 171 | B203: =OFFSET(InputPriceData!B$15,CalculationsAndCharts!$A203+$A$11,0,1,1) -> 2015-07-09 | C203: =OFFSET(InputPriceData!G$15,CalculationsAndCharts!$A203+$A$11,IF($C$7,8,0),1,1) -> 17266300 | D203: =OFFSET(InputPriceData!C$15,CalculationsAndCharts!$A203+$A$11,IF($C$7,8,0),1,1) -> 17.8 | E203: =OFFSET(InputPriceData!D$15,CalculationsAndCharts!$A203+$A$11,IF($C$7,8,0),1,1) -> 17.91 | F203: =OFFSET(InputPriceData!E$15,CalculationsAndCharts!$A203+$A$11,IF($C$7,8,0),1,1) -> 17.53 | G203: =OFFSET(InputPriceData!F$15,CalculationsAndCharts!$A203+$A$11,IF($C$7,8,0),1,1) -> 17.71 | H203: 19.9574 | U203: 19.9574
A204: 172 | B204: =OFFSET(InputPriceData!B$15,CalculationsAndCharts!$A204+$A$11,0,1,1) -> 2015-07-08 | C204: =OFFSET(InputPriceData!G$15,CalculationsAndCharts!$A204+$A$11,IF($C$7,8,0),1,1) -> 23668700 | D204: =OFFSET(InputPriceData!C$15,CalculationsAndCharts!$A204+$A$11,IF($C$7,8,0),1,1) -> 17.62 | E204: =OFFSET(InputPriceData!D$15,CalculationsAndCharts!$A204+$A$11,IF($C$7,8,0),1,1) -> 17.7 | F204: =OFFSET(InputPriceData!E$15,CalculationsAndCharts!$A204+$A$11,IF($C$7,8,0),1,1) -> 17.07 | G204: =OFFSET(InputPriceData!F$15,CalculationsAndCharts!$A204+$A$11,IF($C$7,8,0),1,1) -> 17.38 | H204: 19.9952 | U204: 19.9952
A205: 173 | B205: =OFFSET(InputPriceData!B$15,CalculationsAndCharts!$A205+$A$11,0,1,1) -> 2015-07-07 | C205: =OFFSET(InputPriceData!G$15,CalculationsAndCharts!$A205+$A$11,IF($C$7,8,0),1,1) -> 43672000 | D205: =OFFSET(InputPriceData!C$15,CalculationsAndCharts!$A205+$A$11,IF($C$7,8,0),1,1) -> 17.59 | E205: =OFFSET(InputPriceData!D$15,CalculationsAndCharts!$A205+$A$11,IF($C$7,8,0),1,1) -> 17.91 | F205: =OFFSET(InputPriceData!E$15,CalculationsAndCharts!$A205+$A$11,IF($C$7,8,0),1,1) -> 16.95 | G205: =OFFSET(InputPriceData!F$15,CalculationsAndCharts!$A205+$A$11,IF($C$7,8,0),1,1) -> 17.76 | H205: 20.038 | U205: 20.038
... 1447 more rows

Sheet Follow
A1: Stocks and Indexes I wish to follow
A3: To ease following a stock, enter a Yahoo Finance acceptable symbol in column "A" anywhere below cell "A9".
A4: Thereafter you may doubleclick the cell containing a symbol of interest to initiate data retrieval and charting for that symbol.
A7: Symbol
A8: To | B8: Description | C8: Last Trade as of most recent check
A9: Follow | C9: Date | D9: Time | E9: Open | F9: High | G9: Low | H9: Close | I9: Volume | J9: Change
A10: A | B10: Agilent Technolog (A) -NYSE (Daily) | C10: 2015-02-02 | D10: 16:03:00 | E10: 37.9 | F10: 38.76 | G10: 37.71 | H10: 38.69 | I10: 2508493 | J10: 0.92
A11: AAL | B11: American Airlines (AAL) -NasdaqNM (Daily) | C11: 2015-02-19 | D11: 16:00:00 | E11: 50.73 | F11: 50.8 | G11: 49.59 | H11: 49.78 | I11: 11462722 | J11: 0.47
A12: ADM | B12: Archer-Daniels-Midland Company (ADM) -NYQ (Daily) | C12: 2016-03-07 | D12: 13:18:00 | E12: 37.17 | F12: 37.29 | G12: 36.85 | H12: 37.09 | I12: 2069198 | J12: -0.56
A13: AMC | B13: AMC Entertainment Holdings, Inc (AMC) -NYQ (Daily) | C13: 2015-09-04 | D13: 16:00:00 | E13: 27.14 | F13: 27.95 | G13: 26.99 | H13: 27.71 | I13: 167990 | J13: 0.28
A14: BSX | B14: Boston Scientific Corporation C (BSX) -NYQ (Daily) | C14: 2015-03-13 | D14: 16:01:00 | E14: 16.84 | F14: 16.91 | G14: 16.44 | H14: 16.61 | I14: 7262460 | J14: -0.28
A15: CASY | B15: Caseys General Stores, Inc. (CASY) -NMS (Daily) | C15: 2016-01-08 | D15: 11:34:00 | E15: 117.67 | F15: 117.97 | G15: 116.79 | H15: 117.01 | I15: 106398 | J15: 0.05
A16: CSCO | B16: Cisco Systems, In (CSCO) -NasdaqNM (Daily) | C16: 2015-02-19 | D16: 16:00:00 | E16: 29.32 | F16: 29.39 | G16: 29.13 | H16: 29.31 | I16: 21469012 | J16: -0.18
A17: CVS | B17: CVS Health Corpor (CVS) -NYSE (Daily) | C17: 2015-02-02 | D17: 16:01:00 | E17: 98.34 | F17: 99.22 | G17: 97.06 | H17: 99.11 | I17: 4416094 | J17: 0.95
A18: DIS | B18: Walt Disney Compa (DIS) -NYSE (Daily) | C18: 2015-02-26 | D18: 16:00:00 | E18: 105.5 | F18: 105.71 | G18: 104.14 | H18: 104.56 | I18: 5044969 | J18: -1.01
A19: EMC | B19: EMC Corporation C (EMC) -NYSE (Daily) | C19: 2015-02-19 | D19: 16:00:00 | E19: 28.26 | F19: 28.83 | G19: 28.19 | H19: 28.72 | I19: 11049079 | J19: 0.52
A20: F | B20: Ford Motor Company Common Stock (F) -NYQ (Daily) | C20: 2016-01-08 | D20: 11:42:00 | E20: 13.05 | F20: 13.1 | G20: 12.68 | H20: 12.7353 | I20: 19823416 | J20: 0.0353
A21: GSK | B21: GlaxoSmithKline P (GSK) -NYSE (Daily) | C21: 2015-02-02 | D21: 16:01:00 | E21: 44.11 | F21: 44.12 | G21: 43.71 | H21: 43.96 | I21: 3654466 | J21: -0.04
A22: HSY | B22: The Hershey Compa (HSY) -NYSE (Daily) | C22: 2015-02-19 | D22: 16:02:00 | E22: 106.97 | F22: 107.31 | G22: 105.42 | H22: 105.95 | I22: 1448321 | J22: -1
A23: HTLD | B23: Heartland Express (HTLD) -NasdaqNM (Daily) | C23: 2015-02-02 | D23: 16:00:00 | E23: 25.68 | F23: 25.81 | G23: 25.36 | H23: 25.62 | I23: 542510 | J23: -0.07
A24: IBM | B24: International Bus (IBM) -NYSE (Daily) | C24: 2015-02-02 | D24: 16:01:00 | E24: 154 | F24: 154.66 | G24: 151.51 | H24: 154.66 | I24: 4712247 | J24: 1.35
A25: INTC | B25: Intel Corporation (INTC) -NasdaqNM (Daily) | C25: 2015-02-19 | D25: 16:00:00 | E25: 34.25 | F25: 34.42 | G25: 34.05 | H25: 34.21 | I25: 11017541 | J25: -0.055
A26: JAH | B26: Jarden Corporation Common Stock (JAH) -NYQ (Daily) | C26: 2016-01-08 | D26: 16:02:00 | E26: 53.82 | F26: 53.88 | G26: 52.65 | H26: 52.73 | I26: 4519480 | J26: -0.81
A27: JNJ | B27: Johnson & Johnson Common Stock (JNJ) -NYQ (Daily) | C27: 2016-01-08 | D27: 11:37:00 | E27: 99.88 | F27: 99.94 | G27: 98.87 | H27: 98.88 | I27: 2448879 | J27: -0.34
A28: KO | B28: Coca-Cola Company (The) Common (KO) -NYQ (Daily) | C28: 2015-08-10 | D28: 16:00:00 | E28: 41.89 | F28: 41.99 | G28: 41.58 | H28: 41.68 | I28: 9501875 | J28: -0.09
A29: LHO | B29: LaSalle Hotel Pro (LHO) -NYSE (Daily) | C29: 2015-02-02 | D29: 16:06:00 | E29: 40.51 | F29: 40.74 | G29: 39.46 | H29: 40.26 | I29: 1034675 | J29: -0.2
A30: LINE | B30: Linn Energy, LLC (LINE) -NasdaqNM (Daily) | C30: 2015-02-02 | D30: 16:00:00 | E30: 10.4 | F30: 10.78 | G30: 10.25 | H30: 10.77 | I30: 3766537 | J30: 0.51
A31: LO | B31: Lorillard, Inc Co (LO) -NYSE (Daily) | C31: 2015-02-02 | D31: 16:03:00 | E31: 65.71 | F31: 66.29 | G31: 65.43 | H31: 66.29 | I31: 1563618 | J31: 0.68
A32: MCD | B32: McDonald's Corporation Common S (MCD) -NYQ (Daily) | C32: 2016-04-07 | D32: 16:10:00 | E32: 127.37 | F32: 128.52 | G32: 127.02 | H32: 128.14 | I32: 4720711 | J32: 0.62
A33: MDT | B33: Medtronic plc. Or (MDT) -NYSE (Daily) | C33: 2015-02-19 | D33: 16:01:00 | E33: 78.59 | F33: 78.59 | G33: 77.85 | H33: 78.13 | I33: 6900528 | J33: -0.37
A34: MGM | B34: MGM Resorts Inter (MGM) -NYSE (Daily) | C34: 2015-02-02 | D34: 16:00:00 | E34: 19.44 | F34: 19.75 | G34: 19.12 | H34: 19.74 | I34: 7570281 | J34: 0.26
A35: MO | B35: Altria Group, Inc (MO) -NYSE (Daily) | C35: 2015-02-02 | D35: 16:01:00 | E35: 53.25 | F35: 53.84 | G35: 52.98 | H35: 53.8 | I35: 9183582 | J35: 0.7
A36: MSFT | B36: Microsoft Corpora (MSFT) -NasdaqNM (Daily) | C36: 2015-02-20 | D36: 16:00:00 | E36: 43.51 | F36: 43.88 | G36: 43.29 | H36: 43.855 | I36: 29721132 | J36: 0.355
A37: NUGT | B37: Direxion Daily Gold Miners Inde (NUGT) -PCX (Daily) | C37: 2016-04-13 | D37: 14:18:00 | E37: 81.48 | F37: 84.97 | G37: 79.59 | H37: 80.5352 | I37: 4380827 | J37: -5.6148
A38: NVS | B38: Novartis AG Common Stock (NVS) -NYQ (Daily) | C38: 2016-01-08 | D38: 11:38:00 | E38: 83.38 | F38: 83.5 | G38: 82.37 | H38: 82.42 | I38: 979446 | J38: -1.52
A39: PRU | B39: Prudential Financ (PRU) -NYSE (Daily) | C39: 2015-02-23 | D39: 12:22:00 | E39: 80.25 | F39: 80.4499 | G39: 79.8 | H39: 80.12 | I39: 1604052 | J39: -0.69
A40: PSEC | B40: Prospect Capital Corporation (PSEC) -NMS (Daily) | C40: 2016-04-07 | D40: 16:00:00 | E40: 7.18 | F40: 7.25 | G40: 7.15 | H40: 7.21 | I40: 1116195 | J40: 0.02
A41: RAI | B41: Reynolds American (RAI) -NYSE (Daily) | C41: 2015-02-02 | D41: 16:03:00 | E41: 68.12 | F41: 69.06 | G41: 67.4346 | H41: 69.05 | I41: 1822013 | J41: 1.1
A42: RPM | B42: RPM International Inc. Common S (RPM) -NYQ (Daily) | C42: 2016-04-13 | D42: 12:43:00 | E42: 49.9 | F42: 50.21 | G42: 49.71 | H42: 49.97 | I42: 408337 | J42: 0.19 | K42: Owns the Rust-Oleum brand
A43: RSP | B43: Guggenheim S&P 500 Equal Weight (RSP) -PCX (Daily) | C43: 2016-01-08 | D43: 11:33:00 | E43: 73.24 | F43: 73.47 | G43: 72.41 | H43: 72.41 | I43: 754279 | J43: -0.48
A44: SONC | B44: Sonic Corp. (SONC) -NMS (Daily) | C44: 2016-01-08 | D44: 11:42:00 | E44: 30.24 | F44: 30.67 | G44: 29.89 | H44: 29.95 | I44: 327291 | J44: -0.05
A45: SWKS | B45: Skyworks Solution (SWKS) -NasdaqNM (Daily) | C45: 2015-02-02 | D45: 16:00:00 | E45: 83.07 | F45: 83.73 | G45: 80.15 | H45: 82.02 | I45: 4119001 | J45: -1.03
A46: TOL | B46: Toll Brothers Inc (TOL) -NYSE (Daily) | C46: 2015-02-23 | D46: 12:23:00 | E46: 37.56 | F46: 37.77 | G46: 37.1 | H46: 37.36 | I46: 1521944 | J46: -0.29
A47: UNP | B47: Union Pacific Cor (UNP) -NYSE (Daily) | C47: 2015-02-02 | D47: 16:10:00 | E47: 118.13 | F47: 119.06 | G47: 116.7 | H47: 119.01 | I47: 3259594 | J47: 1.8
A48: USO | B48: United States Oil Fund (USO) -PCX (Daily) | C48: 2016-08-09 | D48: 16:00:00 | E48: 10.19 | F48: 10.24 | G48: 10.01 | H48: 10.07 | I48: 25742421 | J48: -0.03
A49: VZ | B49: Verizon Communica (VZ) -NYSE (Daily) | C49: 2015-02-23 | D49: 12:22:00 | E49: 48.94 | F49: 49 | G49: 48.54 | H49: 48.825 | I49: 4204644 | J49: -0.145
A50: WBA | B50: (WBA) -NasdaqNM (Daily) | C50: 2015-02-02 | D50: 16:00:00 | E50: 73.06 | F50: 74.98 | G50: 73 | H50: 74.89 | I50: 4247395 | J50: 1.14
A51: WMT | B51: Wal-Mart Stores, Inc. Common St (WMT) -NYQ (Daily) | C51: 2016-01-08 | D51: 11:39:00 | E51: 65.08 | F51: 65.41 | G51: 64.29 | H51: 64.55 | I51: 6674609 | J51: -0.48
A53: ^NDX | B53: NASDAQ-100 (^NDX) -NIM (Daily) | C53: 2015-08-10 | D53: 17:15:00 | E53: 4558.68 | F53: 4583.63 | G53: 4554.63 | H53: 4573.11 | I53: 0 | J53: 53.03
A54: ^DJI | B54: Dow Jones Industrial Average (^DJI) -DJI | C54: 2016-06-11 | D54: J un | E54: 17938.82 | F54: 17938.82 | G54: 17812.34 | H54: 17865.34 | I54: 0 | J54: -119.85
A55: SPY | B55: SPDR S&P 500 (SPY) -PCX (Daily) | C55: 2016-05-05 | D55: 16:00:00 | E55: 205.56 | F55: 205.98 | G55: 204.47 | H55: 204.97 | I55: 67619222 | J55: -0.04
A56: ^GSPC | B56: S&P 500 (^GSPC) -SNP (Daily) | C56: 2016-06-08 | D56: 16:34:00 | E56: 2112.71 | F56: 2120.55 | G56: 2112.71 | H56: 2119.12 | I56: 496867839 | J56: 6.99
A57: ^RUT | B57: Russell 2000 (^RUT) -WCB (Daily) | C57: 2016-06-10 | D57: 16:30:00 | E57: 1178.382446 | F57: 1178.382446 | G57: 1161.273438 | H57: 1163.930664 | I57: 0 | J57: -17.27124
A58: ^VIX | B58: VOLATILITY S&P 500 (^VIX) -WCB (Daily) | C58: 2015-12-04 | D58: 16:14:00 | E58: 17.43 | F58: 17.65 | G58: 14.69 | H58: 14.81 | I58: 0 | J58: -3.3
A61: ACAD | B61: ACADIA Pharmaceut (ACAD) -NasdaqNM (Daily) | C61: 2014-07-21 | D61: 16:00:00 | E61: 20.13 | F61: 20.55 | G61: 19.8101 | H61: 20.31 | I61: 691016
A62: CLDX | B62: Celldex Therapeut (CLDX) -NasdaqNM (Daily) | C62: 2015-02-02 | D62: 16:00:00 | E62: 21.47 | F62: 21.69 | G62: 20.11 | H62: 21.02 | I62: 1570418 | J62: -0.4
A63: ICPT | B63: Intercept Pharmac (ICPT) -NasdaqNM (Daily) | C63: 2014-07-21 | D63: 16:00:00 | E63: 215.97 | F63: 218.43 | G63: 213.05 | H63: 218.14 | I63: 191276
A64: INO | B64: Inovio Pharmaceut (INO) -AMEX (Daily) | C64: 2014-07-21 | D64: 16:00:00 | E64: 10.3 | F64: 11.08 | G64: 10.1 | H64: 11.01 | I64: 1800796
A65: JCP | B65: J.C. Penney Compa (JCP) -NYSE (Daily) | C65: 2015-02-02 | D65: 16:01:00 | E65: 7.16 | F65: 7.44 | G65: 7.01 | H65: 7.43 | I65: 12772679 | J65: 0.16
A66: LCI | B66: Lannett Co Inc Co (LCI) -NYSE (Daily) | C66: 2014-07-21 | D66: 16:02:00 | E66: 38.09 | F66: 38.803 | G66: 36.5101 | H66: 37.76 | I66: 611367
A67: NPSP | B67: NPS Pharmaceutica (NPSP) -NasdaqNM (Daily) | C67: 2014-07-21 | D67: 15:59:00 | E67: 28.75 | F67: 29.43 | G67: 28.31 | H67: 29.29 | I67: 1126758
A68: PBYI | B68: Puma Biotechnolog (PBYI) -NYSE (Daily) | C68: 2014-07-21 | D68: 16:02:00 | E68: 58.27 | F68: 59.46 | G68: 57.39 | H68: 58.98 | I68: 348030

Sheet R-Squared Calculations
A1: R-Squared (R2) Calculations | F1: =CalculationsAndCharts!A2 -> United States Oil Fund (USO) -PCX (Daily)
A2: !! Do Not modify Anything in this area !!
A3: Controls in this area are carried here from the | F3: ="Summary for simulation using R-Squared" -> Summary for simulation using R-Squared | K3: Notes:
A4: CalculationsAndChart Tab go there to change them. | F4: ="over a sample of "&A8&" bars ranging from " -> over a sample of 1620 bars ranging from | K4: The trading simulation logic supplied in the side bar code
A5: Data Control | F5: =TEXT(OFFSET(B32,A8,0,1,1),"ddd mm/dd/yyyy") & ", to " & TEXT(B33,"ddd mm/dd/yyyy") & "." -> Mon 10/05/2009, to Fri 03/11/2016. | K5: that accompanied the article appears to assume that
A6: =InputPriceData!$B$10 -> 2602 | B6: Available Input Data Rows | J6: Largest Win & Loss | K6: every trade starts with AMT dollars ($50,000).
G7: Trades | H7: Profit | K7: No allowance appears to have been made for the impact
A8: =CalculationsAndCharts!A8 -> 1620 | B8: Logically Available for Calc / Plot | I8: Balance | K8: of any previous trades on the running account balance.
A9: =A14+A21+A24 -> 31 | B9: Hold Back | C9: =A8-A9 -> 1589 | F9: Long
A10: Data Window from CalculationsAndChart Tab | F10: Account Start | I10: =$A$20 -> 50000 | K10: This Simulation:
A11: =CalculationsAndCharts!A11 -> 104 | B11: Input Data Offset (Pan) | F11: Win | G11: =COUNTIF(OFFSET(AJ33,0,0,$A$8,1),">0") -> 5 | H11: =SUMIF(OFFSET(AJ33,0,0,$A$8,1),">0") -> 2588.054917 | J11: =MAX(OFFSET(AJ33,0,0,$A$8,1)) -> 629.28 | K11: I found during development that I was getting short or long
A12: =CalculationsAndCharts!A12 -> 147 | B12: Data Points to Plot (Zoom) | F12: Loss | G12: =COUNTIF(OFFSET(AJ33,0,0,$A$8,1),"<0") -> 16 | H12: =SUMIF(OFFSET(AJ33,0,0,$A$8,1),"<0") -> -41514.86032 | J12: =MIN(OFFSET(AJ33,0,0,$A$8,1)) -> -16490.56 | K12: entry signals while a trade of the other persuasion was in flight.
A13: R2 Controls from CalculationsAndCharts | F13: Total | G13: =COUNTIF(OFFSET(AB33,0,0,$A$8,1),TRUE) -> 21 | I13: =H11+H12 -> -38926.8054 | K13: With that finding in mind I simplified things a bit, the simulation
A14: =CalculationsAndCharts!A18 -> 18 | B14: R2 Length | F14: Account End | I14: =I10+I13 -> 11073.1946 | K14: presented here processes the Long trades in one account
A15: =CalculationsAndCharts!A16 -> 50 | B15: Moving Average Bars (MAB) | F15: Short | K15: and Short trades in another.
F16: Account Start | I16: =$A$20 -> 50000 | K16: Each account starts with a separate balance as specified in AMT.
A17: User Controls for R-Squared (R2) Indicator | F17: Win | G17: =COUNTIF(OFFSET(AV33,0,0,$A$8,1),">0") -> 7 | H17: =SUMIF(OFFSET(AV33,0,0,$A$8,1),">0") -> 77091.25203 | J17: =MAX(OFFSET(AV33,0,0,$A$8,1)) -> 27272.12327 | K17: And, I am keeping a running account balance that reflects the
A18: You may change any control in Blue | F18: Loss | G18: =COUNTIF(OFFSET(AV33,0,0,$A$8,1),"<0") -> 1 | H18: =SUMIF(OFFSET(AV33,0,0,$A$8,1),"<0") -> -1220.558328 | J18: =MIN(OFFSET(AV33,0,0,$A$8,1)) -> -1220.558328 | K18: results of any previous trade. But, no commissions or slippages.
F19: Total | G19: =COUNTIF(OFFSET(AN33,0,0,$A$8,1),TRUE) -> 8 | I19: =H17+H18 -> 75870.6937
A20: 50000 | B20: AMT | F20: Account End | I20: =I16+I19 -> 125870.6937
A21: 3 | B21: Smooth
A22: 0.42 | B22: Trend | K22: Dynamic R2
A23: 0.85 | B23: R2 Max | K23: Y-Axis Spec | O23: Actual
A24: 10 | B24: Lag | K24: Min | L24: =MAX(0,O24-O27) -> 0 | O24: =ROUND(MIN(A22,OFFSET(L33,0,0,A12,1)),2) -> 0
A25: 10 | B25: LRCrit | K25: Max | L25: =MIN(1,O25+O27) -> 0.9785 | O25: =ROUND(MAX(A22,OFFSET(L33,0,0,A12,1)),2) -> 0.95
K26: Step | L26: =ROUND((L25-L24)/4,2) -> 0.24 | N26: Spread: | O26: =O25-O24 -> 0.95
M27: Allowance | N27: 0.03 | O27: =O26*N27 -> 0.0285
N29: Signal Lines | Q29: Signals Factory | AA29: Long Trades | AM29: Short Trades | AY29: Chart cursor
I30: R-Squared Calculations Area | N30: ="Trend Threshold "&$A$22 -> Trend Threshold 0.42 | O30: ="LRCRIT " & $A$25 -> LRCRIT 10 | P30: ="R2 MAX "&$A$23 -> R2 MAX 0.85 | AA30: Entry | AG30: Exit | AJ30: Results | AM30: Entry | AS30: Exit | AV30: Results | AY30: Work area
A31: Rel Row | H31: ="MAB("&$A$15&") " -> MAB(50) | I31: Cum(1) | J31: Pearsons "R" (R21) | M31: LR | Q31: R2 xover Trend | R31: R2 < R2 MAX | S31: ="R2 > R2(-"&A24&")" -> R2 > R2(-10) | T31: LR > LRCRIT | U31: LR < -LRCRIT | V31: Close > MAB | W31: Close < MAB | X31: Close xover MAB | Y31: Close xunder MAB | Z31: Setup | AA31: Strong Up Trend | AB31: Buy Next Bar Open | AC31: Active Long | AD31: Shares to Trade | AE31: Active Long Shares | AF31: Share Price | AG31: Sell MA | AH31: Sell MA Price | AI31: Sell Last Bar | AJ31: Position Result | AK31: Running Total | AM31: Strong Dn Trend | AN31: Short Next Bar Open | AO31: Active Short | AP31: Shares to Trade | AQ31: Active Short Shares | AR31: Share Price | AS31: Buy XMA | AT31: Buy MA Price | AU31: Sell Last Bar | AV31: Position Result | AW31: Running Total
B32: Date | C32: Volume | D32: Open | E32: High | F32: Low | G32: Close | K32: R22 | L32: ="R2("&A14&")" -> R2(18) | AY32: R2 Chart Cursor
A33: 1 | B33: =OFFSET(InputPriceData!B$15,CalculationsAndCharts!$A33+$A$11,0,1,1) -> 2016-03-11 | C33: =OFFSET(InputPriceData!G$15,CalculationsAndCharts!$A33+$A$11,IF($C$7,8,0),1,1) -> 28144000 | D33: =OFFSET(InputPriceData!C$15,CalculationsAndCharts!$A33+$A$11,IF($C$7,8,0),1,1) -> 10.21 | E33: =OFFSET(InputPriceData!D$15,CalculationsAndCharts!$A33+$A$11,IF($C$7,8,0),1,1) -> 10.29 | F33: =OFFSET(InputPriceData!E$15,CalculationsAndCharts!$A33+$A$11,IF($C$7,8,0),1,1) -> 10.06 | G33: =OFFSET(InputPriceData!F$15,CalculationsAndCharts!$A33+$A$11,IF($C$7,8,0),1,1) -> 10.19 | H33: =IF($A33>$A$8,0,IF($A33=$A$8,$G33,AVERAGE(OFFSET($G33,0,0,$A$15,1)))) -> 9.1984 | I33: =IF(A33>$A$8,"",$A$8-A33+1) -> 1620 | J33: =IF($A33>$C$9,"",PEARSON(OFFSET(G33,0,0,$A$14,1),OFFSET(I33,0,0,$A$14,1))) -> 0.9190844287 | K33: =IF($A33>$C$9,"",AVERAGE(OFFSET(J33,0,0,$A$21,1))) -> 0.9142591896 | L33: =IF($A33>$C$9,"",K33*K33) -> 0.8358698657 | M33: =IF($A33>$C$9,"",100*SLOPE(OFFSET(G33,0,0,$A$14,1),OFFSET(I33,0,0,$A$14,1))) -> 10.28482972 | N33: =$A$22 -> 0.42 | O33: =$A$25 -> 10 | P33: =$A$23 -> 0.85 | Q33: =IF($A33>$C$9,"",AND(L33>N33,L34<=N34)) -> FALSE | R33: =IF($A33>$C$9,"",L33<P33) -> TRUE | S33: =IF($A33>$C$9,"",L33>OFFSET(L33,$A$24,0,1,1)) -> TRUE | T33: =IF($A33>$C$9,"",M33>O33) -> TRUE | U33: =IF($A33>$C$9,"",M33<-O33) -> FALSE | V33: =G33>H33 -> TRUE | W33: =G33<H33 -> FALSE | X33: =IF($A33>$C$9,"",AND(G33>H33,G34<=H34)) -> FALSE | Y33: =IF($A33>$C$9,"",AND(G33<H33,G34>=H34)) -> FALSE | Z33: =IF($A33>$C$9,"",AND(Q33,R33,S33)) -> FALSE | AA33: =IF($A33>$C$9,"",AND(Z33,R33,S33)) -> FALSE | AB33: =IF($A33>$C$9,"",AND(NOT(AC33),AA33)) -> FALSE | AC33: =IF($A33>$C$9,"",IF(IF(TYPE(AB34)<>4,FALSE,AB34),TRUE,IF(IF(TYPE(AG34)<>4,FALSE,AG34),FALSE,IF(TYPE(AC34)<>4,FALSE,AC34)))) -> TRUE | AD33: =IF($A33>$C$9,"",IF(AK33<=0,0,IF(AB33,ROUND(AK33/$G33,0),""))) ->  | AE33: =IF($A33>$C$9,0,IF(OR(A33>$A$8-1,AG34),0,IF(IF(TYPE(AB34)<>4,FALSE,AB34),AD34,AE34))) -> 1083 | AF33: =IF($A33>$C$9,0,IF(OR(A33>$A$8-1,IF(TYPE(AG34)<>4,FALSE,AG34)),0,IF(IF(TYPE(AB34)<>4,FALSE,AB34),$D34,AF34))) -> 12.92 | AG33: =IF($A33>$C$9,"",AND(AC33,Y33)) -> FALSE | AH33: =IF($A33>$C$9,"",IF(IF(TYPE(AG34)<>4,FALSE,AG34),$D33,IF(AI33,$G33,NA()))) -> 10.19 | AI33: =AC33 -> TRUE | AJ33: =IF($A33>$C$9,0,IF(OR(IF(TYPE(AG34)<>4,FALSE,AG34),AI33),(AH33-AF34)*AE34,0)) -> -2956.59 | AK33: =IF($A33>$C$9,$A$20,IF(OR(IF(TYPE(AG34)<>4,FALSE,AG34),AI33),AJ33+AK34,AK34)) -> 11073.1946 | AM33: =IF($A33>$C$9,"",AND(Z33,W33,U33)) -> FALSE | AN33: =IF($A33>$C$9,"",AND(NOT(AO33),AM33)) -> FALSE | AO33: =IF($A33>$C$9,"",IF(IF(TYPE(AN34)<>4,FALSE,AN34),TRUE,IF(IF(TYPE(AS34)<>4,FALSE,AS34),FALSE,IF(TYPE(AO34)<>4,FALSE,AO34)))) -> FALSE | AP33: =IF($A33>$C$9,"",IF(AW33<=0,0,IF(AN33,ROUND(AW33/$G33,0),""))) ->  | AQ33: =IF(OR($A33>$C$9,IF(TYPE(AS34)<>4,FALSE,AS34)),0,IF(IF(TYPE(AN34)<>4,FALSE,AN34),$AP34+AQ34,AQ34)) -> 0 | AR33: =IF(OR($A33>$C$9,IF(TYPE(AS34)<>4,FALSE,AS34)),0,IF(IF(TYPE(AN34)<>4,FALSE,AN34),$D34,AR34)) -> 0 | AS33: =IF($A33>$C$9,"",AND(AO33,V33)) -> FALSE | AT33: =IF($A33>$C$9,"",IF(IF(TYPE(AS34)<>4,FALSE,AS34),$D33,IF(AU33,$G33,NA()))) ->  | AU33: =AO33 -> FALSE | AV33: =IF($A33>$C$9,0,IF(OR(IF(TYPE(AS34)<>4,FALSE,AS34),AU33),(AR34-AT33)*AQ34,0)) -> 0 | AW33: =IF($A33>$C$9,$A$20,IF(OR(IF(TYPE(AS34)<>4,FALSE,AS34),AU33),AV33+AW34,AW34)) -> 125870.6937 | AY33: =CalculationsAndCharts!$E$25 -> 107 | AZ33: =L25 -> 0.9785
A34: 2 | B34: =OFFSET(InputPriceData!B$15,CalculationsAndCharts!$A34+$A$11,0,1,1) -> 2016-03-10 | C34: =OFFSET(InputPriceData!G$15,CalculationsAndCharts!$A34+$A$11,IF($C$7,8,0),1,1) -> 33089600 | D34: =OFFSET(InputPriceData!C$15,CalculationsAndCharts!$A34+$A$11,IF($C$7,8,0),1,1) -> 9.96 | E34: =OFFSET(InputPriceData!D$15,CalculationsAndCharts!$A34+$A$11,IF($C$7,8,0),1,1) -> 10.12 | F34: =OFFSET(InputPriceData!E$15,CalculationsAndCharts!$A34+$A$11,IF($C$7,8,0),1,1) -> 9.88 | G34: =OFFSET(InputPriceData!F$15,CalculationsAndCharts!$A34+$A$11,IF($C$7,8,0),1,1) -> 10.04 | H34: 9.2198 | I34: =IF(A34>$A$8,"",$A$8-A34+1) -> 1619 | J34: 0.9156017732 | K34: 0.9113145379 | L34: =IF($A34>$C$9,"",K34*K34) -> 0.830494187 | M34: 9.995872033 | N34: 0.42 | O34: 10 | P34: 0.85 | Q34: FALSE | R34: TRUE | S34: TRUE | T34: FALSE | U34: FALSE | V34: TRUE | W34: FALSE | X34: FALSE | Y34: FALSE | Z34: FALSE | AA34: =IF($A34>$C$9,"",AND(Z34,R34,S34)) -> FALSE | AB34: =IF($A34>$C$9,"",AND(NOT(AC34),AA34)) -> FALSE | AC34: TRUE | AD34: =IF($A34>$C$9,"",IF(AK34<=0,0,IF(AB34,ROUND(AK34/G34,0),""))) ->  | AE34: 1083 | AF34: 12.92 | AG34: =IF($A34>$C$9,"",AND(AC34,Y34)) -> FALSE | AJ34: 0 | AK34: =IF($A34>$C$9,$A$20,IF(OR(IF(TYPE(AG35)<>4,FALSE,AG35),AI34),AJ34+AK35,AK35)) -> 14029.7846 | AM34: =IF($A34>$C$9,"",AND(Z34,W34,U34)) -> FALSE | AN34: =IF($A34>$C$9,"",AND(NOT(AO34),AM34)) -> FALSE | AO34: =IF($A34>$C$9,"",IF(IF(TYPE(AN35)<>4,FALSE,AN35),TRUE,IF(IF(TYPE(AS35)<>4,FALSE,AS35),FALSE,IF(TYPE(AO35)<>4,FALSE,AO35)))) -> FALSE | AP34: =IF($A34>$C$9,"",IF(AW34<=0,0,IF(AN34,ROUND(AW34/$G34,0),""))) ->  | AQ34: 0 | AR34: =IF(OR($A34>$C$9,IF(TYPE(AS35)<>4,FALSE,AS35)),0,IF(IF(TYPE(AN35)<>4,FALSE,AN35),$D35,AR35)) -> 0 | AS34: =IF($A34>$C$9,"",AND(AO34,V34)) -> FALSE | AT34: =IF($A34>$C$9,"",IF(IF(TYPE(AS35)<>4,FALSE,AS35),$D34,IF(AU34,$G34,NA()))) ->  | AV34: =IF($A34>$C$9,0,IF(OR(IF(TYPE(AS35)<>4,FALSE,AS35),AU34),(AR35-AT34)*AQ35,0)) -> 0 | AW34: =IF($A34>$C$9,$A$20,IF(OR(IF(TYPE(AS35)<>4,FALSE,AS35),AU34),AV34+AW35,AW35)) -> 125870.6937 | AY34: =CalculationsAndCharts!$E$25 -> 107 | AZ34: =L24 -> 0
A35: 3 | B35: =OFFSET(InputPriceData!B$15,CalculationsAndCharts!$A35+$A$11,0,1,1) -> 2016-03-09 | C35: =OFFSET(InputPriceData!G$15,CalculationsAndCharts!$A35+$A$11,IF($C$7,8,0),1,1) -> 43985300 | D35: =OFFSET(InputPriceData!C$15,CalculationsAndCharts!$A35+$A$11,IF($C$7,8,0),1,1) -> 9.87 | E35: =OFFSET(InputPriceData!D$15,CalculationsAndCharts!$A35+$A$11,IF($C$7,8,0),1,1) -> 10.21 | F35: =OFFSET(InputPriceData!E$15,CalculationsAndCharts!$A35+$A$11,IF($C$7,8,0),1,1) -> 9.85 | G35: =OFFSET(InputPriceData!F$15,CalculationsAndCharts!$A35+$A$11,IF($C$7,8,0),1,1) -> 10.15 | H35: 9.2376 | I35: 1618 | J35: 0.9080913668 | K35: 0.9105593793 | L35: 0.8291183832 | M35: 9.577915377 | N35: 0.42 | O35: 10 | P35: 0.85 | Q35: FALSE | R35: TRUE | S35: TRUE | T35: FALSE | U35: FALSE | V35: TRUE | W35: FALSE | X35: FALSE | Y35: FALSE | Z35: FALSE | AA35: FALSE | AB35: FALSE | AC35: TRUE | AE35: 1083 | AF35: 12.92 | AG35: FALSE | AJ35: 0 | AK35: 14029.7846 | AM35: FALSE | AN35: FALSE | AO35: FALSE | AQ35: 0 | AR35: 0 | AS35: FALSE | AV35: 0 | AW35: 125870.6937
A36: 4 | B36: =OFFSET(InputPriceData!B$15,CalculationsAndCharts!$A36+$A$11,0,1,1) -> 2016-03-08 | C36: =OFFSET(InputPriceData!G$15,CalculationsAndCharts!$A36+$A$11,IF($C$7,8,0),1,1) -> 45700500 | D36: =OFFSET(InputPriceData!C$15,CalculationsAndCharts!$A36+$A$11,IF($C$7,8,0),1,1) -> 10.04 | E36: =OFFSET(InputPriceData!D$15,CalculationsAndCharts!$A36+$A$11,IF($C$7,8,0),1,1) -> 10.04 | F36: =OFFSET(InputPriceData!E$15,CalculationsAndCharts!$A36+$A$11,IF($C$7,8,0),1,1) -> 9.65 | G36: =OFFSET(InputPriceData!F$15,CalculationsAndCharts!$A36+$A$11,IF($C$7,8,0),1,1) -> 9.65 | H36: 9.2606 | I36: 1617 | J36: 0.9102504738 | K36: 0.9142647005 | L36: 0.8358799425 | M36: 9.187822497 | N36: 0.42 | O36: 10 | P36: 0.85 | Q36: FALSE | R36: TRUE | S36: TRUE | T36: FALSE | U36: FALSE | V36: TRUE | W36: FALSE | X36: FALSE | Y36: FALSE | Z36: FALSE | AA36: FALSE | AB36: FALSE | AC36: TRUE | AE36: 1083 | AF36: 12.92 | AG36: FALSE | AJ36: 0 | AK36: 14029.7846 | AM36: FALSE | AN36: FALSE | AO36: FALSE | AQ36: 0 | AR36: 0 | AS36: FALSE | AV36: 0 | AW36: 125870.6937
A37: 5 | B37: =OFFSET(InputPriceData!B$15,CalculationsAndCharts!$A37+$A$11,0,1,1) -> 2016-03-07 | C37: =OFFSET(InputPriceData!G$15,CalculationsAndCharts!$A37+$A$11,IF($C$7,8,0),1,1) -> 67097200 | D37: =OFFSET(InputPriceData!C$15,CalculationsAndCharts!$A37+$A$11,IF($C$7,8,0),1,1) -> 9.68 | E37: =OFFSET(InputPriceData!D$15,CalculationsAndCharts!$A37+$A$11,IF($C$7,8,0),1,1) -> 10.15 | F37: =OFFSET(InputPriceData!E$15,CalculationsAndCharts!$A37+$A$11,IF($C$7,8,0),1,1) -> 9.67 | G37: =OFFSET(InputPriceData!F$15,CalculationsAndCharts!$A37+$A$11,IF($C$7,8,0),1,1) -> 10.11 | H37: 9.2928 | I37: 1616 | J37: 0.9133362973 | K37: 0.8892349551 | L37: 0.7907388054 | M37: 9.384932921 | N37: 0.42 | O37: 10 | P37: 0.85 | Q37: FALSE | R37: TRUE | S37: TRUE | T37: FALSE | U37: FALSE | V37: TRUE | W37: FALSE | X37: FALSE | Y37: FALSE | Z37: FALSE | AA37: FALSE | AB37: FALSE | AC37: TRUE | AE37: 1083 | AF37: 12.92 | AG37: FALSE | AJ37: 0 | AK37: 14029.7846 | AM37: FALSE | AN37: FALSE | AO37: FALSE | AQ37: 0 | AR37: 0 | AS37: FALSE | AT37: 9.68 | AV37: 25174.8 | AW37: 125870.6937
A38: 6 | B38: =OFFSET(InputPriceData!B$15,CalculationsAndCharts!$A38+$A$11,0,1,1) -> 2016-03-04 | C38: =OFFSET(InputPriceData!G$15,CalculationsAndCharts!$A38+$A$11,IF($C$7,8,0),1,1) -> 48973800 | D38: =OFFSET(InputPriceData!C$15,CalculationsAndCharts!$A38+$A$11,IF($C$7,8,0),1,1) -> 9.29 | E38: =OFFSET(InputPriceData!D$15,CalculationsAndCharts!$A38+$A$11,IF($C$7,8,0),1,1) -> 9.65 | F38: =OFFSET(InputPriceData!E$15,CalculationsAndCharts!$A38+$A$11,IF($C$7,8,0),1,1) -> 9.18 | G38: =OFFSET(InputPriceData!F$15,CalculationsAndCharts!$A38+$A$11,IF($C$7,8,0),1,1) -> 9.65 | H38: 9.306 | I38: 1615 | J38: 0.9192073304 | K38: 0.8021032348 | L38: 0.6433695993 | M38: 7.945304438 | N38: 0.42 | O38: 10 | P38: 0.85 | Q38: TRUE | R38: TRUE | S38: TRUE | T38: FALSE | U38: FALSE | V38: TRUE | W38: FALSE | X38: TRUE | Y38: FALSE | Z38: TRUE | AA38: TRUE | AB38: FALSE | AC38: TRUE | AE38: 1083 | AF38: 12.92 | AG38: FALSE | AJ38: 0 | AK38: 14029.7846 | AM38: FALSE | AN38: FALSE | AO38: TRUE | AQ38: 7770 | AR38: 12.92 | AS38: TRUE | AV38: 0 | AW38: 100695.8937
A39: 7 | B39: =OFFSET(InputPriceData!B$15,CalculationsAndCharts!$A39+$A$11,0,1,1) -> 2016-03-03 | C39: =OFFSET(InputPriceData!G$15,CalculationsAndCharts!$A39+$A$11,IF($C$7,8,0),1,1) -> 34373900 | D39: =OFFSET(InputPriceData!C$15,CalculationsAndCharts!$A39+$A$11,IF($C$7,8,0),1,1) -> 9.13 | E39: =OFFSET(InputPriceData!D$15,CalculationsAndCharts!$A39+$A$11,IF($C$7,8,0),1,1) -> 9.41 | F39: =OFFSET(InputPriceData!E$15,CalculationsAndCharts!$A39+$A$11,IF($C$7,8,0),1,1) -> 9.11 | G39: =OFFSET(InputPriceData!F$15,CalculationsAndCharts!$A39+$A$11,IF($C$7,8,0),1,1) -> 9.25 | H39: 9.3262 | I39: 1614 | J39: 0.8351612376 | K39: 0.6146903316 | L39: 0.3778442037 | M39: 6.202270382 | N39: 0.42 | O39: 10 | P39: 0.85 | Q39: FALSE | R39: TRUE | S39: TRUE | T39: FALSE | U39: FALSE | V39: FALSE | W39: TRUE | X39: FALSE | Y39: FALSE | Z39: FALSE | AA39: FALSE | AB39: FALSE | AC39: TRUE | AE39: 1083 | AF39: 12.92 | AG39: FALSE | AJ39: 0 | AK39: 14029.7846 | AM39: FALSE | AN39: FALSE | AO39: TRUE | AQ39: 7770 | AR39: 12.92 | AS39: FALSE | AV39: 0 | AW39: 100695.8937
A40: 8 | B40: =OFFSET(InputPriceData!B$15,CalculationsAndCharts!$A40+$A$11,0,1,1) -> 2016-03-02 | C40: =OFFSET(InputPriceData!G$15,CalculationsAndCharts!$A40+$A$11,IF($C$7,8,0),1,1) -> 49507900 | D40: =OFFSET(InputPriceData!C$15,CalculationsAndCharts!$A40+$A$11,IF($C$7,8,0),1,1) -> 9.01 | E40: =OFFSET(InputPriceData!D$15,CalculationsAndCharts!$A40+$A$11,IF($C$7,8,0),1,1) -> 9.36 | F40: =OFFSET(InputPriceData!E$15,CalculationsAndCharts!$A40+$A$11,IF($C$7,8,0),1,1) -> 8.94 | G40: =OFFSET(InputPriceData!F$15,CalculationsAndCharts!$A40+$A$11,IF($C$7,8,0),1,1) -> 9.3 | H40: 9.3544 | I40: 1613 | J40: 0.6519411364 | K40: 0.3399714843 | L40: 0.1155806101 | M40: 4.561403509 | N40: 0.42 | O40: 10 | P40: 0.85 | Q40: FALSE | R40: TRUE | S40: FALSE | T40: FALSE | U40: FALSE | V40: FALSE | W40: TRUE | X40: FALSE | Y40: FALSE | Z40: FALSE | AA40: FALSE | AB40: FALSE | AC40: TRUE | AE40: 1083 | AF40: 12.92 | AG40: FALSE | AJ40: 0 | AK40: 14029.7846 | AM40: FALSE | AN40: FALSE | AO40: TRUE | AQ40: 7770 | AR40: 12.92 | AS40: FALSE | AV40: 0 | AW40: 100695.8937
A41: 9 | B41: =OFFSET(InputPriceData!B$15,CalculationsAndCharts!$A41+$A$11,0,1,1) -> 2016-03-01 | C41: =OFFSET(InputPriceData!G$15,CalculationsAndCharts!$A41+$A$11,IF($C$7,8,0),1,1) -> 47605400 | D41: =OFFSET(InputPriceData!C$15,CalculationsAndCharts!$A41+$A$11,IF($C$7,8,0),1,1) -> 8.98 | E41: =OFFSET(InputPriceData!D$15,CalculationsAndCharts!$A41+$A$11,IF($C$7,8,0),1,1) -> 9.26 | F41: =OFFSET(InputPriceData!E$15,CalculationsAndCharts!$A41+$A$11,IF($C$7,8,0),1,1) -> 8.89 | G41: =OFFSET(InputPriceData!F$15,CalculationsAndCharts!$A41+$A$11,IF($C$7,8,0),1,1) -> 9.15 | H41: 9.3832 | I41: 1612 | J41: 0.3569686207 | K41: 0.09602051784 | L41: 0.009219939847 | M41: 2.383900929 | N41: 0.42 | O41: 10 | P41: 0.85 | Q41: FALSE | R41: TRUE | S41: FALSE | T41: FALSE | U41: FALSE | V41: FALSE | W41: TRUE | X41: FALSE | Y41: FALSE | Z41: FALSE | AA41: FALSE | AB41: FALSE | AC41: TRUE | AE41: 1083 | AF41: 12.92 | AG41: FALSE | AJ41: 0 | AK41: 14029.7846 | AM41: FALSE | AN41: FALSE | AO41: TRUE | AQ41: 7770 | AR41: 12.92 | AS41: FALSE | AV41: 0 | AW41: 100695.8937
A42: 10 | B42: =OFFSET(InputPriceData!B$15,CalculationsAndCharts!$A42+$A$11,0,1,1) -> 2016-02-29 | C42: =OFFSET(InputPriceData!G$15,CalculationsAndCharts!$A42+$A$11,IF($C$7,8,0),1,1) -> 50604400 | D42: =OFFSET(InputPriceData!C$15,CalculationsAndCharts!$A42+$A$11,IF($C$7,8,0),1,1) -> 8.86 | E42: =OFFSET(InputPriceData!D$15,CalculationsAndCharts!$A42+$A$11,IF($C$7,8,0),1,1) -> 9.04 | F42: =OFFSET(InputPriceData!E$15,CalculationsAndCharts!$A42+$A$11,IF($C$7,8,0),1,1) -> 8.78 | G42: =OFFSET(InputPriceData!F$15,CalculationsAndCharts!$A42+$A$11,IF($C$7,8,0),1,1) -> 9 | H42: 9.42 | I42: 1611 | J42: 0.01100469581 | K42: -0.09955848149 | L42: 0.009911891237 | M42: 0.0773993808 | N42: 0.42 | O42: 10 | P42: 0.85 | Q42: FALSE | R42: TRUE | S42: FALSE | T42: FALSE | U42: FALSE | V42: FALSE | W42: TRUE | X42: FALSE | Y42: FALSE | Z42: FALSE | AA42: FALSE | AB42: FALSE | AC42: TRUE | AE42: 1083 | AF42: 12.92 | AG42: FALSE | AJ42: 0 | AK42: 14029.7846 | AM42: FALSE | AN42: FALSE | AO42: TRUE | AQ42: 7770 | AR42: 12.92 | AS42: FALSE | AV42: 0 | AW42: 100695.8937
A43: 11 | B43: =OFFSET(InputPriceData!B$15,CalculationsAndCharts!$A43+$A$11,0,1,1) -> 2016-02-26 | C43: =OFFSET(InputPriceData!G$15,CalculationsAndCharts!$A43+$A$11,IF($C$7,8,0),1,1) -> 58799400 | D43: =OFFSET(InputPriceData!C$15,CalculationsAndCharts!$A43+$A$11,IF($C$7,8,0),1,1) -> 9.14 | E43: =OFFSET(InputPriceData!D$15,CalculationsAndCharts!$A43+$A$11,IF($C$7,8,0),1,1) -> 9.16 | F43: =OFFSET(InputPriceData!E$15,CalculationsAndCharts!$A43+$A$11,IF($C$7,8,0),1,1) -> 8.7 | G43: =OFFSET(InputPriceData!F$15,CalculationsAndCharts!$A43+$A$11,IF($C$7,8,0),1,1) -> 8.78 | H43: 9.468 | I43: 1610 | J43: -0.07991176297 | K43: -0.2539836203 | L43: 0.06450767939 | M43: -0.5448916409 | N43: 0.42 | O43: 10 | P43: 0.85 | Q43: FALSE | R43: TRUE | S43: TRUE | T43: FALSE | U43: FALSE | V43: FALSE | W43: TRUE | X43: FALSE | Y43: FALSE | Z43: FALSE | AA43: FALSE | AB43: FALSE | AC43: TRUE | AE43: 1083 | AF43: 12.92 | AG43: FALSE | AJ43: 0 | AK43: 14029.7846 | AM43: FALSE | AN43: FALSE | AO43: TRUE | AQ43: 7770 | AR43: 12.92 | AS43: FALSE | AV43: 0 | AW43: 100695.8937
A44: 12 | B44: =OFFSET(InputPriceData!B$15,CalculationsAndCharts!$A44+$A$11,0,1,1) -> 2016-02-25 | C44: =OFFSET(InputPriceData!G$15,CalculationsAndCharts!$A44+$A$11,IF($C$7,8,0),1,1) -> 39506700 | D44: =OFFSET(InputPriceData!C$15,CalculationsAndCharts!$A44+$A$11,IF($C$7,8,0),1,1) -> 8.48 | E44: =OFFSET(InputPriceData!D$15,CalculationsAndCharts!$A44+$A$11,IF($C$7,8,0),1,1) -> 8.92 | F44: =OFFSET(InputPriceData!E$15,CalculationsAndCharts!$A44+$A$11,IF($C$7,8,0),1,1) -> 8.28 | G44: =OFFSET(InputPriceData!F$15,CalculationsAndCharts!$A44+$A$11,IF($C$7,8,0),1,1) -> 8.8 | H44: 9.5156 | I44: 1609 | J44: -0.2297683773 | K44: -0.4182515244 | L44: 0.1749343377 | M44: -1.614035088 | N44: 0.42 | O44: 10 | P44: 0.85 | Q44: FALSE | R44: TRUE | S44: TRUE | T44: FALSE | U44: FALSE | V44: FALSE | W44: TRUE | X44: FALSE | Y44: FALSE | Z44: FALSE | AA44: FALSE | AB44: FALSE | AC44: TRUE | AE44: 1083 | AF44: 12.92 | AG44: FALSE | AJ44: 0 | AK44: 14029.7846 | AM44: FALSE | AN44: FALSE | AO44: TRUE | AQ44: 7770 | AR44: 12.92 | AS44: FALSE | AV44: 0 | AW44: 100695.8937
A45: 13 | B45: =OFFSET(InputPriceData!B$15,CalculationsAndCharts!$A45+$A$11,0,1,1) -> 2016-02-24 | C45: =OFFSET(InputPriceData!G$15,CalculationsAndCharts!$A45+$A$11,IF($C$7,8,0),1,1) -> 48189900 | D45: =OFFSET(InputPriceData!C$15,CalculationsAndCharts!$A45+$A$11,IF($C$7,8,0),1,1) -> 8.19 | E45: =OFFSET(InputPriceData!D$15,CalculationsAndCharts!$A45+$A$11,IF($C$7,8,0),1,1) -> 8.63 | F45: =OFFSET(InputPriceData!E$15,CalculationsAndCharts!$A45+$A$11,IF($C$7,8,0),1,1) -> 8.14 | G45: =OFFSET(InputPriceData!F$15,CalculationsAndCharts!$A45+$A$11,IF($C$7,8,0),1,1) -> 8.59 | H45: 9.561 | I45: 1608 | J45: -0.4522707207 | K45: -0.5407350969 | L45: 0.292394445 | M45: -3.778121775 | N45: 0.42 | O45: 10 | P45: 0.85 | Q45: FALSE | R45: TRUE | S45: TRUE | T45: FALSE | U45: FALSE | V45: FALSE | W45: TRUE | X45: FALSE | Y45: FALSE | Z45: FALSE | AA45: FALSE | AB45: FALSE | AC45: TRUE | AE45: 1083 | AF45: 12.92 | AG45: FALSE | AJ45: 0 | AK45: 14029.7846 | AM45: FALSE | AN45: FALSE | AO45: TRUE | AQ45: 7770 | AR45: 12.92 | AS45: FALSE | AV45: 0 | AW45: 100695.8937
A46: 14 | B46: =OFFSET(InputPriceData!B$15,CalculationsAndCharts!$A46+$A$11,0,1,1) -> 2016-02-23 | C46: =OFFSET(InputPriceData!G$15,CalculationsAndCharts!$A46+$A$11,IF($C$7,8,0),1,1) -> 62427200 | D46: =OFFSET(InputPriceData!C$15,CalculationsAndCharts!$A46+$A$11,IF($C$7,8,0),1,1) -> 8.76 | E46: =OFFSET(InputPriceData!D$15,CalculationsAndCharts!$A46+$A$11,IF($C$7,8,0),1,1) -> 8.76 | F46: =OFFSET(InputPriceData!E$15,CalculationsAndCharts!$A46+$A$11,IF($C$7,8,0),1,1) -> 8.43 | G46: =OFFSET(InputPriceData!F$15,CalculationsAndCharts!$A46+$A$11,IF($C$7,8,0),1,1) -> 8.48 | H46: 9.6166 | I46: 1607 | J46: -0.5727154752 | K46: -0.6106253476 | L46: 0.3728633152 | M46: -5.442724458 | N46: 0.42 | O46: 10 | P46: 0.85 | Q46: FALSE | R46: TRUE | S46: TRUE | T46: FALSE | U46: FALSE | V46: FALSE | W46: TRUE | X46: FALSE | Y46: FALSE | Z46: FALSE | AA46: FALSE | AB46: FALSE | AC46: TRUE | AE46: 1083 | AF46: 12.92 | AG46: FALSE | AJ46: 0 | AK46: 14029.7846 | AM46: FALSE | AN46: FALSE | AO46: TRUE | AQ46: 7770 | AR46: 12.92 | AS46: FALSE | AV46: 0 | AW46: 100695.8937
A47: 15 | B47: =OFFSET(InputPriceData!B$15,CalculationsAndCharts!$A47+$A$11,0,1,1) -> 2016-02-22 | C47: =OFFSET(InputPriceData!G$15,CalculationsAndCharts!$A47+$A$11,IF($C$7,8,0),1,1) -> 53972100 | D47: =OFFSET(InputPriceData!C$15,CalculationsAndCharts!$A47+$A$11,IF($C$7,8,0),1,1) -> 8.9 | E47: =OFFSET(InputPriceData!D$15,CalculationsAndCharts!$A47+$A$11,IF($C$7,8,0),1,1) -> 9.01 | F47: =OFFSET(InputPriceData!E$15,CalculationsAndCharts!$A47+$A$11,IF($C$7,8,0),1,1) -> 8.84 | G47: =OFFSET(InputPriceData!F$15,CalculationsAndCharts!$A47+$A$11,IF($C$7,8,0),1,1) -> 8.91 | H47: 9.6782 | I47: 1606 | J47: -0.5972190947 | K47: -0.6114344835 | L47: 0.3738521277 | M47: -5.750257998 | N47: 0.42 | O47: 10 | P47: 0.85 | Q47: FALSE | R47: TRUE | S47: TRUE | T47: FALSE | U47: FALSE | V47: FALSE | W47: TRUE | X47: FALSE | Y47: FALSE | Z47: FALSE | AA47: FALSE | AB47: FALSE | AC47: TRUE | AE47: 1083 | AF47: 12.92 | AG47: FALSE | AJ47: 0 | AK47: 14029.7846 | AM47: FALSE | AN47: FALSE | AO47: TRUE | AQ47: 7770 | AR47: 12.92 | AS47: FALSE | AV47: 0 | AW47: 100695.8937
A48: 16 | B48: =OFFSET(InputPriceData!B$15,CalculationsAndCharts!$A48+$A$11,0,1,1) -> 2016-02-19 | C48: =OFFSET(InputPriceData!G$15,CalculationsAndCharts!$A48+$A$11,IF($C$7,8,0),1,1) -> 47562600 | D48: =OFFSET(InputPriceData!C$15,CalculationsAndCharts!$A48+$A$11,IF($C$7,8,0),1,1) -> 8.55 | E48: =OFFSET(InputPriceData!D$15,CalculationsAndCharts!$A48+$A$11,IF($C$7,8,0),1,1) -> 8.6 | F48: =OFFSET(InputPriceData!E$15,CalculationsAndCharts!$A48+$A$11,IF($C$7,8,0),1,1) -> 8.35 | G48: =OFFSET(InputPriceData!F$15,CalculationsAndCharts!$A48+$A$11,IF($C$7,8,0),1,1) -> 8.55 | H48: 9.7336 | I48: 1605 | J48: -0.661941473 | K48: -0.6219874654 | L48: 0.3868684071 | M48: -6.388028896 | N48: 0.42 | O48: 10 | P48: 0.85 | Q48: FALSE | R48: TRUE | S48: TRUE | T48: FALSE | U48: FALSE | V48: FALSE | W48: TRUE | X48: FALSE | Y48: FALSE | Z48: FALSE | AA48: FALSE | AB48: FALSE | AC48: TRUE | AE48: 1083 | AF48: 12.92 | AG48: FALSE | AJ48: 0 | AK48: 14029.7846 | AM48: FALSE | AN48: FALSE | AO48: TRUE | AQ48: 7770 | AR48: 12.92 | AS48: FALSE | AV48: 0 | AW48: 100695.8937
A49: 17 | B49: =OFFSET(InputPriceData!B$15,CalculationsAndCharts!$A49+$A$11,0,1,1) -> 2016-02-18 | C49: =OFFSET(InputPriceData!G$15,CalculationsAndCharts!$A49+$A$11,IF($C$7,8,0),1,1) -> 55390100 | D49: =OFFSET(InputPriceData!C$15,CalculationsAndCharts!$A49+$A$11,IF($C$7,8,0),1,1) -> 9.03 | E49: =OFFSET(InputPriceData!D$15,CalculationsAndCharts!$A49+$A$11,IF($C$7,8,0),1,1) -> 9.07 | F49: =OFFSET(InputPriceData!E$15,CalculationsAndCharts!$A49+$A$11,IF($C$7,8,0),1,1) -> 8.65 | G49: =OFFSET(InputPriceData!F$15,CalculationsAndCharts!$A49+$A$11,IF($C$7,8,0),1,1) -> 8.66 | H49: 9.797 | I49: 1604 | J49: -0.5751428829 | K49: -0.593893673 | L49: 0.3527096948 | M49: -5.553147575 | N49: 0.42 | O49: 10 | P49: 0.85 | Q49: FALSE | R49: TRUE | S49: TRUE | T49: FALSE | U49: FALSE | V49: FALSE | W49: TRUE | X49: FALSE | Y49: FALSE | Z49: FALSE | AA49: FALSE | AB49: FALSE | AC49: TRUE | AE49: 1083 | AF49: 12.92 | AG49: FALSE | AJ49: 0 | AK49: 14029.7846 | AM49: FALSE | AN49: FALSE | AO49: TRUE | AQ49: 7770 | AR49: 12.92 | AS49: FALSE | AV49: 0 | AW49: 100695.8937
A50: 18 | B50: =OFFSET(InputPriceData!B$15,CalculationsAndCharts!$A50+$A$11,0,1,1) -> 2016-02-17 | C50: =OFFSET(InputPriceData!G$15,CalculationsAndCharts!$A50+$A$11,IF($C$7,8,0),1,1) -> 60273400 | D50: =OFFSET(InputPriceData!C$15,CalculationsAndCharts!$A50+$A$11,IF($C$7,8,0),1,1) -> 8.43 | E50: =OFFSET(InputPriceData!D$15,CalculationsAndCharts!$A50+$A$11,IF($C$7,8,0),1,1) -> 8.9 | F50: =OFFSET(InputPriceData!E$15,CalculationsAndCharts!$A50+$A$11,IF($C$7,8,0),1,1) -> 8.39 | G50: =OFFSET(InputPriceData!F$15,CalculationsAndCharts!$A50+$A$11,IF($C$7,8,0),1,1) -> 8.78 | H50: 9.873 | I50: 1603 | J50: -0.6288780403 | K50: -0.5297433822 | L50: 0.280628051 | M50: -6.216718266 | N50: 0.42 | O50: 10 | P50: 0.85 | Q50: FALSE | R50: TRUE | S50: TRUE | T50: FALSE | U50: FALSE | V50: FALSE | W50: TRUE | X50: FALSE | Y50: FALSE | Z50: FALSE | AA50: FALSE | AB50: FALSE | AC50: TRUE | AE50: 1083 | AF50: 12.92 | AG50: FALSE | AJ50: 0 | AK50: 14029.7846 | AM50: FALSE | AN50: FALSE | AO50: TRUE | AQ50: 7770 | AR50: 12.92 | AS50: FALSE | AV50: 0 | AW50: 100695.8937
A51: 19 | B51: =OFFSET(InputPriceData!B$15,CalculationsAndCharts!$A51+$A$11,0,1,1) -> 2016-02-16 | C51: =OFFSET(InputPriceData!G$15,CalculationsAndCharts!$A51+$A$11,IF($C$7,8,0),1,1) -> 48950000 | D51: =OFFSET(InputPriceData!C$15,CalculationsAndCharts!$A51+$A$11,IF($C$7,8,0),1,1) -> 8.49 | E51: =OFFSET(InputPriceData!D$15,CalculationsAndCharts!$A51+$A$11,IF($C$7,8,0),1,1) -> 8.52 | F51: =OFFSET(InputPriceData!E$15,CalculationsAndCharts!$A51+$A$11,IF($C$7,8,0),1,1) -> 8.18 | G51: =OFFSET(InputPriceData!F$15,CalculationsAndCharts!$A51+$A$11,IF($C$7,8,0),1,1) -> 8.31 | H51: 9.9528 | I51: 1602 | J51: -0.5776600957 | K51: -0.4015305088 | L51: 0.1612267495 | M51: -5.744066047 | N51: 0.42 | O51: 10 | P51: 0.85 | Q51: FALSE | R51: TRUE | S51: FALSE | T51: FALSE | U51: FALSE | V51: FALSE | W51: TRUE | X51: FALSE | Y51: FALSE | Z51: FALSE | AA51: FALSE | AB51: FALSE | AC51: TRUE | AE51: 1083 | AF51: 12.92 | AG51: FALSE | AJ51: 0 | AK51: 14029.7846 | AM51: FALSE | AN51: FALSE | AO51: TRUE | AQ51: 7770 | AR51: 12.92 | AS51: FALSE | AV51: 0 | AW51: 100695.8937
A52: 20 | B52: =OFFSET(InputPriceData!B$15,CalculationsAndCharts!$A52+$A$11,0,1,1) -> 2016-02-12 | C52: =OFFSET(InputPriceData!G$15,CalculationsAndCharts!$A52+$A$11,IF($C$7,8,0),1,1) -> 67907200 | D52: =OFFSET(InputPriceData!C$15,CalculationsAndCharts!$A52+$A$11,IF($C$7,8,0),1,1) -> 8.16 | E52: =OFFSET(InputPriceData!D$15,CalculationsAndCharts!$A52+$A$11,IF($C$7,8,0),1,1) -> 8.52 | F52: =OFFSET(InputPriceData!E$15,CalculationsAndCharts!$A52+$A$11,IF($C$7,8,0),1,1) -> 8.01 | G52: =OFFSET(InputPriceData!F$15,CalculationsAndCharts!$A52+$A$11,IF($C$7,8,0),1,1) -> 8.33 | H52: 10.0362 | I52: 1601 | J52: -0.3826920105 | K52: -0.2390204793 | L52: 0.05713078953 | M52: -3.833849329 | N52: 0.42 | O52: 10 | P52: 0.85 | Q52: FALSE | R52: TRUE | S52: FALSE | T52: FALSE | U52: FALSE | V52: FALSE | W52: TRUE | X52: FALSE | Y52: FALSE | Z52: FALSE | AA52: FALSE | AB52: FALSE | AC52: TRUE | AE52: 1083 | AF52: 12.92 | AG52: FALSE | AJ52: 0 | AK52: 14029.7846 | AM52: FALSE | AN52: FALSE | AO52: TRUE | AQ52: 7770 | AR52: 12.92 | AS52: FALSE | AV52: 0 | AW52: 100695.8937
A53: 21 | B53: =OFFSET(InputPriceData!B$15,CalculationsAndCharts!$A53+$A$11,0,1,1) -> 2016-02-11 | C53: =OFFSET(InputPriceData!G$15,CalculationsAndCharts!$A53+$A$11,IF($C$7,8,0),1,1) -> 95990700 | D53: =OFFSET(InputPriceData!C$15,CalculationsAndCharts!$A53+$A$11,IF($C$7,8,0),1,1) -> 7.82 | E53: =OFFSET(InputPriceData!D$15,CalculationsAndCharts!$A53+$A$11,IF($C$7,8,0),1,1) -> 8.03 | F53: =OFFSET(InputPriceData!E$15,CalculationsAndCharts!$A53+$A$11,IF($C$7,8,0),1,1) -> 7.67 | G53: =OFFSET(InputPriceData!F$15,CalculationsAndCharts!$A53+$A$11,IF($C$7,8,0),1,1) -> 7.99 | H53: 10.1286 | I53: 1600 | J53: -0.2442394201 | K53: -0.1026753755 | L53: 0.01054223274 | M53: -2.415892673 | N53: 0.42 | O53: 10 | P53: 0.85 | Q53: FALSE | R53: TRUE | S53: FALSE | T53: FALSE | U53: FALSE | V53: FALSE | W53: TRUE | X53: FALSE | Y53: FALSE | Z53: FALSE | AA53: FALSE | AB53: FALSE | AC53: TRUE | AE53: 1083 | AF53: 12.92 | AG53: FALSE | AJ53: 0 | AK53: 14029.7846 | AM53: FALSE | AN53: FALSE | AO53: TRUE | AQ53: 7770 | AR53: 12.92 | AS53: FALSE | AV53: 0 | AW53: 100695.8937
A54: 22 | B54: =OFFSET(InputPriceData!B$15,CalculationsAndCharts!$A54+$A$11,0,1,1) -> 2016-02-10 | C54: =OFFSET(InputPriceData!G$15,CalculationsAndCharts!$A54+$A$11,IF($C$7,8,0),1,1) -> 64182800 | D54: =OFFSET(InputPriceData!C$15,CalculationsAndCharts!$A54+$A$11,IF($C$7,8,0),1,1) -> 7.97 | E54: =OFFSET(InputPriceData!D$15,CalculationsAndCharts!$A54+$A$11,IF($C$7,8,0),1,1) -> 8.4 | F54: =OFFSET(InputPriceData!E$15,CalculationsAndCharts!$A54+$A$11,IF($C$7,8,0),1,1) -> 7.89 | G54: =OFFSET(InputPriceData!F$15,CalculationsAndCharts!$A54+$A$11,IF($C$7,8,0),1,1) -> 7.96 | H54: 10.2274 | I54: 1599 | J54: -0.09013000729 | K54: 0.03749846052 | L54: 0.001406134541 | M54: -0.8245614035 | N54: 0.42 | O54: 10 | P54: 0.85 | Q54: FALSE | R54: TRUE | S54: FALSE | T54: FALSE | U54: FALSE | V54: FALSE | W54: TRUE | X54: FALSE | Y54: FALSE | Z54: FALSE | AA54: FALSE | AB54: FALSE | AC54: TRUE | AE54: 1083 | AF54: 12.92 | AG54: FALSE | AJ54: 0 | AK54: 14029.7846 | AM54: FALSE | AN54: FALSE | AO54: TRUE | AQ54: 7770 | AR54: 12.92 | AS54: FALSE | AV54: 0 | AW54: 100695.8937
A55: 23 | B55: =OFFSET(InputPriceData!B$15,CalculationsAndCharts!$A55+$A$11,0,1,1) -> 2016-02-09 | C55: =OFFSET(InputPriceData!G$15,CalculationsAndCharts!$A55+$A$11,IF($C$7,8,0),1,1) -> 57812400 | D55: =OFFSET(InputPriceData!C$15,CalculationsAndCharts!$A55+$A$11,IF($C$7,8,0),1,1) -> 8.51 | E55: =OFFSET(InputPriceData!D$15,CalculationsAndCharts!$A55+$A$11,IF($C$7,8,0),1,1) -> 8.67 | F55: =OFFSET(InputPriceData!E$15,CalculationsAndCharts!$A55+$A$11,IF($C$7,8,0),1,1) -> 7.97 | G55: =OFFSET(InputPriceData!F$15,CalculationsAndCharts!$A55+$A$11,IF($C$7,8,0),1,1) -> 8.18 | H55: 10.3288 | I55: 1598 | J55: 0.02634330082 | K55: 0.1389193866 | L55: 0.01929859597 | M55: 0.2187822497 | N55: 0.42 | O55: 10 | P55: 0.85 | Q55: FALSE | R55: TRUE | S55: FALSE | T55: FALSE | U55: FALSE | V55: FALSE | W55: TRUE | X55: FALSE | Y55: FALSE | Z55: FALSE | AA55: FALSE | AB55: FALSE | AC55: TRUE | AE55: 1083 | AF55: 12.92 | AG55: FALSE | AJ55: 0 | AK55: 14029.7846 | AM55: FALSE | AN55: FALSE | AO55: TRUE | AQ55: 7770 | AR55: 12.92 | AS55: FALSE | AV55: 0 | AW55: 100695.8937
A56: 24 | B56: =OFFSET(InputPriceData!B$15,CalculationsAndCharts!$A56+$A$11,0,1,1) -> 2016-02-08 | C56: =OFFSET(InputPriceData!G$15,CalculationsAndCharts!$A56+$A$11,IF($C$7,8,0),1,1) -> 38298300 | D56: =OFFSET(InputPriceData!C$15,CalculationsAndCharts!$A56+$A$11,IF($C$7,8,0),1,1) -> 8.77 | E56: =OFFSET(InputPriceData!D$15,CalculationsAndCharts!$A56+$A$11,IF($C$7,8,0),1,1) -> 8.82 | F56: =OFFSET(InputPriceData!E$15,CalculationsAndCharts!$A56+$A$11,IF($C$7,8,0),1,1) -> 8.52 | G56: =OFFSET(InputPriceData!F$15,CalculationsAndCharts!$A56+$A$11,IF($C$7,8,0),1,1) -> 8.64 | H56: 10.433 | I56: 1597 | J56: 0.176282088 | K56: 0.1878090677 | L56: 0.03527224593 | M56: 1.338493292 | N56: 0.42 | O56: 10 | P56: 0.85 | Q56: FALSE | R56: TRUE | S56: FALSE | T56: FALSE | U56: FALSE | V56: FALSE | W56: TRUE | X56: FALSE | Y56: FALSE | Z56: FALSE | AA56: FALSE | AB56: FALSE | AC56: TRUE | AE56: 1083 | AF56: 12.92 | AG56: FALSE | AJ56: 0 | AK56: 14029.7846 | AM56: FALSE | AN56: FALSE | AO56: TRUE | AQ56: 7770 | AR56: 12.92 | AS56: FALSE | AV56: 0 | AW56: 100695.8937
A57: 25 | B57: =OFFSET(InputPriceData!B$15,CalculationsAndCharts!$A57+$A$11,0,1,1) -> 2016-02-05 | C57: =OFFSET(InputPriceData!G$15,CalculationsAndCharts!$A57+$A$11,IF($C$7,8,0),1,1) -> 34847600 | D57: =OFFSET(InputPriceData!C$15,CalculationsAndCharts!$A57+$A$11,IF($C$7,8,0),1,1) -> 9.04 | E57: =OFFSET(InputPriceData!D$15,CalculationsAndCharts!$A57+$A$11,IF($C$7,8,0),1,1) -> 9.23 | F57: =OFFSET(InputPriceData!E$15,CalculationsAndCharts!$A57+$A$11,IF($C$7,8,0),1,1) -> 8.8 | G57: =OFFSET(InputPriceData!F$15,CalculationsAndCharts!$A57+$A$11,IF($C$7,8,0),1,1) -> 8.91 | H57: 10.5266 | I57: 1596 | J57: 0.2141327709 | K57: 0.117313304 | L57: 0.01376241129 | M57: 1.60371517 | N57: 0.42 | O57: 10 | P57: 0.85 | Q57: FALSE | R57: TRUE | S57: FALSE | T57: FALSE | U57: FALSE | V57: FALSE | W57: TRUE | X57: FALSE | Y57: FALSE | Z57: FALSE | AA57: FALSE | AB57: FALSE | AC57: TRUE | AE57: 1083 | AF57: 12.92 | AG57: FALSE | AJ57: 0 | AK57: 14029.7846 | AM57: FALSE | AN57: FALSE | AO57: TRUE | AQ57: 7770 | AR57: 12.92 | AS57: FALSE | AV57: 0 | AW57: 100695.8937
A58: 26 | B58: =OFFSET(InputPriceData!B$15,CalculationsAndCharts!$A58+$A$11,0,1,1) -> 2016-02-04 | C58: =OFFSET(InputPriceData!G$15,CalculationsAndCharts!$A58+$A$11,IF($C$7,8,0),1,1) -> 44985200 | D58: =OFFSET(InputPriceData!C$15,CalculationsAndCharts!$A58+$A$11,IF($C$7,8,0),1,1) -> 9.55 | E58: =OFFSET(InputPriceData!D$15,CalculationsAndCharts!$A58+$A$11,IF($C$7,8,0),1,1) -> 9.65 | F58: =OFFSET(InputPriceData!E$15,CalculationsAndCharts!$A58+$A$11,IF($C$7,8,0),1,1) -> 9.06 | G58: =OFFSET(InputPriceData!F$15,CalculationsAndCharts!$A58+$A$11,IF($C$7,8,0),1,1) -> 9.12 | H58: 10.6088 | I58: 1595 | J58: 0.1730123443 | K58: -0.0408885652 | L58: 0.001671874764 | M58: 1.308565531 | N58: 0.42 | O58: 10 | P58: 0.85 | Q58: FALSE | R58: TRUE | S58: FALSE | T58: FALSE | U58: FALSE | V58: FALSE | W58: TRUE | X58: FALSE | Y58: FALSE | Z58: FALSE | AA58: FALSE | AB58: FALSE | AC58: TRUE | AE58: 1083 | AF58: 12.92 | AG58: FALSE | AJ58: 0 | AK58: 14029.7846 | AM58: FALSE | AN58: FALSE | AO58: TRUE | AQ58: 7770 | AR58: 12.92 | AS58: FALSE | AV58: 0 | AW58: 100695.8937
A59: 27 | B59: =OFFSET(InputPriceData!B$15,CalculationsAndCharts!$A59+$A$11,0,1,1) -> 2016-02-03 | C59: =OFFSET(InputPriceData!G$15,CalculationsAndCharts!$A59+$A$11,IF($C$7,8,0),1,1) -> 72246300 | D59: =OFFSET(InputPriceData!C$15,CalculationsAndCharts!$A59+$A$11,IF($C$7,8,0),1,1) -> 8.84 | E59: =OFFSET(InputPriceData!D$15,CalculationsAndCharts!$A59+$A$11,IF($C$7,8,0),1,1) -> 9.35 | F59: =OFFSET(InputPriceData!E$15,CalculationsAndCharts!$A59+$A$11,IF($C$7,8,0),1,1) -> 8.54 | G59: =OFFSET(InputPriceData!F$15,CalculationsAndCharts!$A59+$A$11,IF($C$7,8,0),1,1) -> 9.34 | H59: 10.685 | I59: 1594 | J59: -0.03520520325 | K59: -0.2064539669 | L59: 0.04262324043 | M59: -0.2930856553 | N59: 0.42 | O59: 10 | P59: 0.85 | Q59: FALSE | R59: TRUE | S59: FALSE | T59: FALSE | U59: FALSE | V59: FALSE | W59: TRUE | X59: FALSE | Y59: FALSE | Z59: FALSE | AA59: FALSE | AB59: FALSE | AC59: TRUE | AE59: 1083 | AF59: 12.92 | AG59: FALSE | AJ59: 0 | AK59: 14029.7846 | AM59: FALSE | AN59: FALSE | AO59: TRUE | AQ59: 7770 | AR59: 12.92 | AS59: FALSE | AV59: 0 | AW59: 100695.8937
A60: 28 | B60: =OFFSET(InputPriceData!B$15,CalculationsAndCharts!$A60+$A$11,0,1,1) -> 2016-02-02 | C60: =OFFSET(InputPriceData!G$15,CalculationsAndCharts!$A60+$A$11,IF($C$7,8,0),1,1) -> 44437500 | D60: =OFFSET(InputPriceData!C$15,CalculationsAndCharts!$A60+$A$11,IF($C$7,8,0),1,1) -> 8.72 | E60: =OFFSET(InputPriceData!D$15,CalculationsAndCharts!$A60+$A$11,IF($C$7,8,0),1,1) -> 8.81 | F60: =OFFSET(InputPriceData!E$15,CalculationsAndCharts!$A60+$A$11,IF($C$7,8,0),1,1) -> 8.56 | G60: =OFFSET(InputPriceData!F$15,CalculationsAndCharts!$A60+$A$11,IF($C$7,8,0),1,1) -> 8.57 | H60: 10.7574 | I60: 1593 | J60: -0.2604728367 | K60: -0.350750731 | L60: 0.1230260753 | M60: -2.36119711 | N60: 0.42 | O60: 10 | P60: 0.85 | Q60: FALSE | R60: TRUE | S60: FALSE | T60: FALSE | U60: FALSE | V60: FALSE | W60: TRUE | X60: FALSE | Y60: FALSE | Z60: FALSE | AA60: FALSE | AB60: FALSE | AC60: TRUE | AE60: 1083 | AF60: 12.92 | AG60: FALSE | AJ60: 0 | AK60: 14029.7846 | AM60: FALSE | AN60: FALSE | AO60: TRUE | AQ60: 7770 | AR60: 12.92 | AS60: FALSE | AV60: 0 | AW60: 100695.8937
A61: 29 | B61: =OFFSET(InputPriceData!B$15,CalculationsAndCharts!$A61+$A$11,0,1,1) -> 2016-02-01 | C61: =OFFSET(InputPriceData!G$15,CalculationsAndCharts!$A61+$A$11,IF($C$7,8,0),1,1) -> 48889800 | D61: =OFFSET(InputPriceData!C$15,CalculationsAndCharts!$A61+$A$11,IF($C$7,8,0),1,1) -> 9.35 | E61: =OFFSET(InputPriceData!D$15,CalculationsAndCharts!$A61+$A$11,IF($C$7,8,0),1,1) -> 9.36 | F61: =OFFSET(InputPriceData!E$15,CalculationsAndCharts!$A61+$A$11,IF($C$7,8,0),1,1) -> 8.99 | G61: =OFFSET(InputPriceData!F$15,CalculationsAndCharts!$A61+$A$11,IF($C$7,8,0),1,1) -> 9.02 | H61: 10.847 | I61: 1592 | J61: -0.3236838607 | K61: -0.4862905386 | L61: 0.2364784879 | M61: -3.172342621 | N61: 0.42 | O61: 10 | P61: 0.85 | Q61: FALSE | R61: TRUE | S61: FALSE | T61: FALSE | U61: FALSE | V61: FALSE | W61: TRUE | X61: FALSE | Y61: FALSE | Z61: FALSE | AA61: FALSE | AB61: FALSE | AC61: TRUE | AE61: 1083 | AF61: 12.92 | AG61: FALSE | AJ61: 0 | AK61: 14029.7846 | AM61: FALSE | AN61: FALSE | AO61: TRUE | AQ61: 7770 | AR61: 12.92 | AS61: FALSE | AV61: 0 | AW61: 100695.8937
A62: 30 | B62: =OFFSET(InputPriceData!B$15,CalculationsAndCharts!$A62+$A$11,0,1,1) -> 2016-01-29 | C62: =OFFSET(InputPriceData!G$15,CalculationsAndCharts!$A62+$A$11,IF($C$7,8,0),1,1) -> 47209700 | D62: =OFFSET(InputPriceData!C$15,CalculationsAndCharts!$A62+$A$11,IF($C$7,8,0),1,1) -> 9.77 | E62: =OFFSET(InputPriceData!D$15,CalculationsAndCharts!$A62+$A$11,IF($C$7,8,0),1,1) -> 9.88 | F62: =OFFSET(InputPriceData!E$15,CalculationsAndCharts!$A62+$A$11,IF($C$7,8,0),1,1) -> 9.38 | G62: =OFFSET(InputPriceData!F$15,CalculationsAndCharts!$A62+$A$11,IF($C$7,8,0),1,1) -> 9.65 | H62: 10.9268 | I62: 1591 | J62: -0.4680954957 | K62: -0.6530899254 | L62: 0.4265264506 | M62: -5.512899897 | N62: 0.42 | O62: 10 | P62: 0.85 | Q62: FALSE | R62: TRUE | S62: FALSE | T62: FALSE | U62: FALSE | V62: FALSE | W62: TRUE | X62: FALSE | Y62: FALSE | Z62: FALSE | AA62: FALSE | AB62: FALSE | AC62: TRUE | AE62: 1083 | AF62: 12.92 | AG62: FALSE | AJ62: 0 | AK62: 14029.7846 | AM62: FALSE | AN62: FALSE | AO62: TRUE | AQ62: 7770 | AR62: 12.92 | AS62: FALSE | AV62: 0 | AW62: 100695.8937
A63: 31 | B63: =OFFSET(InputPriceData!B$15,CalculationsAndCharts!$A63+$A$11,0,1,1) -> 2016-01-28 | C63: =OFFSET(InputPriceData!G$15,CalculationsAndCharts!$A63+$A$11,IF($C$7,8,0),1,1) -> 66151100 | D63: =OFFSET(InputPriceData!C$15,CalculationsAndCharts!$A63+$A$11,IF($C$7,8,0),1,1) -> 9.8 | E63: =OFFSET(InputPriceData!D$15,CalculationsAndCharts!$A63+$A$11,IF($C$7,8,0),1,1) -> 9.86 | F63: =OFFSET(InputPriceData!E$15,CalculationsAndCharts!$A63+$A$11,IF($C$7,8,0),1,1) -> 9.41 | G63: =OFFSET(InputPriceData!F$15,CalculationsAndCharts!$A63+$A$11,IF($C$7,8,0),1,1) -> 9.7 | H63: 11.0016 | I63: 1590 | J63: -0.6670922594 | K63: -0.7941963847 | L63: 0.6307478975 | M63: -9.311661507 | N63: 0.42 | O63: 10 | P63: 0.85 | Q63: FALSE | R63: TRUE | S63: TRUE | T63: FALSE | U63: FALSE | V63: FALSE | W63: TRUE | X63: FALSE | Y63: FALSE | Z63: FALSE | AA63: FALSE | AB63: FALSE | AC63: TRUE | AE63: 1083 | AF63: 12.92 | AG63: FALSE | AJ63: 0 | AK63: 14029.7846 | AM63: FALSE | AN63: FALSE | AO63: TRUE | AQ63: 7770 | AR63: 12.92 | AS63: FALSE | AV63: 0 | AW63: 100695.8937
A64: 32 | B64: =OFFSET(InputPriceData!B$15,CalculationsAndCharts!$A64+$A$11,0,1,1) -> 2016-01-27 | C64: =OFFSET(InputPriceData!G$15,CalculationsAndCharts!$A64+$A$11,IF($C$7,8,0),1,1) -> 71429700 | D64: =OFFSET(InputPriceData!C$15,CalculationsAndCharts!$A64+$A$11,IF($C$7,8,0),1,1) -> 8.92 | E64: =OFFSET(InputPriceData!D$15,CalculationsAndCharts!$A64+$A$11,IF($C$7,8,0),1,1) -> 9.43 | F64: =OFFSET(InputPriceData!E$15,CalculationsAndCharts!$A64+$A$11,IF($C$7,8,0),1,1) -> 8.79 | G64: =OFFSET(InputPriceData!F$15,CalculationsAndCharts!$A64+$A$11,IF($C$7,8,0),1,1) -> 9.18 | H64: 11.0688 | I64: 1589 | J64: -0.824082021 | K64: -0.8823687137 | L64: 0.778574547 | M64: -12.96904025 | N64: 0.42 | O64: 10 | P64: 0.85 | Q64: FALSE | R64: TRUE | S64: TRUE | T64: FALSE | U64: TRUE | V64: FALSE | W64: TRUE | X64: FALSE | Y64: FALSE | Z64: FALSE | AA64: FALSE | AB64: FALSE | AC64: TRUE | AE64: 1083 | AF64: 12.92 | AG64: FALSE | AJ64: 0 | AK64: 14029.7846 | AM64: FALSE | AN64: FALSE | AO64: TRUE | AQ64: 7770 | AR64: 12.92 | AS64: FALSE | AV64: 0 | AW64: 100695.8937
A65: 33 | B65: =OFFSET(InputPriceData!B$15,CalculationsAndCharts!$A65+$A$11,0,1,1) -> 2016-01-26 | C65: =OFFSET(InputPriceData!G$15,CalculationsAndCharts!$A65+$A$11,IF($C$7,8,0),1,1) -> 51444800 | D65: =OFFSET(InputPriceData!C$15,CalculationsAndCharts!$A65+$A$11,IF($C$7,8,0),1,1) -> 8.81 | E65: =OFFSET(InputPriceData!D$15,CalculationsAndCharts!$A65+$A$11,IF($C$7,8,0),1,1) -> 9.31 | F65: =OFFSET(InputPriceData!E$15,CalculationsAndCharts!$A65+$A$11,IF($C$7,8,0),1,1) -> 8.74 | G65: =OFFSET(InputPriceData!F$15,CalculationsAndCharts!$A65+$A$11,IF($C$7,8,0),1,1) -> 8.97 | H65: 11.1522 | I65: 1588 | J65: -0.8914148738 | K65: -0.919155703 | L65: 0.8448472063 | M65: -15.21568627 | N65: 0.42 | O65: 10 | P65: 0.85 | Q65: FALSE | R65: TRUE | S65: TRUE | T65: FALSE | U65: TRUE | V65: FALSE | W65: TRUE | X65: FALSE | Y65: FALSE | Z65: FALSE | AA65: FALSE | AB65: FALSE | AC65: TRUE | AE65: 1083 | AF65: 12.92 | AG65: FALSE | AJ65: 0 | AK65: 14029.7846 | AM65: FALSE | AN65: FALSE | AO65: TRUE | AQ65: 7770 | AR65: 12.92 | AS65: FALSE | AV65: 0 | AW65: 100695.8937
A66: 34 | B66: =OFFSET(InputPriceData!B$15,CalculationsAndCharts!$A66+$A$11,0,1,1) -> 2016-01-25 | C66: =OFFSET(InputPriceData!G$15,CalculationsAndCharts!$A66+$A$11,IF($C$7,8,0),1,1) -> 55479000 | D66: =OFFSET(InputPriceData!C$15,CalculationsAndCharts!$A66+$A$11,IF($C$7,8,0),1,1) -> 8.94 | E66: =OFFSET(InputPriceData!D$15,CalculationsAndCharts!$A66+$A$11,IF($C$7,8,0),1,1) -> 9.12 | F66: =OFFSET(InputPriceData!E$15,CalculationsAndCharts!$A66+$A$11,IF($C$7,8,0),1,1) -> 8.54 | G66: =OFFSET(InputPriceData!F$15,CalculationsAndCharts!$A66+$A$11,IF($C$7,8,0),1,1) -> 8.54 | H66: 11.248 | I66: 1587 | J66: -0.9316092464 | K66: -0.9468035514 | L66: 0.8964369649 | M66: -17.26831785 | N66: 0.42 | O66: 10 | P66: 0.85 | Q66: FALSE | R66: FALSE | S66: TRUE | T66: FALSE | U66: TRUE | V66: FALSE | W66: TRUE | X66: FALSE | Y66: FALSE | Z66: FALSE | AA66: FALSE | AB66: FALSE | AC66: TRUE | AE66: 1083 | AF66: 12.92 | AG66: FALSE | AJ66: 0 | AK66: 14029.7846 | AM66: FALSE | AN66: FALSE | AO66: TRUE | AQ66: 7770 | AR66: 12.92 | AS66: FALSE | AV66: 0 | AW66: 100695.8937
A67: 35 | B67: =OFFSET(InputPriceData!B$15,CalculationsAndCharts!$A67+$A$11,0,1,1) -> 2016-01-22 | C67: =OFFSET(InputPriceData!G$15,CalculationsAndCharts!$A67+$A$11,IF($C$7,8,0),1,1) -> 62556200 | D67: =OFFSET(InputPriceData!C$15,CalculationsAndCharts!$A67+$A$11,IF($C$7,8,0),1,1) -> 9.09 | E67: =OFFSET(InputPriceData!D$15,CalculationsAndCharts!$A67+$A$11,IF($C$7,8,0),1,1) -> 9.29 | F67: =OFFSET(InputPriceData!E$15,CalculationsAndCharts!$A67+$A$11,IF($C$7,8,0),1,1) -> 8.97 | G67: =OFFSET(InputPriceData!F$15,CalculationsAndCharts!$A67+$A$11,IF($C$7,8,0),1,1) -> 9.27 | H67: 11.359 | I67: 1586 | J67: -0.9344429887 | K67: -0.9604611469 | L67: 0.9224856148 | M67: -17.42621259 | N67: 0.42 | O67: 10 | P67: 0.85 | Q67: FALSE | R67: FALSE | S67: TRUE | T67: FALSE | U67: TRUE | V67: FALSE | W67: TRUE | X67: FALSE | Y67: FALSE | Z67: FALSE | AA67: FALSE | AB67: FALSE | AC67: TRUE | AE67: 1083 | AF67: 12.92 | AG67: FALSE | AJ67: 0 | AK67: 14029.7846 | AM67: FALSE | AN67: FALSE | AO67: TRUE | AQ67: 7770 | AR67: 12.92 | AS67: FALSE | AV67: 0 | AW67: 100695.8937
A68: 36 | B68: =OFFSET(InputPriceData!B$15,CalculationsAndCharts!$A68+$A$11,0,1,1) -> 2016-01-21 | C68: =OFFSET(InputPriceData!G$15,CalculationsAndCharts!$A68+$A$11,IF($C$7,8,0),1,1) -> 87217400 | D68: =OFFSET(InputPriceData!C$15,CalculationsAndCharts!$A68+$A$11,IF($C$7,8,0),1,1) -> 8.1 | E68: =OFFSET(InputPriceData!D$15,CalculationsAndCharts!$A68+$A$11,IF($C$7,8,0),1,1) -> 8.69 | F68: =OFFSET(InputPriceData!E$15,CalculationsAndCharts!$A68+$A$11,IF($C$7,8,0),1,1) -> 8.06 | G68: =OFFSET(InputPriceData!F$15,CalculationsAndCharts!$A68+$A$11,IF($C$7,8,0),1,1) -> 8.56 | H68: 11.4552 | I68: 1585 | J68: -0.974358419 | K68: -0.9621885066 | L68: 0.9258067222 | M68: -19.17131063 | N68: 0.42 | O68: 10 | P68: 0.85 | Q68: FALSE | R68: FALSE | S68: TRUE | T68: FALSE | U68: TRUE | V68: FALSE | W68: TRUE | X68: FALSE | Y68: FALSE | Z68: FALSE | AA68: FALSE | AB68: FALSE | AC68: TRUE | AE68: 1083 | AF68: 12.92 | AG68: FALSE | AJ68: 0 | AK68: 14029.7846 | AM68: FALSE | AN68: FALSE | AO68: TRUE | AQ68: 7770 | AR68: 12.92 | AS68: FALSE | AV68: 0 | AW68: 100695.8937
A69: 37 | B69: =OFFSET(InputPriceData!B$15,CalculationsAndCharts!$A69+$A$11,0,1,1) -> 2016-01-20 | C69: =OFFSET(InputPriceData!G$15,CalculationsAndCharts!$A69+$A$11,IF($C$7,8,0),1,1) -> 83215600 | D69: =OFFSET(InputPriceData!C$15,CalculationsAndCharts!$A69+$A$11,IF($C$7,8,0),1,1) -> 8.34 | E69: =OFFSET(InputPriceData!D$15,CalculationsAndCharts!$A69+$A$11,IF($C$7,8,0),1,1) -> 8.37 | F69: =OFFSET(InputPriceData!E$15,CalculationsAndCharts!$A69+$A$11,IF($C$7,8,0),1,1) -> 7.92 | G69: =OFFSET(InputPriceData!F$15,CalculationsAndCharts!$A69+$A$11,IF($C$7,8,0),1,1) -> 8.24 | H69: 11.5686 | I69: 1584 | J69: -0.972582033 | K69: -0.933965075 | L69: 0.8722907613 | M69: -19.03508772 | N69: 0.42 | O69: 10 | P69: 0.85 | Q69: FALSE | R69: FALSE | S69: TRUE | T69: FALSE | U69: TRUE | V69: FALSE | W69: TRUE | X69: FALSE | Y69: FALSE | Z69: FALSE | AA69: FALSE | AB69: FALSE | AC69: TRUE | AE69: 1083 | AF69: 12.92 | AG69: FALSE | AJ69: 0 | AK69: 14029.7846 | AM69: FALSE | AN69: FALSE | AO69: TRUE | AQ69: 7770 | AR69: 12.92 | AS69: FALSE | AV69: 0 | AW69: 100695.8937
A70: 38 | B70: =OFFSET(InputPriceData!B$15,CalculationsAndCharts!$A70+$A$11,0,1,1) -> 2016-01-19 | C70: =OFFSET(InputPriceData!G$15,CalculationsAndCharts!$A70+$A$11,IF($C$7,8,0),1,1) -> 60322600 | D70: =OFFSET(InputPriceData!C$15,CalculationsAndCharts!$A70+$A$11,IF($C$7,8,0),1,1) -> 8.75 | E70: =OFFSET(InputPriceData!D$15,CalculationsAndCharts!$A70+$A$11,IF($C$7,8,0),1,1) -> 8.77 | F70: =OFFSET(InputPriceData!E$15,CalculationsAndCharts!$A70+$A$11,IF($C$7,8,0),1,1) -> 8.45 | G70: =OFFSET(InputPriceData!F$15,CalculationsAndCharts!$A70+$A$11,IF($C$7,8,0),1,1) -> 8.49 | H70: 11.6934 | I70: 1583 | J70: -0.9396250677 | K70: -0.8856655875 | L70: 0.7844035329 | M70: -16.85448916 | N70: 0.42 | O70: 10 | P70: 0.85 | Q70: FALSE | R70: TRUE | S70: TRUE | T70: FALSE | U70: TRUE | V70: FALSE | W70: TRUE | X70: FALSE | Y70: FALSE | Z70: FALSE | AA70: FALSE | AB70: FALSE | AC70: TRUE | AE70: 1083 | AF70: 12.92 | AG70: FALSE | AJ70: 0 | AK70: 14029.7846 | AM70: FALSE | AN70: FALSE | AO70: TRUE | AQ70: 7770 | AR70: 12.92 | AS70: FALSE | AV70: 0 | AW70: 100695.8937
A71: 39 | B71: =OFFSET(InputPriceData!B$15,CalculationsAndCharts!$A71+$A$11,0,1,1) -> 2016-01-15 | C71: =OFFSET(InputPriceData!G$15,CalculationsAndCharts!$A71+$A$11,IF($C$7,8,0),1,1) -> 92820900 | D71: =OFFSET(InputPriceData!C$15,CalculationsAndCharts!$A71+$A$11,IF($C$7,8,0),1,1) -> 8.79 | E71: =OFFSET(InputPriceData!D$15,CalculationsAndCharts!$A71+$A$11,IF($C$7,8,0),1,1) -> 8.9 | F71: =OFFSET(InputPriceData!E$15,CalculationsAndCharts!$A71+$A$11,IF($C$7,8,0),1,1) -> 8.64 | G71: =OFFSET(InputPriceData!F$15,CalculationsAndCharts!$A71+$A$11,IF($C$7,8,0),1,1) -> 8.79 | H71: 11.8206 | I71: 1582 | J71: -0.8896881242 | K71: -0.8278850992 | L71: 0.6853937374 | M71: -14.44891641 | N71: 0.42 | O71: 10 | P71: 0.85 | Q71: FALSE | R71: TRUE | S71: TRUE | T71: FALSE | U71: TRUE | V71: FALSE | W71: TRUE | X71: FALSE | Y71: FALSE | Z71: FALSE | AA71: FALSE | AB71: FALSE | AC71: TRUE | AE71: 1083 | AF71: 12.92 | AG71: FALSE | AJ71: 0 | AK71: 14029.7846 | AM71: FALSE | AN71: FALSE | AO71: TRUE | AQ71: 7770 | AR71: 12.92 | AS71: FALSE | AV71: 0 | AW71: 100695.8937
A72: 40 | B72: =OFFSET(InputPriceData!B$15,CalculationsAndCharts!$A72+$A$11,0,1,1) -> 2016-01-14 | C72: =OFFSET(InputPriceData!G$15,CalculationsAndCharts!$A72+$A$11,IF($C$7,8,0),1,1) -> 47627300 | D72: =OFFSET(InputPriceData!C$15,CalculationsAndCharts!$A72+$A$11,IF($C$7,8,0),1,1) -> 9.14 | E72: =OFFSET(InputPriceData!D$15,CalculationsAndCharts!$A72+$A$11,IF($C$7,8,0),1,1) -> 9.34 | F72: =OFFSET(InputPriceData!E$15,CalculationsAndCharts!$A72+$A$11,IF($C$7,8,0),1,1) -> 9.04 | G72: =OFFSET(InputPriceData!F$15,CalculationsAndCharts!$A72+$A$11,IF($C$7,8,0),1,1) -> 9.23 | H72: 11.9504 | I72: 1581 | J72: -0.8276835706 | K72: -0.7683059983 | L72: 0.590294107 | M72: -12.18369453 | N72: 0.42 | O72: 10 | P72: 0.85 | Q72: FALSE | R72: TRUE | S72: TRUE | T72: FALSE | U72: TRUE | V72: FALSE | W72: TRUE | X72: FALSE | Y72: FALSE | Z72: FALSE | AA72: FALSE | AB72: FALSE | AC72: TRUE | AE72: 1083 | AF72: 12.92 | AG72: FALSE | AJ72: 0 | AK72: 14029.7846 | AM72: FALSE | AN72: FALSE | AO72: TRUE | AQ72: 7770 | AR72: 12.92 | AS72: FALSE | AV72: 0 | AW72: 100695.8937
A73: 41 | B73: =OFFSET(InputPriceData!B$15,CalculationsAndCharts!$A73+$A$11,0,1,1) -> 2016-01-13 | C73: =OFFSET(InputPriceData!G$15,CalculationsAndCharts!$A73+$A$11,IF($C$7,8,0),1,1) -> 100555700 | D73: =OFFSET(InputPriceData!C$15,CalculationsAndCharts!$A73+$A$11,IF($C$7,8,0),1,1) -> 9.3 | E73: =OFFSET(InputPriceData!D$15,CalculationsAndCharts!$A73+$A$11,IF($C$7,8,0),1,1) -> 9.39 | F73: =OFFSET(InputPriceData!E$15,CalculationsAndCharts!$A73+$A$11,IF($C$7,8,0),1,1) -> 8.93 | G73: =OFFSET(InputPriceData!F$15,CalculationsAndCharts!$A73+$A$11,IF($C$7,8,0),1,1) -> 9.09 | H73: 12.0608 | I73: 1580 | J73: -0.7662836026 | K73: -0.7197525917 | L73: 0.5180437933 | M73: -10.53560372 | N73: 0.42 | O73: 10 | P73: 0.85 | Q73: FALSE | R73: TRUE | S73: FALSE | T73: FALSE | U73: TRUE | V73: FALSE | W73: TRUE | X73: FALSE | Y73: FALSE | Z73: FALSE | AA73: FALSE | AB73: FALSE | AC73: TRUE | AE73: 1083 | AF73: 12.92 | AG73: FALSE | AJ73: 0 | AK73: 14029.7846 | AM73: FALSE | AN73: FALSE | AO73: TRUE | AQ73: 7770 | AR73: 12.92 | AS73: FALSE | AV73: 0 | AW73: 100695.8937
A74: 42 | B74: =OFFSET(InputPriceData!B$15,CalculationsAndCharts!$A74+$A$11,0,1,1) -> 2016-01-12 | C74: =OFFSET(InputPriceData!G$15,CalculationsAndCharts!$A74+$A$11,IF($C$7,8,0),1,1) -> 102085300 | D74: =OFFSET(InputPriceData!C$15,CalculationsAndCharts!$A74+$A$11,IF($C$7,8,0),1,1) -> 9.43 | E74: =OFFSET(InputPriceData!D$15,CalculationsAndCharts!$A74+$A$11,IF($C$7,8,0),1,1) -> 9.48 | F74: =OFFSET(InputPriceData!E$15,CalculationsAndCharts!$A74+$A$11,IF($C$7,8,0),1,1) -> 8.9 | G74: =OFFSET(InputPriceData!F$15,CalculationsAndCharts!$A74+$A$11,IF($C$7,8,0),1,1) -> 9.17 | H74: 12.1752 | I74: 1579 | J74: -0.7109508216 | K74: -0.6712979255 | L74: 0.4506409048 | M74: -8.73993808 | N74: 0.42 | O74: 10 | P74: 0.85 | Q74: TRUE | R74: TRUE | S74: FALSE | T74: FALSE | U74: FALSE | V74: FALSE | W74: TRUE | X74: FALSE | Y74: FALSE | Z74: FALSE | AA74: FALSE | AB74: FALSE | AC74: TRUE | AE74: 1083 | AF74: 12.92 | AG74: FALSE | AJ74: 0 | AK74: 14029.7846 | AM74: FALSE | AN74: FALSE | AO74: TRUE | AQ74: 7770 | AR74: 12.92 | AS74: FALSE | AV74: 0 | AW74: 100695.8937
A75: 43 | B75: =OFFSET(InputPriceData!B$15,CalculationsAndCharts!$A75+$A$11,0,1,1) -> 2016-01-11 | C75: =OFFSET(InputPriceData!G$15,CalculationsAndCharts!$A75+$A$11,IF($C$7,8,0),1,1) -> 82280400 | D75: =OFFSET(InputPriceData!C$15,CalculationsAndCharts!$A75+$A$11,IF($C$7,8,0),1,1) -> 9.72 | E75: =OFFSET(InputPriceData!D$15,CalculationsAndCharts!$A75+$A$11,IF($C$7,8,0),1,1) -> 9.76 | F75: =OFFSET(InputPriceData!E$15,CalculationsAndCharts!$A75+$A$11,IF($C$7,8,0),1,1) -> 9.2 | G75: =OFFSET(InputPriceData!F$15,CalculationsAndCharts!$A75+$A$11,IF($C$7,8,0),1,1) -> 9.25 | H75: 12.2844 | I75: 1578 | J75: -0.6820233509 | K75: -0.610243319 | L75: 0.3723969084 | M75: -7.428276574 | N75: 0.42 | O75: 10 | P75: 0.85 | Q75: FALSE | R75: TRUE | S75: FALSE | T75: FALSE | U75: FALSE | V75: FALSE | W75: TRUE | X75: FALSE | Y75: FALSE | Z75: FALSE | AA75: FALSE | AB75: FALSE | AC75: TRUE | AE75: 1083 | AF75: 12.92 | AG75: FALSE | AJ75: 0 | AK75: 14029.7846 | AM75: FALSE | AN75: FALSE | AO75: TRUE | AQ75: 7770 | AR75: 12.92 | AS75: FALSE | AV75: 0 | AW75: 100695.8937
A76: 44 | B76: =OFFSET(InputPriceData!B$15,CalculationsAndCharts!$A76+$A$11,0,1,1) -> 2016-01-08 | C76: =OFFSET(InputPriceData!G$15,CalculationsAndCharts!$A76+$A$11,IF($C$7,8,0),1,1) -> 44688400 | D76: =OFFSET(InputPriceData!C$15,CalculationsAndCharts!$A76+$A$11,IF($C$7,8,0),1,1) -> 9.95 | E76: =OFFSET(InputPriceData!D$15,CalculationsAndCharts!$A76+$A$11,IF($C$7,8,0),1,1) -> 10.02 | F76: =OFFSET(InputPriceData!E$15,CalculationsAndCharts!$A76+$A$11,IF($C$7,8,0),1,1) -> 9.71 | G76: =OFFSET(InputPriceData!F$15,CalculationsAndCharts!$A76+$A$11,IF($C$7,8,0),1,1) -> 9.8 | H76: 12.3932 | I76: 1577 | J76: -0.620919604 | K76: -0.5382089596 | L76: 0.2896688842 | M76: -5.392156863 | N76: 0.42 | O76: 10 | P76: 0.85 | Q76: FALSE | R76: TRUE | S76: FALSE | T76: FALSE | U76: FALSE | V76: FALSE | W76: TRUE | X76: FALSE | Y76: FALSE | Z76: FALSE | AA76: FALSE | AB76: FALSE | AC76: TRUE | AE76: 1083 | AF76: 12.92 | AG76: FALSE | AJ76: 0 | AK76: 14029.7846 | AM76: FALSE | AN76: FALSE | AO76: TRUE | AQ76: 7770 | AR76: 12.92 | AS76: FALSE | AV76: 0 | AW76: 100695.8937
A77: 45 | B77: =OFFSET(InputPriceData!B$15,CalculationsAndCharts!$A77+$A$11,0,1,1) -> 2016-01-07 | C77: =OFFSET(InputPriceData!G$15,CalculationsAndCharts!$A77+$A$11,IF($C$7,8,0),1,1) -> 51997700 | D77: =OFFSET(InputPriceData!C$15,CalculationsAndCharts!$A77+$A$11,IF($C$7,8,0),1,1) -> 9.89 | E77: =OFFSET(InputPriceData!D$15,CalculationsAndCharts!$A77+$A$11,IF($C$7,8,0),1,1) -> 10.2 | F77: =OFFSET(InputPriceData!E$15,CalculationsAndCharts!$A77+$A$11,IF($C$7,8,0),1,1) -> 9.85 | G77: =OFFSET(InputPriceData!F$15,CalculationsAndCharts!$A77+$A$11,IF($C$7,8,0),1,1) -> 9.9 | H77: 12.4736 | I77: 1576 | J77: -0.5277870022 | K77: -0.4735103524 | L77: 0.2242120538 | M77: -3.882352941 | N77: 0.42 | O77: 10 | P77: 0.85 | Q77: FALSE | R77: TRUE | S77: FALSE | T77: FALSE | U77: FALSE | V77: FALSE | W77: TRUE | X77: FALSE | Y77: FALSE | Z77: FALSE | AA77: FALSE | AB77: FALSE | AC77: TRUE | AE77: 1083 | AF77: 12.92 | AG77: FALSE | AJ77: 0 | AK77: 14029.7846 | AM77: FALSE | AN77: FALSE | AO77: TRUE | AQ77: 7770 | AR77: 12.92 | AS77: FALSE | AV77: 0 | AW77: 100695.8937
A78: 46 | B78: =OFFSET(InputPriceData!B$15,CalculationsAndCharts!$A78+$A$11,0,1,1) -> 2016-01-06 | C78: =OFFSET(InputPriceData!G$15,CalculationsAndCharts!$A78+$A$11,IF($C$7,8,0),1,1) -> 73087100 | D78: =OFFSET(InputPriceData!C$15,CalculationsAndCharts!$A78+$A$11,IF($C$7,8,0),1,1) -> 10.3 | E78: =OFFSET(InputPriceData!D$15,CalculationsAndCharts!$A78+$A$11,IF($C$7,8,0),1,1) -> 10.47 | F78: =OFFSET(InputPriceData!E$15,CalculationsAndCharts!$A78+$A$11,IF($C$7,8,0),1,1) -> 10.06 | G78: =OFFSET(InputPriceData!F$15,CalculationsAndCharts!$A78+$A$11,IF($C$7,8,0),1,1) -> 10.11 | H78: 12.5558 | I78: 1575 | J78: -0.4659202726 | K78: -0.4523999592 | L78: 0.2046657231 | M78: -2.832817337 | N78: 0.42 | O78: 10 | P78: 0.85 | Q78: FALSE | R78: TRUE | S78: FALSE | T78: FALSE | U78: FALSE | V78: FALSE | W78: TRUE | X78: FALSE | Y78: FALSE | Z78: FALSE | AA78: FALSE | AB78: FALSE | AC78: TRUE | AE78: 1083 | AF78: 12.92 | AG78: FALSE | AJ78: 0 | AK78: 14029.7846 | AM78: FALSE | AN78: FALSE | AO78: TRUE | AQ78: 7770 | AR78: 12.92 | AS78: FALSE | AV78: 0 | AW78: 100695.8937
A79: 47 | B79: =OFFSET(InputPriceData!B$15,CalculationsAndCharts!$A79+$A$11,0,1,1) -> 2016-01-05 | C79: =OFFSET(InputPriceData!G$15,CalculationsAndCharts!$A79+$A$11,IF($C$7,8,0),1,1) -> 32173600 | D79: =OFFSET(InputPriceData!C$15,CalculationsAndCharts!$A79+$A$11,IF($C$7,8,0),1,1) -> 10.8 | E79: =OFFSET(InputPriceData!D$15,CalculationsAndCharts!$A79+$A$11,IF($C$7,8,0),1,1) -> 10.87 | F79: =OFFSET(InputPriceData!E$15,CalculationsAndCharts!$A79+$A$11,IF($C$7,8,0),1,1) -> 10.64 | G79: =OFFSET(InputPriceData!F$15,CalculationsAndCharts!$A79+$A$11,IF($C$7,8,0),1,1) -> 10.66 | H79: 12.639 | I79: 1574 | J79: -0.4268237822 | K79: -0.4834626096 | L79: 0.2337360949 | M79: -2.2249742 | N79: 0.42 | O79: 10 | P79: 0.85 | Q79: FALSE | R79: TRUE | S79: FALSE | T79: FALSE | U79: FALSE | V79: FALSE | W79: TRUE | X79: FALSE | Y79: FALSE | Z79: FALSE | AA79: FALSE | AB79: FALSE | AC79: TRUE | AE79: 1083 | AF79: 12.92 | AG79: FALSE | AJ79: 0 | AK79: 14029.7846 | AM79: FALSE | AN79: FALSE | AO79: TRUE | AQ79: 7770 | AR79: 12.92 | AS79: FALSE | AV79: 0 | AW79: 100695.8937
A80: 48 | B80: =OFFSET(InputPriceData!B$15,CalculationsAndCharts!$A80+$A$11,0,1,1) -> 2016-01-04 | C80: =OFFSET(InputPriceData!G$15,CalculationsAndCharts!$A80+$A$11,IF($C$7,8,0),1,1) -> 36236700 | D80: =OFFSET(InputPriceData!C$15,CalculationsAndCharts!$A80+$A$11,IF($C$7,8,0),1,1) -> 11.26 | E80: =OFFSET(InputPriceData!D$15,CalculationsAndCharts!$A80+$A$11,IF($C$7,8,0),1,1) -> 11.42 | F80: =OFFSET(InputPriceData!E$15,CalculationsAndCharts!$A80+$A$11,IF($C$7,8,0),1,1) -> 10.82 | G80: =OFFSET(InputPriceData!F$15,CalculationsAndCharts!$A80+$A$11,IF($C$7,8,0),1,1) -> 10.98 | H80: 12.716 | I80: 1573 | J80: -0.4644558227 | K80: -0.5584626567 | L80: 0.3118805389 | M80: -2.606811146 | N80: 0.42 | O80: 10 | P80: 0.85 | Q80: FALSE | R80: TRUE | S80: FALSE | T80: FALSE | U80: FALSE | V80: FALSE | W80: TRUE | X80: FALSE | Y80: FALSE | Z80: FALSE | AA80: FALSE | AB80: FALSE | AC80: TRUE | AE80: 1083 | AF80: 12.92 | AG80: FALSE | AJ80: 0 | AK80: 14029.7846 | AM80: FALSE | AN80: FALSE | AO80: TRUE | AQ80: 7770 | AR80: 12.92 | AS80: FALSE | AV80: 0 | AW80: 100695.8937
A81: 49 | B81: =OFFSET(InputPriceData!B$15,CalculationsAndCharts!$A81+$A$11,0,1,1) -> 2015-12-31 | C81: =OFFSET(InputPriceData!G$15,CalculationsAndCharts!$A81+$A$11,IF($C$7,8,0),1,1) -> 30362300 | D81: =OFFSET(InputPriceData!C$15,CalculationsAndCharts!$A81+$A$11,IF($C$7,8,0),1,1) -> 10.84 | E81: =OFFSET(InputPriceData!D$15,CalculationsAndCharts!$A81+$A$11,IF($C$7,8,0),1,1) -> 11.24 | F81: =OFFSET(InputPriceData!E$15,CalculationsAndCharts!$A81+$A$11,IF($C$7,8,0),1,1) -> 10.82 | G81: =OFFSET(InputPriceData!F$15,CalculationsAndCharts!$A81+$A$11,IF($C$7,8,0),1,1) -> 11 | H81: 12.785 | I81: 1572 | J81: -0.5591082238 | K81: -0.6414906057 | L81: 0.4115101972 | M81: -3.475748194 | N81: 0.42 | O81: 10 | P81: 0.85 | Q81: FALSE | R81: TRUE | S81: FALSE | T81: FALSE | U81: FALSE | V81: FALSE | W81: TRUE | X81: FALSE | Y81: FALSE | Z81: FALSE | AA81: FALSE | AB81: FALSE | AC81: TRUE | AE81: 1083 | AF81: 12.92 | AG81: FALSE | AJ81: 0 | AK81: 14029.7846 | AM81: FALSE | AN81: FALSE | AO81: TRUE | AQ81: 7770 | AR81: 12.92 | AS81: FALSE | AV81: 0 | AW81: 100695.8937
A82: 50 | B82: =OFFSET(InputPriceData!B$15,CalculationsAndCharts!$A82+$A$11,0,1,1) -> 2015-12-30 | C82: =OFFSET(InputPriceData!G$15,CalculationsAndCharts!$A82+$A$11,IF($C$7,8,0),1,1) -> 24796400 | D82: =OFFSET(InputPriceData!C$15,CalculationsAndCharts!$A82+$A$11,IF($C$7,8,0),1,1) -> 10.96 | E82: =OFFSET(InputPriceData!D$15,CalculationsAndCharts!$A82+$A$11,IF($C$7,8,0),1,1) -> 11 | F82: =OFFSET(InputPriceData!E$15,CalculationsAndCharts!$A82+$A$11,IF($C$7,8,0),1,1) -> 10.84 | G82: =OFFSET(InputPriceData!F$15,CalculationsAndCharts!$A82+$A$11,IF($C$7,8,0),1,1) -> 10.93 | H82: 12.8596 | I82: 1571 | J82: -0.6518239236 | K82: -0.7237347928 | L82: 0.5237920503 | M82: -5.529411765 | N82: 0.42 | O82: 10 | P82: 0.85 | Q82: FALSE | R82: TRUE | S82: FALSE | T82: FALSE | U82: FALSE | V82: FALSE | W82: TRUE | X82: FALSE | Y82: FALSE | Z82: FALSE | AA82: FALSE | AB82: FALSE | AC82: TRUE | AE82: 1083 | AF82: 12.92 | AG82: FALSE | AJ82: 0 | AK82: 14029.7846 | AM82: FALSE | AN82: FALSE | AO82: TRUE | AQ82: 7770 | AR82: 12.92 | AS82: FALSE | AV82: 0 | AW82: 100695.8937
A83: 51 | B83: =OFFSET(InputPriceData!B$15,CalculationsAndCharts!$A83+$A$11,0,1,1) -> 2015-12-29 | C83: =OFFSET(InputPriceData!G$15,CalculationsAndCharts!$A83+$A$11,IF($C$7,8,0),1,1) -> 23585200 | D83: =OFFSET(InputPriceData!C$15,CalculationsAndCharts!$A83+$A$11,IF($C$7,8,0),1,1) -> 11.16 | E83: =OFFSET(InputPriceData!D$15,CalculationsAndCharts!$A83+$A$11,IF($C$7,8,0),1,1) -> 11.29 | F83: =OFFSET(InputPriceData!E$15,CalculationsAndCharts!$A83+$A$11,IF($C$7,8,0),1,1) -> 11.15 | G83: =OFFSET(InputPriceData!F$15,CalculationsAndCharts!$A83+$A$11,IF($C$7,8,0),1,1) -> 11.26 | H83: 12.9376 | I83: 1570 | J83: -0.7135396697 | K83: -0.7882162593 | L83: 0.6212848714 | M83: -7.688338493 | N83: 0.42 | O83: 10 | P83: 0.85 | Q83: FALSE | R83: TRUE | S83: FALSE | T83: FALSE | U83: FALSE | V83: FALSE | W83: TRUE | X83: FALSE | Y83: FALSE | Z83: FALSE | AA83: FALSE | AB83: FALSE | AC83: TRUE | AE83: 1083 | AF83: 12.92 | AG83: FALSE | AJ83: 0 | AK83: 14029.7846 | AM83: FALSE | AN83: FALSE | AO83: TRUE | AQ83: 7770 | AR83: 12.92 | AS83: FALSE | AV83: 0 | AW83: 100695.8937
A84: 52 | B84: =OFFSET(InputPriceData!B$15,CalculationsAndCharts!$A84+$A$11,0,1,1) -> 2015-12-28 | C84: =OFFSET(InputPriceData!G$15,CalculationsAndCharts!$A84+$A$11,IF($C$7,8,0),1,1) -> 20495900 | D84: =OFFSET(InputPriceData!C$15,CalculationsAndCharts!$A84+$A$11,IF($C$7,8,0),1,1) -> 11.06 | E84: =OFFSET(InputPriceData!D$15,CalculationsAndCharts!$A84+$A$11,IF($C$7,8,0),1,1) -> 11.07 | F84: =OFFSET(InputPriceData!E$15,CalculationsAndCharts!$A84+$A$11,IF($C$7,8,0),1,1) -> 10.91 | G84: =OFFSET(InputPriceData!F$15,CalculationsAndCharts!$A84+$A$11,IF($C$7,8,0),1,1) -> 10.93 | H84: 13.0168 | I84: 1569 | J84: -0.8058407851 | K84: -0.853997245 | L84: 0.7293112945 | M84: -9.605779154 | N84: 0.42 | O84: 10 | P84: 0.85 | Q84: FALSE | R84: TRUE | S84: TRUE | T84: FALSE | U84: FALSE | V84: FALSE | W84: TRUE | X84: FALSE | Y84: FALSE | Z84: FALSE | AA84: FALSE | AB84: FALSE | AC84: TRUE | AE84: 1083 | AF84: 12.92 | AG84: FALSE | AJ84: 0 | AK84: 14029.7846 | AM84: FALSE | AN84: FALSE | AO84: TRUE | AQ84: 7770 | AR84: 12.92 | AS84: FALSE | AV84: 0 | AW84: 100695.8937
A85: 53 | B85: =OFFSET(InputPriceData!B$15,CalculationsAndCharts!$A85+$A$11,0,1,1) -> 2015-12-24 | C85: =OFFSET(InputPriceData!G$15,CalculationsAndCharts!$A85+$A$11,IF($C$7,8,0),1,1) -> 19038100 | D85: =OFFSET(InputPriceData!C$15,CalculationsAndCharts!$A85+$A$11,IF($C$7,8,0),1,1) -> 11.34 | E85: =OFFSET(InputPriceData!D$15,CalculationsAndCharts!$A85+$A$11,IF($C$7,8,0),1,1) -> 11.35 | F85: =OFFSET(InputPriceData!E$15,CalculationsAndCharts!$A85+$A$11,IF($C$7,8,0),1,1) -> 11.23 | G85: =OFFSET(InputPriceData!F$15,CalculationsAndCharts!$A85+$A$11,IF($C$7,8,0),1,1) -> 11.3 | H85: 13.1008 | I85: 1568 | J85: -0.845268323 | K85: -0.9054166066 | L85: 0.8197792314 | M85: -11.44891641 | N85: 0.42 | O85: 10 | P85: 0.85 | Q85: FALSE | R85: TRUE | S85: TRUE | T85: FALSE | U85: TRUE | V85: FALSE | W85: TRUE | X85: FALSE | Y85: FALSE | Z85: FALSE | AA85: FALSE | AB85: FALSE | AC85: TRUE | AE85: 1083 | AF85: 12.92 | AG85: FALSE | AJ85: 0 | AK85: 14029.7846 | AM85: FALSE | AN85: FALSE | AO85: TRUE | AQ85: 7770 | AR85: 12.92 | AS85: FALSE | AV85: 0 | AW85: 100695.8937
A86: 54 | B86: =OFFSET(InputPriceData!B$15,CalculationsAndCharts!$A86+$A$11,0,1,1) -> 2015-12-23 | C86: =OFFSET(InputPriceData!G$15,CalculationsAndCharts!$A86+$A$11,IF($C$7,8,0),1,1) -> 39354100 | D86: =OFFSET(InputPriceData!C$15,CalculationsAndCharts!$A86+$A$11,IF($C$7,8,0),1,1) -> 11.06 | E86: =OFFSET(InputPriceData!D$15,CalculationsAndCharts!$A86+$A$11,IF($C$7,8,0),1,1) -> 11.29 | F86: =OFFSET(InputPriceData!E$15,CalculationsAndCharts!$A86+$A$11,IF($C$7,8,0),1,1) -> 11 | G86: =OFFSET(InputPriceData!F$15,CalculationsAndCharts!$A86+$A$11,IF($C$7,8,0),1,1) -> 11.26 | H86: 13.1758 | I86: 1567 | J86: -0.910882627 | K86: -0.9473382082 | L86: 0.8974496807 | M86: -13.56553148 | N86: 0.42 | O86: 10 | P86: 0.85 | Q86: FALSE | R86: FALSE | S86: TRUE | T86: FALSE | U86: TRUE | V86: FALSE | W86: TRUE | X86: FALSE | Y86: FALSE | Z86: FALSE | AA86: FALSE | AB86: FALSE | AC86: TRUE | AE86: 1083 | AF86: 12.92 | AG86: FALSE | AJ86: 0 | AK86: 14029.7846 | AM86: FALSE | AN86: FALSE | AO86: TRUE | AQ86: 7770 | AR86: 12.92 | AS86: FALSE | AV86: 0 | AW86: 100695.8937
A87: 55 | B87: =OFFSET(InputPriceData!B$15,CalculationsAndCharts!$A87+$A$11,0,1,1) -> 2015-12-22 | C87: =OFFSET(InputPriceData!G$15,CalculationsAndCharts!$A87+$A$11,IF($C$7,8,0),1,1) -> 21942200 | D87: =OFFSET(InputPriceData!C$15,CalculationsAndCharts!$A87+$A$11,IF($C$7,8,0),1,1) -> 10.68 | E87: =OFFSET(InputPriceData!D$15,CalculationsAndCharts!$A87+$A$11,IF($C$7,8,0),1,1) -> 10.88 | F87: =OFFSET(InputPriceData!E$15,CalculationsAndCharts!$A87+$A$11,IF($C$7,8,0),1,1) -> 10.66 | G87: =OFFSET(InputPriceData!F$15,CalculationsAndCharts!$A87+$A$11,IF($C$7,8,0),1,1) -> 10.77 | H87: 13.2518 | I87: 1566 | J87: -0.9600988697 | K87: -0.9683670406 | L87: 0.9377347253 | M87: -15.44272446 | N87: 0.42 | O87: 10 | P87: 0.85 | Q87: FALSE | R87: FALSE | S87: TRUE | T87: FALSE | U87: TRUE | V87: FALSE | W87: TRUE | X87: FALSE | Y87: FALSE | Z87: FALSE | AA87: FALSE | AB87: FALSE | AC87: TRUE | AE87: 1083 | AF87: 12.92 | AG87: FALSE | AJ87: 0 | AK87: 14029.7846 | AM87: FALSE | AN87: FALSE | AO87: TRUE | AQ87: 7770 | AR87: 12.92 | AS87: FALSE | AV87: 0 | AW87: 100695.8937
A88: 56 | B88: =OFFSET(InputPriceData!B$15,CalculationsAndCharts!$A88+$A$11,0,1,1) -> 2015-12-21 | C88: =OFFSET(InputPriceData!G$15,CalculationsAndCharts!$A88+$A$11,IF($C$7,8,0),1,1) -> 26532400 | D88: =OFFSET(InputPriceData!C$15,CalculationsAndCharts!$A88+$A$11,IF($C$7,8,0),1,1) -> 10.6 | E88: =OFFSET(InputPriceData!D$15,CalculationsAndCharts!$A88+$A$11,IF($C$7,8,0),1,1) -> 10.75 | F88: =OFFSET(InputPriceData!E$15,CalculationsAndCharts!$A88+$A$11,IF($C$7,8,0),1,1) -> 10.52 | G88: =OFFSET(InputPriceData!F$15,CalculationsAndCharts!$A88+$A$11,IF($C$7,8,0),1,1) -> 10.66 | H88: 13.3426 | I88: 1565 | J88: -0.971033128 | K88: -0.9691194568 | L88: 0.9391925216 | M88: -16.625387 | N88: 0.42 | O88: 10 | P88: 0.85 | Q88: FALSE | R88: FALSE | S88: TRUE | T88: FALSE | U88: TRUE | V88: FALSE | W88: TRUE | X88: FALSE | Y88: FALSE | Z88: FALSE | AA88: FALSE | AB88: FALSE | AC88: TRUE | AE88: 1083 | AF88: 12.92 | AG88: FALSE | AJ88: 0 | AK88: 14029.7846 | AM88: FALSE | AN88: FALSE | AO88: TRUE | AQ88: 7770 | AR88: 12.92 | AS88: FALSE | AV88: 0 | AW88: 100695.8937
A89: 57 | B89: =OFFSET(InputPriceData!B$15,CalculationsAndCharts!$A89+$A$11,0,1,1) -> 2015-12-18 | C89: =OFFSET(InputPriceData!G$15,CalculationsAndCharts!$A89+$A$11,IF($C$7,8,0),1,1) -> 37112500 | D89: =OFFSET(InputPriceData!C$15,CalculationsAndCharts!$A89+$A$11,IF($C$7,8,0),1,1) -> 10.81 | E89: =OFFSET(InputPriceData!D$15,CalculationsAndCharts!$A89+$A$11,IF($C$7,8,0),1,1) -> 10.99 | F89: =OFFSET(InputPriceData!E$15,CalculationsAndCharts!$A89+$A$11,IF($C$7,8,0),1,1) -> 10.62 | G89: =OFFSET(InputPriceData!F$15,CalculationsAndCharts!$A89+$A$11,IF($C$7,8,0),1,1) -> 10.66 | H89: 13.4492 | I89: 1564 | J89: -0.9739691241 | K89: -0.9587401585 | L89: 0.9191826915 | M89: -16.92879257 | N89: 0.42 | O89: 10 | P89: 0.85 | Q89: FALSE | R89: FALSE | S89: TRUE | T89: FALSE | U89: TRUE | V89: FALSE | W89: TRUE | X89: FALSE | Y89: FALSE | Z89: FALSE | AA89: FALSE | AB89: FALSE | AC89: TRUE | AE89: 1083 | AF89: 12.92 | AG89: FALSE | AJ89: 0 | AK89: 14029.7846 | AM89: FALSE | AN89: FALSE | AO89: TRUE | AQ89: 7770 | AR89: 12.92 | AS89: FALSE | AV89: 0 | AW89: 100695.8937
A90: 58 | B90: =OFFSET(InputPriceData!B$15,CalculationsAndCharts!$A90+$A$11,0,1,1) -> 2015-12-17 | C90: =OFFSET(InputPriceData!G$15,CalculationsAndCharts!$A90+$A$11,IF($C$7,8,0),1,1) -> 30064600 | D90: =OFFSET(InputPriceData!C$15,CalculationsAndCharts!$A90+$A$11,IF($C$7,8,0),1,1) -> 10.95 | E90: =OFFSET(InputPriceData!D$15,CalculationsAndCharts!$A90+$A$11,IF($C$7,8,0),1,1) -> 10.95 | F90: =OFFSET(InputPriceData!E$15,CalculationsAndCharts!$A90+$A$11,IF($C$7,8,0),1,1) -> 10.71 | G90: =OFFSET(InputPriceData!F$15,CalculationsAndCharts!$A90+$A$11,IF($C$7,8,0),1,1) -> 10.74 | H90: 13.55680002 | I90: 1563 | J90: -0.9623561185 | K90: -0.9387273043 | L90: 0.8812089518 | M90: -16.15686275 | N90: 0.42 | O90: 10 | P90: 0.85 | Q90: FALSE | R90: FALSE | S90: TRUE | T90: FALSE | U90: TRUE | V90: FALSE | W90: TRUE | X90: FALSE | Y90: FALSE | Z90: FALSE | AA90: FALSE | AB90: FALSE | AC90: TRUE | AE90: 1083 | AF90: 12.92 | AG90: FALSE | AJ90: 0 | AK90: 14029.7846 | AM90: FALSE | AN90: FALSE | AO90: TRUE | AQ90: 7770 | AR90: 12.92 | AS90: FALSE | AV90: 0 | AW90: 100695.8937
A91: 59 | B91: =OFFSET(InputPriceData!B$15,CalculationsAndCharts!$A91+$A$11,0,1,1) -> 2015-12-16 | C91: =OFFSET(InputPriceData!G$15,CalculationsAndCharts!$A91+$A$11,IF($C$7,8,0),1,1) -> 36387300 | D91: =OFFSET(InputPriceData!C$15,CalculationsAndCharts!$A91+$A$11,IF($C$7,8,0),1,1) -> 11.23 | E91: =OFFSET(InputPriceData!D$15,CalculationsAndCharts!$A91+$A$11,IF($C$7,8,0),1,1) -> 11.34 | F91: =OFFSET(InputPriceData!E$15,CalculationsAndCharts!$A91+$A$11,IF($C$7,8,0),1,1) -> 10.88 | G91: =OFFSET(InputPriceData!F$15,CalculationsAndCharts!$A91+$A$11,IF($C$7,8,0),1,1) -> 10.99 | H91: 13.65340002 | I91: 1562 | J91: -0.9398952329 | K91: -0.9165026683 | L91: 0.8399771409 | M91: -14.89680083 | N91: 0.42 | O91: 10 | P91: 0.85 | Q91: FALSE | R91: TRUE | S91: TRUE | T91: FALSE | U91: TRUE | V91: FALSE | W91: TRUE | X91: FALSE | Y91: FALSE | Z91: FALSE | AA91: FALSE | AB91: FALSE | AC91: TRUE | AE91: 1083 | AF91: 12.92 | AG91: FALSE | AJ91: 0 | AK91: 14029.7846 | AM91: FALSE | AN91: FALSE | AO91: TRUE | AQ91: 7770 | AR91: 12.92 | AS91: FALSE | AV91: 0 | AW91: 100695.8937
A92: 60 | B92: =OFFSET(InputPriceData!B$15,CalculationsAndCharts!$A92+$A$11,0,1,1) -> 2015-12-15 | C92: =OFFSET(InputPriceData!G$15,CalculationsAndCharts!$A92+$A$11,IF($C$7,8,0),1,1) -> 35892100 | D92: =OFFSET(InputPriceData!C$15,CalculationsAndCharts!$A92+$A$11,IF($C$7,8,0),1,1) -> 11.33 | E92: =OFFSET(InputPriceData!D$15,CalculationsAndCharts!$A92+$A$11,IF($C$7,8,0),1,1) -> 11.65 | F92: =OFFSET(InputPriceData!E$15,CalculationsAndCharts!$A92+$A$11,IF($C$7,8,0),1,1) -> 11.25 | G92: =OFFSET(InputPriceData!F$15,CalculationsAndCharts!$A92+$A$11,IF($C$7,8,0),1,1) -> 11.4 | H92: 13.74840002 | I92: 1561 | J92: -0.9139305614 | K92: -0.8890036994 | L92: 0.7903275776 | M92: -13.72755418 | N92: 0.42 | O92: 10 | P92: 0.85 | Q92: FALSE | R92: TRUE | S92: TRUE | T92: FALSE | U92: TRUE | V92: FALSE | W92: TRUE | X92: FALSE | Y92: FALSE | Z92: FALSE | AA92: FALSE | AB92: FALSE | AC92: TRUE | AE92: 1083 | AF92: 12.92 | AG92: FALSE | AJ92: 0 | AK92: 14029.7846 | AM92: FALSE | AN92: FALSE | AO92: TRUE | AQ92: 7770 | AR92: 12.92 | AS92: FALSE | AV92: 0 | AW92: 100695.8937
A93: 61 | B93: =OFFSET(InputPriceData!B$15,CalculationsAndCharts!$A93+$A$11,0,1,1) -> 2015-12-14 | C93: =OFFSET(InputPriceData!G$15,CalculationsAndCharts!$A93+$A$11,IF($C$7,8,0),1,1) -> 39148200 | D93: =OFFSET(InputPriceData!C$15,CalculationsAndCharts!$A93+$A$11,IF($C$7,8,0),1,1) -> 10.97 | E93: =OFFSET(InputPriceData!D$15,CalculationsAndCharts!$A93+$A$11,IF($C$7,8,0),1,1) -> 11.3 | F93: =OFFSET(InputPriceData!E$15,CalculationsAndCharts!$A93+$A$11,IF($C$7,8,0),1,1) -> 10.79 | G93: =OFFSET(InputPriceData!F$15,CalculationsAndCharts!$A93+$A$11,IF($C$7,8,0),1,1) -> 11.16 | H93: 13.82040002 | I93: 1560 | J93: -0.8956822105 | K93: -0.8648232461 | L93: 0.747919247 | M93: -13.11351909 | N93: 0.42 | O93: 10 | P93: 0.85 | Q93: FALSE | R93: TRUE | S93: TRUE | T93: FALSE | U93: TRUE | V93: FALSE | W93: TRUE | X93: FALSE | Y93: FALSE | Z93: FALSE | AA93: FALSE | AB93: FALSE | AC93: TRUE | AE93: 1083 | AF93: 12.92 | AG93: FALSE | AJ93: 0 | AK93: 14029.7846 | AM93: FALSE | AN93: FALSE | AO93: TRUE | AQ93: 7770 | AR93: 12.92 | AS93: FALSE | AV93: 0 | AW93: 100695.8937
A94: 62 | B94: =OFFSET(InputPriceData!B$15,CalculationsAndCharts!$A94+$A$11,0,1,1) -> 2015-12-11 | C94: =OFFSET(InputPriceData!G$15,CalculationsAndCharts!$A94+$A$11,IF($C$7,8,0),1,1) -> 44460900 | D94: =OFFSET(InputPriceData!C$15,CalculationsAndCharts!$A94+$A$11,IF($C$7,8,0),1,1) -> 11.3 | E94: =OFFSET(InputPriceData!D$15,CalculationsAndCharts!$A94+$A$11,IF($C$7,8,0),1,1) -> 11.33 | F94: =OFFSET(InputPriceData!E$15,CalculationsAndCharts!$A94+$A$11,IF($C$7,8,0),1,1) -> 11 | G94: =OFFSET(InputPriceData!F$15,CalculationsAndCharts!$A94+$A$11,IF($C$7,8,0),1,1) -> 11.07 | H94: 13.89260002 | I94: 1559 | J94: -0.8573983263 | K94: -0.8288682832 | L94: 0.6870226309 | M94: -11.61816305 | N94: 0.42 | O94: 10 | P94: 0.85 | Q94: FALSE | R94: TRUE | S94: FALSE | T94: FALSE | U94: TRUE | V94: FALSE | W94: TRUE | X94: FALSE | Y94: FALSE | Z94: FALSE | AA94: FALSE | AB94: FALSE | AC94: TRUE | AE94: 1083 | AF94: 12.92 | AG94: FALSE | AJ94: 0 | AK94: 14029.7846 | AM94: FALSE | AN94: FALSE | AO94: TRUE | AQ94: 7770 | AR94: 12.92 | AS94: FALSE | AV94: 0 | AW94: 100695.8937
A95: 63 | B95: =OFFSET(InputPriceData!B$15,CalculationsAndCharts!$A95+$A$11,0,1,1) -> 2015-12-10 | C95: =OFFSET(InputPriceData!G$15,CalculationsAndCharts!$A95+$A$11,IF($C$7,8,0),1,1) -> 33745900 | D95: =OFFSET(InputPriceData!C$15,CalculationsAndCharts!$A95+$A$11,IF($C$7,8,0),1,1) -> 11.44 | E95: =OFFSET(InputPriceData!D$15,CalculationsAndCharts!$A95+$A$11,IF($C$7,8,0),1,1) -> 11.57 | F95: =OFFSET(InputPriceData!E$15,CalculationsAndCharts!$A95+$A$11,IF($C$7,8,0),1,1) -> 11.33 | G95: =OFFSET(InputPriceData!F$15,CalculationsAndCharts!$A95+$A$11,IF($C$7,8,0),1,1) -> 11.37 | H95: 13.96280002 | I95: 1558 | J95: -0.8413892015 | K95: -0.7955203254 | L95: 0.6328525881 | M95: -10.23116615 | N95: 0.42 | O95: 10 | P95: 0.85 | Q95: FALSE | R95: TRUE | S95: FALSE | T95: FALSE | U95: TRUE | V95: FALSE | W95: TRUE | X95: FALSE | Y95: FALSE | Z95: FALSE | AA95: FALSE | AB95: FALSE | AC95: TRUE | AE95: 1083 | AF95: 12.92 | AG95: FALSE | AJ95: 0 | AK95: 14029.7846 | AM95: FALSE | AN95: FALSE | AO95: TRUE | AQ95: 7770 | AR95: 12.92 | AS95: FALSE | AV95: 0 | AW95: 100695.8937
A96: 64 | B96: =OFFSET(InputPriceData!B$15,CalculationsAndCharts!$A96+$A$11,0,1,1) -> 2015-12-09 | C96: =OFFSET(InputPriceData!G$15,CalculationsAndCharts!$A96+$A$11,IF($C$7,8,0),1,1) -> 38871100 | D96: =OFFSET(InputPriceData!C$15,CalculationsAndCharts!$A96+$A$11,IF($C$7,8,0),1,1) -> 11.77 | E96: =OFFSET(InputPriceData!D$15,CalculationsAndCharts!$A96+$A$11,IF($C$7,8,0),1,1) -> 12.06 | F96: =OFFSET(InputPriceData!E$15,CalculationsAndCharts!$A96+$A$11,IF($C$7,8,0),1,1) -> 11.43 | G96: =OFFSET(InputPriceData!F$15,CalculationsAndCharts!$A96+$A$11,IF($C$7,8,0),1,1) -> 11.56 | H96: 14.02900002 | I96: 1557 | J96: -0.7878173217 | K96: -0.7672608765 | L96: 0.5886892527 | M96: -8.374613003 | N96: 0.42 | O96: 10 | P96: 0.85 | Q96: FALSE | R96: TRUE | S96: FALSE | T96: FALSE | U96: FALSE | V96: FALSE | W96: TRUE | X96: FALSE | Y96: FALSE | Z96: FALSE | AA96: FALSE | AB96: FALSE | AC96: TRUE | AE96: 1083 | AF96: 12.92 | AG96: FALSE | AJ96: 0 | AK96: 14029.7846 | AM96: FALSE | AN96: FALSE | AO96: TRUE | AQ96: 7770 | AR96: 12.92 | AS96: FALSE | AV96: 0 | AW96: 100695.8937
A97: 65 | B97: =OFFSET(InputPriceData!B$15,CalculationsAndCharts!$A97+$A$11,0,1,1) -> 2015-12-08 | C97: =OFFSET(InputPriceData!G$15,CalculationsAndCharts!$A97+$A$11,IF($C$7,8,0),1,1) -> 39573700 | D97: =OFFSET(InputPriceData!C$15,CalculationsAndCharts!$A97+$A$11,IF($C$7,8,0),1,1) -> 11.52 | E97: =OFFSET(InputPriceData!D$15,CalculationsAndCharts!$A97+$A$11,IF($C$7,8,0),1,1) -> 11.97 | F97: =OFFSET(InputPriceData!E$15,CalculationsAndCharts!$A97+$A$11,IF($C$7,8,0),1,1) -> 11.45 | G97: =OFFSET(InputPriceData!F$15,CalculationsAndCharts!$A97+$A$11,IF($C$7,8,0),1,1) -> 11.68 | H97: =IF($A97>$A$8,0,IF($A97=$A$8,$G97,AVERAGE(OFFSET($G97,0,0,$A$15,1)))) -> 14.09000002 | I97: 1556 | J97: =IF($A97>$C$9,"",PEARSON(OFFSET(G97,0,0,$A$14,1),OFFSET(I97,0,0,$A$14,1))) -> -0.7573544529 | K97: =IF($A97>$C$9,"",AVERAGE(OFFSET(J97,0,0,$A$21,1))) -> -0.7627283387 | L97: 0.5817545186 | M97: =IF($A97>$C$9,"",100*SLOPE(OFFSET(G97,0,0,$A$14,1),OFFSET(I97,0,0,$A$14,1))) -> -7.050567595 | N97: =$A$22 -> 0.42 | O97: =$A$25 -> 10 | P97: =$A$23 -> 0.85 | Q97: =IF($A97>$C$9,"",AND(L97>N97,L98<=N98)) -> FALSE | R97: =IF($A97>$C$9,"",L97<P97) -> TRUE | S97: =IF($A97>$C$9,"",L97>OFFSET(L97,$A$24,0,1,1)) -> FALSE | T97: =IF($A97>$C$9,"",M97>O97) -> FALSE | U97: =IF($A97>$C$9,"",M97<-O97) -> FALSE | V97: =G97>H97 -> FALSE | W97: =G97<H97 -> TRUE | X97: =IF($A97>$C$9,"",AND(G97>H97,G98<=H98)) -> FALSE | Y97: =IF($A97>$C$9,"",AND(G97<H97,G98>=H98)) -> FALSE | Z97: =IF($A97>$C$9,"",AND(Q97,R97,S97)) -> FALSE | AA97: FALSE | AB97: FALSE | AC97: =IF($A97>$C$9,"",IF(IF(TYPE(AB98)<>4,FALSE,AB98),TRUE,IF(IF(TYPE(AG98)<>4,FALSE,AG98),FALSE,IF(TYPE(AC98)<>4,FALSE,AC98)))) -> TRUE | AE97: =IF($A97>$C$9,0,IF(OR(A97>$A$8-1,AG98),0,IF(IF(TYPE(AB98)<>4,FALSE,AB98),AD98,AE98))) -> 1083 | AF97: =IF($A97>$C$9,0,IF(OR(A97>$A$8-1,IF(TYPE(AG98)<>4,FALSE,AG98)),0,IF(IF(TYPE(AB98)<>4,FALSE,AB98),$D98,AF98))) -> 12.92 | AG97: FALSE | AH97: =IF($A97>$C$9,"",IF(IF(TYPE(AG98)<>4,FALSE,AG98),$D97,IF(AI97,$G97,NA()))) ->  | AJ97: =IF($A97>$C$9,0,IF(OR(IF(TYPE(AG98)<>4,FALSE,AG98),AI97),(AH97-AF98)*AE98,0)) -> 0 | AK97: 14029.7846 | AM97: FALSE | AN97: FALSE | AO97: TRUE | AQ97: =IF(OR($A97>$C$9,IF(TYPE(AS98)<>4,FALSE,AS98)),0,IF(IF(TYPE(AN98)<>4,FALSE,AN98),$AP98+AQ98,AQ98)) -> 7770 | AR97: 12.92 | AS97: FALSE | AV97: 0 | AW97: 100695.8937
A98: 66 | B98: =OFFSET(InputPriceData!B$15,CalculationsAndCharts!$A98+$A$11,0,1,1) -> 2015-12-07 | C98: =OFFSET(InputPriceData!G$15,CalculationsAndCharts!$A98+$A$11,IF($C$7,8,0),1,1) -> 53326400 | D98: =OFFSET(InputPriceData!C$15,CalculationsAndCharts!$A98+$A$11,IF($C$7,8,0),1,1) -> 12.02 | E98: =OFFSET(InputPriceData!D$15,CalculationsAndCharts!$A98+$A$11,IF($C$7,8,0),1,1) -> 12.08 | F98: =OFFSET(InputPriceData!E$15,CalculationsAndCharts!$A98+$A$11,IF($C$7,8,0),1,1) -> 11.65 | G98: =OFFSET(InputPriceData!F$15,CalculationsAndCharts!$A98+$A$11,IF($C$7,8,0),1,1) -> 11.72 | H98: 14.14400002 | I98: =IF(A98>$A$8,"",$A$8-A98+1) -> 1555 | J98: -0.7566108551 | K98: -0.7701614286 | L98: =IF($A98>$C$9,"",K98*K98) -> 0.5931486261 | M98: -6.311661507 | N98: 0.42 | O98: 10 | P98: 0.85 | Q98: FALSE | R98: TRUE | S98: FALSE | T98: FALSE | U98: FALSE | V98: FALSE | W98: TRUE | X98: FALSE | Y98: FALSE | Z98: FALSE | AA98: =IF($A98>$C$9,"",AND(Z98,R98,S98)) -> FALSE | AB98: =IF($A98>$C$9,"",AND(NOT(AC98),AA98)) -> FALSE | AC98: TRUE | AD98: =IF($A98>$C$9,"",IF(AK98<=0,0,IF(AB98,ROUND(AK98/G98,0),""))) ->  | AE98: 1083 | AF98: 12.92 | AG98: =IF($A98>$C$9,"",AND(AC98,Y98)) -> FALSE | AJ98: 0 | AK98: =IF($A98>$C$9,$A$20,IF(OR(IF(TYPE(AG99)<>4,FALSE,AG99),AI98),AJ98+AK99,AK99)) -> 14029.7846 | AM98: =IF($A98>$C$9,"",AND(Z98,W98,U98)) -> FALSE | AN98: =IF($A98>$C$9,"",AND(NOT(AO98),AM98)) -> FALSE | AO98: =IF($A98>$C$9,"",IF(IF(TYPE(AN99)<>4,FALSE,AN99),TRUE,IF(IF(TYPE(AS99)<>4,FALSE,AS99),FALSE,IF(TYPE(AO99)<>4,FALSE,AO99)))) -> TRUE | AP98: =IF($A98>$C$9,"",IF(AW98<=0,0,IF(AN98,ROUND(AW98/$G98,0),""))) ->  | AQ98: 7770 | AR98: =IF(OR($A98>$C$9,IF(TYPE(AS99)<>4,FALSE,AS99)),0,IF(IF(TYPE(AN99)<>4,FALSE,AN99),$D99,AR99)) -> 12.92 | AS98: =IF($A98>$C$9,"",AND(AO98,V98)) -> FALSE | AT98: =IF($A98>$C$9,"",IF(IF(TYPE(AS99)<>4,FALSE,AS99),$D98,IF(AU98,$G98,NA()))) ->  | AV98: =IF($A98>$C$9,0,IF(OR(IF(TYPE(AS99)<>4,FALSE,AS99),AU98),(AR99-AT98)*AQ99,0)) -> 0 | AW98: =IF($A98>$C$9,$A$20,IF(OR(IF(TYPE(AS99)<>4,FALSE,AS99),AU98),AV98+AW99,AW99)) -> 100695.8937
A99: 67 | B99: =OFFSET(InputPriceData!B$15,CalculationsAndCharts!$A99+$A$11,0,1,1) -> 2015-12-04 | C99: =OFFSET(InputPriceData!G$15,CalculationsAndCharts!$A99+$A$11,IF($C$7,8,0),1,1) -> 41884500 | D99: =OFFSET(InputPriceData!C$15,CalculationsAndCharts!$A99+$A$11,IF($C$7,8,0),1,1) -> 12.45 | E99: =OFFSET(InputPriceData!D$15,CalculationsAndCharts!$A99+$A$11,IF($C$7,8,0),1,1) -> 12.63 | F99: =OFFSET(InputPriceData!E$15,CalculationsAndCharts!$A99+$A$11,IF($C$7,8,0),1,1) -> 12.33 | G99: =OFFSET(InputPriceData!F$15,CalculationsAndCharts!$A99+$A$11,IF($C$7,8,0),1,1) -> 12.46 | H99: 14.20380002 | I99: 1554 | J99: -0.7742197081 | K99: -0.7869931187 | L99: 0.6193581689 | M99: -5.800825593 | N99: 0.42 | O99: 10 | P99: 0.85 | Q99: FALSE | R99: TRUE | S99: TRUE | T99: FALSE | U99: FALSE | V99: FALSE | W99: TRUE | X99: FALSE | Y99: FALSE | Z99: FALSE | AA99: FALSE | AB99: FALSE | AC99: TRUE | AE99: 1083 | AF99: 12.92 | AG99: FALSE | AJ99: 0 | AK99: 14029.7846 | AM99: FALSE | AN99: FALSE | AO99: TRUE | AQ99: 7770 | AR99: 12.92 | AS99: FALSE | AV99: 0 | AW99: 100695.8937
A100: 68 | B100: =OFFSET(InputPriceData!B$15,CalculationsAndCharts!$A100+$A$11,0,1,1) -> 2015-12-03 | C100: =OFFSET(InputPriceData!G$15,CalculationsAndCharts!$A100+$A$11,IF($C$7,8,0),1,1) -> 35997400 | D100: =OFFSET(InputPriceData!C$15,CalculationsAndCharts!$A100+$A$11,IF($C$7,8,0),1,1) -> 12.59 | E100: =OFFSET(InputPriceData!D$15,CalculationsAndCharts!$A100+$A$11,IF($C$7,8,0),1,1) -> 12.97 | F100: =OFFSET(InputPriceData!E$15,CalculationsAndCharts!$A100+$A$11,IF($C$7,8,0),1,1) -> 12.45 | G100: =OFFSET(InputPriceData!F$15,CalculationsAndCharts!$A100+$A$11,IF($C$7,8,0),1,1) -> 12.77 | H100: 14.24640002 | I100: 1553 | J100: -0.7796537226 | K100: -0.7985267315 | L100: 0.6376449409 | M100: -6.234262126 | N100: 0.42 | O100: 10 | P100: 0.85 | Q100: FALSE | R100: TRUE | S100: TRUE | T100: FALSE | U100: FALSE | V100: FALSE | W100: TRUE | X100: FALSE | Y100: FALSE | Z100: FALSE | AA100: FALSE | AB100: FALSE | AC100: TRUE | AE100: 1083 | AF100: 12.92 | AG100: FALSE | AJ100: 0 | AK100: 14029.7846 | AM100: FALSE | AN100: FALSE | AO100: TRUE | AQ100: 7770 | AR100: 12.92 | AS100: FALSE | AV100: 0 | AW100: 100695.8937
A101: 69 | B101: =OFFSET(InputPriceData!B$15,CalculationsAndCharts!$A101+$A$11,0,1,1) -> 2015-12-02 | C101: =OFFSET(InputPriceData!G$15,CalculationsAndCharts!$A101+$A$11,IF($C$7,8,0),1,1) -> 52543800 | D101: =OFFSET(InputPriceData!C$15,CalculationsAndCharts!$A101+$A$11,IF($C$7,8,0),1,1) -> 12.77 | E101: =OFFSET(InputPriceData!D$15,CalculationsAndCharts!$A101+$A$11,IF($C$7,8,0),1,1) -> 13.03 | F101: =OFFSET(InputPriceData!E$15,CalculationsAndCharts!$A101+$A$11,IF($C$7,8,0),1,1) -> 12.38 | G101: =OFFSET(InputPriceData!F$15,CalculationsAndCharts!$A101+$A$11,IF($C$7,8,0),1,1) -> 12.48 | H101: 14.27980002 | I101: 1552 | J101: -0.8071059255 | K101: -0.817344091 | L101: 0.6680513632 | M101: -7.204334365 | N101: 0.42 | O101: 10 | P101: 0.85 | Q101: FALSE | R101: TRUE | S101: TRUE | T101: FALSE | U101: FALSE | V101: FALSE | W101: TRUE | X101: FALSE | Y101: FALSE | Z101: FALSE | AA101: FALSE | AB101: FALSE | AC101: TRUE | AE101: 1083 | AF101: 12.92 | AG101: FALSE | AJ101: 0 | AK101: 14029.7846 | AM101: FALSE | AN101: FALSE | AO101: TRUE | AQ101: 7770 | AR101: 12.92 | AS101: FALSE | AV101: 0 | AW101: 100695.8937
A102: 70 | B102: =OFFSET(InputPriceData!B$15,CalculationsAndCharts!$A102+$A$11,0,1,1) -> 2015-12-01 | C102: =OFFSET(InputPriceData!G$15,CalculationsAndCharts!$A102+$A$11,IF($C$7,8,0),1,1) -> 19658700 | D102: =OFFSET(InputPriceData!C$15,CalculationsAndCharts!$A102+$A$11,IF($C$7,8,0),1,1) -> 12.92 | E102: =OFFSET(InputPriceData!D$15,CalculationsAndCharts!$A102+$A$11,IF($C$7,8,0),1,1) -> 13.11 | F102: =OFFSET(InputPriceData!E$15,CalculationsAndCharts!$A102+$A$11,IF($C$7,8,0),1,1) -> 12.83 | G102: =OFFSET(InputPriceData!F$15,CalculationsAndCharts!$A102+$A$11,IF($C$7,8,0),1,1) -> 12.95 | H102: 14.32860002 | I102: 1551 | J102: -0.8088205465 | K102: -0.8328592258 | L102: 0.69365449 | M102: -7.743034056 | N102: 0.42 | O102: 10 | P102: 0.85 | Q102: FALSE | R102: TRUE | S102: TRUE | T102: FALSE | U102: FALSE | V102: FALSE | W102: TRUE | X102: FALSE | Y102: FALSE | Z102: FALSE | AA102: FALSE | AB102: FALSE | AC102: TRUE | AE102: 1083 | AF102: 12.92 | AG102: FALSE | AJ102: 0 | AK102: 14029.7846 | AM102: FALSE | AN102: FALSE | AO102: TRUE | AQ102: 7770 | AR102: 12.92 | AS102: FALSE | AV102: 0 | AW102: 100695.8937
A103: 71 | B103: =OFFSET(InputPriceData!B$15,CalculationsAndCharts!$A103+$A$11,0,1,1) -> 2015-11-30 | C103: =OFFSET(InputPriceData!G$15,CalculationsAndCharts!$A103+$A$11,IF($C$7,8,0),1,1) -> 22160200 | D103: =OFFSET(InputPriceData!C$15,CalculationsAndCharts!$A103+$A$11,IF($C$7,8,0),1,1) -> 13.18 | E103: =OFFSET(InputPriceData!D$15,CalculationsAndCharts!$A103+$A$11,IF($C$7,8,0),1,1) -> 13.23 | F103: =OFFSET(InputPriceData!E$15,CalculationsAndCharts!$A103+$A$11,IF($C$7,8,0),1,1) -> 12.9 | G103: =OFFSET(InputPriceData!F$15,CalculationsAndCharts!$A103+$A$11,IF($C$7,8,0),1,1) -> 12.93 | H103: 14.37060002 | I103: 1550 | J103: -0.8361058012 | K103: -0.8555295565 | L103: 0.731930822 | M103: -9.439628483 | N103: 0.42 | O103: 10 | P103: 0.85 | Q103: FALSE | R103: TRUE | S103: TRUE | T103: FALSE | U103: FALSE | V103: FALSE | W103: TRUE | X103: FALSE | Y103: FALSE | Z103: FALSE | AA103: FALSE | AB103: FALSE | AC103: TRUE | AE103: 1083 | AF103: 12.92 | AG103: FALSE | AJ103: 0 | AK103: 14029.7846 | AM103: FALSE | AN103: FALSE | AO103: TRUE | AQ103: 7770 | AR103: 12.92 | AS103: FALSE | AV103: 0 | AW103: 100695.8937
A104: 72 | B104: =OFFSET(InputPriceData!B$15,CalculationsAndCharts!$A104+$A$11,0,1,1) -> 2015-11-27 | C104: =OFFSET(InputPriceData!G$15,CalculationsAndCharts!$A104+$A$11,IF($C$7,8,0),1,1) -> 10619600 | D104: =OFFSET(InputPriceData!C$15,CalculationsAndCharts!$A104+$A$11,IF($C$7,8,0),1,1) -> 13.09 | E104: =OFFSET(InputPriceData!D$15,CalculationsAndCharts!$A104+$A$11,IF($C$7,8,0),1,1) -> 13.11 | F104: =OFFSET(InputPriceData!E$15,CalculationsAndCharts!$A104+$A$11,IF($C$7,8,0),1,1) -> 13 | G104: =OFFSET(InputPriceData!F$15,CalculationsAndCharts!$A104+$A$11,IF($C$7,8,0),1,1) -> 13.03 | H104: 14.40440002 | I104: 1549 | J104: -0.8536513298 | K104: -0.8838730994 | L104: 0.7812316559 | M104: -11.45923633 | N104: 0.42 | O104: 10 | P104: 0.85 | Q104: FALSE | R104: TRUE | S104: TRUE | T104: FALSE | U104: TRUE | V104: FALSE | W104: TRUE | X104: FALSE | Y104: FALSE | Z104: FALSE | AA104: FALSE | AB104: FALSE | AC104: TRUE | AE104: 1083 | AF104: 12.92 | AG104: FALSE | AJ104: 0 | AK104: 14029.7846 | AM104: FALSE | AN104: FALSE | AO104: TRUE | AQ104: 7770 | AR104: 12.92 | AS104: FALSE | AV104: 0 | AW104: 100695.8937
A105: 73 | B105: =OFFSET(InputPriceData!B$15,CalculationsAndCharts!$A105+$A$11,0,1,1) -> 2015-11-25 | C105: =OFFSET(InputPriceData!G$15,CalculationsAndCharts!$A105+$A$11,IF($C$7,8,0),1,1) -> 27117000 | D105: =OFFSET(InputPriceData!C$15,CalculationsAndCharts!$A105+$A$11,IF($C$7,8,0),1,1) -> 13.11 | E105: =OFFSET(InputPriceData!D$15,CalculationsAndCharts!$A105+$A$11,IF($C$7,8,0),1,1) -> 13.42 | F105: =OFFSET(InputPriceData!E$15,CalculationsAndCharts!$A105+$A$11,IF($C$7,8,0),1,1) -> 12.96 | G105: =OFFSET(InputPriceData!F$15,CalculationsAndCharts!$A105+$A$11,IF($C$7,8,0),1,1) -> 13.39 | H105: 14.44840002 | I105: 1548 | J105: -0.8768315384 | K105: -0.912609029 | L105: 0.8328552398 | M105: -12.26006192 | N105: 0.42 | O105: 10 | P105: 0.85 | Q105: FALSE | R105: TRUE | S105: TRUE | T105: FALSE | U105: TRUE | V105: FALSE | W105: TRUE | X105: FALSE | Y105: FALSE | Z105: FALSE | AA105: FALSE | AB105: FALSE | AC105: TRUE | AE105: 1083 | AF105: 12.92 | AG105: FALSE | AJ105: 0 | AK105: 14029.7846 | AM105: FALSE | AN105: FALSE | AO105: TRUE | AQ105: 7770 | AR105: 12.92 | AS105: FALSE | AV105: 0 | AW105: 100695.8937
A106: 74 | B106: =OFFSET(InputPriceData!B$15,CalculationsAndCharts!$A106+$A$11,0,1,1) -> 2015-11-24 | C106: =OFFSET(InputPriceData!G$15,CalculationsAndCharts!$A106+$A$11,IF($C$7,8,0),1,1) -> 25560200 | D106: =OFFSET(InputPriceData!C$15,CalculationsAndCharts!$A106+$A$11,IF($C$7,8,0),1,1) -> 13.35 | E106: =OFFSET(InputPriceData!D$15,CalculationsAndCharts!$A106+$A$11,IF($C$7,8,0),1,1) -> 13.5 | F106: =OFFSET(InputPriceData!E$15,CalculationsAndCharts!$A106+$A$11,IF($C$7,8,0),1,1) -> 13.2 | G106: =OFFSET(InputPriceData!F$15,CalculationsAndCharts!$A106+$A$11,IF($C$7,8,0),1,1) -> 13.32 | H106: 14.48780002 | I106: 1547 | J106: -0.92113643 | K106: -0.9313595026 | L106: 0.867430523 | M106: -13.51702786 | N106: 0.42 | O106: 10 | P106: 0.85 | Q106: FALSE | R106: FALSE | S106: TRUE | T106: FALSE | U106: TRUE | V106: FALSE | W106: TRUE | X106: FALSE | Y106: FALSE | Z106: FALSE | AA106: FALSE | AB106: FALSE | AC106: TRUE | AE106: 1083 | AF106: 12.92 | AG106: FALSE | AJ106: 0 | AK106: 14029.7846 | AM106: FALSE | AN106: FALSE | AO106: TRUE | AQ106: 7770 | AR106: 12.92 | AS106: FALSE | AV106: 0 | AW106: 100695.8937
A107: 75 | B107: =OFFSET(InputPriceData!B$15,CalculationsAndCharts!$A107+$A$11,0,1,1) -> 2015-11-23 | C107: =OFFSET(InputPriceData!G$15,CalculationsAndCharts!$A107+$A$11,IF($C$7,8,0),1,1) -> 29045200 | D107: =OFFSET(InputPriceData!C$15,CalculationsAndCharts!$A107+$A$11,IF($C$7,8,0),1,1) -> 12.84 | E107: =OFFSET(InputPriceData!D$15,CalculationsAndCharts!$A107+$A$11,IF($C$7,8,0),1,1) -> 13.24 | F107: =OFFSET(InputPriceData!E$15,CalculationsAndCharts!$A107+$A$11,IF($C$7,8,0),1,1) -> 12.82 | G107: =OFFSET(InputPriceData!F$15,CalculationsAndCharts!$A107+$A$11,IF($C$7,8,0),1,1) -> 13.02 | H107: 14.51280002 | I107: 1546 | J107: -0.9398591186 | K107: -0.898275235 | L107: 0.8068983978 | M107: -14.02786378 | N107: 0.42 | O107: 10 | P107: 0.85 | Q107: FALSE | R107: TRUE | S107: TRUE | T107: FALSE | U107: TRUE | V107: FALSE | W107: TRUE | X107: FALSE | Y107: FALSE | Z107: FALSE | AA107: FALSE | AB107: FALSE | AC107: TRUE | AE107: 1083 | AF107: 12.92 | AG107: FALSE | AJ107: 0 | AK107: 14029.7846 | AM107: FALSE | AN107: FALSE | AO107: TRUE | AQ107: 7770 | AR107: 12.92 | AS107: FALSE | AV107: 0 | AW107: 100695.8937
A108: 76 | B108: =OFFSET(InputPriceData!B$15,CalculationsAndCharts!$A108+$A$11,0,1,1) -> 2015-11-20 | C108: =OFFSET(InputPriceData!G$15,CalculationsAndCharts!$A108+$A$11,IF($C$7,8,0),1,1) -> 37776200 | D108: =OFFSET(InputPriceData!C$15,CalculationsAndCharts!$A108+$A$11,IF($C$7,8,0),1,1) -> 12.94 | E108: =OFFSET(InputPriceData!D$15,CalculationsAndCharts!$A108+$A$11,IF($C$7,8,0),1,1) -> 13.28 | F108: =OFFSET(InputPriceData!E$15,CalculationsAndCharts!$A108+$A$11,IF($C$7,8,0),1,1) -> 12.86 | G108: =OFFSET(InputPriceData!F$15,CalculationsAndCharts!$A108+$A$11,IF($C$7,8,0),1,1) -> 12.93 | H108: 14.54020002 | I108: 1545 | J108: -0.9330829591 | K108: -0.8247148373 | L108: 0.6801545629 | M108: -13.78534572 | N108: 0.42 | O108: 10 | P108: 0.85 | Q108: FALSE | R108: TRUE | S108: TRUE | T108: FALSE | U108: TRUE | V108: FALSE | W108: TRUE | X108: FALSE | Y108: FALSE | Z108: FALSE | AA108: FALSE | AB108: FALSE | AC108: TRUE | AE108: 1083 | AF108: 12.92 | AG108: FALSE | AJ108: 0 | AK108: 14029.7846 | AM108: FALSE | AN108: FALSE | AO108: TRUE | AQ108: 7770 | AR108: 12.92 | AS108: FALSE | AV108: 0 | AW108: 100695.8937
A109: 77 | B109: =OFFSET(InputPriceData!B$15,CalculationsAndCharts!$A109+$A$11,0,1,1) -> 2015-11-19 | C109: =OFFSET(InputPriceData!G$15,CalculationsAndCharts!$A109+$A$11,IF($C$7,8,0),1,1) -> 22457200 | D109: =OFFSET(InputPriceData!C$15,CalculationsAndCharts!$A109+$A$11,IF($C$7,8,0),1,1) -> 12.92 | E109: =OFFSET(InputPriceData!D$15,CalculationsAndCharts!$A109+$A$11,IF($C$7,8,0),1,1) -> 13.03 | F109: =OFFSET(InputPriceData!E$15,CalculationsAndCharts!$A109+$A$11,IF($C$7,8,0),1,1) -> 12.86 | G109: =OFFSET(InputPriceData!F$15,CalculationsAndCharts!$A109+$A$11,IF($C$7,8,0),1,1) -> 12.96 | H109: 14.57460002 | I109: 1544 | J109: -0.8218836273 | K109: -0.7254420813 | L109: 0.5262662133 | M109: -11.49535604 | N109: 0.42 | O109: 10 | P109: 0.85 | Q109: TRUE | R109: TRUE | S109: TRUE | T109: FALSE | U109: TRUE | V109: FALSE | W109: TRUE | X109: FALSE | Y109: FALSE | Z109: TRUE | AA109: TRUE | AB109: TRUE | AC109: FALSE | AD109: 1083 | AE109: 0 | AF109: 0 | AG109: FALSE | AJ109: 0 | AK109: 14029.7846 | AM109: TRUE | AN109: TRUE | AO109: FALSE | AP109: 7770 | AQ109: 0 | AR109: 0 | AS109: FALSE | AV109: 0 | AW109: 100695.8937
A110: 78 | B110: =OFFSET(InputPriceData!B$15,CalculationsAndCharts!$A110+$A$11,0,1,1) -> 2015-11-18 | C110: =OFFSET(InputPriceData!G$15,CalculationsAndCharts!$A110+$A$11,IF($C$7,8,0),1,1) -> 24754800 | D110: =OFFSET(InputPriceData!C$15,CalculationsAndCharts!$A110+$A$11,IF($C$7,8,0),1,1) -> 13.14 | E110: =OFFSET(InputPriceData!D$15,CalculationsAndCharts!$A110+$A$11,IF($C$7,8,0),1,1) -> 13.2 | F110: =OFFSET(InputPriceData!E$15,CalculationsAndCharts!$A110+$A$11,IF($C$7,8,0),1,1) -> 12.83 | G110: =OFFSET(InputPriceData!F$15,CalculationsAndCharts!$A110+$A$11,IF($C$7,8,0),1,1) -> 13.05 | H110: 14.61400002 | I110: 1543 | J110: -0.7191779254 | K110: -0.6373926963 | L110: 0.4062694493 | M110: -9.413828689 | N110: 0.42 | O110: 10 | P110: 0.85 | Q110: FALSE | R110: TRUE | S110: TRUE | T110: FALSE | U110: FALSE | V110: FALSE | W110: TRUE | X110: FALSE | Y110: FALSE | Z110: FALSE | AA110: FALSE | AB110: FALSE | AC110: FALSE | AE110: 0 | AF110: 0 | AG110: FALSE | AJ110: 0 | AK110: 14029.7846 | AM110: FALSE | AN110: FALSE | AO110: FALSE | AQ110: 0 | AR110: 0 | AS110: FALSE | AV110: 0 | AW110: 100695.8937
A111: 79 | B111: =OFFSET(InputPriceData!B$15,CalculationsAndCharts!$A111+$A$11,0,1,1) -> 2015-11-17 | C111: =OFFSET(InputPriceData!G$15,CalculationsAndCharts!$A111+$A$11,IF($C$7,8,0),1,1) -> 22978800 | D111: =OFFSET(InputPriceData!C$15,CalculationsAndCharts!$A111+$A$11,IF($C$7,8,0),1,1) -> 13.17 | E111: =OFFSET(InputPriceData!D$15,CalculationsAndCharts!$A111+$A$11,IF($C$7,8,0),1,1) -> 13.22 | F111: =OFFSET(InputPriceData!E$15,CalculationsAndCharts!$A111+$A$11,IF($C$7,8,0),1,1) -> 12.94 | G111: =OFFSET(InputPriceData!F$15,CalculationsAndCharts!$A111+$A$11,IF($C$7,8,0),1,1) -> 13.01 | H111: 14.64340002 | I111: 1542 | J111: -0.6352646911 | K111: -0.5548307372 | L111: 0.3078371469 | M111: -7.748194014 | N111: 0.42 | O111: 10 | P111: 0.85 | Q111: FALSE | R111: TRUE | S111: FALSE | T111: FALSE | U111: FALSE | V111: FALSE | W111: TRUE | X111: FALSE | Y111: FALSE | Z111: FALSE | AA111: FALSE | AB111: FALSE | AC111: FALSE | AE111: 0 | AF111: 0 | AG111: FALSE | AJ111: 0 | AK111: 14029.7846 | AM111: FALSE | AN111: FALSE | AO111: FALSE | AQ111: 0 | AR111: 0 | AS111: FALSE | AV111: 0 | AW111: 100695.8937
A112: 80 | B112: =OFFSET(InputPriceData!B$15,CalculationsAndCharts!$A112+$A$11,0,1,1) -> 2015-11-16 | C112: =OFFSET(InputPriceData!G$15,CalculationsAndCharts!$A112+$A$11,IF($C$7,8,0),1,1) -> 37787400 | D112: =OFFSET(InputPriceData!C$15,CalculationsAndCharts!$A112+$A$11,IF($C$7,8,0),1,1) -> 13 | E112: =OFFSET(InputPriceData!D$15,CalculationsAndCharts!$A112+$A$11,IF($C$7,8,0),1,1) -> 13.43 | F112: =OFFSET(InputPriceData!E$15,CalculationsAndCharts!$A112+$A$11,IF($C$7,8,0),1,1) -> 12.81 | G112: =OFFSET(InputPriceData!F$15,CalculationsAndCharts!$A112+$A$11,IF($C$7,8,0),1,1) -> 13.39 | H112: 14.68360002 | I112: 1541 | J112: -0.5577354723 | K112: -0.4670115921 | L112: 0.2180998271 | M112: -6.173374613 | N112: 0.42 | O112: 10 | P112: 0.85 | Q112: FALSE | R112: TRUE | S112: FALSE | T112: FALSE | U112: FALSE | V112: FALSE | W112: TRUE | X112: FALSE | Y112: FALSE | Z112: FALSE | AA112: FALSE | AB112: FALSE | AC112: FALSE | AE112: 0 | AF112: 0 | AG112: FALSE | AJ112: 0 | AK112: 14029.7846 | AM112: FALSE | AN112: FALSE | AO112: FALSE | AQ112: 0 | AR112: 0 | AS112: FALSE | AV112: 0 | AW112: 100695.8937
A113: 81 | B113: =OFFSET(InputPriceData!B$15,CalculationsAndCharts!$A113+$A$11,0,1,1) -> 2015-11-13 | C113: =OFFSET(InputPriceData!G$15,CalculationsAndCharts!$A113+$A$11,IF($C$7,8,0),1,1) -> 34583500 | D113: =OFFSET(InputPriceData!C$15,CalculationsAndCharts!$A113+$A$11,IF($C$7,8,0),1,1) -> 13.2 | E113: =OFFSET(InputPriceData!D$15,CalculationsAndCharts!$A113+$A$11,IF($C$7,8,0),1,1) -> 13.23 | F113: =OFFSET(InputPriceData!E$15,CalculationsAndCharts!$A113+$A$11,IF($C$7,8,0),1,1) -> 12.91 | G113: =OFFSET(InputPriceData!F$15,CalculationsAndCharts!$A113+$A$11,IF($C$7,8,0),1,1) -> 13.06 | H113: 14.71740002 | I113: 1540 | J113: -0.4714920482 | K113: -0.3715739866 | L113: 0.1380672275 | M113: -4.89370485 | N113: 0.42 | O113: 10 | P113: 0.85 | Q113: FALSE | R113: TRUE | S113: FALSE | T113: FALSE | U113: FALSE | V113: FALSE | W113: TRUE | X113: FALSE | Y113: FALSE | Z113: FALSE | AA113: FALSE | AB113: FALSE | AC113: FALSE | AE113: 0 | AF113: 0 | AG113: FALSE | AJ113: 0 | AK113: 14029.7846 | AM113: FALSE | AN113: FALSE | AO113: FALSE | AQ113: 0 | AR113: 0 | AS113: FALSE | AV113: 0 | AW113: 100695.8937
A114: 82 | B114: =OFFSET(InputPriceData!B$15,CalculationsAndCharts!$A114+$A$11,0,1,1) -> 2015-11-12 | C114: =OFFSET(InputPriceData!G$15,CalculationsAndCharts!$A114+$A$11,IF($C$7,8,0),1,1) -> 33567000 | D114: =OFFSET(InputPriceData!C$15,CalculationsAndCharts!$A114+$A$11,IF($C$7,8,0),1,1) -> 13.45 | E114: =OFFSET(InputPriceData!D$15,CalculationsAndCharts!$A114+$A$11,IF($C$7,8,0),1,1) -> 13.7 | F114: =OFFSET(InputPriceData!E$15,CalculationsAndCharts!$A114+$A$11,IF($C$7,8,0),1,1) -> 13.32 | G114: =OFFSET(InputPriceData!F$15,CalculationsAndCharts!$A114+$A$11,IF($C$7,8,0),1,1) -> 13.35 | H114: 14.76300002 | I114: 1539 | J114: -0.3718072557 | K114: -0.3038515686 | L114: 0.09232577574 | M114: -3.278637771 | N114: 0.42 | O114: 10 | P114: 0.85 | Q114: FALSE | R114: TRUE | S114: FALSE | T114: FALSE | U114: FALSE | V114: FALSE | W114: TRUE | X114: FALSE | Y114: FALSE | Z114: FALSE | AA114: FALSE | AB114: FALSE | AC114: FALSE | AE114: 0 | AF114: 0 | AG114: FALSE | AJ114: 0 | AK114: 14029.7846 | AM114: FALSE | AN114: FALSE | AO114: FALSE | AQ114: 0 | AR114: 0 | AS114: FALSE | AV114: 0 | AW114: 100695.8937
A115: 83 | B115: =OFFSET(InputPriceData!B$15,CalculationsAndCharts!$A115+$A$11,0,1,1) -> 2015-11-11 | C115: =OFFSET(InputPriceData!G$15,CalculationsAndCharts!$A115+$A$11,IF($C$7,8,0),1,1) -> 24154300 | D115: =OFFSET(InputPriceData!C$15,CalculationsAndCharts!$A115+$A$11,IF($C$7,8,0),1,1) -> 14.06 | E115: =OFFSET(InputPriceData!D$15,CalculationsAndCharts!$A115+$A$11,IF($C$7,8,0),1,1) -> 14.09 | F115: =OFFSET(InputPriceData!E$15,CalculationsAndCharts!$A115+$A$11,IF($C$7,8,0),1,1) -> 13.64 | G115: =OFFSET(InputPriceData!F$15,CalculationsAndCharts!$A115+$A$11,IF($C$7,8,0),1,1) -> 13.76 | H115: 14.79780002 | I115: 1538 | J115: -0.271422656 | K115: -0.274708109 | L115: 0.07546454516 | M115: -2.062951496 | N115: 0.42 | O115: 10 | P115: 0.85 | Q115: FALSE | R115: TRUE | S115: FALSE | T115: FALSE | U115: FALSE | V115: FALSE | W115: TRUE | X115: FALSE | Y115: FALSE | Z115: FALSE | AA115: FALSE | AB115: FALSE | AC115: FALSE | AE115: 0 | AF115: 0 | AG115: FALSE | AJ115: 0 | AK115: 14029.7846 | AM115: FALSE | AN115: FALSE | AO115: FALSE | AQ115: 0 | AR115: 0 | AS115: FALSE | AV115: 0 | AW115: 100695.8937
A116: 84 | B116: =OFFSET(InputPriceData!B$15,CalculationsAndCharts!$A116+$A$11,0,1,1) -> 2015-11-10 | C116: =OFFSET(InputPriceData!G$15,CalculationsAndCharts!$A116+$A$11,IF($C$7,8,0),1,1) -> 15887800 | D116: =OFFSET(InputPriceData!C$15,CalculationsAndCharts!$A116+$A$11,IF($C$7,8,0),1,1) -> 14 | E116: =OFFSET(InputPriceData!D$15,CalculationsAndCharts!$A116+$A$11,IF($C$7,8,0),1,1) -> 14.29 | F116: =OFFSET(InputPriceData!E$15,CalculationsAndCharts!$A116+$A$11,IF($C$7,8,0),1,1) -> 13.99 | G116: =OFFSET(InputPriceData!F$15,CalculationsAndCharts!$A116+$A$11,IF($C$7,8,0),1,1) -> 14.09 | H116: 14.81880002 | I116: 1537 | J116: -0.2683247941 | K116: -0.2712531148 | L116: 0.07357825231 | M116: -2.029927761 | N116: 0.42 | O116: 10 | P116: 0.85 | Q116: FALSE | R116: TRUE | S116: FALSE | T116: FALSE | U116: FALSE | V116: FALSE | W116: TRUE | X116: FALSE | Y116: FALSE | Z116: FALSE | AA116: FALSE | AB116: FALSE | AC116: FALSE | AE116: 0 | AF116: 0 | AG116: FALSE | AJ116: 0 | AK116: 14029.7846 | AM116: FALSE | AN116: FALSE | AO116: FALSE | AQ116: 0 | AR116: 0 | AS116: FALSE | AV116: 0 | AW116: 100695.8937
A117: 85 | B117: =OFFSET(InputPriceData!B$15,CalculationsAndCharts!$A117+$A$11,0,1,1) -> 2015-11-09 | C117: =OFFSET(InputPriceData!G$15,CalculationsAndCharts!$A117+$A$11,IF($C$7,8,0),1,1) -> 22257700 | D117: =OFFSET(InputPriceData!C$15,CalculationsAndCharts!$A117+$A$11,IF($C$7,8,0),1,1) -> 14.1 | E117: =OFFSET(InputPriceData!D$15,CalculationsAndCharts!$A117+$A$11,IF($C$7,8,0),1,1) -> 14.23 | F117: =OFFSET(InputPriceData!E$15,CalculationsAndCharts!$A117+$A$11,IF($C$7,8,0),1,1) -> 13.95 | G117: =OFFSET(InputPriceData!F$15,CalculationsAndCharts!$A117+$A$11,IF($C$7,8,0),1,1) -> 14.08 | H117: 14.85480002 | I117: 1536 | J117: -0.284376877 | K117: -0.2647667894 | L117: 0.07010145279 | M117: -2.184726522 | N117: 0.42 | O117: 10 | P117: 0.85 | Q117: FALSE | R117: TRUE | S117: FALSE | T117: FALSE | U117: FALSE | V117: FALSE | W117: TRUE | X117: FALSE | Y117: FALSE | Z117: FALSE | AA117: FALSE | AB117: FALSE | AC117: FALSE | AE117: 0 | AF117: 0 | AG117: FALSE | AJ117: 0 | AK117: 14029.7846 | AM117: FALSE | AN117: FALSE | AO117: FALSE | AQ117: 0 | AR117: 0 | AS117: FALSE | AV117: 0 | AW117: 100695.8937
A118: 86 | B118: =OFFSET(InputPriceData!B$15,CalculationsAndCharts!$A118+$A$11,0,1,1) -> 2015-11-06 | C118: =OFFSET(InputPriceData!G$15,CalculationsAndCharts!$A118+$A$11,IF($C$7,8,0),1,1) -> 22399700 | D118: =OFFSET(InputPriceData!C$15,CalculationsAndCharts!$A118+$A$11,IF($C$7,8,0),1,1) -> 14.29 | E118: =OFFSET(InputPriceData!D$15,CalculationsAndCharts!$A118+$A$11,IF($C$7,8,0),1,1) -> 14.37 | F118: =OFFSET(InputPriceData!E$15,CalculationsAndCharts!$A118+$A$11,IF($C$7,8,0),1,1) -> 14.1 | G118: =OFFSET(InputPriceData!F$15,CalculationsAndCharts!$A118+$A$11,IF($C$7,8,0),1,1) -> 14.23 | H118: 14.87080002 | I118: 1535 | J118: -0.2610576734 | K118: -0.2763585552 | L118: 0.07637405104 | M118: -1.964912281 | N118: 0.42 | O118: 10 | P118: 0.85 | Q118: FALSE | R118: TRUE | S118: TRUE | T118: FALSE | U118: FALSE | V118: FALSE | W118: TRUE | X118: FALSE | Y118: FALSE | Z118: FALSE | AA118: FALSE | AB118: FALSE | AC118: FALSE | AE118: 0 | AF118: 0 | AG118: FALSE | AJ118: 0 | AK118: 14029.7846 | AM118: FALSE | AN118: FALSE | AO118: FALSE | AQ118: 0 | AR118: 0 | AS118: FALSE | AV118: 0 | AW118: 100695.8937
A119: 87 | B119: =OFFSET(InputPriceData!B$15,CalculationsAndCharts!$A119+$A$11,0,1,1) -> 2015-11-05 | C119: =OFFSET(InputPriceData!G$15,CalculationsAndCharts!$A119+$A$11,IF($C$7,8,0),1,1) -> 26139000 | D119: =OFFSET(InputPriceData!C$15,CalculationsAndCharts!$A119+$A$11,IF($C$7,8,0),1,1) -> 14.67 | E119: =OFFSET(InputPriceData!D$15,CalculationsAndCharts!$A119+$A$11,IF($C$7,8,0),1,1) -> 14.84 | F119: =OFFSET(InputPriceData!E$15,CalculationsAndCharts!$A119+$A$11,IF($C$7,8,0),1,1) -> 14.42 | G119: =OFFSET(InputPriceData!F$15,CalculationsAndCharts!$A119+$A$11,IF($C$7,8,0),1,1) -> 14.48 | H119: 14.86520002 | I119: 1534 | J119: -0.2488658178 | K119: -0.3597018884 | L119: 0.1293854485 | M119: -1.856553148 | N119: 0.42 | O119: 10 | P119: 0.85 | Q119: FALSE | R119: TRUE | S119: TRUE | T119: FALSE | U119: FALSE | V119: FALSE | W119: TRUE | X119: FALSE | Y119: TRUE | Z119: FALSE | AA119: FALSE | AB119: FALSE | AC119: FALSE | AE119: 0 | AF119: 0 | AG119: FALSE | AJ119: 0 | AK119: 14029.7846 | AM119: FALSE | AN119: FALSE | AO119: FALSE | AQ119: 0 | AR119: 0 | AS119: FALSE | AV119: 0 | AW119: 100695.8937
A120: 88 | B120: =OFFSET(InputPriceData!B$15,CalculationsAndCharts!$A120+$A$11,0,1,1) -> 2015-11-04 | C120: =OFFSET(InputPriceData!G$15,CalculationsAndCharts!$A120+$A$11,IF($C$7,8,0),1,1) -> 25783000 | D120: =OFFSET(InputPriceData!C$15,CalculationsAndCharts!$A120+$A$11,IF($C$7,8,0),1,1) -> 15.2 | E120: =OFFSET(InputPriceData!D$15,CalculationsAndCharts!$A120+$A$11,IF($C$7,8,0),1,1) -> 15.28 | F120: =OFFSET(InputPriceData!E$15,CalculationsAndCharts!$A120+$A$11,IF($C$7,8,0),1,1) -> 14.75 | G120: =OFFSET(InputPriceData!F$15,CalculationsAndCharts!$A120+$A$11,IF($C$7,8,0),1,1) -> 14.85 | H120: 14.83100002 | I120: 1533 | J120: -0.3191521744 | K120: -0.5219386027 | L120: 0.272419905 | M120: -2.505675955 | N120: 0.42 | O120: 10 | P120: 0.85 | Q120: FALSE | R120: TRUE | S120: TRUE | T120: FALSE | U120: FALSE | V120: TRUE | W120: FALSE | X120: FALSE | Y120: FALSE | Z120: FALSE | AA120: FALSE | AB120: FALSE | AC120: FALSE | AE120: 0 | AF120: 0 | AG120: FALSE | AJ120: 0 | AK120: 14029.7846 | AM120: FALSE | AN120: FALSE | AO120: FALSE | AQ120: 0 | AR120: 0 | AS120: FALSE | AV120: 0 | AW120: 100695.8937
A121: 89 | B121: =OFFSET(InputPriceData!B$15,CalculationsAndCharts!$A121+$A$11,0,1,1) -> 2015-11-03 | C121: =OFFSET(InputPriceData!G$15,CalculationsAndCharts!$A121+$A$11,IF($C$7,8,0),1,1) -> 36340300 | D121: =OFFSET(InputPriceData!C$15,CalculationsAndCharts!$A121+$A$11,IF($C$7,8,0),1,1) -> 15.04 | E121: =OFFSET(InputPriceData!D$15,CalculationsAndCharts!$A121+$A$11,IF($C$7,8,0),1,1) -> 15.45 | F121: =OFFSET(InputPriceData!E$15,CalculationsAndCharts!$A121+$A$11,IF($C$7,8,0),1,1) -> 14.94 | G121: =OFFSET(InputPriceData!F$15,CalculationsAndCharts!$A121+$A$11,IF($C$7,8,0),1,1) -> 15.28 | H121: 14.78860002 | I121: 1532 | J121: -0.5110876729 | K121: -0.6827807084 | L121: 0.4661894958 | M121: -4.901960784 | N121: 0.42 | O121: 10 | P121: 0.85 | Q121: FALSE | R121: TRUE | S121: TRUE | T121: FALSE | U121: FALSE | V121: TRUE | W121: FALSE | X121: FALSE | Y121: FALSE | Z121: FALSE | AA121: FALSE | AB121: FALSE | AC121: FALSE | AE121: 0 | AF121: 0 | AG121: FALSE | AJ121: 0 | AK121: 14029.7846 | AM121: FALSE | AN121: FALSE | AO121: FALSE | AQ121: 0 | AR121: 0 | AS121: FALSE | AV121: 0 | AW121: 100695.8937
A122: 90 | B122: =OFFSET(InputPriceData!B$15,CalculationsAndCharts!$A122+$A$11,0,1,1) -> 2015-11-02 | C122: =OFFSET(InputPriceData!G$15,CalculationsAndCharts!$A122+$A$11,IF($C$7,8,0),1,1) -> 16075600 | D122: =OFFSET(InputPriceData!C$15,CalculationsAndCharts!$A122+$A$11,IF($C$7,8,0),1,1) -> 14.69 | E122: =OFFSET(InputPriceData!D$15,CalculationsAndCharts!$A122+$A$11,IF($C$7,8,0),1,1) -> 14.92 | F122: =OFFSET(InputPriceData!E$15,CalculationsAndCharts!$A122+$A$11,IF($C$7,8,0),1,1) -> 14.65 | G122: =OFFSET(InputPriceData!F$15,CalculationsAndCharts!$A122+$A$11,IF($C$7,8,0),1,1) -> 14.75 | H122: 14.73280002 | I122: 1531 | J122: -0.7355759609 | K122: -0.8033900551 | L122: 0.6454355807 | M122: -7.993809804 | N122: 0.42 | O122: 10 | P122: 0.85 | Q122: FALSE | R122: TRUE | S122: TRUE | T122: FALSE | U122: FALSE | V122: TRUE | W122: FALSE | X122: FALSE | Y122: FALSE | Z122: FALSE | AA122: FALSE | AB122: FALSE | AC122: FALSE | AE122: 0 | AF122: 0 | AG122: FALSE | AJ122: 0 | AK122: 14029.7846 | AM122: FALSE | AN122: FALSE | AO122: FALSE | AQ122: 0 | AR122: 0 | AS122: FALSE | AV122: 0 | AW122: 100695.8937
A123: 91 | B123: =OFFSET(InputPriceData!B$15,CalculationsAndCharts!$A123+$A$11,0,1,1) -> 2015-10-30 | C123: =OFFSET(InputPriceData!G$15,CalculationsAndCharts!$A123+$A$11,IF($C$7,8,0),1,1) -> 19322300 | D123: =OFFSET(InputPriceData!C$15,CalculationsAndCharts!$A123+$A$11,IF($C$7,8,0),1,1) -> 14.66 | E123: =OFFSET(InputPriceData!D$15,CalculationsAndCharts!$A123+$A$11,IF($C$7,8,0),1,1) -> 15.02 | F123: =OFFSET(InputPriceData!E$15,CalculationsAndCharts!$A123+$A$11,IF($C$7,8,0),1,1) -> 14.57 | G123: =OFFSET(InputPriceData!F$15,CalculationsAndCharts!$A123+$A$11,IF($C$7,8,0),1,1) -> 14.81 | H123: 14.70240002 | I123: 1530 | J123: -0.8016784914 | K123: -0.8365820659 | L123: 0.699869553 | M123: -9.065017028 | N123: 0.42 | O123: 10 | P123: 0.85 | Q123: FALSE | R123: TRUE | S123: TRUE | T123: FALSE | U123: FALSE | V123: TRUE | W123: FALSE | X123: TRUE | Y123: FALSE | Z123: FALSE | AA123: FALSE | AB123: FALSE | AC123: FALSE | AE123: 0 | AF123: 0 | AG123: FALSE | AH123: 14.66 | AJ123: 629.28 | AK123: 14029.7846 | AM123: FALSE | AN123: FALSE | AO123: FALSE | AQ123: 0 | AR123: 0 | AS123: FALSE | AV123: 0 | AW123: 100695.8937
A124: 92 | B124: =OFFSET(InputPriceData!B$15,CalculationsAndCharts!$A124+$A$11,0,1,1) -> 2015-10-29 | C124: =OFFSET(InputPriceData!G$15,CalculationsAndCharts!$A124+$A$11,IF($C$7,8,0),1,1) -> 21993700 | D124: =OFFSET(InputPriceData!C$15,CalculationsAndCharts!$A124+$A$11,IF($C$7,8,0),1,1) -> 14.71 | E124: =OFFSET(InputPriceData!D$15,CalculationsAndCharts!$A124+$A$11,IF($C$7,8,0),1,1) -> 14.94 | F124: =OFFSET(InputPriceData!E$15,CalculationsAndCharts!$A124+$A$11,IF($C$7,8,0),1,1) -> 14.58 | G124: =OFFSET(InputPriceData!F$15,CalculationsAndCharts!$A124+$A$11,IF($C$7,8,0),1,1) -> 14.63 | H124: 14.67360002 | I124: 1529 | J124: -0.8729157131 | K124: -0.8233962904 | L124: 0.6779814511 | M124: -10.38287028 | N124: 0.42 | O124: 10 | P124: 0.85 | Q124: FALSE | R124: TRUE | S124: TRUE | T124: FALSE | U124: TRUE | V124: FALSE | W124: TRUE | X124: FALSE | Y124: TRUE | Z124: FALSE | AA124: FALSE | AB124: FALSE | AC124: TRUE | AE124: 912 | AF124: 13.97 | AG124: TRUE | AJ124: 0 | AK124: 13400.5046 | AM124: FALSE | AN124: FALSE | AO124: FALSE | AQ124: 0 | AR124: 0 | AS124: FALSE | AV124: 0 | AW124: 100695.8937
A125: 93 | B125: =OFFSET(InputPriceData!B$15,CalculationsAndCharts!$A125+$A$11,0,1,1) -> 2015-10-28 | C125: =OFFSET(InputPriceData!G$15,CalculationsAndCharts!$A125+$A$11,IF($C$7,8,0),1,1) -> 48935900 | D125: =OFFSET(InputPriceData!C$15,CalculationsAndCharts!$A125+$A$11,IF($C$7,8,0),1,1) -> 13.97 | E125: =OFFSET(InputPriceData!D$15,CalculationsAndCharts!$A125+$A$11,IF($C$7,8,0),1,1) -> 14.7 | F125: =OFFSET(InputPriceData!E$15,CalculationsAndCharts!$A125+$A$11,IF($C$7,8,0),1,1) -> 13.91 | G125: =OFFSET(InputPriceData!F$15,CalculationsAndCharts!$A125+$A$11,IF($C$7,8,0),1,1) -> 14.69 | H125: 14.64960002 | I125: 1528 | J125: -0.8351519932 | K125: -0.7208471984 | L125: 0.5196206834 | M125: -9.857586275 | N125: 0.42 | O125: 10 | P125: 0.85 | Q125: TRUE | R125: TRUE | S125: TRUE | T125: FALSE | U125: FALSE | V125: TRUE | W125: FALSE | X125: TRUE | Y125: FALSE | Z125: TRUE | AA125: TRUE | AB125: TRUE | AC125: FALSE | AD125: 912 | AE125: 0 | AF125: 0 | AG125: FALSE | AJ125: 0 | AK125: 13400.5046 | AM125: FALSE | AN125: FALSE | AO125: FALSE | AQ125: 0 | AR125: 0 | AS125: FALSE | AV125: 0 | AW125: 100695.8937
A126: 94 | B126: =OFFSET(InputPriceData!B$15,CalculationsAndCharts!$A126+$A$11,0,1,1) -> 2015-10-27 | C126: =OFFSET(InputPriceData!G$15,CalculationsAndCharts!$A126+$A$11,IF($C$7,8,0),1,1) -> 26384900 | D126: =OFFSET(InputPriceData!C$15,CalculationsAndCharts!$A126+$A$11,IF($C$7,8,0),1,1) -> 13.71 | E126: =OFFSET(InputPriceData!D$15,CalculationsAndCharts!$A126+$A$11,IF($C$7,8,0),1,1) -> 13.85 | F126: =OFFSET(InputPriceData!E$15,CalculationsAndCharts!$A126+$A$11,IF($C$7,8,0),1,1) -> 13.61 | G126: =OFFSET(InputPriceData!F$15,CalculationsAndCharts!$A126+$A$11,IF($C$7,8,0),1,1) -> 13.82 | H126: 14.63680002 | I126: 1527 | J126: -0.762121165 | K126: -0.5614985922 | L126: 0.3152806691 | M126: -8.970073168 | N126: 0.42 | O126: 10 | P126: 0.85 | Q126: FALSE | R126: TRUE | S126: FALSE | T126: FALSE | U126: FALSE | V126: FALSE | W126: TRUE | X126: FALSE | Y126: FALSE | Z126: FALSE | AA126: FALSE | AB126: FALSE | AC126: FALSE | AE126: 0 | AF126: 0 | AG126: FALSE | AJ126: 0 | AK126: 13400.5046 | AM126: FALSE | AN126: FALSE | AO126: FALSE | AQ126: 0 | AR126: 0 | AS126: FALSE | AV126: 0 | AW126: 100695.8937
A127: 95 | B127: =OFFSET(InputPriceData!B$15,CalculationsAndCharts!$A127+$A$11,0,1,1) -> 2015-10-26 | C127: =OFFSET(InputPriceData!G$15,CalculationsAndCharts!$A127+$A$11,IF($C$7,8,0),1,1) -> 21154500 | D127: =OFFSET(InputPriceData!C$15,CalculationsAndCharts!$A127+$A$11,IF($C$7,8,0),1,1) -> 14.18 | E127: =OFFSET(InputPriceData!D$15,CalculationsAndCharts!$A127+$A$11,IF($C$7,8,0),1,1) -> 14.2 | F127: =OFFSET(InputPriceData!E$15,CalculationsAndCharts!$A127+$A$11,IF($C$7,8,0),1,1) -> 14 | G127: =OFFSET(InputPriceData!F$15,CalculationsAndCharts!$A127+$A$11,IF($C$7,8,0),1,1) -> 14.01 | H127: 14.63820002 | I127: 1526 | J127: -0.5652684368 | K127: -0.3495661884 | L127: 0.1221965201 | M127: -6.026832508 | N127: 0.42 | O127: 10 | P127: 0.85 | Q127: FALSE | R127: TRUE | S127: FALSE | T127: FALSE | U127: FALSE | V127: FALSE | W127: TRUE | X127: FALSE | Y127: FALSE | Z127: FALSE | AA127: FALSE | AB127: FALSE | AC127: FALSE | AE127: 0 | AF127: 0 | AG127: FALSE | AJ127: 0 | AK127: 13400.5046 | AM127: FALSE | AN127: FALSE | AO127: FALSE | AQ127: 0 | AR127: 0 | AS127: FALSE | AV127: 0 | AW127: 100695.8937
A128: 96 | B128: =OFFSET(InputPriceData!B$15,CalculationsAndCharts!$A128+$A$11,0,1,1) -> 2015-10-23 | C128: =OFFSET(InputPriceData!G$15,CalculationsAndCharts!$A128+$A$11,IF($C$7,8,0),1,1) -> 26774800 | D128: =OFFSET(InputPriceData!C$15,CalculationsAndCharts!$A128+$A$11,IF($C$7,8,0),1,1) -> 14.23 | E128: =OFFSET(InputPriceData!D$15,CalculationsAndCharts!$A128+$A$11,IF($C$7,8,0),1,1) -> 14.39 | F128: =OFFSET(InputPriceData!E$15,CalculationsAndCharts!$A128+$A$11,IF($C$7,8,0),1,1) -> 14.13 | G128: =OFFSET(InputPriceData!F$15,CalculationsAndCharts!$A128+$A$11,IF($C$7,8,0),1,1) -> 14.27 | H128: 14.63780002 | I128: 1525 | J128: -0.3571061749 | K128: -0.1211023296 | L128: 0.01466577423 | M128: -3.474716718 | N128: 0.42 | O128: 10 | P128: 0.85 | Q128: FALSE | R128: TRUE | S128: FALSE | T128: FALSE | U128: FALSE | V128: FALSE | W128: TRUE | X128: FALSE | Y128: FALSE | Z128: FALSE | AA128: FALSE | AB128: FALSE | AC128: FALSE | AE128: 0 | AF128: 0 | AG128: FALSE | AJ128: 0 | AK128: 13400.5046 | AM128: FALSE | AN128: FALSE | AO128: FALSE | AQ128: 0 | AR128: 0 | AS128: FALSE | AV128: 0 | AW128: 100695.8937
A129: 97 | B129: =OFFSET(InputPriceData!B$15,CalculationsAndCharts!$A129+$A$11,0,1,1) -> 2015-10-22 | C129: =OFFSET(InputPriceData!G$15,CalculationsAndCharts!$A129+$A$11,IF($C$7,8,0),1,1) -> 16625200 | D129: =OFFSET(InputPriceData!C$15,CalculationsAndCharts!$A129+$A$11,IF($C$7,8,0),1,1) -> 14.62 | E129: =OFFSET(InputPriceData!D$15,CalculationsAndCharts!$A129+$A$11,IF($C$7,8,0),1,1) -> 14.73 | F129: =OFFSET(InputPriceData!E$15,CalculationsAndCharts!$A129+$A$11,IF($C$7,8,0),1,1) -> 14.35 | G129: =OFFSET(InputPriceData!F$15,CalculationsAndCharts!$A129+$A$11,IF($C$7,8,0),1,1) -> 14.51 | H129: 14.63420002 | I129: 1524 | J129: -0.1263239535 | K129: 0.1070866299 | L129: 0.0114675463 | M129: -1.171310939 | N129: 0.42 | O129: 10 | P129: 0.85 | Q129: FALSE | R129: TRUE | S129: FALSE | T129: FALSE | U129: FALSE | V129: FALSE | W129: TRUE | X129: FALSE | Y129: FALSE | Z129: FALSE | AA129: FALSE | AB129: FALSE | AC129: FALSE | AE129: 0 | AF129: 0 | AG129: FALSE | AJ129: 0 | AK129: 13400.5046 | AM129: FALSE | AN129: FALSE | AO129: FALSE | AQ129: 0 | AR129: 0 | AS129: FALSE | AV129: 0 | AW129: 100695.8937
A130: 98 | B130: =OFFSET(InputPriceData!B$15,CalculationsAndCharts!$A130+$A$11,0,1,1) -> 2015-10-21 | C130: =OFFSET(InputPriceData!G$15,CalculationsAndCharts!$A130+$A$11,IF($C$7,8,0),1,1) -> 26555000 | D130: =OFFSET(InputPriceData!C$15,CalculationsAndCharts!$A130+$A$11,IF($C$7,8,0),1,1) -> 14.5 | E130: =OFFSET(InputPriceData!D$15,CalculationsAndCharts!$A130+$A$11,IF($C$7,8,0),1,1) -> 14.67 | F130: =OFFSET(InputPriceData!E$15,CalculationsAndCharts!$A130+$A$11,IF($C$7,8,0),1,1) -> 14.34 | G130: =OFFSET(InputPriceData!F$15,CalculationsAndCharts!$A130+$A$11,IF($C$7,8,0),1,1) -> 14.43 | H130: 14.63280002 | I130: 1523 | J130: 0.1201231396 | K130: 0.3121142892 | L130: 0.09741532954 | M130: 1.135190815 | N130: 0.42 | O130: 10 | P130: 0.85 | Q130: FALSE | R130: TRUE | S130: TRUE | T130: FALSE | U130: FALSE | V130: FALSE | W130: TRUE | X130: FALSE | Y130: TRUE | Z130: FALSE | AA130: FALSE | AB130: FALSE | AC130: FALSE | AE130: 0 | AF130: 0 | AG130: FALSE | AJ130: 0 | AK130: 13400.5046 | AM130: FALSE | AN130: FALSE | AO130: FALSE | AQ130: 0 | AR130: 0 | AS130: FALSE | AV130: 0 | AW130: 100695.8937
A131: 99 | B131: =OFFSET(InputPriceData!B$15,CalculationsAndCharts!$A131+$A$11,0,1,1) -> 2015-10-20 | C131: =OFFSET(InputPriceData!G$15,CalculationsAndCharts!$A131+$A$11,IF($C$7,8,0),1,1) -> 20257700 | D131: =OFFSET(InputPriceData!C$15,CalculationsAndCharts!$A131+$A$11,IF($C$7,8,0),1,1) -> 14.8 | E131: =OFFSET(InputPriceData!D$15,CalculationsAndCharts!$A131+$A$11,IF($C$7,8,0),1,1) -> 14.99 | F131: =OFFSET(InputPriceData!E$15,CalculationsAndCharts!$A131+$A$11,IF($C$7,8,0),1,1) -> 14.61 | G131: =OFFSET(InputPriceData!F$15,CalculationsAndCharts!$A131+$A$11,IF($C$7,8,0),1,1) -> 14.73 | H131: 14.63380002 | I131: 1522 | J131: 0.3274607035 | K131: 0.4834239704 | L131: 0.2336987352 | M131: 2.992776161 | N131: 0.42 | O131: 10 | P131: 0.85 | Q131: FALSE | R131: TRUE | S131: TRUE | T131: FALSE | U131: FALSE | V131: TRUE | W131: FALSE | X131: FALSE | Y131: FALSE | Z131: FALSE | AA131: FALSE | AB131: FALSE | AC131: FALSE | AE131: 0 | AF131: 0 | AG131: FALSE | AJ131: 0 | AK131: 13400.5046 | AM131: FALSE | AN131: FALSE | AO131: FALSE | AQ131: 0 | AR131: 0 | AS131: FALSE | AV131: 0 | AW131: 100695.8937
A132: 100 | B132: =OFFSET(InputPriceData!B$15,CalculationsAndCharts!$A132+$A$11,0,1,1) -> 2015-10-19 | C132: =OFFSET(InputPriceData!G$15,CalculationsAndCharts!$A132+$A$11,IF($C$7,8,0),1,1) -> 21189800 | D132: =OFFSET(InputPriceData!C$15,CalculationsAndCharts!$A132+$A$11,IF($C$7,8,0),1,1) -> 14.91 | E132: =OFFSET(InputPriceData!D$15,CalculationsAndCharts!$A132+$A$11,IF($C$7,8,0),1,1) -> 15.02 | F132: =OFFSET(InputPriceData!E$15,CalculationsAndCharts!$A132+$A$11,IF($C$7,8,0),1,1) -> 14.77 | G132: =OFFSET(InputPriceData!F$15,CalculationsAndCharts!$A132+$A$11,IF($C$7,8,0),1,1) -> 14.83 | H132: 14.63700002 | I132: 1521 | J132: 0.4887590246 | K132: 0.5821802843 | L132: 0.3389338834 | M132: 4.530444066 | N132: 0.42 | O132: 10 | P132: 0.85 | Q132: FALSE | R132: TRUE | S132: TRUE | T132: FALSE | U132: FALSE | V132: TRUE | W132: FALSE | X132: FALSE | Y132: FALSE | Z132: FALSE | AA132: FALSE | AB132: FALSE | AC132: FALSE | AE132: 0 | AF132: 0 | AG132: FALSE | AJ132: 0 | AK132: 13400.5046 | AM132: FALSE | AN132: FALSE | AO132: FALSE | AQ132: 0 | AR132: 0 | AS132: FALSE | AV132: 0 | AW132: 100695.8937
A133: 101 | B133: =OFFSET(InputPriceData!B$15,CalculationsAndCharts!$A133+$A$11,0,1,1) -> 2015-10-16 | C133: =OFFSET(InputPriceData!G$15,CalculationsAndCharts!$A133+$A$11,IF($C$7,8,0),1,1) -> 22381000 | D133: =OFFSET(InputPriceData!C$15,CalculationsAndCharts!$A133+$A$11,IF($C$7,8,0),1,1) -> 15.28 | E133: =OFFSET(InputPriceData!D$15,CalculationsAndCharts!$A133+$A$11,IF($C$7,8,0),1,1) -> 15.32 | F133: =OFFSET(InputPriceData!E$15,CalculationsAndCharts!$A133+$A$11,IF($C$7,8,0),1,1) -> 14.91 | G133: =OFFSET(InputPriceData!F$15,CalculationsAndCharts!$A133+$A$11,IF($C$7,8,0),1,1) -> 15.22 | H133: 14.63160002 | I133: 1520 | J133: 0.6340521831 | K133: 0.619585011 | L133: 0.3838855859 | M133: 6.106295666 | N133: 0.42 | O133: 10 | P133: 0.85 | Q133: FALSE | R133: TRUE | S133: TRUE | T133: FALSE | U133: FALSE | V133: TRUE | W133: FALSE | X133: FALSE | Y133: FALSE | Z133: FALSE | AA133: FALSE | AB133: FALSE | AC133: FALSE | AE133: 0 | AF133: 0 | AG133: FALSE | AJ133: 0 | AK133: 13400.5046 | AM133: FALSE | AN133: FALSE | AO133: FALSE | AQ133: 0 | AR133: 0 | AS133: FALSE | AV133: 0 | AW133: 100695.8937
A134: 102 | B134: =OFFSET(InputPriceData!B$15,CalculationsAndCharts!$A134+$A$11,0,1,1) -> 2015-10-15 | C134: =OFFSET(InputPriceData!G$15,CalculationsAndCharts!$A134+$A$11,IF($C$7,8,0),1,1) -> 36168600 | D134: =OFFSET(InputPriceData!C$15,CalculationsAndCharts!$A134+$A$11,IF($C$7,8,0),1,1) -> 14.81 | E134: =OFFSET(InputPriceData!D$15,CalculationsAndCharts!$A134+$A$11,IF($C$7,8,0),1,1) -> 15.14 | F134: =OFFSET(InputPriceData!E$15,CalculationsAndCharts!$A134+$A$11,IF($C$7,8,0),1,1) -> 14.63 | G134: =OFFSET(InputPriceData!F$15,CalculationsAndCharts!$A134+$A$11,IF($C$7,8,0),1,1) -> 15.13 | H134: 14.62460002 | I134: 1519 | J134: 0.6237296453 | K134: 0.6280296046 | L134: 0.3944211843 | M134: 5.994840764 | N134: 0.42 | O134: 10 | P134: 0.85 | Q134: FALSE | R134: TRUE | S134: TRUE | T134: FALSE | U134: FALSE | V134: TRUE | W134: FALSE | X134: FALSE | Y134: FALSE | Z134: FALSE | AA134: FALSE | AB134: FALSE | AC134: FALSE | AE134: 0 | AF134: 0 | AG134: FALSE | AJ134: 0 | AK134: 13400.5046 | AM134: FALSE | AN134: FALSE | AO134: FALSE | AQ134: 0 | AR134: 0 | AS134: FALSE | AV134: 0 | AW134: 100695.8937
A135: 103 | B135: =OFFSET(InputPriceData!B$15,CalculationsAndCharts!$A135+$A$11,0,1,1) -> 2015-10-14 | C135: =OFFSET(InputPriceData!G$15,CalculationsAndCharts!$A135+$A$11,IF($C$7,8,0),1,1) -> 18763700 | D135: =OFFSET(InputPriceData!C$15,CalculationsAndCharts!$A135+$A$11,IF($C$7,8,0),1,1) -> 14.98 | E135: =OFFSET(InputPriceData!D$15,CalculationsAndCharts!$A135+$A$11,IF($C$7,8,0),1,1) -> 15.16 | F135: =OFFSET(InputPriceData!E$15,CalculationsAndCharts!$A135+$A$11,IF($C$7,8,0),1,1) -> 14.85 | G135: =OFFSET(InputPriceData!F$15,CalculationsAndCharts!$A135+$A$11,IF($C$7,8,0),1,1) -> 15.05 | H135: 14.62260002 | I135: 1518 | J135: 0.6009732048 | K135: 0.6215376176 | L135: 0.3863090101 | M135: 5.76986677 | N135: 0.42 | O135: 10 | P135: 0.85 | Q135: FALSE | R135: TRUE | S135: TRUE | T135: FALSE | U135: FALSE | V135: TRUE | W135: FALSE | X135: FALSE | Y135: FALSE | Z135: FALSE | AA135: FALSE | AB135: FALSE | AC135: FALSE | AE135: 0 | AF135: 0 | AG135: FALSE | AJ135: 0 | AK135: 13400.5046 | AM135: FALSE | AN135: FALSE | AO135: FALSE | AQ135: 0 | AR135: 0 | AS135: FALSE | AV135: 0 | AW135: 100695.8937
A136: 104 | B136: =OFFSET(InputPriceData!B$15,CalculationsAndCharts!$A136+$A$11,0,1,1) -> 2015-10-13 | C136: =OFFSET(InputPriceData!G$15,CalculationsAndCharts!$A136+$A$11,IF($C$7,8,0),1,1) -> 29870500 | D136: =OFFSET(InputPriceData!C$15,CalculationsAndCharts!$A136+$A$11,IF($C$7,8,0),1,1) -> 15.18 | E136: =OFFSET(InputPriceData!D$15,CalculationsAndCharts!$A136+$A$11,IF($C$7,8,0),1,1) -> 15.62 | F136: =OFFSET(InputPriceData!E$15,CalculationsAndCharts!$A136+$A$11,IF($C$7,8,0),1,1) -> 14.99 | G136: =OFFSET(InputPriceData!F$15,CalculationsAndCharts!$A136+$A$11,IF($C$7,8,0),1,1) -> 15.06 | H136: 14.62600002 | I136: 1517 | J136: 0.6593859638 | K136: 0.5816009991 | L136: 0.3382597221 | M136: 6.439629618 | N136: 0.42 | O136: 10 | P136: 0.85 | Q136: FALSE | R136: TRUE | S136: TRUE | T136: FALSE | U136: FALSE | V136: TRUE | W136: FALSE | X136: FALSE | Y136: FALSE | Z136: FALSE | AA136: FALSE | AB136: FALSE | AC136: FALSE | AE136: 0 | AF136: 0 | AG136: FALSE | AJ136: 0 | AK136: 13400.5046 | AM136: FALSE | AN136: FALSE | AO136: FALSE | AQ136: 0 | AR136: 0 | AS136: FALSE | AV136: 0 | AW136: 100695.8937
A137: 105 | B137: =OFFSET(InputPriceData!B$15,CalculationsAndCharts!$A137+$A$11,0,1,1) -> 2015-10-12 | C137: =OFFSET(InputPriceData!G$15,CalculationsAndCharts!$A137+$A$11,IF($C$7,8,0),1,1) -> 28961100 | D137: =OFFSET(InputPriceData!C$15,CalculationsAndCharts!$A137+$A$11,IF($C$7,8,0),1,1) -> 15.99 | E137: =OFFSET(InputPriceData!D$15,CalculationsAndCharts!$A137+$A$11,IF($C$7,8,0),1,1) -> 15.99 | F137: =OFFSET(InputPriceData!E$15,CalculationsAndCharts!$A137+$A$11,IF($C$7,8,0),1,1) -> 15.2 | G137: =OFFSET(InputPriceData!F$15,CalculationsAndCharts!$A137+$A$11,IF($C$7,8,0),1,1) -> 15.31 | H137: 14.62680002 | I137: 1516 | J137: 0.6042536842 | K137: 0.4970280308 | L137: 0.2470368634 | M137: 5.930857895 | N137: 0.42 | O137: 10 | P137: 0.85 | Q137: FALSE | R137: TRUE | S137: TRUE | T137: FALSE | U137: FALSE | V137: TRUE | W137: FALSE | X137: FALSE | Y137: FALSE | Z137: FALSE | AA137: FALSE | AB137: FALSE | AC137: FALSE | AE137: 0 | AF137: 0 | AG137: FALSE | AJ137: 0 | AK137: 13400.5046 | AM137: FALSE | AN137: FALSE | AO137: FALSE | AQ137: 0 | AR137: 0 | AS137: FALSE | AV137: 0 | AW137: 100695.8937
A138: 106 | B138: =OFFSET(InputPriceData!B$15,CalculationsAndCharts!$A138+$A$11,0,1,1) -> 2015-10-09 | C138: =OFFSET(InputPriceData!G$15,CalculationsAndCharts!$A138+$A$11,IF($C$7,8,0),1,1) -> 29778600 | D138: =OFFSET(InputPriceData!C$15,CalculationsAndCharts!$A138+$A$11,IF($C$7,8,0),1,1) -> 16.040001 | E138: =OFFSET(InputPriceData!D$15,CalculationsAndCharts!$A138+$A$11,IF($C$7,8,0),1,1) -> 16.200001 | F138: =OFFSET(InputPriceData!E$15,CalculationsAndCharts!$A138+$A$11,IF($C$7,8,0),1,1) -> 15.88 | G138: =OFFSET(InputPriceData!F$15,CalculationsAndCharts!$A138+$A$11,IF($C$7,8,0),1,1) -> 15.99 | H138: 14.63240002 | I138: 1515 | J138: 0.4811633491 | K138: 0.401718917 | L138: 0.1613780883 | M138: 4.738907637 | N138: 0.42 | O138: 10 | P138: 0.85 | Q138: FALSE | R138: TRUE | S138: TRUE | T138: FALSE | U138: FALSE | V138: TRUE | W138: FALSE | X138: FALSE | Y138: FALSE | Z138: FALSE | AA138: FALSE | AB138: FALSE | AC138: FALSE | AE138: 0 | AF138: 0 | AG138: FALSE | AJ138: 0 | AK138: 13400.5046 | AM138: FALSE | AN138: FALSE | AO138: FALSE | AQ138: 0 | AR138: 0 | AS138: FALSE | AV138: 0 | AW138: 100695.8937
A139: 107 | B139: =OFFSET(InputPriceData!B$15,CalculationsAndCharts!$A139+$A$11,0,1,1) -> 2015-10-08 | C139: =OFFSET(InputPriceData!G$15,CalculationsAndCharts!$A139+$A$11,IF($C$7,8,0),1,1) -> 29660500 | D139: =OFFSET(InputPriceData!C$15,CalculationsAndCharts!$A139+$A$11,IF($C$7,8,0),1,1) -> 15.66 | E139: =OFFSET(InputPriceData!D$15,CalculationsAndCharts!$A139+$A$11,IF($C$7,8,0),1,1) -> 16.17 | F139: =OFFSET(InputPriceData!E$15,CalculationsAndCharts!$A139+$A$11,IF($C$7,8,0),1,1) -> 15.57 | G139: =OFFSET(InputPriceData!F$15,CalculationsAndCharts!$A139+$A$11,IF($C$7,8,0),1,1) -> 16.040001 | H139: 14.63460002 | I139: 1514 | J139: 0.4056670592 | K139: 0.3064543339 | L139: 0.09391425878 | M139: 3.609908875 | N139: 0.42 | O139: 10 | P139: 0.85 | Q139: FALSE | R139: TRUE | S139: TRUE | T139: FALSE | U139: FALSE | V139: TRUE | W139: FALSE | X139: FALSE | Y139: FALSE | Z139: FALSE | AA139: FALSE | AB139: FALSE | AC139: FALSE | AE139: 0 | AF139: 0 | AG139: FALSE | AJ139: 0 | AK139: 13400.5046 | AM139: FALSE | AN139: FALSE | AO139: FALSE | AQ139: 0 | AR139: 0 | AS139: FALSE | AV139: 0 | AW139: 100695.8937
A140: 108 | B140: =OFFSET(InputPriceData!B$15,CalculationsAndCharts!$A140+$A$11,0,1,1) -> 2015-10-07 | C140: =OFFSET(InputPriceData!G$15,CalculationsAndCharts!$A140+$A$11,IF($C$7,8,0),1,1) -> 40832800 | D140: =OFFSET(InputPriceData!C$15,CalculationsAndCharts!$A140+$A$11,IF($C$7,8,0),1,1) -> 15.93 | E140: =OFFSET(InputPriceData!D$15,CalculationsAndCharts!$A140+$A$11,IF($C$7,8,0),1,1) -> 16.049999 | F140: =OFFSET(InputPriceData!E$15,CalculationsAndCharts!$A140+$A$11,IF($C$7,8,0),1,1) -> 15.42 | G140: =OFFSET(InputPriceData!F$15,CalculationsAndCharts!$A140+$A$11,IF($C$7,8,0),1,1) -> 15.57 | H140: 14.6386 | I140: 1513 | J140: 0.3183263426 | K140: 0.1221837744 | L140: 0.01492887473 | M140: 2.405572755 | N140: 0.42 | O140: 10 | P140: 0.85 | Q140: FALSE | R140: TRUE | S140: TRUE | T140: FALSE | U140: FALSE | V140: TRUE | W140: FALSE | X140: FALSE | Y140: FALSE | Z140: FALSE | AA140: FALSE | AB140: FALSE | AC140: FALSE | AE140: 0 | AF140: 0 | AG140: FALSE | AJ140: 0 | AK140: 13400.5046 | AM140: FALSE | AN140: FALSE | AO140: FALSE | AQ140: 0 | AR140: 0 | AS140: FALSE | AV140: 0 | AW140: 100695.8937
A141: 109 | B141: =OFFSET(InputPriceData!B$15,CalculationsAndCharts!$A141+$A$11,0,1,1) -> 2015-10-06 | C141: =OFFSET(InputPriceData!G$15,CalculationsAndCharts!$A141+$A$11,IF($C$7,8,0),1,1) -> 44544600 | D141: =OFFSET(InputPriceData!C$15,CalculationsAndCharts!$A141+$A$11,IF($C$7,8,0),1,1) -> 15.11 | E141: =OFFSET(InputPriceData!D$15,CalculationsAndCharts!$A141+$A$11,IF($C$7,8,0),1,1) -> 15.75 | F141: =OFFSET(InputPriceData!E$15,CalculationsAndCharts!$A141+$A$11,IF($C$7,8,0),1,1) -> 15.08 | G141: =OFFSET(InputPriceData!F$15,CalculationsAndCharts!$A141+$A$11,IF($C$7,8,0),1,1) -> 15.74 | H141: 14.6442 | I141: 1512 | J141: 0.1953696 | K141: -0.03926907643 | L141: 0.001542060364 | M141: 1.326109391 | N141: 0.42 | O141: 10 | P141: 0.85 | Q141: FALSE | R141: TRUE | S141: FALSE | T141: FALSE | U141: FALSE | V141: TRUE | W141: FALSE | X141: FALSE | Y141: FALSE | Z141: FALSE | AA141: FALSE | AB141: FALSE | AC141: FALSE | AE141: 0 | AF141: 0 | AG141: FALSE | AJ141: 0 | AK141: 13400.5046 | AM141: FALSE | AN141: FALSE | AO141: FALSE | AQ141: 0 | AR141: 0 | AS141: FALSE | AV141: 0 | AW141: 100695.8937
A142: 110 | B142: =OFFSET(InputPriceData!B$15,CalculationsAndCharts!$A142+$A$11,0,1,1) -> 2015-10-05 | C142: =OFFSET(InputPriceData!G$15,CalculationsAndCharts!$A142+$A$11,IF($C$7,8,0),1,1) -> 23181800 | D142: =OFFSET(InputPriceData!C$15,CalculationsAndCharts!$A142+$A$11,IF($C$7,8,0),1,1) -> 15.03 | E142: =OFFSET(InputPriceData!D$15,CalculationsAndCharts!$A142+$A$11,IF($C$7,8,0),1,1) -> 15.16 | F142: =OFFSET(InputPriceData!E$15,CalculationsAndCharts!$A142+$A$11,IF($C$7,8,0),1,1) -> 14.88 | G142: =OFFSET(InputPriceData!F$15,CalculationsAndCharts!$A142+$A$11,IF($C$7,8,0),1,1) -> 15 | H142: 14.6424 | I142: 1511 | J142: -0.1471446193 | K142: -0.1965455092 | L142: 0.0386301372 | M142: -0.7678018576 | N142: 0.42 | O142: 10 | P142: 0.85 | Q142: FALSE | R142: TRUE | S142: FALSE | T142: FALSE | U142: FALSE | V142: TRUE | W142: FALSE | X142: FALSE | Y142: FALSE | Z142: FALSE | AA142: FALSE | AB142: FALSE | AC142: FALSE | AE142: 0 | AF142: 0 | AG142: FALSE | AJ142: 0 | AK142: 13400.5046 | AM142: FALSE | AN142: FALSE | AO142: FALSE | AQ142: 0 | AR142: 0 | AS142: FALSE | AV142: 0 | AW142: 100695.8937
A143: 111 | B143: =OFFSET(InputPriceData!B$15,CalculationsAndCharts!$A143+$A$11,0,1,1) -> 2015-10-02 | C143: =OFFSET(InputPriceData!G$15,CalculationsAndCharts!$A143+$A$11,IF($C$7,8,0),1,1) -> 27931700 | D143: =OFFSET(InputPriceData!C$15,CalculationsAndCharts!$A143+$A$11,IF($C$7,8,0),1,1) -> 14.29 | E143: =OFFSET(InputPriceData!D$15,CalculationsAndCharts!$A143+$A$11,IF($C$7,8,0),1,1) -> 14.8 | F143: =OFFSET(InputPriceData!E$15,CalculationsAndCharts!$A143+$A$11,IF($C$7,8,0),1,1) -> 14.21 | G143: =OFFSET(InputPriceData!F$15,CalculationsAndCharts!$A143+$A$11,IF($C$7,8,0),1,1) -> 14.77 | H143: 14.66300002 | I143: 1510 | J143: -0.1660322099 | K143: -0.2551438029 | L143: 0.06509836015 | M143: -0.8586171311 | N143: 0.42 | O143: 10 | P143: 0.85 | Q143: FALSE | R143: TRUE | S143: FALSE | T143: FALSE | U143: FALSE | V143: TRUE | W143: FALSE | X143: TRUE | Y143: FALSE | Z143: FALSE | AA143: FALSE | AB143: FALSE | AC143: FALSE | AE143: 0 | AF143: 0 | AG143: FALSE | AJ143: 0 | AK143: 13400.5046 | AM143: FALSE | AN143: FALSE | AO143: FALSE | AQ143: 0 | AR143: 0 | AS143: FALSE | AV143: 0 | AW143: 100695.8937
A144: 112 | B144: =OFFSET(InputPriceData!B$15,CalculationsAndCharts!$A144+$A$11,0,1,1) -> 2015-10-01 | C144: =OFFSET(InputPriceData!G$15,CalculationsAndCharts!$A144+$A$11,IF($C$7,8,0),1,1) -> 32351700 | D144: =OFFSET(InputPriceData!C$15,CalculationsAndCharts!$A144+$A$11,IF($C$7,8,0),1,1) -> 15.15 | E144: =OFFSET(InputPriceData!D$15,CalculationsAndCharts!$A144+$A$11,IF($C$7,8,0),1,1) -> 15.2 | F144: =OFFSET(InputPriceData!E$15,CalculationsAndCharts!$A144+$A$11,IF($C$7,8,0),1,1) -> 14.43 | G144: =OFFSET(InputPriceData!F$15,CalculationsAndCharts!$A144+$A$11,IF($C$7,8,0),1,1) -> 14.58 | H144: 14.6904 | I144: 1509 | J144: -0.2764596985 | K144: -0.3446279087 | L144: 0.1187683955 | M144: -1.474716202 | N144: 0.42 | O144: 10 | P144: 0.85 | Q144: FALSE | R144: TRUE | S144: FALSE | T144: FALSE | U144: FALSE | V144: FALSE | W144: TRUE | X144: FALSE | Y144: FALSE | Z144: FALSE | AA144: FALSE | AB144: FALSE | AC144: FALSE | AE144: 0 | AF144: 0 | AG144: FALSE | AJ144: 0 | AK144: 13400.5046 | AM144: FALSE | AN144: FALSE | AO144: FALSE | AQ144: 0 | AR144: 0 | AS144: FALSE | AV144: 0 | AW144: 100695.8937
A145: 113 | B145: =OFFSET(InputPriceData!B$15,CalculationsAndCharts!$A145+$A$11,0,1,1) -> 2015-09-30 | C145: =OFFSET(InputPriceData!G$15,CalculationsAndCharts!$A145+$A$11,IF($C$7,8,0),1,1) -> 24486700 | D145: =OFFSET(InputPriceData!C$15,CalculationsAndCharts!$A145+$A$11,IF($C$7,8,0),1,1) -> 14.55 | E145: =OFFSET(InputPriceData!D$15,CalculationsAndCharts!$A145+$A$11,IF($C$7,8,0),1,1) -> 14.82 | F145: =OFFSET(InputPriceData!E$15,CalculationsAndCharts!$A145+$A$11,IF($C$7,8,0),1,1) -> 14.46 | G145: =OFFSET(InputPriceData!F$15,CalculationsAndCharts!$A145+$A$11,IF($C$7,8,0),1,1) -> 14.68 | H145: 14.7256 | I145: 1508 | J145: -0.3229395002 | K145: -0.4032458658 | L145: 0.1626072283 | M145: -1.771929825 | N145: 0.42 | O145: 10 | P145: 0.85 | Q145: FALSE | R145: TRUE | S145: FALSE | T145: FALSE | U145: FALSE | V145: FALSE | W145: TRUE | X145: FALSE | Y145: FALSE | Z145: FALSE | AA145: FALSE | AB145: FALSE | AC145: FALSE | AE145: 0 | AF145: 0 | AG145: FALSE | AJ145: 0 | AK145: 13400.5046 | AM145: FALSE | AN145: FALSE | AO145: FALSE | AQ145: 0 | AR145: 0 | AS145: FALSE | AV145: 0 | AW145: 100695.8937
A146: 114 | B146: =OFFSET(InputPriceData!B$15,CalculationsAndCharts!$A146+$A$11,0,1,1) -> 2015-09-29 | C146: =OFFSET(InputPriceData!G$15,CalculationsAndCharts!$A146+$A$11,IF($C$7,8,0),1,1) -> 14700400 | D146: =OFFSET(InputPriceData!C$15,CalculationsAndCharts!$A146+$A$11,IF($C$7,8,0),1,1) -> 14.51 | E146: =OFFSET(InputPriceData!D$15,CalculationsAndCharts!$A146+$A$11,IF($C$7,8,0),1,1) -> 14.76 | F146: =OFFSET(InputPriceData!E$15,CalculationsAndCharts!$A146+$A$11,IF($C$7,8,0),1,1) -> 14.45 | G146: =OFFSET(InputPriceData!F$15,CalculationsAndCharts!$A146+$A$11,IF($C$7,8,0),1,1) -> 14.61 | H146: 14.7702 | I146: 1507 | J146: -0.4344845274 | K146: -0.4031702729 | L146: 0.162546269 | M146: -2.618163055 | N146: 0.42 | O146: 10 | P146: 0.85 | Q146: FALSE | R146: TRUE | S146: FALSE | T146: FALSE | U146: FALSE | V146: FALSE | W146: TRUE | X146: FALSE | Y146: FALSE | Z146: FALSE | AA146: FALSE | AB146: FALSE | AC146: FALSE | AE146: 0 | AF146: 0 | AG146: FALSE | AJ146: 0 | AK146: 13400.5046 | AM146: FALSE | AN146: FALSE | AO146: FALSE | AQ146: 0 | AR146: 0 | AS146: FALSE | AV146: 0 | AW146: 100695.8937
